Workbook

Sheet About the DTS Model (hidden)
A1: The Developmental Timespan (DTS) Model

Sheet Step 1 - Enter Raw Data (hidden)
A2: Treatment | B2: Name (leave unused names blank) | D2: Directions
A3: 1 | B3: Blackberry | D3: 1. Enter data required in yellow-shaded cells only.
A4: 2 | B4: Blueberry | D4: 2. Enter treatment names (10 letters or less) into Rows 3-12, Col B. Make sure unused names are blank (not 0, N/A, --, etc.).
A5: 3 | B5: Cherry | D5: 3. Check the life stage(s) for which data was collected. Mark "Y" for yes, "N" for no.
A6: 4 | B6: Grape | D6: 4. Enter the number of insects observed for each life stage on days 1-60. If no counts were done, enter "0" (zero).
A7: 5 | B7: Raspberry | D7: 5. To erase old data, replace with "0" (zero).
A8: 6 | B8: Strawberry | D8: 6. Once data is entered, click on the tabs at the bottom of the worksheet and proceed to Step 2 for calculations.
A9: 7
A10: 8
A11: 9
A12: 10
A13: n = | B13: =10-COUNTBLANK(B3:B12) -> 6
A15: Life stage | B15: Present (Y/N)
A16: Eggs | B16: y
A17: 1st instars | B17: y
A18: 2nd instars | B18: y
A19: 3rd instars | B19: y
A20: 4th instars | B20: n
A21: 5th instars | B21: n
A22: Pupae | B22: y
A23: Adults | B23: y
B26: =B28*B28 -> 1 | C26: =C28*C28 -> 4 | D26: 9 | E26: 16 | F26: 25 | G26: 36 | H26: 49 | I26: 64 | J26: 81 | K26: 100 | L26: 121 | M26: 144 | N26: 169 | O26: 196 | P26: 225 | Q26: 256 | R26: 289 | S26: 324 | T26: 361 | U26: 400 | V26: 441 | W26: 484 | X26: 529 | Y26: 576 | Z26: 625 | AA26: 676 | AB26: 729 | AC26: 784 | AD26: 841 | AE26: 900 | AF26: 961 | AG26: 1024 | AH26: 1089 | AI26: 1156 | AJ26: 1225 | AK26: 1296 | AL26: 1369 | AM26: 1444 | AN26: 1521 | AO26: 1600 | AP26: 1681 | AQ26: 1764 | AR26: 1849 | AS26: 1936 | AT26: 2025 | AU26: 2116 | AV26: 2209 | AW26: 2304 | AX26: 2401 | AY26: 2500 | AZ26: 2601 | BA26: 2704 | BB26: 2809 | BC26: 2916 | BD26: 3025 | BE26: 3136 | BF26: 3249 | BG26: 3364 | BH26: 3481 | BI26: 3600 | BJ26: XLS (d) | BK26: XLS StDev (d) | BL26: XLS StDev (h) | BM26: DLS StDev (h)
A27: =IF(Comm1="","No data",Comm1) -> Blackberry | B27: =IF(Comm1="","",IF(SUM(B29:BI36)=0,"Warning!! Data input not started!","")) ->  | BW27: Age over all treatments
A28: Day | B28: 1 | C28: 2 | D28: 3 | E28: 4 | F28: 5 | G28: 6 | H28: 7 | I28: 8 | J28: 9 | K28: 10 | L28: 11 | M28: 12 | N28: 13 | O28: 14 | P28: 15 | Q28: 16 | R28: 17 | S28: 18 | T28: 19 | U28: 20 | V28: 21 | W28: 22 | X28: 23 | Y28: 24 | Z28: 25 | AA28: 26 | AB28: 27 | AC28: 28 | AD28: 29 | AE28: 30 | AF28: 31 | AG28: 32 | AH28: 33 | AI28: 34 | AJ28: 35 | AK28: 36 | AL28: 37 | AM28: 38 | AN28: 39 | AO28: 40 | AP28: 41 | AQ28: 42 | AR28: 43 | AS28: 44 | AT28: 45 | AU28: 46 | AV28: 47 | AW28: 48 | AX28: 49 | AY28: 50 | AZ28: 51 | BA28: 52 | BB28: 53 | BC28: 54 | BD28: 55 | BE28: 56 | BF28: 57 | BG28: 58 | BH28: 59 | BI28: 60 | BP28: =Comm1 -> Blackberry | BQ28: Min | BR28: Max | BX28: Min | BY28: Max
A29: =IF(LSCheckEggs= "y","n Eggs", "") -> n Eggs | B29: 235 | C29: 0 | D29: 0 | E29: 0 | F29: 0 | G29: 0 | H29: 0 | I29: 0 | J29: 0 | K29: 0 | L29: 0 | M29: 0 | N29: 0 | O29: 0 | P29: 0 | Q29: 0 | R29: 0 | S29: 0 | T29: 0 | U29: 0 | V29: 0 | W29: 0 | X29: 0 | Y29: 0 | Z29: 0 | AA29: 0 | AB29: 0 | AC29: 0 | AD29: 0 | AE29: 0 | AF29: 0 | AG29: 0 | AH29: 0 | AI29: 0 | AJ29: 0 | AK29: 0 | AL29: 0 | AM29: 0 | AN29: 0 | AO29: 0 | AP29: 0 | AQ29: 0 | AR29: 0 | AS29: 0 | AT29: 0 | AU29: 0 | AV29: 0 | AW29: 0 | AX29: 0 | AY29: 0 | AZ29: 0 | BA29: 0 | BB29: 0 | BC29: 0 | BD29: 0 | BE29: 0 | BF29: 0 | BG29: 0 | BH29: 0 | BI29: 0 | BJ29: =IF(SUM(B29:BI29)=0,"N/A",SUMPRODUCT(B29:BI29,B$28:BI$28)/SUM(B29:BI29)) -> 1 | BK29: =IF(SUM(B29:BI29)=0,"N/A",SQRT((SUMPRODUCT(B29:BI29,B$26:BI$26)-(((SUMPRODUCT(B29:BI29,B$28:BI$28))^2)/SUM(B29:BI29)))/(SUM(B29:BI29)-1))) -> 0 | BL29: =IF(SUM(B29:BI29)=0,"N/A",BK29*24) -> 0 | BM29: =IF(SUM(B29:BI29)=0,"N/A",SQRT(BL$36^2+BL29^2)) -> 22.47786919 | BN29: =MIN(IF(B29:BI29>0,1,61)*(B$28:BI$28)) -> 1 | BO29: =MAX(IF(C29:BJ29>0,1,0)*(C$28:BJ$28)) -> 0 | BP29: Eggs | BQ29: =IF(BN29=61,"N/A",BN29) -> 1 | BR29: =IF(BO29=0,BQ29,BO29) -> 1 | BW29: Eggs | BX29: =MIN(BQ29,BQ40,BQ51,BQ62,BQ73,BQ84,BQ95,BQ106,BQ117,BQ128) -> 1 | BY29: =MAX(BR29,BR40,BR51,BR62,BR73,BR84,BR95,BR106,BR117,BR128) -> 3
A30: =IF(LSCheck1st= "y","n 1st instars", "") -> n 1st instars | B30: 29 | C30: 183 | D30: 9 | E30: 0 | F30: 0 | G30: 0 | H30: 0 | I30: 0 | J30: 0 | K30: 0 | L30: 0 | M30: 0 | N30: 0 | O30: 0 | P30: 0 | Q30: 0 | R30: 0 | S30: 0 | T30: 0 | U30: 0 | V30: 0 | W30: 0 | X30: 0 | Y30: 0 | Z30: 0 | AA30: 0 | AB30: 0 | AC30: 0 | AD30: 0 | AE30: 0 | AF30: 0 | AG30: 0 | AH30: 0 | AI30: 0 | AJ30: 0 | AK30: 0 | AL30: 0 | AM30: 0 | AN30: 0 | AO30: 0 | AP30: 0 | AQ30: 0 | AR30: 0 | AS30: 0 | AT30: 0 | AU30: 0 | AV30: 0 | AW30: 0 | AX30: 0 | AY30: 0 | AZ30: 0 | BA30: 0 | BB30: 0 | BC30: 0 | BD30: 0 | BE30: 0 | BF30: 0 | BG30: 0 | BH30: 0 | BI30: 0 | BJ30: =IF(SUM(B30:BI30)=0,"N/A",SUMPRODUCT(B30:BI30,B$28:BI$28)/SUM(B30:BI30)) -> 1.909502262 | BK30: =IF(SUM(B30:BI30)=0,"N/A",SQRT((SUMPRODUCT(B30:BI30,B$26:BI$26)-(((SUMPRODUCT(B30:BI30,B$28:BI$28))^2)/SUM(B30:BI30)))/(SUM(B30:BI30)-1))) -> 0.4055862494 | BL30: =IF(SUM(B30:BI30)=0,"N/A",BK30*24) -> 9.734069985 | BM30: =IF(SUM(B30:BI30)=0,"N/A",SQRT(BL$36^2+BL30^2)) -> 24.49503464 | BN30: =MIN(IF(B30:BI30>0,1,61)*(B$28:BI$28)) -> 1 | BO30: =MAX(IF(C30:BJ30>0,1,0)*(C$28:BJ$28)) -> 3 | BP30: 1st | BQ30: =IF(BN30=61,"N/A",BN30) -> 1 | BR30: =IF(BO30=0,BQ30,BO30) -> 3 | BW30: 1st | BX30: 1 | BY30: 6
A31: =IF(LSCheck2nd= "y","n 2nd instars", "") -> n 2nd instars | B31: 0 | C31: 10 | D31: 228 | E31: 24 | F31: 4 | G31: 1 | H31: 0 | I31: 0 | J31: 0 | K31: 0 | L31: 0 | M31: 0 | N31: 0 | O31: 0 | P31: 0 | Q31: 0 | R31: 0 | S31: 0 | T31: 0 | U31: 0 | V31: 0 | W31: 0 | X31: 0 | Y31: 0 | Z31: 0 | AA31: 0 | AB31: 0 | AC31: 0 | AD31: 0 | AE31: 0 | AF31: 0 | AG31: 0 | AH31: 0 | AI31: 0 | AJ31: 0 | AK31: 0 | AL31: 0 | AM31: 0 | AN31: 0 | AO31: 0 | AP31: 0 | AQ31: 0 | AR31: 0 | AS31: 0 | AT31: 0 | AU31: 0 | AV31: 0 | AW31: 0 | AX31: 0 | AY31: 0 | AZ31: 0 | BA31: 0 | BB31: 0 | BC31: 0 | BD31: 0 | BE31: 0 | BF31: 0 | BG31: 0 | BH31: 0 | BI31: 0 | BJ31: 3.093632959 | BK31: =IF(SUM(B31:BI31)=0,"N/A",SQRT((SUMPRODUCT(B31:BI31,B$26:BI$26)-(((SUMPRODUCT(B31:BI31,B$28:BI$28))^2)/SUM(B31:BI31)))/(SUM(B31:BI31)-1))) -> 0.4615240201 | BL31: 11.07657648 | BM31: 25.05883377 | BN31: =MIN(IF(B31:BI31>0,1,61)*(B$28:BI$28)) -> 2 | BO31: =MAX(IF(C31:BJ31>0,1,0)*(C$28:BJ$28)) -> 6 | BP31: 2nd | BQ31: 2 | BR31: 6 | BW31: 2nd | BX31: 1 | BY31: 9
A32: =IF(LSCheck3rd= "y","n 3rd instars", "") -> n 3rd instars | B32: 0 | C32: 0 | D32: 29 | E32: 245 | F32: 286 | G32: 295 | H32: 207 | I32: 6 | J32: 0 | K32: 0 | L32: 0 | M32: 0 | N32: 0 | O32: 0 | P32: 0 | Q32: 0 | R32: 0 | S32: 0 | T32: 0 | U32: 0 | V32: 0 | W32: 0 | X32: 0 | Y32: 0 | Z32: 0 | AA32: 0 | AB32: 0 | AC32: 0 | AD32: 0 | AE32: 0 | AF32: 0 | AG32: 0 | AH32: 0 | AI32: 0 | AJ32: 0 | AK32: 0 | AL32: 0 | AM32: 0 | AN32: 0 | AO32: 0 | AP32: 0 | AQ32: 0 | AR32: 0 | AS32: 0 | AT32: 0 | AU32: 0 | AV32: 0 | AW32: 0 | AX32: 0 | AY32: 0 | AZ32: 0 | BA32: 0 | BB32: 0 | BC32: 0 | BD32: 0 | BE32: 0 | BF32: 0 | BG32: 0 | BH32: 0 | BI32: 0 | BJ32: 5.397003745 | BK32: =IF(SUM(B32:BI32)=0,"N/A",SQRT((SUMPRODUCT(B32:BI32,B$26:BI$26)-(((SUMPRODUCT(B32:BI32,B$28:BI$28))^2)/SUM(B32:BI32)))/(SUM(B32:BI32)-1))) -> 1.132989349 | BL32: 27.19174439 | BM32: 35.27953467 | BN32: =MIN(IF(B32:BI32>0,1,61)*(B$28:BI$28)) -> 3 | BO32: =MAX(IF(C32:BJ32>0,1,0)*(C$28:BJ$28)) -> 8 | BP32: 3rd | BQ32: 3 | BR32: 8 | BW32: 3rd | BX32: 3 | BY32: 10
A33: =IF(LSCheck4th= "y","n 4th instars", "") ->  | B33: 0 | C33: 0 | D33: 0 | E33: 0 | F33: 0 | G33: 0 | H33: 0 | I33: 0 | J33: 0 | K33: 0 | L33: 0 | M33: 0 | N33: 0 | O33: 0 | P33: 0 | Q33: 0 | R33: 0 | S33: 0 | T33: 0 | U33: 0 | V33: 0 | W33: 0 | X33: 0 | Y33: 0 | Z33: 0 | AA33: 0 | AB33: 0 | AC33: 0 | AD33: 0 | AE33: 0 | AF33: 0 | AG33: 0 | AH33: 0 | AI33: 0 | AJ33: 0 | AK33: 0 | AL33: 0 | AM33: 0 | AN33: 0 | AO33: 0 | AP33: 0 | AQ33: 0 | AR33: 0 | AS33: 0 | AT33: 0 | AU33: 0 | AV33: 0 | AW33: 0 | AX33: 0 | AY33: 0 | AZ33: 0 | BA33: 0 | BB33: 0 | BC33: 0 | BD33: 0 | BE33: 0 | BF33: 0 | BG33: 0 | BH33: 0 | BI33: 0 | BJ33: N/A | BK33: =IF(SUM(B33:BI33)=0,"N/A",SQRT((SUMPRODUCT(B33:BI33,B$26:BI$26)-(((SUMPRODUCT(B33:BI33,B$28:BI$28))^2)/SUM(B33:BI33)))/(SUM(B33:BI33)-1))) -> N/A | BL33: N/A | BM33: N/A | BN33: =MIN(IF(B33:BI33>0,1,61)*(B$28:BI$28)) -> 61 | BO33: =MAX(IF(C33:BJ33>0,1,0)*(C$28:BJ$28)) -> 0 | BP33: 4th | BQ33: N/A | BR33: N/A | BW33: 4th | BX33: 0 | BY33: 0
A34: =IF(LSCheck5th= "y","n 5th instars", "") ->  | B34: 0 | C34: 0 | D34: 0 | E34: 0 | F34: 0 | G34: 0 | H34: 0 | I34: 0 | J34: 0 | K34: 0 | L34: 0 | M34: 0 | N34: 0 | O34: 0 | P34: 0 | Q34: 0 | R34: 0 | S34: 0 | T34: 0 | U34: 0 | V34: 0 | W34: 0 | X34: 0 | Y34: 0 | Z34: 0 | AA34: 0 | AB34: 0 | AC34: 0 | AD34: 0 | AE34: 0 | AF34: 0 | AG34: 0 | AH34: 0 | AI34: 0 | AJ34: 0 | AK34: 0 | AL34: 0 | AM34: 0 | AN34: 0 | AO34: 0 | AP34: 0 | AQ34: 0 | AR34: 0 | AS34: 0 | AT34: 0 | AU34: 0 | AV34: 0 | AW34: 0 | AX34: 0 | AY34: 0 | AZ34: 0 | BA34: 0 | BB34: 0 | BC34: 0 | BD34: 0 | BE34: 0 | BF34: 0 | BG34: 0 | BH34: 0 | BI34: 0 | BJ34: N/A | BK34: N/A | BL34: N/A | BM34: N/A | BN34: =MIN(IF(B34:BI34>0,1,61)*(B$28:BI$28)) -> 61 | BO34: =MAX(IF(C34:BJ34>0,1,0)*(C$28:BJ$28)) -> 0 | BP34: 5th | BQ34: N/A | BR34: N/A | BW34: 5th | BX34: 0 | BY34: 0
A35: =IF(LSCheckPupa= "y","n Pupae", "") -> n Pupae | B35: 0 | C35: 0 | D35: 0 | E35: 0 | F35: 7 | G35: 53 | H35: 275 | I35: 271 | J35: 221 | K35: 0 | L35: 0 | M35: 0 | N35: 0 | O35: 0 | P35: 0 | Q35: 0 | R35: 0 | S35: 0 | T35: 0 | U35: 0 | V35: 0 | W35: 0 | X35: 0 | Y35: 0 | Z35: 0 | AA35: 0 | AB35: 0 | AC35: 0 | AD35: 0 | AE35: 0 | AF35: 0 | AG35: 0 | AH35: 0 | AI35: 0 | AJ35: 0 | AK35: 0 | AL35: 0 | AM35: 0 | AN35: 0 | AO35: 0 | AP35: 0 | AQ35: 0 | AR35: 0 | AS35: 0 | AT35: 0 | AU35: 0 | AV35: 0 | AW35: 0 | AX35: 0 | AY35: 0 | AZ35: 0 | BA35: 0 | BB35: 0 | BC35: 0 | BD35: 0 | BE35: 0 | BF35: 0 | BG35: 0 | BH35: 0 | BI35: 0 | BJ35: 7.781136638 | BK35: 0.9409861215 | BL35: 22.58366692 | BM35: 31.86340557 | BN35: =MIN(IF(B35:BI35>0,1,61)*(B$28:BI$28)) -> 5 | BO35: =MAX(IF(C35:BJ35>0,1,0)*(C$28:BJ$28)) -> 9 | BP35: Pupae | BQ35: 5 | BR35: 9 | BS35: Min Adult | BT35: Max Adult | BW35: Pupae | BX35: 4 | BY35: 10
A36: =IF(LSCheckAdult= "y","n Adults", "") -> n Adults | B36: 0 | C36: 0 | D36: 0 | E36: 0 | F36: 0 | G36: 0 | H36: 1 | I36: 59 | J36: 1355 | K36: 1521 | L36: 202 | M36: 105 | N36: 59 | O36: 13 | P36: 3 | Q36: 2 | R36: 0 | S36: 0 | T36: 0 | U36: 0 | V36: 0 | W36: 0 | X36: 0 | Y36: 0 | Z36: 0 | AA36: 0 | AB36: 0 | AC36: 0 | AD36: 0 | AE36: 0 | AF36: 0 | AG36: 0 | AH36: 0 | AI36: 0 | AJ36: 0 | AK36: 0 | AL36: 0 | AM36: 0 | AN36: 0 | AO36: 0 | AP36: 0 | AQ36: 0 | AR36: 0 | AS36: 0 | AT36: 0 | AU36: 0 | AV36: 0 | AW36: 0 | AX36: 0 | AY36: 0 | AZ36: 0 | BA36: 0 | BB36: 0 | BC36: 0 | BD36: 0 | BE36: 0 | BF36: 0 | BG36: 0 | BH36: 0 | BI36: 0 | BJ36: 9.756626506 | BK36: 0.9365778831 | BL36: 22.47786919 | BN36: =MIN(IF(B36:BI36>0,1,61)*(B$28:BI$28)) -> 7 | BO36: =MAX(IF(C36:BJ36>0,1,0)*(C$28:BJ$28)) -> 16 | BP36: Adults | BQ36: =IF(BN36=61,"N/A",BN36) -> 7 | BR36: 16 | BS36: =IF($BN36=61,"N/A",ROUNDUP(BQ36-(1.96*$BK36),0)) -> 6 | BT36: =IF($BO36=0,"N/A",ROUNDDOWN(BR36+(1.96*$BK36),0)) -> 17 | BW36: Adults | BX36: 7 | BY36: 17
A37: Total | B37: =SUM(B29:B36) -> 264 | C37: =SUM(C29:C36) -> 193 | D37: 266 | E37: 269 | F37: 297 | G37: 349 | H37: 483 | I37: 336 | J37: 1576 | K37: 1521 | L37: 202 | M37: 105 | N37: 59 | O37: 13 | P37: 3 | Q37: 2 | R37: 0 | S37: 0 | T37: 0 | U37: 0 | V37: 0 | W37: 0 | X37: 0 | Y37: 0 | Z37: 0 | AA37: 0 | AB37: 0 | AC37: 0 | AD37: 0 | AE37: 0 | AF37: 0 | AG37: 0 | AH37: 0 | AI37: 0 | AJ37: 0 | AK37: 0 | AL37: 0 | AM37: 0 | AN37: 0 | AO37: 0 | AP37: 0 | AQ37: 0 | AR37: 0 | AS37: 0 | AT37: 0 | AU37: 0 | AV37: 0 | AW37: 0 | AX37: 0 | AY37: 0 | AZ37: 0 | BA37: 0 | BB37: 0 | BC37: 0 | BD37: 0 | BE37: 0 | BF37: 0 | BG37: 0 | BH37: 0 | BI37: 0 | BJ37: =SUM(B37:BI37) -> 5938 | BK37: 2.855855009 | BL37: 68.54052021 | BN37: =MIN(IF(B37:BI37>0,1,61)*(B$28:BI$28)) -> 1 | BO37: =MAX(IF(C37:BJ37>0,1,0)*(C$28:BJ$28)) -> 16 | BP37: Overall | BQ37: =IF(BN37=61,"N/A",BN37) -> 1 | BR37: =IF(BO37=0,BQ37,BO37) -> 16 | BW37: Overall | BX37: 1 | BY37: 17
A38: =IF(Comm2="","No data",Comm2) -> Blueberry | B38: =IF(Comm2="","",IF(SUM(B40:BI47)=0,"Warning!! Data input not started!","")) ->  | BW38: Min Adult - 1.96SD | BY38: =BX36-(1.96*MAX(BK36,BK47,BK58,BK69,BK80,BK91,BK102,BK113,BK124,BK135)) -> 3.853860624
A39: Day | B39: 1 | C39: 2 | D39: 3 | E39: 4 | F39: 5 | G39: 6 | H39: 7 | I39: 8 | J39: 9 | K39: 10 | L39: 11 | M39: 12 | N39: 13 | O39: 14 | P39: 15 | Q39: 16 | R39: 17 | S39: 18 | T39: 19 | U39: 20 | V39: 21 | W39: 22 | X39: 23 | Y39: 24 | Z39: 25 | AA39: 26 | AB39: 27 | AC39: 28 | AD39: 29 | AE39: 30 | AF39: 31 | AG39: 32 | AH39: 33 | AI39: 34 | AJ39: 35 | AK39: 36 | AL39: 37 | AM39: 38 | AN39: 39 | AO39: 40 | AP39: 41 | AQ39: 42 | AR39: 43 | AS39: 44 | AT39: 45 | AU39: 46 | AV39: 47 | AW39: 48 | AX39: 49 | AY39: 50 | AZ39: 51 | BA39: 52 | BB39: 53 | BC39: 54 | BD39: 55 | BE39: 56 | BF39: 57 | BG39: 58 | BH39: 59 | BI39: 60 | BP39: =Comm2 -> Blueberry | BQ39: Min | BR39: Max | BW39: Max Adult + 1.96SD | BY39: =BY37+(1.96*MAX(BK36,BK47,BK58,BK69,BK80,BK91,BK102,BK113,BK124,BK135)) -> 20.14613938
A40: =IF(LSCheckEggs= "y","n Eggs", "") -> n Eggs | B40: 129 | C40: 7 | D40: 0 | E40: 0 | F40: 0 | G40: 0 | H40: 0 | I40: 0 | J40: 0 | K40: 0 | L40: 0 | M40: 0 | N40: 0 | O40: 0 | P40: 0 | Q40: 0 | R40: 0 | S40: 0 | T40: 0 | U40: 0 | V40: 0 | W40: 0 | X40: 0 | Y40: 0 | Z40: 0 | AA40: 0 | AB40: 0 | AC40: 0 | AD40: 0 | AE40: 0 | AF40: 0 | AG40: 0 | AH40: 0 | AI40: 0 | AJ40: 0 | AK40: 0 | AL40: 0 | AM40: 0 | AN40: 0 | AO40: 0 | AP40: 0 | AQ40: 0 | AR40: 0 | AS40: 0 | AT40: 0 | AU40: 0 | AV40: 0 | AW40: 0 | AX40: 0 | AY40: 0 | AZ40: 0 | BA40: 0 | BB40: 0 | BC40: 0 | BD40: 0 | BE40: 0 | BF40: 0 | BG40: 0 | BH40: 0 | BI40: 0 | BJ40: =IF(SUM(B40:BI40)=0,"N/A",SUMPRODUCT(B40:BI40,B$39:BI$39)/SUM(B40:BI40)) -> 1.051470588 | BK40: 0.2217724206 | BL40: =IF(SUM(B40:BI40)=0,"N/A",BK40*24) -> 5.322538094 | BM40: =IF(SUM(B40:BI40)=0,"N/A",SQRT(BL$47^2+BL40^2)) -> 26.18757954 | BN40: =MIN(IF(B40:BI40>0,1,61)*(B$28:BI$28)) -> 1 | BO40: =MAX(IF(C40:BJ40>0,1,0)*(C$28:BJ$28)) -> 2 | BP40: Eggs | BQ40: =IF(BN40=61,"N/A",BN40) -> 1 | BR40: =IF(BO40=0,BQ40,BO40) -> 2
A41: =IF(LSCheck1st= "y","n 1st instars", "") -> n 1st instars | B41: 11 | C41: 97 | D41: 11 | E41: 5 | F41: 15 | G41: 2 | H41: 0 | I41: 0 | J41: 0 | K41: 0 | L41: 0 | M41: 0 | N41: 0 | O41: 0 | P41: 0 | Q41: 0 | R41: 0 | S41: 0 | T41: 0 | U41: 0 | V41: 0 | W41: 0 | X41: 0 | Y41: 0 | Z41: 0 | AA41: 0 | AB41: 0 | AC41: 0 | AD41: 0 | AE41: 0 | AF41: 0 | AG41: 0 | AH41: 0 | AI41: 0 | AJ41: 0 | AK41: 0 | AL41: 0 | AM41: 0 | AN41: 0 | AO41: 0 | AP41: 0 | AQ41: 0 | AR41: 0 | AS41: 0 | AT41: 0 | AU41: 0 | AV41: 0 | AW41: 0 | AX41: 0 | AY41: 0 | AZ41: 0 | BA41: 0 | BB41: 0 | BC41: 0 | BD41: 0 | BE41: 0 | BF41: 0 | BG41: 0 | BH41: 0 | BI41: 0 | BJ41: =IF(SUM(B41:BI41)=0,"N/A",SUMPRODUCT(B41:BI41,B$39:BI$39)/SUM(B41:BI41)) -> 2.446808511 | BK41: 1.136570857 | BL41: 27.27770057 | BM41: =IF(SUM(B41:BI41)=0,"N/A",SQRT(BL$47^2+BL41^2)) -> 37.43705195 | BN41: =MIN(IF(B41:BI41>0,1,61)*(B$28:BI$28)) -> 1 | BO41: =MAX(IF(C41:BJ41>0,1,0)*(C$28:BJ$28)) -> 6 | BP41: 1st | BQ41: =IF(BN41=61,"N/A",BN41) -> 1 | BR41: =IF(BO41=0,BQ41,BO41) -> 6
A42: =IF(LSCheck2nd= "y","n 2nd instars", "") -> n 2nd instars | B42: 0 | C42: 13 | D42: 46 | E42: 87 | F42: 35 | G42: 29 | H42: 5 | I42: 0 | J42: 0 | K42: 0 | L42: 0 | M42: 0 | N42: 0 | O42: 0 | P42: 0 | Q42: 0 | R42: 0 | S42: 0 | T42: 0 | U42: 0 | V42: 0 | W42: 0 | X42: 0 | Y42: 0 | Z42: 0 | AA42: 0 | AB42: 0 | AC42: 0 | AD42: 0 | AE42: 0 | AF42: 0 | AG42: 0 | AH42: 0 | AI42: 0 | AJ42: 0 | AK42: 0 | AL42: 0 | AM42: 0 | AN42: 0 | AO42: 0 | AP42: 0 | AQ42: 0 | AR42: 0 | AS42: 0 | AT42: 0 | AU42: 0 | AV42: 0 | AW42: 0 | AX42: 0 | AY42: 0 | AZ42: 0 | BA42: 0 | BB42: 0 | BC42: 0 | BD42: 0 | BE42: 0 | BF42: 0 | BG42: 0 | BH42: 0 | BI42: 0 | BJ42: 4.16744186 | BK42: 1.16002758 | BL42: 27.84066192 | BM42: 37.84920562 | BN42: =MIN(IF(B42:BI42>0,1,61)*(B$28:BI$28)) -> 2 | BO42: =MAX(IF(C42:BJ42>0,1,0)*(C$28:BJ$28)) -> 7 | BP42: 2nd | BQ42: 2 | BR42: 7
A43: =IF(LSCheck3rd= "y","n 3rd instars", "") -> n 3rd instars | B43: 0 | C43: 0 | D43: 16 | E43: 20 | F43: 50 | G43: 58 | H43: 56 | I43: 50 | J43: 5 | K43: 0 | L43: 0 | M43: 0 | N43: 0 | O43: 0 | P43: 0 | Q43: 0 | R43: 0 | S43: 0 | T43: 0 | U43: 0 | V43: 0 | W43: 0 | X43: 0 | Y43: 0 | Z43: 0 | AA43: 0 | AB43: 0 | AC43: 0 | AD43: 0 | AE43: 0 | AF43: 0 | AG43: 0 | AH43: 0 | AI43: 0 | AJ43: 0 | AK43: 0 | AL43: 0 | AM43: 0 | AN43: 0 | AO43: 0 | AP43: 0 | AQ43: 0 | AR43: 0 | AS43: 0 | AT43: 0 | AU43: 0 | AV43: 0 | AW43: 0 | AX43: 0 | AY43: 0 | AZ43: 0 | BA43: 0 | BB43: 0 | BC43: 0 | BD43: 0 | BE43: 0 | BF43: 0 | BG43: 0 | BH43: 0 | BI43: 0 | BJ43: 6.129411765 | BK43: 1.498988388 | BL43: 35.97572132 | BM43: 44.17818958 | BN43: =MIN(IF(B43:BI43>0,1,61)*(B$28:BI$28)) -> 3 | BO43: =MAX(IF(C43:BJ43>0,1,0)*(C$28:BJ$28)) -> 9 | BP43: 3rd | BQ43: 3 | BR43: 9
A44: =IF(LSCheck4th= "y","n 4th instars", "") ->  | B44: 0 | C44: 0 | D44: 0 | E44: 0 | F44: 0 | G44: 0 | H44: 0 | I44: 0 | J44: 0 | K44: 0 | L44: 0 | M44: 0 | N44: 0 | O44: 0 | P44: 0 | Q44: 0 | R44: 0 | S44: 0 | T44: 0 | U44: 0 | V44: 0 | W44: 0 | X44: 0 | Y44: 0 | Z44: 0 | AA44: 0 | AB44: 0 | AC44: 0 | AD44: 0 | AE44: 0 | AF44: 0 | AG44: 0 | AH44: 0 | AI44: 0 | AJ44: 0 | AK44: 0 | AL44: 0 | AM44: 0 | AN44: 0 | AO44: 0 | AP44: 0 | AQ44: 0 | AR44: 0 | AS44: 0 | AT44: 0 | AU44: 0 | AV44: 0 | AW44: 0 | AX44: 0 | AY44: 0 | AZ44: 0 | BA44: 0 | BB44: 0 | BC44: 0 | BD44: 0 | BE44: 0 | BF44: 0 | BG44: 0 | BH44: 0 | BI44: 0 | BJ44: N/A | BK44: N/A | BL44: N/A | BM44: N/A | BN44: =MIN(IF(B44:BI44>0,1,61)*(B$28:BI$28)) -> 61 | BO44: =MAX(IF(C44:BJ44>0,1,0)*(C$28:BJ$28)) -> 0 | BP44: 4th | BQ44: N/A | BR44: N/A
A45: =IF(LSCheck5th= "y","n 5th instars", "") ->  | B45: 0 | C45: 0 | D45: 0 | E45: 0 | F45: 0 | G45: 0 | H45: 0 | I45: 0 | J45: 0 | K45: 0 | L45: 0 | M45: 0 | N45: 0 | O45: 0 | P45: 0 | Q45: 0 | R45: 0 | S45: 0 | T45: 0 | U45: 0 | V45: 0 | W45: 0 | X45: 0 | Y45: 0 | Z45: 0 | AA45: 0 | AB45: 0 | AC45: 0 | AD45: 0 | AE45: 0 | AF45: 0 | AG45: 0 | AH45: 0 | AI45: 0 | AJ45: 0 | AK45: 0 | AL45: 0 | AM45: 0 | AN45: 0 | AO45: 0 | AP45: 0 | AQ45: 0 | AR45: 0 | AS45: 0 | AT45: 0 | AU45: 0 | AV45: 0 | AW45: 0 | AX45: 0 | AY45: 0 | AZ45: 0 | BA45: 0 | BB45: 0 | BC45: 0 | BD45: 0 | BE45: 0 | BF45: 0 | BG45: 0 | BH45: 0 | BI45: 0 | BJ45: N/A | BK45: N/A | BL45: N/A | BM45: N/A | BN45: =MIN(IF(B45:BI45>0,1,61)*(B$28:BI$28)) -> 61 | BO45: =MAX(IF(C45:BJ45>0,1,0)*(C$28:BJ$28)) -> 0 | BP45: 5th | BQ45: N/A | BR45: N/A
A46: =IF(LSCheckPupa= "y","n Pupae", "") -> n Pupae | B46: 0 | C46: 0 | D46: 0 | E46: 0 | F46: 0 | G46: 0 | H46: 15 | I46: 9 | J46: 71 | K46: 80 | L46: 0 | M46: 0 | N46: 0 | O46: 0 | P46: 0 | Q46: 0 | R46: 0 | S46: 0 | T46: 0 | U46: 0 | V46: 0 | W46: 0 | X46: 0 | Y46: 0 | Z46: 0 | AA46: 0 | AB46: 0 | AC46: 0 | AD46: 0 | AE46: 0 | AF46: 0 | AG46: 0 | AH46: 0 | AI46: 0 | AJ46: 0 | AK46: 0 | AL46: 0 | AM46: 0 | AN46: 0 | AO46: 0 | AP46: 0 | AQ46: 0 | AR46: 0 | AS46: 0 | AT46: 0 | AU46: 0 | AV46: 0 | AW46: 0 | AX46: 0 | AY46: 0 | AZ46: 0 | BA46: 0 | BB46: 0 | BC46: 0 | BD46: 0 | BE46: 0 | BF46: 0 | BG46: 0 | BH46: 0 | BI46: 0 | BJ46: =IF(SUM(B46:BI46)=0,"N/A",SUMPRODUCT(B46:BI46,B$39:BI$39)/SUM(B46:BI46)) -> 9.234285714 | BK46: 0.8950511631 | BL46: 21.48122791 | BM46: 33.45000842 | BN46: =MIN(IF(B46:BI46>0,1,61)*(B$28:BI$28)) -> 7 | BO46: =MAX(IF(C46:BJ46>0,1,0)*(C$28:BJ$28)) -> 10 | BP46: Pupae | BQ46: 7 | BR46: 10 | BS46: Min Adult | BT46: Max Adult
A47: =IF(LSCheckAdult= "y","n Adults", "") -> n Adults | B47: 0 | C47: 0 | D47: 0 | E47: 0 | F47: 0 | G47: 0 | H47: 0 | I47: 6 | J47: 102 | K47: 405 | L47: 163 | M47: 128 | N47: 19 | O47: 5 | P47: 2 | Q47: 1 | R47: 0 | S47: 0 | T47: 0 | U47: 0 | V47: 0 | W47: 0 | X47: 0 | Y47: 0 | Z47: 0 | AA47: 0 | AB47: 0 | AC47: 0 | AD47: 0 | AE47: 0 | AF47: 0 | AG47: 0 | AH47: 0 | AI47: 0 | AJ47: 0 | AK47: 0 | AL47: 0 | AM47: 0 | AN47: 0 | AO47: 0 | AP47: 0 | AQ47: 0 | AR47: 0 | AS47: 0 | AT47: 0 | AU47: 0 | AV47: 0 | AW47: 0 | AX47: 0 | AY47: 0 | AZ47: 0 | BA47: 0 | BB47: 0 | BC47: 0 | BD47: 0 | BE47: 0 | BF47: 0 | BG47: 0 | BH47: 0 | BI47: 0 | BJ47: 10.47894103 | BK47: 1.068374211 | BL47: 25.64098107 | BN47: =MIN(IF(B47:BI47>0,1,61)*(B$28:BI$28)) -> 8 | BO47: =MAX(IF(C47:BJ47>0,1,0)*(C$28:BJ$28)) -> 16 | BP47: Adults | BQ47: 8 | BR47: 16 | BS47: =IF($BN47=61,"N/A",ROUNDUP(BQ47-(1.96*$BK47),0)) -> 6 | BT47: =IF($BO47=0,"N/A",ROUNDDOWN(BR47+(1.96*$BK47),0)) -> 18
A48: Total | B48: =SUM(B40:B47) -> 140 | C48: =SUM(C40:C47) -> 117 | D48: =SUM(D40:D47) -> 73 | E48: =SUM(E40:E47) -> 112 | F48: =SUM(F40:F47) -> 100 | G48: =SUM(G40:G47) -> 89 | H48: =SUM(H40:H47) -> 76 | I48: =SUM(I40:I47) -> 65 | J48: =SUM(J40:J47) -> 178 | K48: =SUM(K40:K47) -> 485 | L48: =SUM(L40:L47) -> 163 | M48: =SUM(M40:M47) -> 128 | N48: =SUM(N40:N47) -> 19 | O48: =SUM(O40:O47) -> 5 | P48: =SUM(P40:P47) -> 2 | Q48: =SUM(Q40:Q47) -> 1 | R48: =SUM(R40:R47) -> 0 | S48: =SUM(S40:S47) -> 0 | T48: =SUM(T40:T47) -> 0 | U48: =SUM(U40:U47) -> 0 | V48: =SUM(V40:V47) -> 0 | W48: =SUM(W40:W47) -> 0 | X48: =SUM(X40:X47) -> 0 | Y48: =SUM(Y40:Y47) -> 0 | Z48: =SUM(Z40:Z47) -> 0 | AA48: =SUM(AA40:AA47) -> 0 | AB48: =SUM(AB40:AB47) -> 0 | AC48: =SUM(AC40:AC47) -> 0 | AD48: =SUM(AD40:AD47) -> 0 | AE48: =SUM(AE40:AE47) -> 0 | AF48: =SUM(AF40:AF47) -> 0 | AG48: =SUM(AG40:AG47) -> 0 | AH48: =SUM(AH40:AH47) -> 0 | AI48: =SUM(AI40:AI47) -> 0 | AJ48: =SUM(AJ40:AJ47) -> 0 | AK48: =SUM(AK40:AK47) -> 0 | AL48: =SUM(AL40:AL47) -> 0 | AM48: =SUM(AM40:AM47) -> 0 | AN48: =SUM(AN40:AN47) -> 0 | AO48: =SUM(AO40:AO47) -> 0 | AP48: =SUM(AP40:AP47) -> 0 | AQ48: =SUM(AQ40:AQ47) -> 0 | AR48: =SUM(AR40:AR47) -> 0 | AS48: =SUM(AS40:AS47) -> 0 | AT48: =SUM(AT40:AT47) -> 0 | AU48: =SUM(AU40:AU47) -> 0 | AV48: =SUM(AV40:AV47) -> 0 | AW48: =SUM(AW40:AW47) -> 0 | AX48: =SUM(AX40:AX47) -> 0 | AY48: =SUM(AY40:AY47) -> 0 | AZ48: =SUM(AZ40:AZ47) -> 0 | BA48: =SUM(BA40:BA47) -> 0 | BB48: =SUM(BB40:BB47) -> 0 | BC48: =SUM(BC40:BC47) -> 0 | BD48: =SUM(BD40:BD47) -> 0 | BE48: =SUM(BE40:BE47) -> 0 | BF48: =SUM(BF40:BF47) -> 0 | BG48: =SUM(BG40:BG47) -> 0 | BH48: =SUM(BH40:BH47) -> 0 | BI48: =SUM(BI40:BI47) -> 0 | BJ48: =SUM(B48:BI48) -> 1753 | BK48: 3.555459926 | BL48: 85.33103823 | BN48: =MIN(IF(B48:BI48>0,1,61)*(B$28:BI$28)) -> 1 | BO48: =MAX(IF(C48:BJ48>0,1,0)*(C$28:BJ$28)) -> 16 | BP48: Overall | BQ48: 1 | BR48: 16
A49: =IF(Comm3="","No data",Comm3) -> Cherry | B49: =IF(Comm3="","",IF(SUM(B51:BI58)=0,"Warning!! Data input not started!","")) -> 
A50: Day | B50: 1 | C50: 2 | D50: 3 | E50: 4 | F50: 5 | G50: 6 | H50: 7 | I50: 8 | J50: 9 | K50: 10 | L50: 11 | M50: 12 | N50: 13 | O50: 14 | P50: 15 | Q50: 16 | R50: 17 | S50: 18 | T50: 19 | U50: 20 | V50: 21 | W50: 22 | X50: 23 | Y50: 24 | Z50: 25 | AA50: 26 | AB50: 27 | AC50: 28 | AD50: 29 | AE50: 30 | AF50: 31 | AG50: 32 | AH50: 33 | AI50: 34 | AJ50: 35 | AK50: 36 | AL50: 37 | AM50: 38 | AN50: 39 | AO50: 40 | AP50: 41 | AQ50: 42 | AR50: 43 | AS50: 44 | AT50: 45 | AU50: 46 | AV50: 47 | AW50: 48 | AX50: 49 | AY50: 50 | AZ50: 51 | BA50: 52 | BB50: 53 | BC50: 54 | BD50: 55 | BE50: 56 | BF50: 57 | BG50: 58 | BH50: 59 | BI50: 60 | BP50: =Comm3 -> Cherry | BQ50: Min | BR50: Max
A51: =IF(LSCheckEggs= "y","n Eggs", "") -> n Eggs | B51: 157 | C51: 10 | D51: 0 | E51: 0 | F51: 0 | G51: 0 | H51: 0 | I51: 0 | J51: 0 | K51: 0 | L51: 0 | M51: 0 | N51: 0 | O51: 0 | P51: 0 | Q51: 0 | R51: 0 | S51: 0 | T51: 0 | U51: 0 | V51: 0 | W51: 0 | X51: 0 | Y51: 0 | Z51: 0 | AA51: 0 | AB51: 0 | AC51: 0 | AD51: 0 | AE51: 0 | AF51: 0 | AG51: 0 | AH51: 0 | AI51: 0 | AJ51: 0 | AK51: 0 | AL51: 0 | AM51: 0 | AN51: 0 | AO51: 0 | AP51: 0 | AQ51: 0 | AR51: 0 | AS51: 0 | AT51: 0 | AU51: 0 | AV51: 0 | AW51: 0 | AX51: 0 | AY51: 0 | AZ51: 0 | BA51: 0 | BB51: 0 | BC51: 0 | BD51: 0 | BE51: 0 | BF51: 0 | BG51: 0 | BH51: 0 | BI51: 0 | BJ51: =IF(SUM(B51:BI51)=0,"N/A",SUMPRODUCT(B51:BI51,B$50:BI$50)/SUM(B51:BI51)) -> 1.05988024 | BK51: 0.2379784035 | BL51: 5.711481683 | BM51: =IF(SUM(B51:BI51)=0,"N/A",SQRT(BL$58^2+BL51^2)) -> 20.62189291 | BN51: =MIN(IF(B51:BI51>0,1,61)*(B$28:BI$28)) -> 1 | BO51: =MAX(IF(C51:BJ51>0,1,0)*(C$28:BJ$28)) -> 2 | BP51: Eggs | BQ51: 1 | BR51: 2
A52: =IF(LSCheck1st= "y","n 1st instars", "") -> n 1st instars | B52: 14 | C52: 34 | D52: 2 | E52: 0 | F52: 0 | G52: 0 | H52: 0 | I52: 0 | J52: 0 | K52: 0 | L52: 0 | M52: 0 | N52: 0 | O52: 0 | P52: 0 | Q52: 0 | R52: 0 | S52: 0 | T52: 0 | U52: 0 | V52: 0 | W52: 0 | X52: 0 | Y52: 0 | Z52: 0 | AA52: 0 | AB52: 0 | AC52: 0 | AD52: 0 | AE52: 0 | AF52: 0 | AG52: 0 | AH52: 0 | AI52: 0 | AJ52: 0 | AK52: 0 | AL52: 0 | AM52: 0 | AN52: 0 | AO52: 0 | AP52: 0 | AQ52: 0 | AR52: 0 | AS52: 0 | AT52: 0 | AU52: 0 | AV52: 0 | AW52: 0 | AX52: 0 | AY52: 0 | AZ52: 0 | BA52: 0 | BB52: 0 | BC52: 0 | BD52: 0 | BE52: 0 | BF52: 0 | BG52: 0 | BH52: 0 | BI52: 0 | BJ52: =IF(SUM(B52:BI52)=0,"N/A",SUMPRODUCT(B52:BI52,B$50:BI$50)/SUM(B52:BI52)) -> 1.76 | BK52: 0.5174505793 | BL52: 12.4188139 | BM52: =IF(SUM(B52:BI52)=0,"N/A",SQRT(BL$58^2+BL52^2)) -> 23.38521719 | BN52: =MIN(IF(B52:BI52>0,1,61)*(B$28:BI$28)) -> 1 | BO52: =MAX(IF(C52:BJ52>0,1,0)*(C$28:BJ$28)) -> 3 | BP52: 1st | BQ52: 1 | BR52: 3
A53: =IF(LSCheck2nd= "y","n 2nd instars", "") -> n 2nd instars | B53: 0 | C53: 13 | D53: 46 | E53: 24 | F53: 8 | G53: 0 | H53: 0 | I53: 0 | J53: 0 | K53: 0 | L53: 0 | M53: 0 | N53: 0 | O53: 0 | P53: 0 | Q53: 0 | R53: 0 | S53: 0 | T53: 0 | U53: 0 | V53: 0 | W53: 0 | X53: 0 | Y53: 0 | Z53: 0 | AA53: 0 | AB53: 0 | AC53: 0 | AD53: 0 | AE53: 0 | AF53: 0 | AG53: 0 | AH53: 0 | AI53: 0 | AJ53: 0 | AK53: 0 | AL53: 0 | AM53: 0 | AN53: 0 | AO53: 0 | AP53: 0 | AQ53: 0 | AR53: 0 | AS53: 0 | AT53: 0 | AU53: 0 | AV53: 0 | AW53: 0 | AX53: 0 | AY53: 0 | AZ53: 0 | BA53: 0 | BB53: 0 | BC53: 0 | BD53: 0 | BE53: 0 | BF53: 0 | BG53: 0 | BH53: 0 | BI53: 0 | BJ53: 3.296703297 | BK53: 0.8231984437 | BL53: 19.75676265 | BM53: 27.98162102 | BN53: =MIN(IF(B53:BI53>0,1,61)*(B$28:BI$28)) -> 2 | BO53: =MAX(IF(C53:BJ53>0,1,0)*(C$28:BJ$28)) -> 5 | BP53: 2nd | BQ53: 2 | BR53: 5
A54: =IF(LSCheck3rd= "y","n 3rd instars", "") -> n 3rd instars | B54: 0 | C54: 0 | D54: 20 | E54: 70 | F54: 74 | G54: 142 | H54: 59 | I54: 16 | J54: 0 | K54: 0 | L54: 0 | M54: 0 | N54: 0 | O54: 0 | P54: 0 | Q54: 0 | R54: 0 | S54: 0 | T54: 0 | U54: 0 | V54: 0 | W54: 0 | X54: 0 | Y54: 0 | Z54: 0 | AA54: 0 | AB54: 0 | AC54: 0 | AD54: 0 | AE54: 0 | AF54: 0 | AG54: 0 | AH54: 0 | AI54: 0 | AJ54: 0 | AK54: 0 | AL54: 0 | AM54: 0 | AN54: 0 | AO54: 0 | AP54: 0 | AQ54: 0 | AR54: 0 | AS54: 0 | AT54: 0 | AU54: 0 | AV54: 0 | AW54: 0 | AX54: 0 | AY54: 0 | AZ54: 0 | BA54: 0 | BB54: 0 | BC54: 0 | BD54: 0 | BE54: 0 | BF54: 0 | BG54: 0 | BH54: 0 | BI54: 0 | BJ54: 5.519685039 | BK54: 1.223780125 | BL54: 29.37072301 | BM54: 35.42994234 | BN54: =MIN(IF(B54:BI54>0,1,61)*(B$28:BI$28)) -> 3 | BO54: =MAX(IF(C54:BJ54>0,1,0)*(C$28:BJ$28)) -> 8 | BP54: 3rd | BQ54: 3 | BR54: 8
A55: =IF(LSCheck4th= "y","n 4th instars", "") ->  | B55: 0 | C55: 0 | D55: 0 | E55: 0 | F55: 0 | G55: 0 | H55: 0 | I55: 0 | J55: 0 | K55: 0 | L55: 0 | M55: 0 | N55: 0 | O55: 0 | P55: 0 | Q55: 0 | R55: 0 | S55: 0 | T55: 0 | U55: 0 | V55: 0 | W55: 0 | X55: 0 | Y55: 0 | Z55: 0 | AA55: 0 | AB55: 0 | AC55: 0 | AD55: 0 | AE55: 0 | AF55: 0 | AG55: 0 | AH55: 0 | AI55: 0 | AJ55: 0 | AK55: 0 | AL55: 0 | AM55: 0 | AN55: 0 | AO55: 0 | AP55: 0 | AQ55: 0 | AR55: 0 | AS55: 0 | AT55: 0 | AU55: 0 | AV55: 0 | AW55: 0 | AX55: 0 | AY55: 0 | AZ55: 0 | BA55: 0 | BB55: 0 | BC55: 0 | BD55: 0 | BE55: 0 | BF55: 0 | BG55: 0 | BH55: 0 | BI55: 0 | BJ55: N/A | BK55: N/A | BL55: N/A | BM55: N/A | BN55: =MIN(IF(B55:BI55>0,1,61)*(B$28:BI$28)) -> 61 | BO55: =MAX(IF(C55:BJ55>0,1,0)*(C$28:BJ$28)) -> 0 | BP55: 4th | BQ55: N/A | BR55: N/A
A56: =IF(LSCheck5th= "y","n 5th instars", "") ->  | B56: 0 | C56: 0 | D56: 0 | E56: 0 | F56: 0 | G56: 0 | H56: 0 | I56: 0 | J56: 0 | K56: 0 | L56: 0 | M56: 0 | N56: 0 | O56: 0 | P56: 0 | Q56: 0 | R56: 0 | S56: 0 | T56: 0 | U56: 0 | V56: 0 | W56: 0 | X56: 0 | Y56: 0 | Z56: 0 | AA56: 0 | AB56: 0 | AC56: 0 | AD56: 0 | AE56: 0 | AF56: 0 | AG56: 0 | AH56: 0 | AI56: 0 | AJ56: 0 | AK56: 0 | AL56: 0 | AM56: 0 | AN56: 0 | AO56: 0 | AP56: 0 | AQ56: 0 | AR56: 0 | AS56: 0 | AT56: 0 | AU56: 0 | AV56: 0 | AW56: 0 | AX56: 0 | AY56: 0 | AZ56: 0 | BA56: 0 | BB56: 0 | BC56: 0 | BD56: 0 | BE56: 0 | BF56: 0 | BG56: 0 | BH56: 0 | BI56: 0 | BJ56: N/A | BK56: N/A | BL56: N/A | BM56: N/A | BN56: =MIN(IF(B56:BI56>0,1,61)*(B$28:BI$28)) -> 61 | BO56: =MAX(IF(C56:BJ56>0,1,0)*(C$28:BJ$28)) -> 0 | BP56: 5th | BQ56: N/A | BR56: N/A
A57: =IF(LSCheckPupa= "y","n Pupae", "") -> n Pupae | B57: 0 | C57: 0 | D57: 0 | E57: 0 | F57: 3 | G57: 10 | H57: 44 | I57: 70 | J57: 0 | K57: 0 | L57: 0 | M57: 0 | N57: 0 | O57: 0 | P57: 0 | Q57: 0 | R57: 0 | S57: 0 | T57: 0 | U57: 0 | V57: 0 | W57: 0 | X57: 0 | Y57: 0 | Z57: 0 | AA57: 0 | AB57: 0 | AC57: 0 | AD57: 0 | AE57: 0 | AF57: 0 | AG57: 0 | AH57: 0 | AI57: 0 | AJ57: 0 | AK57: 0 | AL57: 0 | AM57: 0 | AN57: 0 | AO57: 0 | AP57: 0 | AQ57: 0 | AR57: 0 | AS57: 0 | AT57: 0 | AU57: 0 | AV57: 0 | AW57: 0 | AX57: 0 | AY57: 0 | AZ57: 0 | BA57: 0 | BB57: 0 | BC57: 0 | BD57: 0 | BE57: 0 | BF57: 0 | BG57: 0 | BH57: 0 | BI57: 0 | BJ57: 7.42519685 | BK57: 0.7402239584 | BL57: 17.765375 | BM57: 26.61296664 | BN57: =MIN(IF(B57:BI57>0,1,61)*(B$28:BI$28)) -> 5 | BO57: =MAX(IF(C57:BJ57>0,1,0)*(C$28:BJ$28)) -> 8 | BP57: Pupae | BQ57: 5 | BR57: 8 | BS57: Min Adult | BT57: Max Adult
A58: =IF(LSCheckAdult= "y","n Adults", "") -> n Adults | B58: 0 | C58: 0 | D58: 0 | E58: 0 | F58: 0 | G58: 0 | H58: 0 | I58: 6 | J58: 214 | K58: 978 | L58: 1572 | M58: 498 | N58: 23 | O58: 0 | P58: 0 | Q58: 0 | R58: 0 | S58: 0 | T58: 0 | U58: 0 | V58: 0 | W58: 0 | X58: 0 | Y58: 0 | Z58: 0 | AA58: 0 | AB58: 0 | AC58: 0 | AD58: 0 | AE58: 0 | AF58: 0 | AG58: 0 | AH58: 0 | AI58: 0 | AJ58: 0 | AK58: 0 | AL58: 0 | AM58: 0 | AN58: 0 | AO58: 0 | AP58: 0 | AQ58: 0 | AR58: 0 | AS58: 0 | AT58: 0 | AU58: 0 | AV58: 0 | AW58: 0 | AX58: 0 | AY58: 0 | AZ58: 0 | BA58: 0 | BB58: 0 | BC58: 0 | BD58: 0 | BE58: 0 | BF58: 0 | BG58: 0 | BH58: 0 | BI58: 0 | BJ58: 10.73260407 | BK58: 0.8256325903 | BL58: 19.81518217 | BN58: =MIN(IF(B58:BI58>0,1,61)*(B$28:BI$28)) -> 8 | BO58: =MAX(IF(C58:BJ58>0,1,0)*(C$28:BJ$28)) -> 13 | BP58: Adults | BQ58: 8 | BR58: 13 | BS58: =IF($BN58=61,"N/A",ROUNDUP(BQ58-(1.96*$BK58),0)) -> 7 | BT58: =IF($BO58=0,"N/A",ROUNDDOWN(BR58+(1.96*$BK58),0)) -> 14
A59: Total | B59: =SUM(B51:B58) -> 171 | C59: =SUM(C51:C58) -> 57 | D59: =SUM(D51:D58) -> 68 | E59: =SUM(E51:E58) -> 94 | F59: =SUM(F51:F58) -> 85 | G59: =SUM(G51:G58) -> 152 | H59: =SUM(H51:H58) -> 103 | I59: =SUM(I51:I58) -> 92 | J59: =SUM(J51:J58) -> 214 | K59: =SUM(K51:K58) -> 978 | L59: =SUM(L51:L58) -> 1572 | M59: =SUM(M51:M58) -> 498 | N59: =SUM(N51:N58) -> 23 | O59: =SUM(O51:O58) -> 0 | P59: =SUM(P51:P58) -> 0 | Q59: =SUM(Q51:Q58) -> 0 | R59: =SUM(R51:R58) -> 0 | S59: =SUM(S51:S58) -> 0 | T59: =SUM(T51:T58) -> 0 | U59: =SUM(U51:U58) -> 0 | V59: =SUM(V51:V58) -> 0 | W59: =SUM(W51:W58) -> 0 | X59: =SUM(X51:X58) -> 0 | Y59: =SUM(Y51:Y58) -> 0 | Z59: =SUM(Z51:Z58) -> 0 | AA59: =SUM(AA51:AA58) -> 0 | AB59: =SUM(AB51:AB58) -> 0 | AC59: =SUM(AC51:AC58) -> 0 | AD59: =SUM(AD51:AD58) -> 0 | AE59: =SUM(AE51:AE58) -> 0 | AF59: =SUM(AF51:AF58) -> 0 | AG59: =SUM(AG51:AG58) -> 0 | AH59: =SUM(AH51:AH58) -> 0 | AI59: =SUM(AI51:AI58) -> 0 | AJ59: =SUM(AJ51:AJ58) -> 0 | AK59: =SUM(AK51:AK58) -> 0 | AL59: =SUM(AL51:AL58) -> 0 | AM59: =SUM(AM51:AM58) -> 0 | AN59: =SUM(AN51:AN58) -> 0 | AO59: =SUM(AO51:AO58) -> 0 | AP59: =SUM(AP51:AP58) -> 0 | AQ59: =SUM(AQ51:AQ58) -> 0 | AR59: =SUM(AR51:AR58) -> 0 | AS59: =SUM(AS51:AS58) -> 0 | AT59: =SUM(AT51:AT58) -> 0 | AU59: =SUM(AU51:AU58) -> 0 | AV59: =SUM(AV51:AV58) -> 0 | AW59: =SUM(AW51:AW58) -> 0 | AX59: =SUM(AX51:AX58) -> 0 | AY59: =SUM(AY51:AY58) -> 0 | AZ59: =SUM(AZ51:AZ58) -> 0 | BA59: =SUM(BA51:BA58) -> 0 | BB59: =SUM(BB51:BB58) -> 0 | BC59: =SUM(BC51:BC58) -> 0 | BD59: =SUM(BD51:BD58) -> 0 | BE59: =SUM(BE51:BE58) -> 0 | BF59: =SUM(BF51:BF58) -> 0 | BG59: =SUM(BG51:BG58) -> 0 | BH59: =SUM(BH51:BH58) -> 0 | BI59: =SUM(BI51:BI58) -> 0 | BJ59: =SUM(B59:BI59) -> 4107 | BK59: 2.832342754 | BL59: 67.97622609 | BN59: =MIN(IF(B59:BI59>0,1,61)*(B$28:BI$28)) -> 1 | BO59: =MAX(IF(C59:BJ59>0,1,0)*(C$28:BJ$28)) -> 13 | BP59: Overall | BQ59: 1 | BR59: 13
A60: =IF(Comm4="","No data",Comm4) -> Grape | B60: =IF(Comm4="","",IF(SUM(B62:BI69)=0,"Warning!! Data input not started!","")) -> 
A61: Day | B61: 1 | C61: 2 | D61: 3 | E61: 4 | F61: 5 | G61: 6 | H61: 7 | I61: 8 | J61: 9 | K61: 10 | L61: 11 | M61: 12 | N61: 13 | O61: 14 | P61: 15 | Q61: 16 | R61: 17 | S61: 18 | T61: 19 | U61: 20 | V61: 21 | W61: 22 | X61: 23 | Y61: 24 | Z61: 25 | AA61: 26 | AB61: 27 | AC61: 28 | AD61: 29 | AE61: 30 | AF61: 31 | AG61: 32 | AH61: 33 | AI61: 34 | AJ61: 35 | AK61: 36 | AL61: 37 | AM61: 38 | AN61: 39 | AO61: 40 | AP61: 41 | AQ61: 42 | AR61: 43 | AS61: 44 | AT61: 45 | AU61: 46 | AV61: 47 | AW61: 48 | AX61: 49 | AY61: 50 | AZ61: 51 | BA61: 52 | BB61: 53 | BC61: 54 | BD61: 55 | BE61: 56 | BF61: 57 | BG61: 58 | BH61: 59 | BI61: 60 | BP61: =Comm4 -> Grape | BQ61: Min | BR61: Max
A62: =IF(LSCheckEggs= "y","n Eggs", "") -> n Eggs | B62: 252 | C62: 41 | D62: 0 | E62: 0 | F62: 0 | G62: 0 | H62: 0 | I62: 0 | J62: 0 | K62: 0 | L62: 0 | M62: 0 | N62: 0 | O62: 0 | P62: 0 | Q62: 0 | R62: 0 | S62: 0 | T62: 0 | U62: 0 | V62: 0 | W62: 0 | X62: 0 | Y62: 0 | Z62: 0 | AA62: 0 | AB62: 0 | AC62: 0 | AD62: 0 | AE62: 0 | AF62: 0 | AG62: 0 | AH62: 0 | AI62: 0 | AJ62: 0 | AK62: 0 | AL62: 0 | AM62: 0 | AN62: 0 | AO62: 0 | AP62: 0 | AQ62: 0 | AR62: 0 | AS62: 0 | AT62: 0 | AU62: 0 | AV62: 0 | AW62: 0 | AX62: 0 | AY62: 0 | AZ62: 0 | BA62: 0 | BB62: 0 | BC62: 0 | BD62: 0 | BE62: 0 | BF62: 0 | BG62: 0 | BH62: 0 | BI62: 0 | BJ62: =IF(SUM(B62:BI62)=0,"N/A",SUMPRODUCT(B62:BI62,B$61:BI$61)/SUM(B62:BI62)) -> 1.139931741 | BK62: 0.3475097251 | BL62: 8.340233402 | BM62: =IF(SUM(B62:BI62)=0,"N/A",SQRT(BL$69^2+BL62^2)) -> 39.41662162 | BN62: =MIN(IF(B62:BI62>0,1,61)*(B$28:BI$28)) -> 1 | BO62: =MAX(IF(C62:BJ62>0,1,0)*(C$28:BJ$28)) -> 2 | BP62: Eggs | BQ62: 1 | BR62: 2
A63: =IF(LSCheck1st= "y","n 1st instars", "") -> n 1st instars | B63: 52 | C63: 72 | D63: 26 | E63: 2 | F63: 0 | G63: 0 | H63: 0 | I63: 0 | J63: 0 | K63: 0 | L63: 0 | M63: 0 | N63: 0 | O63: 0 | P63: 0 | Q63: 0 | R63: 0 | S63: 0 | T63: 0 | U63: 0 | V63: 0 | W63: 0 | X63: 0 | Y63: 0 | Z63: 0 | AA63: 0 | AB63: 0 | AC63: 0 | AD63: 0 | AE63: 0 | AF63: 0 | AG63: 0 | AH63: 0 | AI63: 0 | AJ63: 0 | AK63: 0 | AL63: 0 | AM63: 0 | AN63: 0 | AO63: 0 | AP63: 0 | AQ63: 0 | AR63: 0 | AS63: 0 | AT63: 0 | AU63: 0 | AV63: 0 | AW63: 0 | AX63: 0 | AY63: 0 | AZ63: 0 | BA63: 0 | BB63: 0 | BC63: 0 | BD63: 0 | BE63: 0 | BF63: 0 | BG63: 0 | BH63: 0 | BI63: 0 | BJ63: =IF(SUM(B63:BI63)=0,"N/A",SUMPRODUCT(B63:BI63,B$61:BI$61)/SUM(B63:BI63)) -> 1.855263158 | BK63: 0.7405733839 | BL63: 17.77376121 | BM63: =IF(SUM(B63:BI63)=0,"N/A",SQRT(BL$69^2+BL63^2)) -> 42.42660904 | BN63: =MIN(IF(B63:BI63>0,1,61)*(B$28:BI$28)) -> 1 | BO63: =MAX(IF(C63:BJ63>0,1,0)*(C$28:BJ$28)) -> 4 | BP63: 1st | BQ63: 1 | BR63: 4
A64: =IF(LSCheck2nd= "y","n 2nd instars", "") -> n 2nd instars | B64: 0 | C64: 21 | D64: 67 | E64: 25 | F64: 12 | G64: 3 | H64: 30 | I64: 16 | J64: 3 | K64: 0 | L64: 0 | M64: 0 | N64: 0 | O64: 0 | P64: 0 | Q64: 0 | R64: 0 | S64: 0 | T64: 0 | U64: 0 | V64: 0 | W64: 0 | X64: 0 | Y64: 0 | Z64: 0 | AA64: 0 | AB64: 0 | AC64: 0 | AD64: 0 | AE64: 0 | AF64: 0 | AG64: 0 | AH64: 0 | AI64: 0 | AJ64: 0 | AK64: 0 | AL64: 0 | AM64: 0 | AN64: 0 | AO64: 0 | AP64: 0 | AQ64: 0 | AR64: 0 | AS64: 0 | AT64: 0 | AU64: 0 | AV64: 0 | AW64: 0 | AX64: 0 | AY64: 0 | AZ64: 0 | BA64: 0 | BB64: 0 | BC64: 0 | BD64: 0 | BE64: 0 | BF64: 0 | BG64: 0 | BH64: 0 | BI64: 0 | BJ64: 4.440677966 | BK64: 2.05275192 | BL64: 49.26604609 | BM64: 62.5400181 | BN64: =MIN(IF(B64:BI64>0,1,61)*(B$28:BI$28)) -> 2 | BO64: =MAX(IF(C64:BJ64>0,1,0)*(C$28:BJ$28)) -> 9 | BP64: 2nd | BQ64: 2 | BR64: 9
A65: =IF(LSCheck3rd= "y","n 3rd instars", "") -> n 3rd instars | B65: 0 | C65: 0 | D65: 15 | E65: 71 | F65: 46 | G65: 66 | H65: 99 | I65: 78 | J65: 40 | K65: 10 | L65: 0 | M65: 0 | N65: 0 | O65: 0 | P65: 0 | Q65: 0 | R65: 0 | S65: 0 | T65: 0 | U65: 0 | V65: 0 | W65: 0 | X65: 0 | Y65: 0 | Z65: 0 | AA65: 0 | AB65: 0 | AC65: 0 | AD65: 0 | AE65: 0 | AF65: 0 | AG65: 0 | AH65: 0 | AI65: 0 | AJ65: 0 | AK65: 0 | AL65: 0 | AM65: 0 | AN65: 0 | AO65: 0 | AP65: 0 | AQ65: 0 | AR65: 0 | AS65: 0 | AT65: 0 | AU65: 0 | AV65: 0 | AW65: 0 | AX65: 0 | AY65: 0 | AZ65: 0 | BA65: 0 | BB65: 0 | BC65: 0 | BD65: 0 | BE65: 0 | BF65: 0 | BG65: 0 | BH65: 0 | BI65: 0 | BJ65: 6.428235294 | BK65: 1.763132114 | BL65: 42.31517073 | BM65: 57.22485684 | BN65: =MIN(IF(B65:BI65>0,1,61)*(B$28:BI$28)) -> 3 | BO65: =MAX(IF(C65:BJ65>0,1,0)*(C$28:BJ$28)) -> 10 | BP65: 3rd | BQ65: 3 | BR65: 10
A66: =IF(LSCheck4th= "y","n 4th instars", "") ->  | B66: 0 | C66: 0 | D66: 0 | E66: 0 | F66: 0 | G66: 0 | H66: 0 | I66: 0 | J66: 0 | K66: 0 | L66: 0 | M66: 0 | N66: 0 | O66: 0 | P66: 0 | Q66: 0 | R66: 0 | S66: 0 | T66: 0 | U66: 0 | V66: 0 | W66: 0 | X66: 0 | Y66: 0 | Z66: 0 | AA66: 0 | AB66: 0 | AC66: 0 | AD66: 0 | AE66: 0 | AF66: 0 | AG66: 0 | AH66: 0 | AI66: 0 | AJ66: 0 | AK66: 0 | AL66: 0 | AM66: 0 | AN66: 0 | AO66: 0 | AP66: 0 | AQ66: 0 | AR66: 0 | AS66: 0 | AT66: 0 | AU66: 0 | AV66: 0 | AW66: 0 | AX66: 0 | AY66: 0 | AZ66: 0 | BA66: 0 | BB66: 0 | BC66: 0 | BD66: 0 | BE66: 0 | BF66: 0 | BG66: 0 | BH66: 0 | BI66: 0 | BJ66: N/A | BK66: N/A | BL66: N/A | BM66: N/A | BN66: =MIN(IF(B66:BI66>0,1,61)*(B$28:BI$28)) -> 61 | BO66: =MAX(IF(C66:BJ66>0,1,0)*(C$28:BJ$28)) -> 0 | BP66: 4th | BQ66: N/A | BR66: N/A
A67: =IF(LSCheck5th= "y","n 5th instars", "") ->  | B67: 0 | C67: 0 | D67: 0 | E67: 0 | F67: 0 | G67: 0 | H67: 0 | I67: 0 | J67: 0 | K67: 0 | L67: 0 | M67: 0 | N67: 0 | O67: 0 | P67: 0 | Q67: 0 | R67: 0 | S67: 0 | T67: 0 | U67: 0 | V67: 0 | W67: 0 | X67: 0 | Y67: 0 | Z67: 0 | AA67: 0 | AB67: 0 | AC67: 0 | AD67: 0 | AE67: 0 | AF67: 0 | AG67: 0 | AH67: 0 | AI67: 0 | AJ67: 0 | AK67: 0 | AL67: 0 | AM67: 0 | AN67: 0 | AO67: 0 | AP67: 0 | AQ67: 0 | AR67: 0 | AS67: 0 | AT67: 0 | AU67: 0 | AV67: 0 | AW67: 0 | AX67: 0 | AY67: 0 | AZ67: 0 | BA67: 0 | BB67: 0 | BC67: 0 | BD67: 0 | BE67: 0 | BF67: 0 | BG67: 0 | BH67: 0 | BI67: 0 | BJ67: N/A | BK67: N/A | BL67: N/A | BM67: N/A | BN67: =MIN(IF(B67:BI67>0,1,61)*(B$28:BI$28)) -> 61 | BO67: =MAX(IF(C67:BJ67>0,1,0)*(C$28:BJ$28)) -> 0 | BP67: 5th | BQ67: N/A | BR67: N/A
A68: =IF(LSCheckPupa= "y","n Pupae", "") -> n Pupae | B68: 0 | C68: 0 | D68: 0 | E68: 0 | F68: 0 | G68: 6 | H68: 7 | I68: 50 | J68: 69 | K68: 72 | L68: 0 | M68: 0 | N68: 0 | O68: 0 | P68: 0 | Q68: 0 | R68: 0 | S68: 0 | T68: 0 | U68: 0 | V68: 0 | W68: 0 | X68: 0 | Y68: 0 | Z68: 0 | AA68: 0 | AB68: 0 | AC68: 0 | AD68: 0 | AE68: 0 | AF68: 0 | AG68: 0 | AH68: 0 | AI68: 0 | AJ68: 0 | AK68: 0 | AL68: 0 | AM68: 0 | AN68: 0 | AO68: 0 | AP68: 0 | AQ68: 0 | AR68: 0 | AS68: 0 | AT68: 0 | AU68: 0 | AV68: 0 | AW68: 0 | AX68: 0 | AY68: 0 | AZ68: 0 | BA68: 0 | BB68: 0 | BC68: 0 | BD68: 0 | BE68: 0 | BF68: 0 | BG68: 0 | BH68: 0 | BI68: 0 | BJ68: 8.950980392 | BK68: 1.001254887 | BL68: 24.0301173 | BM68: 45.40437318 | BN68: =MIN(IF(B68:BI68>0,1,61)*(B$28:BI$28)) -> 6 | BO68: =MAX(IF(C68:BJ68>0,1,0)*(C$28:BJ$28)) -> 10 | BP68: Pupae | BQ68: 6 | BR68: 10 | BS68: Min Adult | BT68: Max Adult
A69: =IF(LSCheckAdult= "y","n Adults", "") -> n Adults | B69: 0 | C69: 0 | D69: 0 | E69: 0 | F69: 0 | G69: 0 | H69: 0 | I69: 3 | J69: 72 | K69: 374 | L69: 290 | M69: 109 | N69: 41 | O69: 22 | P69: 40 | Q69: 14 | R69: 10 | S69: 0 | T69: 0 | U69: 0 | V69: 0 | W69: 0 | X69: 0 | Y69: 0 | Z69: 0 | AA69: 0 | AB69: 0 | AC69: 0 | AD69: 0 | AE69: 0 | AF69: 0 | AG69: 0 | AH69: 0 | AI69: 0 | AJ69: 0 | AK69: 0 | AL69: 0 | AM69: 0 | AN69: 0 | AO69: 0 | AP69: 0 | AQ69: 0 | AR69: 0 | AS69: 0 | AT69: 0 | AU69: 0 | AV69: 0 | AW69: 0 | AX69: 0 | AY69: 0 | AZ69: 0 | BA69: 0 | BB69: 0 | BC69: 0 | BD69: 0 | BE69: 0 | BF69: 0 | BG69: 0 | BH69: 0 | BI69: 0 | BJ69: 11.02051282 | BK69: 1.605173151 | BL69: 38.52415563 | BN69: =MIN(IF(B69:BI69>0,1,61)*(B$28:BI$28)) -> 8 | BO69: =MAX(IF(C69:BJ69>0,1,0)*(C$28:BJ$28)) -> 17 | BP69: Adults | BQ69: 8 | BR69: 17 | BS69: =IF($BN69=61,"N/A",ROUNDUP(BQ69-(1.96*$BK69),0)) -> 5 | BT69: =IF($BO69=0,"N/A",ROUNDDOWN(BR69+(1.96*$BK69),0)) -> 20
A70: Total | B70: =SUM(B62:B69) -> 304 | C70: =SUM(C62:C69) -> 134 | D70: =SUM(D62:D69) -> 108 | E70: =SUM(E62:E69) -> 98 | F70: =SUM(F62:F69) -> 58 | G70: =SUM(G62:G69) -> 75 | H70: =SUM(H62:H69) -> 136 | I70: =SUM(I62:I69) -> 147 | J70: =SUM(J62:J69) -> 184 | K70: =SUM(K62:K69) -> 456 | L70: =SUM(L62:L69) -> 290 | M70: =SUM(M62:M69) -> 109 | N70: =SUM(N62:N69) -> 41 | O70: =SUM(O62:O69) -> 22 | P70: =SUM(P62:P69) -> 40 | Q70: =SUM(Q62:Q69) -> 14 | R70: =SUM(R62:R69) -> 10 | S70: =SUM(S62:S69) -> 0 | T70: =SUM(T62:T69) -> 0 | U70: =SUM(U62:U69) -> 0 | V70: =SUM(V62:V69) -> 0 | W70: =SUM(W62:W69) -> 0 | X70: =SUM(X62:X69) -> 0 | Y70: =SUM(Y62:Y69) -> 0 | Z70: =SUM(Z62:Z69) -> 0 | AA70: =SUM(AA62:AA69) -> 0 | AB70: =SUM(AB62:AB69) -> 0 | AC70: =SUM(AC62:AC69) -> 0 | AD70: =SUM(AD62:AD69) -> 0 | AE70: =SUM(AE62:AE69) -> 0 | AF70: =SUM(AF62:AF69) -> 0 | AG70: =SUM(AG62:AG69) -> 0 | AH70: =SUM(AH62:AH69) -> 0 | AI70: =SUM(AI62:AI69) -> 0 | AJ70: =SUM(AJ62:AJ69) -> 0 | AK70: =SUM(AK62:AK69) -> 0 | AL70: =SUM(AL62:AL69) -> 0 | AM70: =SUM(AM62:AM69) -> 0 | AN70: =SUM(AN62:AN69) -> 0 | AO70: =SUM(AO62:AO69) -> 0 | AP70: =SUM(AP62:AP69) -> 0 | AQ70: =SUM(AQ62:AQ69) -> 0 | AR70: =SUM(AR62:AR69) -> 0 | AS70: =SUM(AS62:AS69) -> 0 | AT70: =SUM(AT62:AT69) -> 0 | AU70: =SUM(AU62:AU69) -> 0 | AV70: =SUM(AV62:AV69) -> 0 | AW70: =SUM(AW62:AW69) -> 0 | AX70: =SUM(AX62:AX69) -> 0 | AY70: =SUM(AY62:AY69) -> 0 | AZ70: =SUM(AZ62:AZ69) -> 0 | BA70: =SUM(BA62:BA69) -> 0 | BB70: =SUM(BB62:BB69) -> 0 | BC70: =SUM(BC62:BC69) -> 0 | BD70: =SUM(BD62:BD69) -> 0 | BE70: =SUM(BE62:BE69) -> 0 | BF70: =SUM(BF62:BF69) -> 0 | BG70: =SUM(BG62:BG69) -> 0 | BH70: =SUM(BH62:BH69) -> 0 | BI70: =SUM(BI62:BI69) -> 0 | BJ70: =SUM(B70:BI70) -> 2226 | BK70: 4.036042955 | BL70: 96.86503091 | BN70: =MIN(IF(B70:BI70>0,1,61)*(B$28:BI$28)) -> 1 | BO70: =MAX(IF(C70:BJ70>0,1,0)*(C$28:BJ$28)) -> 17 | BP70: Overall | BQ70: 1 | BR70: 17
A71: =IF(Comm5="","No data",Comm5) -> Raspberry | B71: =IF(Comm5="","",IF(SUM(B73:BI80)=0,"Warning!! Data input not started!","")) -> 
A72: Day | B72: 1 | C72: 2 | D72: 3 | E72: 4 | F72: 5 | G72: 6 | H72: 7 | I72: 8 | J72: 9 | K72: 10 | L72: 11 | M72: 12 | N72: 13 | O72: 14 | P72: 15 | Q72: 16 | R72: 17 | S72: 18 | T72: 19 | U72: 20 | V72: 21 | W72: 22 | X72: 23 | Y72: 24 | Z72: 25 | AA72: 26 | AB72: 27 | AC72: 28 | AD72: 29 | AE72: 30 | AF72: 31 | AG72: 32 | AH72: 33 | AI72: 34 | AJ72: 35 | AK72: 36 | AL72: 37 | AM72: 38 | AN72: 39 | AO72: 40 | AP72: 41 | AQ72: 42 | AR72: 43 | AS72: 44 | AT72: 45 | AU72: 46 | AV72: 47 | AW72: 48 | AX72: 49 | AY72: 50 | AZ72: 51 | BA72: 52 | BB72: 53 | BC72: 54 | BD72: 55 | BE72: 56 | BF72: 57 | BG72: 58 | BH72: 59 | BI72: 60 | BP72: =Comm5 -> Raspberry | BQ72: Min | BR72: Max
A73: =IF(LSCheckEggs= "y","n Eggs", "") -> n Eggs | B73: 90 | C73: 1 | D73: 2 | E73: 0 | F73: 0 | G73: 0 | H73: 0 | I73: 0 | J73: 0 | K73: 0 | L73: 0 | M73: 0 | N73: 0 | O73: 0 | P73: 0 | Q73: 0 | R73: 0 | S73: 0 | T73: 0 | U73: 0 | V73: 0 | W73: 0 | X73: 0 | Y73: 0 | Z73: 0 | AA73: 0 | AB73: 0 | AC73: 0 | AD73: 0 | AE73: 0 | AF73: 0 | AG73: 0 | AH73: 0 | AI73: 0 | AJ73: 0 | AK73: 0 | AL73: 0 | AM73: 0 | AN73: 0 | AO73: 0 | AP73: 0 | AQ73: 0 | AR73: 0 | AS73: 0 | AT73: 0 | AU73: 0 | AV73: 0 | AW73: 0 | AX73: 0 | AY73: 0 | AZ73: 0 | BA73: 0 | BB73: 0 | BC73: 0 | BD73: 0 | BE73: 0 | BF73: 0 | BG73: 0 | BH73: 0 | BI73: 0 | BJ73: =IF(SUM(B73:BI73)=0,"N/A",SUMPRODUCT(B73:BI73,B$72:BI$72)/SUM(B73:BI73)) -> 1.053763441 | BK73: 0.3080651892 | BL73: 7.393564542 | BM73: =IF(SUM(B73:BI73)=0,"N/A",SQRT(BL$80^2+BL73^2)) -> 22.81076917 | BN73: =MIN(IF(B73:BI73>0,1,61)*(B$28:BI$28)) -> 1 | BO73: =MAX(IF(C73:BJ73>0,1,0)*(C$28:BJ$28)) -> 3 | BP73: Eggs | BQ73: 1 | BR73: 3
A74: =IF(LSCheck1st= "y","n 1st instars", "") -> n 1st instars | B74: 2 | C74: 47 | D74: 16 | E74: 0 | F74: 0 | G74: 0 | H74: 0 | I74: 0 | J74: 0 | K74: 0 | L74: 0 | M74: 0 | N74: 0 | O74: 0 | P74: 0 | Q74: 0 | R74: 0 | S74: 0 | T74: 0 | U74: 0 | V74: 0 | W74: 0 | X74: 0 | Y74: 0 | Z74: 0 | AA74: 0 | AB74: 0 | AC74: 0 | AD74: 0 | AE74: 0 | AF74: 0 | AG74: 0 | AH74: 0 | AI74: 0 | AJ74: 0 | AK74: 0 | AL74: 0 | AM74: 0 | AN74: 0 | AO74: 0 | AP74: 0 | AQ74: 0 | AR74: 0 | AS74: 0 | AT74: 0 | AU74: 0 | AV74: 0 | AW74: 0 | AX74: 0 | AY74: 0 | AZ74: 0 | BA74: 0 | BB74: 0 | BC74: 0 | BD74: 0 | BE74: 0 | BF74: 0 | BG74: 0 | BH74: 0 | BI74: 0 | BJ74: =IF(SUM(B74:BI74)=0,"N/A",SUMPRODUCT(B74:BI74,B$72:BI$72)/SUM(B74:BI74)) -> 2.215384615 | BK74: 0.4838745864 | BL74: 11.61299007 | BM74: =IF(SUM(B74:BI74)=0,"N/A",SQRT(BL$80^2+BL74^2)) -> 24.50567143 | BN74: =MIN(IF(B74:BI74>0,1,61)*(B$28:BI$28)) -> 1 | BO74: =MAX(IF(C74:BJ74>0,1,0)*(C$28:BJ$28)) -> 3 | BP74: 1st | BQ74: 1 | BR74: 3
A75: =IF(LSCheck2nd= "y","n 2nd instars", "") -> n 2nd instars | B75: 7 | C75: 38 | D75: 85 | E75: 7 | F75: 1 | G75: 0 | H75: 0 | I75: 0 | J75: 0 | K75: 0 | L75: 0 | M75: 0 | N75: 0 | O75: 0 | P75: 0 | Q75: 0 | R75: 0 | S75: 0 | T75: 0 | U75: 0 | V75: 0 | W75: 0 | X75: 0 | Y75: 0 | Z75: 0 | AA75: 0 | AB75: 0 | AC75: 0 | AD75: 0 | AE75: 0 | AF75: 0 | AG75: 0 | AH75: 0 | AI75: 0 | AJ75: 0 | AK75: 0 | AL75: 0 | AM75: 0 | AN75: 0 | AO75: 0 | AP75: 0 | AQ75: 0 | AR75: 0 | AS75: 0 | AT75: 0 | AU75: 0 | AV75: 0 | AW75: 0 | AX75: 0 | AY75: 0 | AZ75: 0 | BA75: 0 | BB75: 0 | BC75: 0 | BD75: 0 | BE75: 0 | BF75: 0 | BG75: 0 | BH75: 0 | BI75: 0 | BJ75: 2.688405797 | BK75: 0.6813546472 | BL75: 16.35251153 | BM75: 27.07528443 | BN75: =MIN(IF(B75:BI75>0,1,61)*(B$28:BI$28)) -> 1 | BO75: =MAX(IF(C75:BJ75>0,1,0)*(C$28:BJ$28)) -> 5 | BP75: 2nd | BQ75: 1 | BR75: 5
A76: =IF(LSCheck3rd= "y","n 3rd instars", "") -> n 3rd instars | B76: 0 | C76: 0 | D76: 19 | E76: 90 | F76: 91 | G76: 78 | H76: 0 | I76: 0 | J76: 0 | K76: 0 | L76: 0 | M76: 0 | N76: 0 | O76: 0 | P76: 0 | Q76: 0 | R76: 0 | S76: 0 | T76: 0 | U76: 0 | V76: 0 | W76: 0 | X76: 0 | Y76: 0 | Z76: 0 | AA76: 0 | AB76: 0 | AC76: 0 | AD76: 0 | AE76: 0 | AF76: 0 | AG76: 0 | AH76: 0 | AI76: 0 | AJ76: 0 | AK76: 0 | AL76: 0 | AM76: 0 | AN76: 0 | AO76: 0 | AP76: 0 | AQ76: 0 | AR76: 0 | AS76: 0 | AT76: 0 | AU76: 0 | AV76: 0 | AW76: 0 | AX76: 0 | AY76: 0 | AZ76: 0 | BA76: 0 | BB76: 0 | BC76: 0 | BD76: 0 | BE76: 0 | BF76: 0 | BG76: 0 | BH76: 0 | BI76: 0 | BJ76: 4.820143885 | BK76: 0.9210870878 | BL76: 22.10609011 | BM76: 30.89248474 | BN76: =MIN(IF(B76:BI76>0,1,61)*(B$28:BI$28)) -> 3 | BO76: =MAX(IF(C76:BJ76>0,1,0)*(C$28:BJ$28)) -> 6 | BP76: 3rd | BQ76: 3 | BR76: 6
A77: =IF(LSCheck4th= "y","n 4th instars", "") ->  | B77: 0 | C77: 0 | D77: 0 | E77: 0 | F77: 0 | G77: 0 | H77: 0 | I77: 0 | J77: 0 | K77: 0 | L77: 0 | M77: 0 | N77: 0 | O77: 0 | P77: 0 | Q77: 0 | R77: 0 | S77: 0 | T77: 0 | U77: 0 | V77: 0 | W77: 0 | X77: 0 | Y77: 0 | Z77: 0 | AA77: 0 | AB77: 0 | AC77: 0 | AD77: 0 | AE77: 0 | AF77: 0 | AG77: 0 | AH77: 0 | AI77: 0 | AJ77: 0 | AK77: 0 | AL77: 0 | AM77: 0 | AN77: 0 | AO77: 0 | AP77: 0 | AQ77: 0 | AR77: 0 | AS77: 0 | AT77: 0 | AU77: 0 | AV77: 0 | AW77: 0 | AX77: 0 | AY77: 0 | AZ77: 0 | BA77: 0 | BB77: 0 | BC77: 0 | BD77: 0 | BE77: 0 | BF77: 0 | BG77: 0 | BH77: 0 | BI77: 0 | BJ77: N/A | BK77: N/A | BL77: N/A | BM77: N/A | BN77: =MIN(IF(B77:BI77>0,1,61)*(B$28:BI$28)) -> 61 | BO77: =MAX(IF(C77:BJ77>0,1,0)*(C$28:BJ$28)) -> 0 | BP77: 4th | BQ77: N/A | BR77: N/A
A78: =IF(LSCheck5th= "y","n 5th instars", "") ->  | B78: 0 | C78: 0 | D78: 0 | E78: 0 | F78: 0 | G78: 0 | H78: 0 | I78: 0 | J78: 0 | K78: 0 | L78: 0 | M78: 0 | N78: 0 | O78: 0 | P78: 0 | Q78: 0 | R78: 0 | S78: 0 | T78: 0 | U78: 0 | V78: 0 | W78: 0 | X78: 0 | Y78: 0 | Z78: 0 | AA78: 0 | AB78: 0 | AC78: 0 | AD78: 0 | AE78: 0 | AF78: 0 | AG78: 0 | AH78: 0 | AI78: 0 | AJ78: 0 | AK78: 0 | AL78: 0 | AM78: 0 | AN78: 0 | AO78: 0 | AP78: 0 | AQ78: 0 | AR78: 0 | AS78: 0 | AT78: 0 | AU78: 0 | AV78: 0 | AW78: 0 | AX78: 0 | AY78: 0 | AZ78: 0 | BA78: 0 | BB78: 0 | BC78: 0 | BD78: 0 | BE78: 0 | BF78: 0 | BG78: 0 | BH78: 0 | BI78: 0 | BJ78: N/A | BK78: N/A | BL78: N/A | BM78: N/A | BN78: =MIN(IF(B78:BI78>0,1,61)*(B$28:BI$28)) -> 61 | BO78: =MAX(IF(C78:BJ78>0,1,0)*(C$28:BJ$28)) -> 0 | BP78: 5th | BQ78: N/A | BR78: N/A
A79: =IF(LSCheckPupa= "y","n Pupae", "") -> n Pupae | B79: 0 | C79: 0 | D79: 0 | E79: 2 | F79: 1 | G79: 67 | H79: 39 | I79: 0 | J79: 0 | K79: 0 | L79: 0 | M79: 0 | N79: 0 | O79: 0 | P79: 0 | Q79: 0 | R79: 0 | S79: 0 | T79: 0 | U79: 0 | V79: 0 | W79: 0 | X79: 0 | Y79: 0 | Z79: 0 | AA79: 0 | AB79: 0 | AC79: 0 | AD79: 0 | AE79: 0 | AF79: 0 | AG79: 0 | AH79: 0 | AI79: 0 | AJ79: 0 | AK79: 0 | AL79: 0 | AM79: 0 | AN79: 0 | AO79: 0 | AP79: 0 | AQ79: 0 | AR79: 0 | AS79: 0 | AT79: 0 | AU79: 0 | AV79: 0 | AW79: 0 | AX79: 0 | AY79: 0 | AZ79: 0 | BA79: 0 | BB79: 0 | BC79: 0 | BD79: 0 | BE79: 0 | BF79: 0 | BG79: 0 | BH79: 0 | BI79: 0 | BJ79: 6.311926606 | BK79: 0.5884261448 | BL79: 14.12222748 | BM79: 25.78960454 | BN79: =MIN(IF(B79:BI79>0,1,61)*(B$28:BI$28)) -> 4 | BO79: =MAX(IF(C79:BJ79>0,1,0)*(C$28:BJ$28)) -> 7 | BP79: Pupae | BQ79: 4 | BR79: 7 | BS79: Min Adult | BT79: Max Adult
A80: =IF(LSCheckAdult= "y","n Adults", "") -> n Adults | B80: 0 | C80: 0 | D80: 0 | E80: 0 | F80: 0 | G80: 0 | H80: 0 | I80: 107 | J80: 984 | K80: 560 | L80: 72 | M80: 47 | N80: 10 | O80: 2 | P80: 2 | Q80: 2 | R80: 1 | S80: 0 | T80: 0 | U80: 0 | V80: 0 | W80: 0 | X80: 0 | Y80: 0 | Z80: 0 | AA80: 0 | AB80: 0 | AC80: 0 | AD80: 0 | AE80: 0 | AF80: 0 | AG80: 0 | AH80: 0 | AI80: 0 | AJ80: 0 | AK80: 0 | AL80: 0 | AM80: 0 | AN80: 0 | AO80: 0 | AP80: 0 | AQ80: 0 | AR80: 0 | AS80: 0 | AT80: 0 | AU80: 0 | AV80: 0 | AW80: 0 | AX80: 0 | AY80: 0 | AZ80: 0 | BA80: 0 | BB80: 0 | BC80: 0 | BD80: 0 | BE80: 0 | BF80: 0 | BG80: 0 | BH80: 0 | BI80: 0 | BJ80: 9.459988808 | BK80: 0.8991376981 | BL80: 21.57930475 | BN80: =MIN(IF(B80:BI80>0,1,61)*(B$28:BI$28)) -> 8 | BO80: =MAX(IF(C80:BJ80>0,1,0)*(C$28:BJ$28)) -> 17 | BP80: Adults | BQ80: 8 | BR80: 17 | BS80: =IF($BN80=61,"N/A",ROUNDUP(BQ80-(1.96*$BK80),0)) -> 7 | BT80: =IF($BO80=0,"N/A",ROUNDDOWN(BR80+(1.96*$BK80),0)) -> 18
A81: Total | B81: =SUM(B73:B80) -> 99 | C81: =SUM(C73:C80) -> 86 | D81: =SUM(D73:D80) -> 122 | E81: =SUM(E73:E80) -> 99 | F81: =SUM(F73:F80) -> 93 | G81: =SUM(G73:G80) -> 145 | H81: =SUM(H73:H80) -> 39 | I81: =SUM(I73:I80) -> 107 | J81: =SUM(J73:J80) -> 984 | K81: =SUM(K73:K80) -> 560 | L81: =SUM(L73:L80) -> 72 | M81: =SUM(M73:M80) -> 47 | N81: =SUM(N73:N80) -> 10 | O81: =SUM(O73:O80) -> 2 | P81: =SUM(P73:P80) -> 2 | Q81: =SUM(Q73:Q80) -> 2 | R81: =SUM(R73:R80) -> 1 | S81: =SUM(S73:S80) -> 0 | T81: =SUM(T73:T80) -> 0 | U81: =SUM(U73:U80) -> 0 | V81: =SUM(V73:V80) -> 0 | W81: =SUM(W73:W80) -> 0 | X81: =SUM(X73:X80) -> 0 | Y81: =SUM(Y73:Y80) -> 0 | Z81: =SUM(Z73:Z80) -> 0 | AA81: =SUM(AA73:AA80) -> 0 | AB81: =SUM(AB73:AB80) -> 0 | AC81: =SUM(AC73:AC80) -> 0 | AD81: =SUM(AD73:AD80) -> 0 | AE81: =SUM(AE73:AE80) -> 0 | AF81: =SUM(AF73:AF80) -> 0 | AG81: =SUM(AG73:AG80) -> 0 | AH81: =SUM(AH73:AH80) -> 0 | AI81: =SUM(AI73:AI80) -> 0 | AJ81: =SUM(AJ73:AJ80) -> 0 | AK81: =SUM(AK73:AK80) -> 0 | AL81: =SUM(AL73:AL80) -> 0 | AM81: =SUM(AM73:AM80) -> 0 | AN81: =SUM(AN73:AN80) -> 0 | AO81: =SUM(AO73:AO80) -> 0 | AP81: =SUM(AP73:AP80) -> 0 | AQ81: =SUM(AQ73:AQ80) -> 0 | AR81: =SUM(AR73:AR80) -> 0 | AS81: =SUM(AS73:AS80) -> 0 | AT81: =SUM(AT73:AT80) -> 0 | AU81: =SUM(AU73:AU80) -> 0 | AV81: =SUM(AV73:AV80) -> 0 | AW81: =SUM(AW73:AW80) -> 0 | AX81: =SUM(AX73:AX80) -> 0 | AY81: =SUM(AY73:AY80) -> 0 | AZ81: =SUM(AZ73:AZ80) -> 0 | BA81: =SUM(BA73:BA80) -> 0 | BB81: =SUM(BB73:BB80) -> 0 | BC81: =SUM(BC73:BC80) -> 0 | BD81: =SUM(BD73:BD80) -> 0 | BE81: =SUM(BE73:BE80) -> 0 | BF81: =SUM(BF73:BF80) -> 0 | BG81: =SUM(BG73:BG80) -> 0 | BH81: =SUM(BH73:BH80) -> 0 | BI81: =SUM(BI73:BI80) -> 0 | BJ81: =SUM(B81:BI81) -> 2470 | BK81: 2.79380927 | BL81: 67.05142247 | BN81: =MIN(IF(B81:BI81>0,1,61)*(B$28:BI$28)) -> 1 | BO81: =MAX(IF(C81:BJ81>0,1,0)*(C$28:BJ$28)) -> 17 | BP81: Overall | BQ81: 1 | BR81: 17
A82: =IF(Comm6="","No data",Comm6) -> Strawberry | B82: =IF(Comm6="","",IF(SUM(B84:BI91)=0,"Warning!! Data input not started!","")) -> 
A83: Day | B83: 1 | C83: 2 | D83: 3 | E83: 4 | F83: 5 | G83: 6 | H83: 7 | I83: 8 | J83: 9 | K83: 10 | L83: 11 | M83: 12 | N83: 13 | O83: 14 | P83: 15 | Q83: 16 | R83: 17 | S83: 18 | T83: 19 | U83: 20 | V83: 21 | W83: 22 | X83: 23 | Y83: 24 | Z83: 25 | AA83: 26 | AB83: 27 | AC83: 28 | AD83: 29 | AE83: 30 | AF83: 31 | AG83: 32 | AH83: 33 | AI83: 34 | AJ83: 35 | AK83: 36 | AL83: 37 | AM83: 38 | AN83: 39 | AO83: 40 | AP83: 41 | AQ83: 42 | AR83: 43 | AS83: 44 | AT83: 45 | AU83: 46 | AV83: 47 | AW83: 48 | AX83: 49 | AY83: 50 | AZ83: 51 | BA83: 52 | BB83: 53 | BC83: 54 | BD83: 55 | BE83: 56 | BF83: 57 | BG83: 58 | BH83: 59 | BI83: 60 | BP83: =Comm6 -> Strawberry | BQ83: Min | BR83: Max
A84: =IF(LSCheckEggs= "y","n Eggs", "") -> n Eggs | B84: 236 | C84: 25 | D84: 0 | E84: 0 | F84: 0 | G84: 0 | H84: 0 | I84: 0 | J84: 0 | K84: 0 | L84: 0 | M84: 0 | N84: 0 | O84: 0 | P84: 0 | Q84: 0 | R84: 0 | S84: 0 | T84: 0 | U84: 0 | V84: 0 | W84: 0 | X84: 0 | Y84: 0 | Z84: 0 | AA84: 0 | AB84: 0 | AC84: 0 | AD84: 0 | AE84: 0 | AF84: 0 | AG84: 0 | AH84: 0 | AI84: 0 | AJ84: 0 | AK84: 0 | AL84: 0 | AM84: 0 | AN84: 0 | AO84: 0 | AP84: 0 | AQ84: 0 | AR84: 0 | AS84: 0 | AT84: 0 | AU84: 0 | AV84: 0 | AW84: 0 | AX84: 0 | AY84: 0 | AZ84: 0 | BA84: 0 | BB84: 0 | BC84: 0 | BD84: 0 | BE84: 0 | BF84: 0 | BG84: 0 | BH84: 0 | BI84: 0 | BJ84: =IF(SUM(B84:BI84)=0,"N/A",SUMPRODUCT(B84:BI84,B$83:BI$83)/SUM(B84:BI84)) -> 1.095785441 | BK84: 0.2948621841 | BL84: 7.076692419 | BM84: =IF(SUM(B84:BI84)=0,"N/A",SQRT(BL$91^2+BL84^2)) -> 25.40657514 | BN84: =MIN(IF(B84:BI84>0,1,61)*(B$28:BI$28)) -> 1 | BO84: =MAX(IF(C84:BJ84>0,1,0)*(C$28:BJ$28)) -> 2 | BP84: Eggs | BQ84: 1 | BR84: 2
A85: =IF(LSCheck1st= "y","n 1st instars", "") -> n 1st instars | B85: 0 | C85: 221 | D85: 57 | E85: 24 | F85: 8 | G85: 0 | H85: 0 | I85: 0 | J85: 0 | K85: 0 | L85: 0 | M85: 0 | N85: 0 | O85: 0 | P85: 0 | Q85: 0 | R85: 0 | S85: 0 | T85: 0 | U85: 0 | V85: 0 | W85: 0 | X85: 0 | Y85: 0 | Z85: 0 | AA85: 0 | AB85: 0 | AC85: 0 | AD85: 0 | AE85: 0 | AF85: 0 | AG85: 0 | AH85: 0 | AI85: 0 | AJ85: 0 | AK85: 0 | AL85: 0 | AM85: 0 | AN85: 0 | AO85: 0 | AP85: 0 | AQ85: 0 | AR85: 0 | AS85: 0 | AT85: 0 | AU85: 0 | AV85: 0 | AW85: 0 | AX85: 0 | AY85: 0 | AZ85: 0 | BA85: 0 | BB85: 0 | BC85: 0 | BD85: 0 | BE85: 0 | BF85: 0 | BG85: 0 | BH85: 0 | BI85: 0 | BJ85: =IF(SUM(B85:BI85)=0,"N/A",SUMPRODUCT(B85:BI85,B$83:BI$83)/SUM(B85:BI85)) -> 2.416129032 | BK85: 0.7446016177 | BL85: 17.87043882 | BM85: =IF(SUM(B85:BI85)=0,"N/A",SQRT(BL$91^2+BL85^2)) -> 30.24511644 | BN85: =MIN(IF(B85:BI85>0,1,61)*(B$28:BI$28)) -> 2 | BO85: =MAX(IF(C85:BJ85>0,1,0)*(C$28:BJ$28)) -> 5 | BP85: 1st | BQ85: 2 | BR85: 5
A86: =IF(LSCheck2nd= "y","n 2nd instars", "") -> n 2nd instars | B86: 0 | C86: 7 | D86: 243 | E86: 66 | F86: 17 | G86: 1 | H86: 0 | I86: 0 | J86: 0 | K86: 0 | L86: 0 | M86: 0 | N86: 0 | O86: 0 | P86: 0 | Q86: 0 | R86: 0 | S86: 0 | T86: 0 | U86: 0 | V86: 0 | W86: 0 | X86: 0 | Y86: 0 | Z86: 0 | AA86: 0 | AB86: 0 | AC86: 0 | AD86: 0 | AE86: 0 | AF86: 0 | AG86: 0 | AH86: 0 | AI86: 0 | AJ86: 0 | AK86: 0 | AL86: 0 | AM86: 0 | AN86: 0 | AO86: 0 | AP86: 0 | AQ86: 0 | AR86: 0 | AS86: 0 | AT86: 0 | AU86: 0 | AV86: 0 | AW86: 0 | AX86: 0 | AY86: 0 | AZ86: 0 | BA86: 0 | BB86: 0 | BC86: 0 | BD86: 0 | BE86: 0 | BF86: 0 | BG86: 0 | BH86: 0 | BI86: 0 | BJ86: 3.28742515 | BK86: 0.6062913046 | BL86: 14.55099131 | BM86: 28.41031208 | BN86: =MIN(IF(B86:BI86>0,1,61)*(B$28:BI$28)) -> 2 | BO86: =MAX(IF(C86:BJ86>0,1,0)*(C$28:BJ$28)) -> 6 | BP86: 2nd | BQ86: 2 | BR86: 6
A87: =IF(LSCheck3rd= "y","n 3rd instars", "") -> n 3rd instars | B87: 0 | C87: 0 | D87: 7 | E87: 214 | F87: 221 | G87: 189 | H87: 22 | I87: 0 | J87: 0 | K87: 0 | L87: 0 | M87: 0 | N87: 0 | O87: 0 | P87: 0 | Q87: 0 | R87: 0 | S87: 0 | T87: 0 | U87: 0 | V87: 0 | W87: 0 | X87: 0 | Y87: 0 | Z87: 0 | AA87: 0 | AB87: 0 | AC87: 0 | AD87: 0 | AE87: 0 | AF87: 0 | AG87: 0 | AH87: 0 | AI87: 0 | AJ87: 0 | AK87: 0 | AL87: 0 | AM87: 0 | AN87: 0 | AO87: 0 | AP87: 0 | AQ87: 0 | AR87: 0 | AS87: 0 | AT87: 0 | AU87: 0 | AV87: 0 | AW87: 0 | AX87: 0 | AY87: 0 | AZ87: 0 | BA87: 0 | BB87: 0 | BC87: 0 | BD87: 0 | BE87: 0 | BF87: 0 | BG87: 0 | BH87: 0 | BI87: 0 | BJ87: 5.007656968 | BK87: 0.8921622895 | BL87: 21.41189495 | BM87: 32.46357543 | BN87: =MIN(IF(B87:BI87>0,1,61)*(B$28:BI$28)) -> 3 | BO87: =MAX(IF(C87:BJ87>0,1,0)*(C$28:BJ$28)) -> 7 | BP87: 3rd | BQ87: 3 | BR87: 7
A88: =IF(LSCheck4th= "y","n 4th instars", "") ->  | B88: 0 | C88: 0 | D88: 0 | E88: 0 | F88: 0 | G88: 0 | H88: 0 | I88: 0 | J88: 0 | K88: 0 | L88: 0 | M88: 0 | N88: 0 | O88: 0 | P88: 0 | Q88: 0 | R88: 0 | S88: 0 | T88: 0 | U88: 0 | V88: 0 | W88: 0 | X88: 0 | Y88: 0 | Z88: 0 | AA88: 0 | AB88: 0 | AC88: 0 | AD88: 0 | AE88: 0 | AF88: 0 | AG88: 0 | AH88: 0 | AI88: 0 | AJ88: 0 | AK88: 0 | AL88: 0 | AM88: 0 | AN88: 0 | AO88: 0 | AP88: 0 | AQ88: 0 | AR88: 0 | AS88: 0 | AT88: 0 | AU88: 0 | AV88: 0 | AW88: 0 | AX88: 0 | AY88: 0 | AZ88: 0 | BA88: 0 | BB88: 0 | BC88: 0 | BD88: 0 | BE88: 0 | BF88: 0 | BG88: 0 | BH88: 0 | BI88: 0 | BJ88: N/A | BK88: N/A | BL88: N/A | BM88: N/A | BN88: =MIN(IF(B88:BI88>0,1,61)*(B$28:BI$28)) -> 61 | BO88: =MAX(IF(C88:BJ88>0,1,0)*(C$28:BJ$28)) -> 0 | BP88: 4th | BQ88: N/A | BR88: N/A
A89: =IF(LSCheck5th= "y","n 5th instars", "") ->  | B89: 0 | C89: 0 | D89: 0 | E89: 0 | F89: 0 | G89: 0 | H89: 0 | I89: 0 | J89: 0 | K89: 0 | L89: 0 | M89: 0 | N89: 0 | O89: 0 | P89: 0 | Q89: 0 | R89: 0 | S89: 0 | T89: 0 | U89: 0 | V89: 0 | W89: 0 | X89: 0 | Y89: 0 | Z89: 0 | AA89: 0 | AB89: 0 | AC89: 0 | AD89: 0 | AE89: 0 | AF89: 0 | AG89: 0 | AH89: 0 | AI89: 0 | AJ89: 0 | AK89: 0 | AL89: 0 | AM89: 0 | AN89: 0 | AO89: 0 | AP89: 0 | AQ89: 0 | AR89: 0 | AS89: 0 | AT89: 0 | AU89: 0 | AV89: 0 | AW89: 0 | AX89: 0 | AY89: 0 | AZ89: 0 | BA89: 0 | BB89: 0 | BC89: 0 | BD89: 0 | BE89: 0 | BF89: 0 | BG89: 0 | BH89: 0 | BI89: 0 | BJ89: N/A | BK89: N/A | BL89: N/A | BM89: N/A | BN89: =MIN(IF(B89:BI89>0,1,61)*(B$28:BI$28)) -> 61 | BO89: =MAX(IF(C89:BJ89>0,1,0)*(C$28:BJ$28)) -> 0 | BP89: 5th | BQ89: N/A | BR89: N/A
A90: =IF(LSCheckPupa= "y","n Pupae", "") -> n Pupae | B90: 0 | C90: 0 | D90: 0 | E90: 0 | F90: 0 | G90: 39 | H90: 229 | I90: 203 | J90: 0 | K90: 0 | L90: 0 | M90: 0 | N90: 0 | O90: 0 | P90: 0 | Q90: 0 | R90: 0 | S90: 0 | T90: 0 | U90: 0 | V90: 0 | W90: 0 | X90: 0 | Y90: 0 | Z90: 0 | AA90: 0 | AB90: 0 | AC90: 0 | AD90: 0 | AE90: 0 | AF90: 0 | AG90: 0 | AH90: 0 | AI90: 0 | AJ90: 0 | AK90: 0 | AL90: 0 | AM90: 0 | AN90: 0 | AO90: 0 | AP90: 0 | AQ90: 0 | AR90: 0 | AS90: 0 | AT90: 0 | AU90: 0 | AV90: 0 | AW90: 0 | AX90: 0 | AY90: 0 | AZ90: 0 | BA90: 0 | BB90: 0 | BC90: 0 | BD90: 0 | BE90: 0 | BF90: 0 | BG90: 0 | BH90: 0 | BI90: 0 | BJ90: 7.348195329 | BK90: 0.6272126214 | BL90: 15.05310291 | BM90: 28.6707236 | BN90: =MIN(IF(B90:BI90>0,1,61)*(B$28:BI$28)) -> 6 | BO90: =MAX(IF(C90:BJ90>0,1,0)*(C$28:BJ$28)) -> 8 | BP90: Pupae | BQ90: 6 | BR90: 8 | BS90: Min Adult | BT90: Max Adult
A91: =IF(LSCheckAdult= "y","n Adults", "") -> n Adults | B91: 0 | C91: 0 | D91: 0 | E91: 0 | F91: 0 | G91: 0 | H91: 0 | I91: 4 | J91: 246 | K91: 1048 | L91: 441 | M91: 274 | N91: 39 | O91: 21 | P91: 4 | Q91: 0 | R91: 0 | S91: 0 | T91: 0 | U91: 0 | V91: 0 | W91: 0 | X91: 0 | Y91: 0 | Z91: 0 | AA91: 0 | AB91: 0 | AC91: 0 | AD91: 0 | AE91: 0 | AF91: 0 | AG91: 0 | AH91: 0 | AI91: 0 | AJ91: 0 | AK91: 0 | AL91: 0 | AM91: 0 | AN91: 0 | AO91: 0 | AP91: 0 | AQ91: 0 | AR91: 0 | AS91: 0 | AT91: 0 | AU91: 0 | AV91: 0 | AW91: 0 | AX91: 0 | AY91: 0 | AZ91: 0 | BA91: 0 | BB91: 0 | BC91: 0 | BD91: 0 | BE91: 0 | BF91: 0 | BG91: 0 | BH91: 0 | BI91: 0 | BJ91: 10.46027925 | BK91: 1.016713186 | BL91: 24.40111646 | BN91: =MIN(IF(B91:BI91>0,1,61)*(B$28:BI$28)) -> 8 | BO91: =MAX(IF(C91:BJ91>0,1,0)*(C$28:BJ$28)) -> 15 | BP91: Adults | BQ91: 8 | BR91: 15 | BS91: =IF($BN91=61,"N/A",ROUNDUP(BQ91-(1.96*$BK91),0)) -> 7 | BT91: =IF($BO91=0,"N/A",ROUNDDOWN(BR91+(1.96*$BK91),0)) -> 16
A92: Total | B92: =SUM(B84:B91) -> 236 | C92: =SUM(C84:C91) -> 253 | D92: =SUM(D84:D91) -> 307 | E92: =SUM(E84:E91) -> 304 | F92: =SUM(F84:F91) -> 246 | G92: =SUM(G84:G91) -> 229 | H92: =SUM(H84:H91) -> 251 | I92: =SUM(I84:I91) -> 207 | J92: =SUM(J84:J91) -> 246 | K92: =SUM(K84:K91) -> 1048 | L92: =SUM(L84:L91) -> 441 | M92: =SUM(M84:M91) -> 274 | N92: =SUM(N84:N91) -> 39 | O92: =SUM(O84:O91) -> 21 | P92: =SUM(P84:P91) -> 4 | Q92: =SUM(Q84:Q91) -> 0 | R92: =SUM(R84:R91) -> 0 | S92: =SUM(S84:S91) -> 0 | T92: =SUM(T84:T91) -> 0 | U92: =SUM(U84:U91) -> 0 | V92: =SUM(V84:V91) -> 0 | W92: =SUM(W84:W91) -> 0 | X92: =SUM(X84:X91) -> 0 | Y92: =SUM(Y84:Y91) -> 0 | Z92: =SUM(Z84:Z91) -> 0 | AA92: =SUM(AA84:AA91) -> 0 | AB92: =SUM(AB84:AB91) -> 0 | AC92: =SUM(AC84:AC91) -> 0 | AD92: =SUM(AD84:AD91) -> 0 | AE92: =SUM(AE84:AE91) -> 0 | AF92: =SUM(AF84:AF91) -> 0 | AG92: =SUM(AG84:AG91) -> 0 | AH92: =SUM(AH84:AH91) -> 0 | AI92: =SUM(AI84:AI91) -> 0 | AJ92: =SUM(AJ84:AJ91) -> 0 | AK92: =SUM(AK84:AK91) -> 0 | AL92: =SUM(AL84:AL91) -> 0 | AM92: =SUM(AM84:AM91) -> 0 | AN92: =SUM(AN84:AN91) -> 0 | AO92: =SUM(AO84:AO91) -> 0 | AP92: =SUM(AP84:AP91) -> 0 | AQ92: =SUM(AQ84:AQ91) -> 0 | AR92: =SUM(AR84:AR91) -> 0 | AS92: =SUM(AS84:AS91) -> 0 | AT92: =SUM(AT84:AT91) -> 0 | AU92: =SUM(AU84:AU91) -> 0 | AV92: =SUM(AV84:AV91) -> 0 | AW92: =SUM(AW84:AW91) -> 0 | AX92: =SUM(AX84:AX91) -> 0 | AY92: =SUM(AY84:AY91) -> 0 | AZ92: =SUM(AZ84:AZ91) -> 0 | BA92: =SUM(BA84:BA91) -> 0 | BB92: =SUM(BB84:BB91) -> 0 | BC92: =SUM(BC84:BC91) -> 0 | BD92: =SUM(BD84:BD91) -> 0 | BE92: =SUM(BE84:BE91) -> 0 | BF92: =SUM(BF84:BF91) -> 0 | BG92: =SUM(BG84:BG91) -> 0 | BH92: =SUM(BH84:BH91) -> 0 | BI92: =SUM(BI84:BI91) -> 0 | BJ92: =SUM(B92:BI92) -> 4106 | BK92: 3.492405715 | BL92: 83.81773717 | BN92: =MIN(IF(B92:BI92>0,1,61)*(B$28:BI$28)) -> 1 | BO92: =MAX(IF(C92:BJ92>0,1,0)*(C$28:BJ$28)) -> 15 | BP92: Overall | BQ92: 1 | BR92: 15
A93: =IF(Comm7="","No data",Comm7) -> No data | B93: =IF(Comm7="","",IF(SUM(B95:BI102)=0,"Warning!! Data input not started!","")) -> 
A94: Day | B94: 1 | C94: 2 | D94: 3 | E94: 4 | F94: 5 | G94: 6 | H94: 7 | I94: 8 | J94: 9 | K94: 10 | L94: 11 | M94: 12 | N94: 13 | O94: 14 | P94: 15 | Q94: 16 | R94: 17 | S94: 18 | T94: 19 | U94: 20 | V94: 21 | W94: 22 | X94: 23 | Y94: 24 | Z94: 25 | AA94: 26 | AB94: 27 | AC94: 28 | AD94: 29 | AE94: 30 | AF94: 31 | AG94: 32 | AH94: 33 | AI94: 34 | AJ94: 35 | AK94: 36 | AL94: 37 | AM94: 38 | AN94: 39 | AO94: 40 | AP94: 41 | AQ94: 42 | AR94: 43 | AS94: 44 | AT94: 45 | AU94: 46 | AV94: 47 | AW94: 48 | AX94: 49 | AY94: 50 | AZ94: 51 | BA94: 52 | BB94: 53 | BC94: 54 | BD94: 55 | BE94: 56 | BF94: 57 | BG94: 58 | BH94: 59 | BI94: 60 | BP94: =Comm7 -> 0 | BQ94: Min | BR94: Max
A95: =IF(LSCheckEggs= "y","n Eggs", "") -> n Eggs | B95: 0 | C95: 0 | D95: 0 | E95: 0 | F95: 0 | G95: 0 | H95: 0 | I95: 0 | J95: 0 | K95: 0 | L95: 0 | M95: 0 | N95: 0 | O95: 0 | P95: 0 | Q95: 0 | R95: 0 | S95: 0 | T95: 0 | U95: 0 | V95: 0 | W95: 0 | X95: 0 | Y95: 0 | Z95: 0 | AA95: 0 | AB95: 0 | AC95: 0 | AD95: 0 | AE95: 0 | AF95: 0 | AG95: 0 | AH95: 0 | AI95: 0 | AJ95: 0 | AK95: 0 | AL95: 0 | AM95: 0 | AN95: 0 | AO95: 0 | AP95: 0 | AQ95: 0 | AR95: 0 | AS95: 0 | AT95: 0 | AU95: 0 | AV95: 0 | AW95: 0 | AX95: 0 | AY95: 0 | AZ95: 0 | BA95: 0 | BB95: 0 | BC95: 0 | BD95: 0 | BE95: 0 | BF95: 0 | BG95: 0 | BH95: 0 | BI95: 0 | BJ95: =IF(SUM(B95:BI95)=0,"N/A",SUMPRODUCT(B95:BI95,B$94:BI$94)/SUM(B95:BI95)) -> N/A | BK95: =IF(SUM(B95:BI95)=0,"N/A",SQRT((SUMPRODUCT(B95:BI95,B$26:BI$26)-(((SUMPRODUCT(B95:BI95,B$28:BI$28))^2)/SUM(B95:BI95)))/(SUM(B95:BI95)-1))) -> N/A | BL95: =IF(SUM(B95:BI95)=0,"N/A",BK95*24) -> N/A | BM95: =IF(SUM(B95:BI95)=0,"N/A",SQRT(BL$102^2+BL95^2)) -> N/A | BN95: =MIN(IF(B95:BI95>0,1,61)*(B$28:BI$28)) -> 61 | BO95: =MAX(IF(C95:BJ95>0,1,0)*(C$28:BJ$28)) -> 0 | BP95: Eggs | BQ95: N/A | BR95: N/A
A96: =IF(LSCheck1st= "y","n 1st instars", "") -> n 1st instars | B96: 0 | C96: 0 | D96: 0 | E96: 0 | F96: 0 | G96: 0 | H96: 0 | I96: 0 | J96: 0 | K96: 0 | L96: 0 | M96: 0 | N96: 0 | O96: 0 | P96: 0 | Q96: 0 | R96: 0 | S96: 0 | T96: 0 | U96: 0 | V96: 0 | W96: 0 | X96: 0 | Y96: 0 | Z96: 0 | AA96: 0 | AB96: 0 | AC96: 0 | AD96: 0 | AE96: 0 | AF96: 0 | AG96: 0 | AH96: 0 | AI96: 0 | AJ96: 0 | AK96: 0 | AL96: 0 | AM96: 0 | AN96: 0 | AO96: 0 | AP96: 0 | AQ96: 0 | AR96: 0 | AS96: 0 | AT96: 0 | AU96: 0 | AV96: 0 | AW96: 0 | AX96: 0 | AY96: 0 | AZ96: 0 | BA96: 0 | BB96: 0 | BC96: 0 | BD96: 0 | BE96: 0 | BF96: 0 | BG96: 0 | BH96: 0 | BI96: 0 | BJ96: =IF(SUM(B96:BI96)=0,"N/A",SUMPRODUCT(B96:BI96,B$94:BI$94)/SUM(B96:BI96)) -> N/A | BK96: N/A | BL96: N/A | BM96: =IF(SUM(B96:BI96)=0,"N/A",SQRT(BL$102^2+BL96^2)) -> N/A | BN96: =MIN(IF(B96:BI96>0,1,61)*(B$28:BI$28)) -> 61 | BO96: =MAX(IF(C96:BJ96>0,1,0)*(C$28:BJ$28)) -> 0 | BP96: 1st | BQ96: N/A | BR96: N/A
A97: =IF(LSCheck2nd= "y","n 2nd instars", "") -> n 2nd instars | B97: 0 | C97: 0 | D97: 0 | E97: 0 | F97: 0 | G97: 0 | H97: 0 | I97: 0 | J97: 0 | K97: 0 | L97: 0 | M97: 0 | N97: 0 | O97: 0 | P97: 0 | Q97: 0 | R97: 0 | S97: 0 | T97: 0 | U97: 0 | V97: 0 | W97: 0 | X97: 0 | Y97: 0 | Z97: 0 | AA97: 0 | AB97: 0 | AC97: 0 | AD97: 0 | AE97: 0 | AF97: 0 | AG97: 0 | AH97: 0 | AI97: 0 | AJ97: 0 | AK97: 0 | AL97: 0 | AM97: 0 | AN97: 0 | AO97: 0 | AP97: 0 | AQ97: 0 | AR97: 0 | AS97: 0 | AT97: 0 | AU97: 0 | AV97: 0 | AW97: 0 | AX97: 0 | AY97: 0 | AZ97: 0 | BA97: 0 | BB97: 0 | BC97: 0 | BD97: 0 | BE97: 0 | BF97: 0 | BG97: 0 | BH97: 0 | BI97: 0 | BJ97: N/A | BK97: N/A | BL97: N/A | BM97: N/A | BN97: =MIN(IF(B97:BI97>0,1,61)*(B$28:BI$28)) -> 61 | BO97: =MAX(IF(C97:BJ97>0,1,0)*(C$28:BJ$28)) -> 0 | BP97: 2nd | BQ97: N/A | BR97: N/A
A98: =IF(LSCheck3rd= "y","n 3rd instars", "") -> n 3rd instars | B98: 0 | C98: 0 | D98: 0 | E98: 0 | F98: 0 | G98: 0 | H98: 0 | I98: 0 | J98: 0 | K98: 0 | L98: 0 | M98: 0 | N98: 0 | O98: 0 | P98: 0 | Q98: 0 | R98: 0 | S98: 0 | T98: 0 | U98: 0 | V98: 0 | W98: 0 | X98: 0 | Y98: 0 | Z98: 0 | AA98: 0 | AB98: 0 | AC98: 0 | AD98: 0 | AE98: 0 | AF98: 0 | AG98: 0 | AH98: 0 | AI98: 0 | AJ98: 0 | AK98: 0 | AL98: 0 | AM98: 0 | AN98: 0 | AO98: 0 | AP98: 0 | AQ98: 0 | AR98: 0 | AS98: 0 | AT98: 0 | AU98: 0 | AV98: 0 | AW98: 0 | AX98: 0 | AY98: 0 | AZ98: 0 | BA98: 0 | BB98: 0 | BC98: 0 | BD98: 0 | BE98: 0 | BF98: 0 | BG98: 0 | BH98: 0 | BI98: 0 | BJ98: N/A | BK98: N/A | BL98: N/A | BM98: N/A | BN98: =MIN(IF(B98:BI98>0,1,61)*(B$28:BI$28)) -> 61 | BO98: =MAX(IF(C98:BJ98>0,1,0)*(C$28:BJ$28)) -> 0 | BP98: 3rd | BQ98: N/A | BR98: N/A
A99: =IF(LSCheck4th= "y","n 4th instars", "") ->  | B99: 0 | C99: 0 | D99: 0 | E99: 0 | F99: 0 | G99: 0 | H99: 0 | I99: 0 | J99: 0 | K99: 0 | L99: 0 | M99: 0 | N99: 0 | O99: 0 | P99: 0 | Q99: 0 | R99: 0 | S99: 0 | T99: 0 | U99: 0 | V99: 0 | W99: 0 | X99: 0 | Y99: 0 | Z99: 0 | AA99: 0 | AB99: 0 | AC99: 0 | AD99: 0 | AE99: 0 | AF99: 0 | AG99: 0 | AH99: 0 | AI99: 0 | AJ99: 0 | AK99: 0 | AL99: 0 | AM99: 0 | AN99: 0 | AO99: 0 | AP99: 0 | AQ99: 0 | AR99: 0 | AS99: 0 | AT99: 0 | AU99: 0 | AV99: 0 | AW99: 0 | AX99: 0 | AY99: 0 | AZ99: 0 | BA99: 0 | BB99: 0 | BC99: 0 | BD99: 0 | BE99: 0 | BF99: 0 | BG99: 0 | BH99: 0 | BI99: 0 | BJ99: N/A | BK99: N/A | BL99: N/A | BM99: N/A | BN99: =MIN(IF(B99:BI99>0,1,61)*(B$28:BI$28)) -> 61 | BO99: =MAX(IF(C99:BJ99>0,1,0)*(C$28:BJ$28)) -> 0 | BP99: 4th | BQ99: N/A | BR99: N/A
A100: =IF(LSCheck5th= "y","n 5th instars", "") ->  | B100: 0 | C100: 0 | D100: 0 | E100: 0 | F100: 0 | G100: 0 | H100: 0 | I100: 0 | J100: 0 | K100: 0 | L100: 0 | M100: 0 | N100: 0 | O100: 0 | P100: 0 | Q100: 0 | R100: 0 | S100: 0 | T100: 0 | U100: 0 | V100: 0 | W100: 0 | X100: 0 | Y100: 0 | Z100: 0 | AA100: 0 | AB100: 0 | AC100: 0 | AD100: 0 | AE100: 0 | AF100: 0 | AG100: 0 | AH100: 0 | AI100: 0 | AJ100: 0 | AK100: 0 | AL100: 0 | AM100: 0 | AN100: 0 | AO100: 0 | AP100: 0 | AQ100: 0 | AR100: 0 | AS100: 0 | AT100: 0 | AU100: 0 | AV100: 0 | AW100: 0 | AX100: 0 | AY100: 0 | AZ100: 0 | BA100: 0 | BB100: 0 | BC100: 0 | BD100: 0 | BE100: 0 | BF100: 0 | BG100: 0 | BH100: 0 | BI100: 0 | BJ100: N/A | BK100: N/A | BL100: N/A | BM100: N/A | BN100: =MIN(IF(B100:BI100>0,1,61)*(B$28:BI$28)) -> 61 | BO100: =MAX(IF(C100:BJ100>0,1,0)*(C$28:BJ$28)) -> 0 | BP100: 5th | BQ100: N/A | BR100: N/A
A101: =IF(LSCheckPupa= "y","n Pupae", "") -> n Pupae | B101: 0 | C101: 0 | D101: 0 | E101: 0 | F101: 0 | G101: 0 | H101: 0 | I101: 0 | J101: 0 | K101: 0 | L101: 0 | M101: 0 | N101: 0 | O101: 0 | P101: 0 | Q101: 0 | R101: 0 | S101: 0 | T101: 0 | U101: 0 | V101: 0 | W101: 0 | X101: 0 | Y101: 0 | Z101: 0 | AA101: 0 | AB101: 0 | AC101: 0 | AD101: 0 | AE101: 0 | AF101: 0 | AG101: 0 | AH101: 0 | AI101: 0 | AJ101: 0 | AK101: 0 | AL101: 0 | AM101: 0 | AN101: 0 | AO101: 0 | AP101: 0 | AQ101: 0 | AR101: 0 | AS101: 0 | AT101: 0 | AU101: 0 | AV101: 0 | AW101: 0 | AX101: 0 | AY101: 0 | AZ101: 0 | BA101: 0 | BB101: 0 | BC101: 0 | BD101: 0 | BE101: 0 | BF101: 0 | BG101: 0 | BH101: 0 | BI101: 0 | BJ101: N/A | BK101: N/A | BL101: N/A | BM101: N/A | BN101: =MIN(IF(B101:BI101>0,1,61)*(B$28:BI$28)) -> 61 | BO101: =MAX(IF(C101:BJ101>0,1,0)*(C$28:BJ$28)) -> 0 | BP101: Pupae | BQ101: N/A | BR101: N/A | BS101: Min Adult | BT101: Max Adult
A102: =IF(LSCheckAdult= "y","n Adults", "") -> n Adults | B102: 0 | C102: 0 | D102: 0 | E102: 0 | F102: 0 | G102: 0 | H102: 0 | I102: 0 | J102: 0 | K102: 0 | L102: 0 | M102: 0 | N102: 0 | O102: 0 | P102: 0 | Q102: 0 | R102: 0 | S102: 0 | T102: 0 | U102: 0 | V102: 0 | W102: 0 | X102: 0 | Y102: 0 | Z102: 0 | AA102: 0 | AB102: 0 | AC102: 0 | AD102: 0 | AE102: 0 | AF102: 0 | AG102: 0 | AH102: 0 | AI102: 0 | AJ102: 0 | AK102: 0 | AL102: 0 | AM102: 0 | AN102: 0 | AO102: 0 | AP102: 0 | AQ102: 0 | AR102: 0 | AS102: 0 | AT102: 0 | AU102: 0 | AV102: 0 | AW102: 0 | AX102: 0 | AY102: 0 | AZ102: 0 | BA102: 0 | BB102: 0 | BC102: 0 | BD102: 0 | BE102: 0 | BF102: 0 | BG102: 0 | BH102: 0 | BI102: 0 | BJ102: N/A | BK102: N/A | BL102: N/A | BN102: =MIN(IF(B102:BI102>0,1,61)*(B$28:BI$28)) -> 61 | BO102: =MAX(IF(C102:BJ102>0,1,0)*(C$28:BJ$28)) -> 0 | BP102: Adults | BQ102: N/A | BR102: N/A | BS102: =IF($BN102=61,"N/A",ROUNDUP(BQ102-(1.96*$BK102),0)) -> N/A | BT102: =IF($BO102=0,"N/A",ROUNDDOWN(BR102+(1.96*$BK102),0)) -> N/A
A103: Total | B103: =SUM(B95:B102) -> 0 | C103: =SUM(C95:C102) -> 0 | D103: =SUM(D95:D102) -> 0 | E103: =SUM(E95:E102) -> 0 | F103: =SUM(F95:F102) -> 0 | G103: =SUM(G95:G102) -> 0 | H103: =SUM(H95:H102) -> 0 | I103: =SUM(I95:I102) -> 0 | J103: =SUM(J95:J102) -> 0 | K103: =SUM(K95:K102) -> 0 | L103: =SUM(L95:L102) -> 0 | M103: =SUM(M95:M102) -> 0 | N103: =SUM(N95:N102) -> 0 | O103: =SUM(O95:O102) -> 0 | P103: =SUM(P95:P102) -> 0 | Q103: =SUM(Q95:Q102) -> 0 | R103: =SUM(R95:R102) -> 0 | S103: =SUM(S95:S102) -> 0 | T103: =SUM(T95:T102) -> 0 | U103: =SUM(U95:U102) -> 0 | V103: =SUM(V95:V102) -> 0 | W103: =SUM(W95:W102) -> 0 | X103: =SUM(X95:X102) -> 0 | Y103: =SUM(Y95:Y102) -> 0 | Z103: =SUM(Z95:Z102) -> 0 | AA103: =SUM(AA95:AA102) -> 0 | AB103: =SUM(AB95:AB102) -> 0 | AC103: =SUM(AC95:AC102) -> 0 | AD103: =SUM(AD95:AD102) -> 0 | AE103: =SUM(AE95:AE102) -> 0 | AF103: =SUM(AF95:AF102) -> 0 | AG103: =SUM(AG95:AG102) -> 0 | AH103: =SUM(AH95:AH102) -> 0 | AI103: =SUM(AI95:AI102) -> 0 | AJ103: =SUM(AJ95:AJ102) -> 0 | AK103: =SUM(AK95:AK102) -> 0 | AL103: =SUM(AL95:AL102) -> 0 | AM103: =SUM(AM95:AM102) -> 0 | AN103: =SUM(AN95:AN102) -> 0 | AO103: =SUM(AO95:AO102) -> 0 | AP103: =SUM(AP95:AP102) -> 0 | AQ103: =SUM(AQ95:AQ102) -> 0 | AR103: =SUM(AR95:AR102) -> 0 | AS103: =SUM(AS95:AS102) -> 0 | AT103: =SUM(AT95:AT102) -> 0 | AU103: =SUM(AU95:AU102) -> 0 | AV103: =SUM(AV95:AV102) -> 0 | AW103: =SUM(AW95:AW102) -> 0 | AX103: =SUM(AX95:AX102) -> 0 | AY103: =SUM(AY95:AY102) -> 0 | AZ103: =SUM(AZ95:AZ102) -> 0 | BA103: =SUM(BA95:BA102) -> 0 | BB103: =SUM(BB95:BB102) -> 0 | BC103: =SUM(BC95:BC102) -> 0 | BD103: =SUM(BD95:BD102) -> 0 | BE103: =SUM(BE95:BE102) -> 0 | BF103: =SUM(BF95:BF102) -> 0 | BG103: =SUM(BG95:BG102) -> 0 | BH103: =SUM(BH95:BH102) -> 0 | BI103: =SUM(BI95:BI102) -> 0 | BJ103: =SUM(B103:BI103) -> 0 | BK103: N/A | BL103: N/A | BN103: =MIN(IF(B103:BI103>0,1,61)*(B$28:BI$28)) -> 61 | BO103: =MAX(IF(C103:BJ103>0,1,0)*(C$28:BJ$28)) -> 0 | BP103: Overall | BQ103: N/A | BR103: N/A
A104: =IF(Comm8="","No data",Comm8) -> No data | B104: =IF(Comm8="","",IF(SUM(B106:BI113)=0,"Warning!! Data input not started!","")) -> 
A105: Day | B105: 1 | C105: 2 | D105: 3 | E105: 4 | F105: 5 | G105: 6 | H105: 7 | I105: 8 | J105: 9 | K105: 10 | L105: 11 | M105: 12 | N105: 13 | O105: 14 | P105: 15 | Q105: 16 | R105: 17 | S105: 18 | T105: 19 | U105: 20 | V105: 21 | W105: 22 | X105: 23 | Y105: 24 | Z105: 25 | AA105: 26 | AB105: 27 | AC105: 28 | AD105: 29 | AE105: 30 | AF105: 31 | AG105: 32 | AH105: 33 | AI105: 34 | AJ105: 35 | AK105: 36 | AL105: 37 | AM105: 38 | AN105: 39 | AO105: 40 | AP105: 41 | AQ105: 42 | AR105: 43 | AS105: 44 | AT105: 45 | AU105: 46 | AV105: 47 | AW105: 48 | AX105: 49 | AY105: 50 | AZ105: 51 | BA105: 52 | BB105: 53 | BC105: 54 | BD105: 55 | BE105: 56 | BF105: 57 | BG105: 58 | BH105: 59 | BI105: 60 | BP105: =Comm8 -> 0 | BQ105: Min | BR105: Max
A106: =IF(LSCheckEggs= "y","n Eggs", "") -> n Eggs | B106: 0 | C106: 0 | D106: 0 | E106: 0 | F106: 0 | G106: 0 | H106: 0 | I106: 0 | J106: 0 | K106: 0 | L106: 0 | M106: 0 | N106: 0 | O106: 0 | P106: 0 | Q106: 0 | R106: 0 | S106: 0 | T106: 0 | U106: 0 | V106: 0 | W106: 0 | X106: 0 | Y106: 0 | Z106: 0 | AA106: 0 | AB106: 0 | AC106: 0 | AD106: 0 | AE106: 0 | AF106: 0 | AG106: 0 | AH106: 0 | AI106: 0 | AJ106: 0 | AK106: 0 | AL106: 0 | AM106: 0 | AN106: 0 | AO106: 0 | AP106: 0 | AQ106: 0 | AR106: 0 | AS106: 0 | AT106: 0 | AU106: 0 | AV106: 0 | AW106: 0 | AX106: 0 | AY106: 0 | AZ106: 0 | BA106: 0 | BB106: 0 | BC106: 0 | BD106: 0 | BE106: 0 | BF106: 0 | BG106: 0 | BH106: 0 | BI106: 0 | BJ106: =IF(SUM(B106:BI106)=0,"N/A",SUMPRODUCT(B106:BI106,B$105:BI$105)/SUM(B106:BI106)) -> N/A | BK106: N/A | BL106: N/A | BM106: =IF(SUM(B106:BI106)=0,"N/A",SQRT(BL$113^2+BL106^2)) -> N/A | BN106: =MIN(IF(B106:BI106>0,1,61)*(B$28:BI$28)) -> 61 | BO106: =MAX(IF(C106:BJ106>0,1,0)*(C$28:BJ$28)) -> 0 | BP106: Eggs | BQ106: =IF(BN106=61,"N/A",BN106) -> N/A | BR106: =IF(BO106=0,BQ106,BO106) -> N/A
A107: =IF(LSCheck1st= "y","n 1st instars", "") -> n 1st instars | B107: 0 | C107: 0 | D107: 0 | E107: 0 | F107: 0 | G107: 0 | H107: 0 | I107: 0 | J107: 0 | K107: 0 | L107: 0 | M107: 0 | N107: 0 | O107: 0 | P107: 0 | Q107: 0 | R107: 0 | S107: 0 | T107: 0 | U107: 0 | V107: 0 | W107: 0 | X107: 0 | Y107: 0 | Z107: 0 | AA107: 0 | AB107: 0 | AC107: 0 | AD107: 0 | AE107: 0 | AF107: 0 | AG107: 0 | AH107: 0 | AI107: 0 | AJ107: 0 | AK107: 0 | AL107: 0 | AM107: 0 | AN107: 0 | AO107: 0 | AP107: 0 | AQ107: 0 | AR107: 0 | AS107: 0 | AT107: 0 | AU107: 0 | AV107: 0 | AW107: 0 | AX107: 0 | AY107: 0 | AZ107: 0 | BA107: 0 | BB107: 0 | BC107: 0 | BD107: 0 | BE107: 0 | BF107: 0 | BG107: 0 | BH107: 0 | BI107: 0 | BJ107: =IF(SUM(B107:BI107)=0,"N/A",SUMPRODUCT(B107:BI107,B$105:BI$105)/SUM(B107:BI107)) -> N/A | BK107: N/A | BL107: N/A | BM107: =IF(SUM(B107:BI107)=0,"N/A",SQRT(BL$113^2+BL107^2)) -> N/A | BN107: =MIN(IF(B107:BI107>0,1,61)*(B$28:BI$28)) -> 61 | BO107: =MAX(IF(C107:BJ107>0,1,0)*(C$28:BJ$28)) -> 0 | BP107: 1st | BQ107: N/A | BR107: N/A
A108: =IF(LSCheck2nd= "y","n 2nd instars", "") -> n 2nd instars | B108: 0 | C108: 0 | D108: 0 | E108: 0 | F108: 0 | G108: 0 | H108: 0 | I108: 0 | J108: 0 | K108: 0 | L108: 0 | M108: 0 | N108: 0 | O108: 0 | P108: 0 | Q108: 0 | R108: 0 | S108: 0 | T108: 0 | U108: 0 | V108: 0 | W108: 0 | X108: 0 | Y108: 0 | Z108: 0 | AA108: 0 | AB108: 0 | AC108: 0 | AD108: 0 | AE108: 0 | AF108: 0 | AG108: 0 | AH108: 0 | AI108: 0 | AJ108: 0 | AK108: 0 | AL108: 0 | AM108: 0 | AN108: 0 | AO108: 0 | AP108: 0 | AQ108: 0 | AR108: 0 | AS108: 0 | AT108: 0 | AU108: 0 | AV108: 0 | AW108: 0 | AX108: 0 | AY108: 0 | AZ108: 0 | BA108: 0 | BB108: 0 | BC108: 0 | BD108: 0 | BE108: 0 | BF108: 0 | BG108: 0 | BH108: 0 | BI108: 0 | BJ108: N/A | BK108: N/A | BL108: N/A | BM108: N/A | BN108: =MIN(IF(B108:BI108>0,1,61)*(B$28:BI$28)) -> 61 | BO108: =MAX(IF(C108:BJ108>0,1,0)*(C$28:BJ$28)) -> 0 | BP108: 2nd | BQ108: N/A | BR108: N/A
A109: =IF(LSCheck3rd= "y","n 3rd instars", "") -> n 3rd instars | B109: 0 | C109: 0 | D109: 0 | E109: 0 | F109: 0 | G109: 0 | H109: 0 | I109: 0 | J109: 0 | K109: 0 | L109: 0 | M109: 0 | N109: 0 | O109: 0 | P109: 0 | Q109: 0 | R109: 0 | S109: 0 | T109: 0 | U109: 0 | V109: 0 | W109: 0 | X109: 0 | Y109: 0 | Z109: 0 | AA109: 0 | AB109: 0 | AC109: 0 | AD109: 0 | AE109: 0 | AF109: 0 | AG109: 0 | AH109: 0 | AI109: 0 | AJ109: 0 | AK109: 0 | AL109: 0 | AM109: 0 | AN109: 0 | AO109: 0 | AP109: 0 | AQ109: 0 | AR109: 0 | AS109: 0 | AT109: 0 | AU109: 0 | AV109: 0 | AW109: 0 | AX109: 0 | AY109: 0 | AZ109: 0 | BA109: 0 | BB109: 0 | BC109: 0 | BD109: 0 | BE109: 0 | BF109: 0 | BG109: 0 | BH109: 0 | BI109: 0 | BJ109: N/A | BK109: N/A | BL109: N/A | BM109: N/A | BN109: =MIN(IF(B109:BI109>0,1,61)*(B$28:BI$28)) -> 61 | BO109: =MAX(IF(C109:BJ109>0,1,0)*(C$28:BJ$28)) -> 0 | BP109: 3rd | BQ109: N/A | BR109: N/A
A110: =IF(LSCheck4th= "y","n 4th instars", "") ->  | B110: 0 | C110: 0 | D110: 0 | E110: 0 | F110: 0 | G110: 0 | H110: 0 | I110: 0 | J110: 0 | K110: 0 | L110: 0 | M110: 0 | N110: 0 | O110: 0 | P110: 0 | Q110: 0 | R110: 0 | S110: 0 | T110: 0 | U110: 0 | V110: 0 | W110: 0 | X110: 0 | Y110: 0 | Z110: 0 | AA110: 0 | AB110: 0 | AC110: 0 | AD110: 0 | AE110: 0 | AF110: 0 | AG110: 0 | AH110: 0 | AI110: 0 | AJ110: 0 | AK110: 0 | AL110: 0 | AM110: 0 | AN110: 0 | AO110: 0 | AP110: 0 | AQ110: 0 | AR110: 0 | AS110: 0 | AT110: 0 | AU110: 0 | AV110: 0 | AW110: 0 | AX110: 0 | AY110: 0 | AZ110: 0 | BA110: 0 | BB110: 0 | BC110: 0 | BD110: 0 | BE110: 0 | BF110: 0 | BG110: 0 | BH110: 0 | BI110: 0 | BJ110: N/A | BK110: N/A | BL110: N/A | BM110: N/A | BN110: =MIN(IF(B110:BI110>0,1,61)*(B$28:BI$28)) -> 61 | BO110: =MAX(IF(C110:BJ110>0,1,0)*(C$28:BJ$28)) -> 0 | BP110: 4th | BQ110: N/A | BR110: N/A
A111: =IF(LSCheck5th= "y","n 5th instars", "") ->  | B111: 0 | C111: 0 | D111: 0 | E111: 0 | F111: 0 | G111: 0 | H111: 0 | I111: 0 | J111: 0 | K111: 0 | L111: 0 | M111: 0 | N111: 0 | O111: 0 | P111: 0 | Q111: 0 | R111: 0 | S111: 0 | T111: 0 | U111: 0 | V111: 0 | W111: 0 | X111: 0 | Y111: 0 | Z111: 0 | AA111: 0 | AB111: 0 | AC111: 0 | AD111: 0 | AE111: 0 | AF111: 0 | AG111: 0 | AH111: 0 | AI111: 0 | AJ111: 0 | AK111: 0 | AL111: 0 | AM111: 0 | AN111: 0 | AO111: 0 | AP111: 0 | AQ111: 0 | AR111: 0 | AS111: 0 | AT111: 0 | AU111: 0 | AV111: 0 | AW111: 0 | AX111: 0 | AY111: 0 | AZ111: 0 | BA111: 0 | BB111: 0 | BC111: 0 | BD111: 0 | BE111: 0 | BF111: 0 | BG111: 0 | BH111: 0 | BI111: 0 | BJ111: N/A | BK111: N/A | BL111: N/A | BM111: N/A | BN111: =MIN(IF(B111:BI111>0,1,61)*(B$28:BI$28)) -> 61 | BO111: =MAX(IF(C111:BJ111>0,1,0)*(C$28:BJ$28)) -> 0 | BP111: 5th | BQ111: N/A | BR111: N/A
A112: =IF(LSCheckPupa= "y","n Pupae", "") -> n Pupae | B112: 0 | C112: 0 | D112: 0 | E112: 0 | F112: 0 | G112: 0 | H112: 0 | I112: 0 | J112: 0 | K112: 0 | L112: 0 | M112: 0 | N112: 0 | O112: 0 | P112: 0 | Q112: 0 | R112: 0 | S112: 0 | T112: 0 | U112: 0 | V112: 0 | W112: 0 | X112: 0 | Y112: 0 | Z112: 0 | AA112: 0 | AB112: 0 | AC112: 0 | AD112: 0 | AE112: 0 | AF112: 0 | AG112: 0 | AH112: 0 | AI112: 0 | AJ112: 0 | AK112: 0 | AL112: 0 | AM112: 0 | AN112: 0 | AO112: 0 | AP112: 0 | AQ112: 0 | AR112: 0 | AS112: 0 | AT112: 0 | AU112: 0 | AV112: 0 | AW112: 0 | AX112: 0 | AY112: 0 | AZ112: 0 | BA112: 0 | BB112: 0 | BC112: 0 | BD112: 0 | BE112: 0 | BF112: 0 | BG112: 0 | BH112: 0 | BI112: 0 | BJ112: N/A | BK112: N/A | BL112: N/A | BM112: N/A | BN112: =MIN(IF(B112:BI112>0,1,61)*(B$28:BI$28)) -> 61 | BO112: =MAX(IF(C112:BJ112>0,1,0)*(C$28:BJ$28)) -> 0 | BP112: Pupae | BQ112: N/A | BR112: N/A | BS112: Min Adult | BT112: Max Adult
A113: =IF(LSCheckAdult= "y","n Adults", "") -> n Adults | B113: 0 | C113: 0 | D113: 0 | E113: 0 | F113: 0 | G113: 0 | H113: 0 | I113: 0 | J113: 0 | K113: 0 | L113: 0 | M113: 0 | N113: 0 | O113: 0 | P113: 0 | Q113: 0 | R113: 0 | S113: 0 | T113: 0 | U113: 0 | V113: 0 | W113: 0 | X113: 0 | Y113: 0 | Z113: 0 | AA113: 0 | AB113: 0 | AC113: 0 | AD113: 0 | AE113: 0 | AF113: 0 | AG113: 0 | AH113: 0 | AI113: 0 | AJ113: 0 | AK113: 0 | AL113: 0 | AM113: 0 | AN113: 0 | AO113: 0 | AP113: 0 | AQ113: 0 | AR113: 0 | AS113: 0 | AT113: 0 | AU113: 0 | AV113: 0 | AW113: 0 | AX113: 0 | AY113: 0 | AZ113: 0 | BA113: 0 | BB113: 0 | BC113: 0 | BD113: 0 | BE113: 0 | BF113: 0 | BG113: 0 | BH113: 0 | BI113: 0 | BJ113: N/A | BK113: N/A | BL113: N/A | BN113: =MIN(IF(B113:BI113>0,1,61)*(B$28:BI$28)) -> 61 | BO113: =MAX(IF(C113:BJ113>0,1,0)*(C$28:BJ$28)) -> 0 | BP113: Adults | BQ113: N/A | BR113: N/A | BS113: =IF($BN113=61,"N/A",ROUNDUP(BQ113-(1.96*$BK113),0)) -> N/A | BT113: =IF($BO113=0,"N/A",ROUNDDOWN(BR113+(1.96*$BK113),0)) -> N/A
A114: Total | B114: =SUM(B106:B113) -> 0 | C114: =SUM(C106:C113) -> 0 | D114: =SUM(D106:D113) -> 0 | E114: =SUM(E106:E113) -> 0 | F114: =SUM(F106:F113) -> 0 | G114: =SUM(G106:G113) -> 0 | H114: =SUM(H106:H113) -> 0 | I114: =SUM(I106:I113) -> 0 | J114: =SUM(J106:J113) -> 0 | K114: =SUM(K106:K113) -> 0 | L114: =SUM(L106:L113) -> 0 | M114: =SUM(M106:M113) -> 0 | N114: =SUM(N106:N113) -> 0 | O114: =SUM(O106:O113) -> 0 | P114: =SUM(P106:P113) -> 0 | Q114: =SUM(Q106:Q113) -> 0 | R114: =SUM(R106:R113) -> 0 | S114: =SUM(S106:S113) -> 0 | T114: =SUM(T106:T113) -> 0 | U114: =SUM(U106:U113) -> 0 | V114: =SUM(V106:V113) -> 0 | W114: =SUM(W106:W113) -> 0 | X114: =SUM(X106:X113) -> 0 | Y114: =SUM(Y106:Y113) -> 0 | Z114: =SUM(Z106:Z113) -> 0 | AA114: =SUM(AA106:AA113) -> 0 | AB114: =SUM(AB106:AB113) -> 0 | AC114: =SUM(AC106:AC113) -> 0 | AD114: =SUM(AD106:AD113) -> 0 | AE114: =SUM(AE106:AE113) -> 0 | AF114: =SUM(AF106:AF113) -> 0 | AG114: =SUM(AG106:AG113) -> 0 | AH114: =SUM(AH106:AH113) -> 0 | AI114: =SUM(AI106:AI113) -> 0 | AJ114: =SUM(AJ106:AJ113) -> 0 | AK114: =SUM(AK106:AK113) -> 0 | AL114: =SUM(AL106:AL113) -> 0 | AM114: =SUM(AM106:AM113) -> 0 | AN114: =SUM(AN106:AN113) -> 0 | AO114: =SUM(AO106:AO113) -> 0 | AP114: =SUM(AP106:AP113) -> 0 | AQ114: =SUM(AQ106:AQ113) -> 0 | AR114: =SUM(AR106:AR113) -> 0 | AS114: =SUM(AS106:AS113) -> 0 | AT114: =SUM(AT106:AT113) -> 0 | AU114: =SUM(AU106:AU113) -> 0 | AV114: =SUM(AV106:AV113) -> 0 | AW114: =SUM(AW106:AW113) -> 0 | AX114: =SUM(AX106:AX113) -> 0 | AY114: =SUM(AY106:AY113) -> 0 | AZ114: =SUM(AZ106:AZ113) -> 0 | BA114: =SUM(BA106:BA113) -> 0 | BB114: =SUM(BB106:BB113) -> 0 | BC114: =SUM(BC106:BC113) -> 0 | BD114: =SUM(BD106:BD113) -> 0 | BE114: =SUM(BE106:BE113) -> 0 | BF114: =SUM(BF106:BF113) -> 0 | BG114: =SUM(BG106:BG113) -> 0 | BH114: =SUM(BH106:BH113) -> 0 | BI114: =SUM(BI106:BI113) -> 0 | BJ114: =SUM(B114:BI114) -> 0 | BK114: N/A | BL114: N/A | BN114: =MIN(IF(B114:BI114>0,1,61)*(B$28:BI$28)) -> 61 | BO114: =MAX(IF(C114:BJ114>0,1,0)*(C$28:BJ$28)) -> 0 | BP114: Overall | BQ114: N/A | BR114: N/A
A115: =IF(Comm9="","No data",Comm9) -> No data | B115: =IF(Comm9="","",IF(SUM(B117:BI124)=0,"Warning!! Data input not started!","")) -> 
A116: Day | B116: 1 | C116: 2 | D116: 3 | E116: 4 | F116: 5 | G116: 6 | H116: 7 | I116: 8 | J116: 9 | K116: 10 | L116: 11 | M116: 12 | N116: 13 | O116: 14 | P116: 15 | Q116: 16 | R116: 17 | S116: 18 | T116: 19 | U116: 20 | V116: 21 | W116: 22 | X116: 23 | Y116: 24 | Z116: 25 | AA116: 26 | AB116: 27 | AC116: 28 | AD116: 29 | AE116: 30 | AF116: 31 | AG116: 32 | AH116: 33 | AI116: 34 | AJ116: 35 | AK116: 36 | AL116: 37 | AM116: 38 | AN116: 39 | AO116: 40 | AP116: 41 | AQ116: 42 | AR116: 43 | AS116: 44 | AT116: 45 | AU116: 46 | AV116: 47 | AW116: 48 | AX116: 49 | AY116: 50 | AZ116: 51 | BA116: 52 | BB116: 53 | BC116: 54 | BD116: 55 | BE116: 56 | BF116: 57 | BG116: 58 | BH116: 59 | BI116: 60 | BP116: =Comm9 -> 0 | BQ116: Min | BR116: Max
A117: =IF(LSCheckEggs= "y","n Eggs", "") -> n Eggs | B117: 0 | C117: 0 | D117: 0 | E117: 0 | F117: 0 | G117: 0 | H117: 0 | I117: 0 | J117: 0 | K117: 0 | L117: 0 | M117: 0 | N117: 0 | O117: 0 | P117: 0 | Q117: 0 | R117: 0 | S117: 0 | T117: 0 | U117: 0 | V117: 0 | W117: 0 | X117: 0 | Y117: 0 | Z117: 0 | AA117: 0 | AB117: 0 | AC117: 0 | AD117: 0 | AE117: 0 | AF117: 0 | AG117: 0 | AH117: 0 | AI117: 0 | AJ117: 0 | AK117: 0 | AL117: 0 | AM117: 0 | AN117: 0 | AO117: 0 | AP117: 0 | AQ117: 0 | AR117: 0 | AS117: 0 | AT117: 0 | AU117: 0 | AV117: 0 | AW117: 0 | AX117: 0 | AY117: 0 | AZ117: 0 | BA117: 0 | BB117: 0 | BC117: 0 | BD117: 0 | BE117: 0 | BF117: 0 | BG117: 0 | BH117: 0 | BI117: 0 | BJ117: =IF(SUM(B117:BI117)=0,"N/A",SUMPRODUCT(B117:BI117,B$116:BI$116)/SUM(B117:BI117)) -> N/A | BK117: N/A | BL117: N/A | BM117: =IF(SUM(B117:BI117)=0,"N/A",SQRT(BL$124^2+BL117^2)) -> N/A | BN117: =MIN(IF(B117:BI117>0,1,61)*(B$28:BI$28)) -> 61 | BO117: =MAX(IF(C117:BJ117>0,1,0)*(C$28:BJ$28)) -> 0 | BP117: Eggs | BQ117: N/A | BR117: N/A
A118: =IF(LSCheck1st= "y","n 1st instars", "") -> n 1st instars | B118: 0 | C118: 0 | D118: 0 | E118: 0 | F118: 0 | G118: 0 | H118: 0 | I118: 0 | J118: 0 | K118: 0 | L118: 0 | M118: 0 | N118: 0 | O118: 0 | P118: 0 | Q118: 0 | R118: 0 | S118: 0 | T118: 0 | U118: 0 | V118: 0 | W118: 0 | X118: 0 | Y118: 0 | Z118: 0 | AA118: 0 | AB118: 0 | AC118: 0 | AD118: 0 | AE118: 0 | AF118: 0 | AG118: 0 | AH118: 0 | AI118: 0 | AJ118: 0 | AK118: 0 | AL118: 0 | AM118: 0 | AN118: 0 | AO118: 0 | AP118: 0 | AQ118: 0 | AR118: 0 | AS118: 0 | AT118: 0 | AU118: 0 | AV118: 0 | AW118: 0 | AX118: 0 | AY118: 0 | AZ118: 0 | BA118: 0 | BB118: 0 | BC118: 0 | BD118: 0 | BE118: 0 | BF118: 0 | BG118: 0 | BH118: 0 | BI118: 0 | BJ118: =IF(SUM(B118:BI118)=0,"N/A",SUMPRODUCT(B118:BI118,B$116:BI$116)/SUM(B118:BI118)) -> N/A | BK118: N/A | BL118: N/A | BM118: =IF(SUM(B118:BI118)=0,"N/A",SQRT(BL$124^2+BL118^2)) -> N/A | BN118: =MIN(IF(B118:BI118>0,1,61)*(B$28:BI$28)) -> 61 | BO118: =MAX(IF(C118:BJ118>0,1,0)*(C$28:BJ$28)) -> 0 | BP118: 1st | BQ118: N/A | BR118: N/A
A119: =IF(LSCheck2nd= "y","n 2nd instars", "") -> n 2nd instars | B119: 0 | C119: 0 | D119: 0 | E119: 0 | F119: 0 | G119: 0 | H119: 0 | I119: 0 | J119: 0 | K119: 0 | L119: 0 | M119: 0 | N119: 0 | O119: 0 | P119: 0 | Q119: 0 | R119: 0 | S119: 0 | T119: 0 | U119: 0 | V119: 0 | W119: 0 | X119: 0 | Y119: 0 | Z119: 0 | AA119: 0 | AB119: 0 | AC119: 0 | AD119: 0 | AE119: 0 | AF119: 0 | AG119: 0 | AH119: 0 | AI119: 0 | AJ119: 0 | AK119: 0 | AL119: 0 | AM119: 0 | AN119: 0 | AO119: 0 | AP119: 0 | AQ119: 0 | AR119: 0 | AS119: 0 | AT119: 0 | AU119: 0 | AV119: 0 | AW119: 0 | AX119: 0 | AY119: 0 | AZ119: 0 | BA119: 0 | BB119: 0 | BC119: 0 | BD119: 0 | BE119: 0 | BF119: 0 | BG119: 0 | BH119: 0 | BI119: 0 | BJ119: N/A | BK119: N/A | BL119: N/A | BM119: N/A | BN119: =MIN(IF(B119:BI119>0,1,61)*(B$28:BI$28)) -> 61 | BO119: =MAX(IF(C119:BJ119>0,1,0)*(C$28:BJ$28)) -> 0 | BP119: 2nd | BQ119: N/A | BR119: N/A
A120: =IF(LSCheck3rd= "y","n 3rd instars", "") -> n 3rd instars | B120: 0 | C120: 0 | D120: 0 | E120: 0 | F120: 0 | G120: 0 | H120: 0 | I120: 0 | J120: 0 | K120: 0 | L120: 0 | M120: 0 | N120: 0 | O120: 0 | P120: 0 | Q120: 0 | R120: 0 | S120: 0 | T120: 0 | U120: 0 | V120: 0 | W120: 0 | X120: 0 | Y120: 0 | Z120: 0 | AA120: 0 | AB120: 0 | AC120: 0 | AD120: 0 | AE120: 0 | AF120: 0 | AG120: 0 | AH120: 0 | AI120: 0 | AJ120: 0 | AK120: 0 | AL120: 0 | AM120: 0 | AN120: 0 | AO120: 0 | AP120: 0 | AQ120: 0 | AR120: 0 | AS120: 0 | AT120: 0 | AU120: 0 | AV120: 0 | AW120: 0 | AX120: 0 | AY120: 0 | AZ120: 0 | BA120: 0 | BB120: 0 | BC120: 0 | BD120: 0 | BE120: 0 | BF120: 0 | BG120: 0 | BH120: 0 | BI120: 0 | BJ120: N/A | BK120: N/A | BL120: N/A | BM120: N/A | BN120: =MIN(IF(B120:BI120>0,1,61)*(B$28:BI$28)) -> 61 | BO120: =MAX(IF(C120:BJ120>0,1,0)*(C$28:BJ$28)) -> 0 | BP120: 3rd | BQ120: N/A | BR120: N/A
A121: =IF(LSCheck4th= "y","n 4th instars", "") ->  | B121: 0 | C121: 0 | D121: 0 | E121: 0 | F121: 0 | G121: 0 | H121: 0 | I121: 0 | J121: 0 | K121: 0 | L121: 0 | M121: 0 | N121: 0 | O121: 0 | P121: 0 | Q121: 0 | R121: 0 | S121: 0 | T121: 0 | U121: 0 | V121: 0 | W121: 0 | X121: 0 | Y121: 0 | Z121: 0 | AA121: 0 | AB121: 0 | AC121: 0 | AD121: 0 | AE121: 0 | AF121: 0 | AG121: 0 | AH121: 0 | AI121: 0 | AJ121: 0 | AK121: 0 | AL121: 0 | AM121: 0 | AN121: 0 | AO121: 0 | AP121: 0 | AQ121: 0 | AR121: 0 | AS121: 0 | AT121: 0 | AU121: 0 | AV121: 0 | AW121: 0 | AX121: 0 | AY121: 0 | AZ121: 0 | BA121: 0 | BB121: 0 | BC121: 0 | BD121: 0 | BE121: 0 | BF121: 0 | BG121: 0 | BH121: 0 | BI121: 0 | BJ121: N/A | BK121: N/A | BL121: N/A | BM121: N/A | BN121: =MIN(IF(B121:BI121>0,1,61)*(B$28:BI$28)) -> 61 | BO121: =MAX(IF(C121:BJ121>0,1,0)*(C$28:BJ$28)) -> 0 | BP121: 4th | BQ121: N/A | BR121: N/A
A122: =IF(LSCheck5th= "y","n 5th instars", "") ->  | B122: 0 | C122: 0 | D122: 0 | E122: 0 | F122: 0 | G122: 0 | H122: 0 | I122: 0 | J122: 0 | K122: 0 | L122: 0 | M122: 0 | N122: 0 | O122: 0 | P122: 0 | Q122: 0 | R122: 0 | S122: 0 | T122: 0 | U122: 0 | V122: 0 | W122: 0 | X122: 0 | Y122: 0 | Z122: 0 | AA122: 0 | AB122: 0 | AC122: 0 | AD122: 0 | AE122: 0 | AF122: 0 | AG122: 0 | AH122: 0 | AI122: 0 | AJ122: 0 | AK122: 0 | AL122: 0 | AM122: 0 | AN122: 0 | AO122: 0 | AP122: 0 | AQ122: 0 | AR122: 0 | AS122: 0 | AT122: 0 | AU122: 0 | AV122: 0 | AW122: 0 | AX122: 0 | AY122: 0 | AZ122: 0 | BA122: 0 | BB122: 0 | BC122: 0 | BD122: 0 | BE122: 0 | BF122: 0 | BG122: 0 | BH122: 0 | BI122: 0 | BJ122: N/A | BK122: N/A | BL122: N/A | BM122: N/A | BN122: =MIN(IF(B122:BI122>0,1,61)*(B$28:BI$28)) -> 61 | BO122: =MAX(IF(C122:BJ122>0,1,0)*(C$28:BJ$28)) -> 0 | BP122: 5th | BQ122: N/A | BR122: N/A
A123: =IF(LSCheckPupa= "y","n Pupae", "") -> n Pupae | B123: 0 | C123: 0 | D123: 0 | E123: 0 | F123: 0 | G123: 0 | H123: 0 | I123: 0 | J123: 0 | K123: 0 | L123: 0 | M123: 0 | N123: 0 | O123: 0 | P123: 0 | Q123: 0 | R123: 0 | S123: 0 | T123: 0 | U123: 0 | V123: 0 | W123: 0 | X123: 0 | Y123: 0 | Z123: 0 | AA123: 0 | AB123: 0 | AC123: 0 | AD123: 0 | AE123: 0 | AF123: 0 | AG123: 0 | AH123: 0 | AI123: 0 | AJ123: 0 | AK123: 0 | AL123: 0 | AM123: 0 | AN123: 0 | AO123: 0 | AP123: 0 | AQ123: 0 | AR123: 0 | AS123: 0 | AT123: 0 | AU123: 0 | AV123: 0 | AW123: 0 | AX123: 0 | AY123: 0 | AZ123: 0 | BA123: 0 | BB123: 0 | BC123: 0 | BD123: 0 | BE123: 0 | BF123: 0 | BG123: 0 | BH123: 0 | BI123: 0 | BJ123: N/A | BK123: N/A | BL123: N/A | BM123: N/A | BN123: =MIN(IF(B123:BI123>0,1,61)*(B$28:BI$28)) -> 61 | BO123: =MAX(IF(C123:BJ123>0,1,0)*(C$28:BJ$28)) -> 0 | BP123: Pupae | BQ123: N/A | BR123: N/A | BS123: Min Adult | BT123: Max Adult
A124: =IF(LSCheckAdult= "y","n Adults", "") -> n Adults | B124: 0 | C124: 0 | D124: 0 | E124: 0 | F124: 0 | G124: 0 | H124: 0 | I124: 0 | J124: 0 | K124: 0 | L124: 0 | M124: 0 | N124: 0 | O124: 0 | P124: 0 | Q124: 0 | R124: 0 | S124: 0 | T124: 0 | U124: 0 | V124: 0 | W124: 0 | X124: 0 | Y124: 0 | Z124: 0 | AA124: 0 | AB124: 0 | AC124: 0 | AD124: 0 | AE124: 0 | AF124: 0 | AG124: 0 | AH124: 0 | AI124: 0 | AJ124: 0 | AK124: 0 | AL124: 0 | AM124: 0 | AN124: 0 | AO124: 0 | AP124: 0 | AQ124: 0 | AR124: 0 | AS124: 0 | AT124: 0 | AU124: 0 | AV124: 0 | AW124: 0 | AX124: 0 | AY124: 0 | AZ124: 0 | BA124: 0 | BB124: 0 | BC124: 0 | BD124: 0 | BE124: 0 | BF124: 0 | BG124: 0 | BH124: 0 | BI124: 0 | BJ124: N/A | BK124: N/A | BL124: N/A | BN124: =MIN(IF(B124:BI124>0,1,61)*(B$28:BI$28)) -> 61 | BO124: =MAX(IF(C124:BJ124>0,1,0)*(C$28:BJ$28)) -> 0 | BP124: Adults | BQ124: N/A | BR124: N/A | BS124: =IF($BN124=61,"N/A",ROUNDUP(BQ124-(1.96*$BK124),0)) -> N/A | BT124: =IF($BO124=0,"N/A",ROUNDDOWN(BR124+(1.96*$BK124),0)) -> N/A
A125: Total | B125: =SUM(B117:B124) -> 0 | C125: =SUM(C117:C124) -> 0 | D125: =SUM(D117:D124) -> 0 | E125: =SUM(E117:E124) -> 0 | F125: =SUM(F117:F124) -> 0 | G125: =SUM(G117:G124) -> 0 | H125: =SUM(H117:H124) -> 0 | I125: =SUM(I117:I124) -> 0 | J125: =SUM(J117:J124) -> 0 | K125: =SUM(K117:K124) -> 0 | L125: =SUM(L117:L124) -> 0 | M125: =SUM(M117:M124) -> 0 | N125: =SUM(N117:N124) -> 0 | O125: =SUM(O117:O124) -> 0 | P125: =SUM(P117:P124) -> 0 | Q125: =SUM(Q117:Q124) -> 0 | R125: =SUM(R117:R124) -> 0 | S125: =SUM(S117:S124) -> 0 | T125: =SUM(T117:T124) -> 0 | U125: =SUM(U117:U124) -> 0 | V125: =SUM(V117:V124) -> 0 | W125: =SUM(W117:W124) -> 0 | X125: =SUM(X117:X124) -> 0 | Y125: =SUM(Y117:Y124) -> 0 | Z125: =SUM(Z117:Z124) -> 0 | AA125: =SUM(AA117:AA124) -> 0 | AB125: =SUM(AB117:AB124) -> 0 | AC125: =SUM(AC117:AC124) -> 0 | AD125: =SUM(AD117:AD124) -> 0 | AE125: =SUM(AE117:AE124) -> 0 | AF125: =SUM(AF117:AF124) -> 0 | AG125: =SUM(AG117:AG124) -> 0 | AH125: =SUM(AH117:AH124) -> 0 | AI125: =SUM(AI117:AI124) -> 0 | AJ125: =SUM(AJ117:AJ124) -> 0 | AK125: =SUM(AK117:AK124) -> 0 | AL125: =SUM(AL117:AL124) -> 0 | AM125: =SUM(AM117:AM124) -> 0 | AN125: =SUM(AN117:AN124) -> 0 | AO125: =SUM(AO117:AO124) -> 0 | AP125: =SUM(AP117:AP124) -> 0 | AQ125: =SUM(AQ117:AQ124) -> 0 | AR125: =SUM(AR117:AR124) -> 0 | AS125: =SUM(AS117:AS124) -> 0 | AT125: =SUM(AT117:AT124) -> 0 | AU125: =SUM(AU117:AU124) -> 0 | AV125: =SUM(AV117:AV124) -> 0 | AW125: =SUM(AW117:AW124) -> 0 | AX125: =SUM(AX117:AX124) -> 0 | AY125: =SUM(AY117:AY124) -> 0 | AZ125: =SUM(AZ117:AZ124) -> 0 | BA125: =SUM(BA117:BA124) -> 0 | BB125: =SUM(BB117:BB124) -> 0 | BC125: =SUM(BC117:BC124) -> 0 | BD125: =SUM(BD117:BD124) -> 0 | BE125: =SUM(BE117:BE124) -> 0 | BF125: =SUM(BF117:BF124) -> 0 | BG125: =SUM(BG117:BG124) -> 0 | BH125: =SUM(BH117:BH124) -> 0 | BI125: =SUM(BI117:BI124) -> 0 | BJ125: =SUM(B125:BI125) -> 0 | BK125: N/A | BL125: N/A | BN125: =MIN(IF(B125:BI125>0,1,61)*(B$28:BI$28)) -> 61 | BO125: =MAX(IF(C125:BJ125>0,1,0)*(C$28:BJ$28)) -> 0 | BP125: Overall | BQ125: N/A | BR125: N/A
A126: =IF(Comm10="","No data",Comm10) -> No data | B126: =IF(Comm10="","",IF(SUM(B128:BI135)=0,"Warning!! Data input not started!","")) -> 
A127: Day | B127: 1 | C127: 2 | D127: 3 | E127: 4 | F127: 5 | G127: 6 | H127: 7 | I127: 8 | J127: 9 | K127: 10 | L127: 11 | M127: 12 | N127: 13 | O127: 14 | P127: 15 | Q127: 16 | R127: 17 | S127: 18 | T127: 19 | U127: 20 | V127: 21 | W127: 22 | X127: 23 | Y127: 24 | Z127: 25 | AA127: 26 | AB127: 27 | AC127: 28 | AD127: 29 | AE127: 30 | AF127: 31 | AG127: 32 | AH127: 33 | AI127: 34 | AJ127: 35 | AK127: 36 | AL127: 37 | AM127: 38 | AN127: 39 | AO127: 40 | AP127: 41 | AQ127: 42 | AR127: 43 | AS127: 44 | AT127: 45 | AU127: 46 | AV127: 47 | AW127: 48 | AX127: 49 | AY127: 50 | AZ127: 51 | BA127: 52 | BB127: 53 | BC127: 54 | BD127: 55 | BE127: 56 | BF127: 57 | BG127: 58 | BH127: 59 | BI127: 60 | BP127: =Comm10 -> 0 | BQ127: Min | BR127: Max
A128: =IF(LSCheckEggs= "y","n Eggs", "") -> n Eggs | B128: 0 | C128: 0 | D128: 0 | E128: 0 | F128: 0 | G128: 0 | H128: 0 | I128: 0 | J128: 0 | K128: 0 | L128: 0 | M128: 0 | N128: 0 | O128: 0 | P128: 0 | Q128: 0 | R128: 0 | S128: 0 | T128: 0 | U128: 0 | V128: 0 | W128: 0 | X128: 0 | Y128: 0 | Z128: 0 | AA128: 0 | AB128: 0 | AC128: 0 | AD128: 0 | AE128: 0 | AF128: 0 | AG128: 0 | AH128: 0 | AI128: 0 | AJ128: 0 | AK128: 0 | AL128: 0 | AM128: 0 | AN128: 0 | AO128: 0 | AP128: 0 | AQ128: 0 | AR128: 0 | AS128: 0 | AT128: 0 | AU128: 0 | AV128: 0 | AW128: 0 | AX128: 0 | AY128: 0 | AZ128: 0 | BA128: 0 | BB128: 0 | BC128: 0 | BD128: 0 | BE128: 0 | BF128: 0 | BG128: 0 | BH128: 0 | BI128: 0 | BJ128: =IF(SUM(B128:BI128)=0,"N/A",SUMPRODUCT(B128:BI128,B$127:BI$127)/SUM(B128:BI128)) -> N/A | BK128: N/A | BL128: N/A | BM128: =IF(SUM(B128:BI128)=0,"N/A",SQRT(BL$135^2+BL128^2)) -> N/A | BN128: =MIN(IF(B128:BI128>0,1,61)*(B$28:BI$28)) -> 61 | BO128: =MAX(IF(C128:BJ128>0,1,0)*(C$28:BJ$28)) -> 0 | BP128: Eggs | BQ128: N/A | BR128: N/A
A129: =IF(LSCheck1st= "y","n 1st instars", "") -> n 1st instars | B129: 0 | C129: 0 | D129: 0 | E129: 0 | F129: 0 | G129: 0 | H129: 0 | I129: 0 | J129: 0 | K129: 0 | L129: 0 | M129: 0 | N129: 0 | O129: 0 | P129: 0 | Q129: 0 | R129: 0 | S129: 0 | T129: 0 | U129: 0 | V129: 0 | W129: 0 | X129: 0 | Y129: 0 | Z129: 0 | AA129: 0 | AB129: 0 | AC129: 0 | AD129: 0 | AE129: 0 | AF129: 0 | AG129: 0 | AH129: 0 | AI129: 0 | AJ129: 0 | AK129: 0 | AL129: 0 | AM129: 0 | AN129: 0 | AO129: 0 | AP129: 0 | AQ129: 0 | AR129: 0 | AS129: 0 | AT129: 0 | AU129: 0 | AV129: 0 | AW129: 0 | AX129: 0 | AY129: 0 | AZ129: 0 | BA129: 0 | BB129: 0 | BC129: 0 | BD129: 0 | BE129: 0 | BF129: 0 | BG129: 0 | BH129: 0 | BI129: 0 | BJ129: =IF(SUM(B129:BI129)=0,"N/A",SUMPRODUCT(B129:BI129,B$127:BI$127)/SUM(B129:BI129)) -> N/A | BK129: N/A | BL129: N/A | BM129: =IF(SUM(B129:BI129)=0,"N/A",SQRT(BL$135^2+BL129^2)) -> N/A | BN129: =MIN(IF(B129:BI129>0,1,61)*(B$28:BI$28)) -> 61 | BO129: =MAX(IF(C129:BJ129>0,1,0)*(C$28:BJ$28)) -> 0 | BP129: 1st | BQ129: N/A | BR129: N/A
A130: =IF(LSCheck2nd= "y","n 2nd instars", "") -> n 2nd instars | B130: 0 | C130: 0 | D130: 0 | E130: 0 | F130: 0 | G130: 0 | H130: 0 | I130: 0 | J130: 0 | K130: 0 | L130: 0 | M130: 0 | N130: 0 | O130: 0 | P130: 0 | Q130: 0 | R130: 0 | S130: 0 | T130: 0 | U130: 0 | V130: 0 | W130: 0 | X130: 0 | Y130: 0 | Z130: 0 | AA130: 0 | AB130: 0 | AC130: 0 | AD130: 0 | AE130: 0 | AF130: 0 | AG130: 0 | AH130: 0 | AI130: 0 | AJ130: 0 | AK130: 0 | AL130: 0 | AM130: 0 | AN130: 0 | AO130: 0 | AP130: 0 | AQ130: 0 | AR130: 0 | AS130: 0 | AT130: 0 | AU130: 0 | AV130: 0 | AW130: 0 | AX130: 0 | AY130: 0 | AZ130: 0 | BA130: 0 | BB130: 0 | BC130: 0 | BD130: 0 | BE130: 0 | BF130: 0 | BG130: 0 | BH130: 0 | BI130: 0 | BJ130: N/A | BK130: N/A | BL130: N/A | BM130: N/A | BN130: =MIN(IF(B130:BI130>0,1,61)*(B$28:BI$28)) -> 61 | BO130: =MAX(IF(C130:BJ130>0,1,0)*(C$28:BJ$28)) -> 0 | BP130: 2nd | BQ130: N/A | BR130: N/A
A131: =IF(LSCheck3rd= "y","n 3rd instars", "") -> n 3rd instars | B131: 0 | C131: 0 | D131: 0 | E131: 0 | F131: 0 | G131: 0 | H131: 0 | I131: 0 | J131: 0 | K131: 0 | L131: 0 | M131: 0 | N131: 0 | O131: 0 | P131: 0 | Q131: 0 | R131: 0 | S131: 0 | T131: 0 | U131: 0 | V131: 0 | W131: 0 | X131: 0 | Y131: 0 | Z131: 0 | AA131: 0 | AB131: 0 | AC131: 0 | AD131: 0 | AE131: 0 | AF131: 0 | AG131: 0 | AH131: 0 | AI131: 0 | AJ131: 0 | AK131: 0 | AL131: 0 | AM131: 0 | AN131: 0 | AO131: 0 | AP131: 0 | AQ131: 0 | AR131: 0 | AS131: 0 | AT131: 0 | AU131: 0 | AV131: 0 | AW131: 0 | AX131: 0 | AY131: 0 | AZ131: 0 | BA131: 0 | BB131: 0 | BC131: 0 | BD131: 0 | BE131: 0 | BF131: 0 | BG131: 0 | BH131: 0 | BI131: 0 | BJ131: N/A | BK131: N/A | BL131: N/A | BM131: N/A | BN131: =MIN(IF(B131:BI131>0,1,61)*(B$28:BI$28)) -> 61 | BO131: =MAX(IF(C131:BJ131>0,1,0)*(C$28:BJ$28)) -> 0 | BP131: 3rd | BQ131: N/A | BR131: N/A
A132: =IF(LSCheck4th= "y","n 4th instars", "") ->  | B132: 0 | C132: 0 | D132: 0 | E132: 0 | F132: 0 | G132: 0 | H132: 0 | I132: 0 | J132: 0 | K132: 0 | L132: 0 | M132: 0 | N132: 0 | O132: 0 | P132: 0 | Q132: 0 | R132: 0 | S132: 0 | T132: 0 | U132: 0 | V132: 0 | W132: 0 | X132: 0 | Y132: 0 | Z132: 0 | AA132: 0 | AB132: 0 | AC132: 0 | AD132: 0 | AE132: 0 | AF132: 0 | AG132: 0 | AH132: 0 | AI132: 0 | AJ132: 0 | AK132: 0 | AL132: 0 | AM132: 0 | AN132: 0 | AO132: 0 | AP132: 0 | AQ132: 0 | AR132: 0 | AS132: 0 | AT132: 0 | AU132: 0 | AV132: 0 | AW132: 0 | AX132: 0 | AY132: 0 | AZ132: 0 | BA132: 0 | BB132: 0 | BC132: 0 | BD132: 0 | BE132: 0 | BF132: 0 | BG132: 0 | BH132: 0 | BI132: 0 | BJ132: N/A | BK132: N/A | BL132: N/A | BM132: N/A | BN132: =MIN(IF(B132:BI132>0,1,61)*(B$28:BI$28)) -> 61 | BO132: =MAX(IF(C132:BJ132>0,1,0)*(C$28:BJ$28)) -> 0 | BP132: 4th | BQ132: N/A | BR132: N/A
A133: =IF(LSCheck5th= "y","n 5th instars", "") ->  | B133: 0 | C133: 0 | D133: 0 | E133: 0 | F133: 0 | G133: 0 | H133: 0 | I133: 0 | J133: 0 | K133: 0 | L133: 0 | M133: 0 | N133: 0 | O133: 0 | P133: 0 | Q133: 0 | R133: 0 | S133: 0 | T133: 0 | U133: 0 | V133: 0 | W133: 0 | X133: 0 | Y133: 0 | Z133: 0 | AA133: 0 | AB133: 0 | AC133: 0 | AD133: 0 | AE133: 0 | AF133: 0 | AG133: 0 | AH133: 0 | AI133: 0 | AJ133: 0 | AK133: 0 | AL133: 0 | AM133: 0 | AN133: 0 | AO133: 0 | AP133: 0 | AQ133: 0 | AR133: 0 | AS133: 0 | AT133: 0 | AU133: 0 | AV133: 0 | AW133: 0 | AX133: 0 | AY133: 0 | AZ133: 0 | BA133: 0 | BB133: 0 | BC133: 0 | BD133: 0 | BE133: 0 | BF133: 0 | BG133: 0 | BH133: 0 | BI133: 0 | BJ133: N/A | BK133: N/A | BL133: N/A | BM133: N/A | BN133: =MIN(IF(B133:BI133>0,1,61)*(B$28:BI$28)) -> 61 | BO133: =MAX(IF(C133:BJ133>0,1,0)*(C$28:BJ$28)) -> 0 | BP133: 5th | BQ133: N/A | BR133: N/A
A134: =IF(LSCheckPupa= "y","n Pupae", "") -> n Pupae | B134: 0 | C134: 0 | D134: 0 | E134: 0 | F134: 0 | G134: 0 | H134: 0 | I134: 0 | J134: 0 | K134: 0 | L134: 0 | M134: 0 | N134: 0 | O134: 0 | P134: 0 | Q134: 0 | R134: 0 | S134: 0 | T134: 0 | U134: 0 | V134: 0 | W134: 0 | X134: 0 | Y134: 0 | Z134: 0 | AA134: 0 | AB134: 0 | AC134: 0 | AD134: 0 | AE134: 0 | AF134: 0 | AG134: 0 | AH134: 0 | AI134: 0 | AJ134: 0 | AK134: 0 | AL134: 0 | AM134: 0 | AN134: 0 | AO134: 0 | AP134: 0 | AQ134: 0 | AR134: 0 | AS134: 0 | AT134: 0 | AU134: 0 | AV134: 0 | AW134: 0 | AX134: 0 | AY134: 0 | AZ134: 0 | BA134: 0 | BB134: 0 | BC134: 0 | BD134: 0 | BE134: 0 | BF134: 0 | BG134: 0 | BH134: 0 | BI134: 0 | BJ134: N/A | BK134: N/A | BL134: N/A | BM134: N/A | BN134: =MIN(IF(B134:BI134>0,1,61)*(B$28:BI$28)) -> 61 | BO134: =MAX(IF(C134:BJ134>0,1,0)*(C$28:BJ$28)) -> 0 | BP134: Pupae | BQ134: N/A | BR134: N/A | BS134: Min Adult | BT134: Max Adult
A135: =IF(LSCheckAdult= "y","n Adults", "") -> n Adults | B135: 0 | C135: 0 | D135: 0 | E135: 0 | F135: 0 | G135: 0 | H135: 0 | I135: 0 | J135: 0 | K135: 0 | L135: 0 | M135: 0 | N135: 0 | O135: 0 | P135: 0 | Q135: 0 | R135: 0 | S135: 0 | T135: 0 | U135: 0 | V135: 0 | W135: 0 | X135: 0 | Y135: 0 | Z135: 0 | AA135: 0 | AB135: 0 | AC135: 0 | AD135: 0 | AE135: 0 | AF135: 0 | AG135: 0 | AH135: 0 | AI135: 0 | AJ135: 0 | AK135: 0 | AL135: 0 | AM135: 0 | AN135: 0 | AO135: 0 | AP135: 0 | AQ135: 0 | AR135: 0 | AS135: 0 | AT135: 0 | AU135: 0 | AV135: 0 | AW135: 0 | AX135: 0 | AY135: 0 | AZ135: 0 | BA135: 0 | BB135: 0 | BC135: 0 | BD135: 0 | BE135: 0 | BF135: 0 | BG135: 0 | BH135: 0 | BI135: 0 | BJ135: N/A | BK135: N/A | BL135: N/A | BN135: =MIN(IF(B135:BI135>0,1,61)*(B$28:BI$28)) -> 61 | BO135: =MAX(IF(C135:BJ135>0,1,0)*(C$28:BJ$28)) -> 0 | BP135: Adults | BQ135: N/A | BR135: N/A | BS135: =IF($BN135=61,"N/A",ROUNDUP(BQ135-(1.96*$BK135),0)) -> N/A | BT135: =IF($BO135=0,"N/A",ROUNDDOWN(BR135+(1.96*$BK135),0)) -> N/A
A136: Total | B136: =SUM(B128:B135) -> 0 | C136: =SUM(C128:C135) -> 0 | D136: =SUM(D128:D135) -> 0 | E136: =SUM(E128:E135) -> 0 | F136: =SUM(F128:F135) -> 0 | G136: =SUM(G128:G135) -> 0 | H136: =SUM(H128:H135) -> 0 | I136: =SUM(I128:I135) -> 0 | J136: =SUM(J128:J135) -> 0 | K136: =SUM(K128:K135) -> 0 | L136: =SUM(L128:L135) -> 0 | M136: =SUM(M128:M135) -> 0 | N136: =SUM(N128:N135) -> 0 | O136: =SUM(O128:O135) -> 0 | P136: =SUM(P128:P135) -> 0 | Q136: =SUM(Q128:Q135) -> 0 | R136: =SUM(R128:R135) -> 0 | S136: =SUM(S128:S135) -> 0 | T136: =SUM(T128:T135) -> 0 | U136: =SUM(U128:U135) -> 0 | V136: =SUM(V128:V135) -> 0 | W136: =SUM(W128:W135) -> 0 | X136: =SUM(X128:X135) -> 0 | Y136: =SUM(Y128:Y135) -> 0 | Z136: =SUM(Z128:Z135) -> 0 | AA136: =SUM(AA128:AA135) -> 0 | AB136: =SUM(AB128:AB135) -> 0 | AC136: =SUM(AC128:AC135) -> 0 | AD136: =SUM(AD128:AD135) -> 0 | AE136: =SUM(AE128:AE135) -> 0 | AF136: =SUM(AF128:AF135) -> 0 | AG136: =SUM(AG128:AG135) -> 0 | AH136: =SUM(AH128:AH135) -> 0 | AI136: =SUM(AI128:AI135) -> 0 | AJ136: =SUM(AJ128:AJ135) -> 0 | AK136: =SUM(AK128:AK135) -> 0 | AL136: =SUM(AL128:AL135) -> 0 | AM136: =SUM(AM128:AM135) -> 0 | AN136: =SUM(AN128:AN135) -> 0 | AO136: =SUM(AO128:AO135) -> 0 | AP136: =SUM(AP128:AP135) -> 0 | AQ136: =SUM(AQ128:AQ135) -> 0 | AR136: =SUM(AR128:AR135) -> 0 | AS136: =SUM(AS128:AS135) -> 0 | AT136: =SUM(AT128:AT135) -> 0 | AU136: =SUM(AU128:AU135) -> 0 | AV136: =SUM(AV128:AV135) -> 0 | AW136: =SUM(AW128:AW135) -> 0 | AX136: =SUM(AX128:AX135) -> 0 | AY136: =SUM(AY128:AY135) -> 0 | AZ136: =SUM(AZ128:AZ135) -> 0 | BA136: =SUM(BA128:BA135) -> 0 | BB136: =SUM(BB128:BB135) -> 0 | BC136: =SUM(BC128:BC135) -> 0 | BD136: =SUM(BD128:BD135) -> 0 | BE136: =SUM(BE128:BE135) -> 0 | BF136: =SUM(BF128:BF135) -> 0 | BG136: =SUM(BG128:BG135) -> 0 | BH136: =SUM(BH128:BH135) -> 0 | BI136: =SUM(BI128:BI135) -> 0 | BJ136: =SUM(B136:BI136) -> 0 | BK136: N/A | BL136: N/A | BN136: =MIN(IF(B136:BI136>0,1,61)*(B$28:BI$28)) -> 61 | BO136: =MAX(IF(C136:BJ136>0,1,0)*(C$28:BJ$28)) -> 0 | BP136: Overall | BQ136: N/A | BR136: N/A
A139: =IF(Comm1="","No data",Comm1) -> Blackberry
A140: Day | B140: 1 | C140: 2 | D140: 3 | E140: 4 | F140: 5 | G140: 6 | H140: 7 | I140: 8 | J140: 9 | K140: 10 | L140: 11 | M140: 12 | N140: 13 | O140: 14 | P140: 15 | Q140: 16 | R140: 17 | S140: 18 | T140: 19 | U140: 20 | V140: 21 | W140: 22 | X140: 23 | Y140: 24 | Z140: 25 | AA140: 26 | AB140: 27 | AC140: 28 | AD140: 29 | AE140: 30 | AF140: 31 | AG140: 32 | AH140: 33 | AI140: 34 | AJ140: 35 | AK140: 36 | AL140: 37 | AM140: 38 | AN140: 39 | AO140: 40 | AP140: 41 | AQ140: 42 | AR140: 43 | AS140: 44 | AT140: 45 | AU140: 46 | AV140: 47 | AW140: 48 | AX140: 49 | AY140: 50 | AZ140: 51 | BA140: 52 | BB140: 53 | BC140: 54 | BD140: 55 | BE140: 56 | BF140: 57 | BG140: 58 | BH140: 59 | BI140: 60
A141: =IF(LSCheckEggs= "y","Prob Eggs", "") -> Prob Eggs | B141: =IF(SUM(B$29:B$36)=0,0,(B29/SUM(B$29:B$36))) -> 0.8901515152 | C141: =IF(SUM(C$29:C$36)=0,0,(C29/SUM(C$29:C$36))) -> 0 | D141: 0 | E141: 0 | F141: 0 | G141: 0 | H141: 0 | I141: 0 | J141: 0 | K141: 0 | L141: 0 | M141: 0 | N141: 0 | O141: 0 | P141: 0 | Q141: 0 | R141: 0 | S141: 0 | T141: 0 | U141: 0 | V141: 0 | W141: 0 | X141: 0 | Y141: 0 | Z141: 0 | AA141: 0 | AB141: 0 | AC141: 0 | AD141: 0 | AE141: 0 | AF141: 0 | AG141: 0 | AH141: 0 | AI141: 0 | AJ141: 0 | AK141: 0 | AL141: 0 | AM141: 0 | AN141: 0 | AO141: 0 | AP141: 0 | AQ141: 0 | AR141: 0 | AS141: 0 | AT141: 0 | AU141: 0 | AV141: 0 | AW141: 0 | AX141: 0 | AY141: 0 | AZ141: 0 | BA141: 0 | BB141: 0 | BC141: 0 | BD141: 0 | BE141: 0 | BF141: 0 | BG141: 0 | BH141: 0 | BI141: 0
A142: =IF(LSCheck1st= "y","Prob 1st instars", "") -> Prob 1st instars | B142: =IF(SUM(B$29:B$36)=0,0,(B30/SUM(B$29:B$36))) -> 0.1098484848 | C142: =IF(SUM(C$29:C$36)=0,0,(C30/SUM(C$29:C$36))) -> 0.9481865285 | D142: 0.03383458647 | E142: 0 | F142: 0 | G142: 0 | H142: 0 | I142: 0 | J142: 0 | K142: 0 | L142: 0 | M142: 0 | N142: 0 | O142: 0 | P142: 0 | Q142: 0 | R142: 0 | S142: 0 | T142: 0 | U142: 0 | V142: 0 | W142: 0 | X142: 0 | Y142: 0 | Z142: 0 | AA142: 0 | AB142: 0 | AC142: 0 | AD142: 0 | AE142: 0 | AF142: 0 | AG142: 0 | AH142: 0 | AI142: 0 | AJ142: 0 | AK142: 0 | AL142: 0 | AM142: 0 | AN142: 0 | AO142: 0 | AP142: 0 | AQ142: 0 | AR142: 0 | AS142: 0 | AT142: 0 | AU142: 0 | AV142: 0 | AW142: 0 | AX142: 0 | AY142: 0 | AZ142: 0 | BA142: 0 | BB142: 0 | BC142: 0 | BD142: 0 | BE142: 0 | BF142: 0 | BG142: 0 | BH142: 0 | BI142: 0
A143: =IF(LSCheck2nd= "y","Prob 2nd instars", "") -> Prob 2nd instars | B143: 0 | C143: =IF(SUM(C$29:C$36)=0,0,(C31/SUM(C$29:C$36))) -> 0.0518134715 | D143: 0.8571428571 | E143: 0.08921933086 | F143: 0.01346801347 | G143: 0.002865329513 | H143: 0 | I143: 0 | J143: 0 | K143: 0 | L143: 0 | M143: 0 | N143: 0 | O143: 0 | P143: 0 | Q143: 0 | R143: 0 | S143: 0 | T143: 0 | U143: 0 | V143: 0 | W143: 0 | X143: 0 | Y143: 0 | Z143: 0 | AA143: 0 | AB143: 0 | AC143: 0 | AD143: 0 | AE143: 0 | AF143: 0 | AG143: 0 | AH143: 0 | AI143: 0 | AJ143: 0 | AK143: 0 | AL143: 0 | AM143: 0 | AN143: 0 | AO143: 0 | AP143: 0 | AQ143: 0 | AR143: 0 | AS143: 0 | AT143: 0 | AU143: 0 | AV143: 0 | AW143: 0 | AX143: 0 | AY143: 0 | AZ143: 0 | BA143: 0 | BB143: 0 | BC143: 0 | BD143: 0 | BE143: 0 | BF143: 0 | BG143: 0 | BH143: 0 | BI143: 0
A144: =IF(LSCheck3rd= "y","Prob 3rd instars", "") -> Prob 3rd instars | B144: 0 | C144: =IF(SUM(C$29:C$36)=0,0,(C32/SUM(C$29:C$36))) -> 0 | D144: 0.1090225564 | E144: 0.9107806691 | F144: 0.962962963 | G144: 0.8452722063 | H144: 0.4285714286 | I144: 0.01785714286 | J144: 0 | K144: 0 | L144: 0 | M144: 0 | N144: 0 | O144: 0 | P144: 0 | Q144: 0 | R144: 0 | S144: 0 | T144: 0 | U144: 0 | V144: 0 | W144: 0 | X144: 0 | Y144: 0 | Z144: 0 | AA144: 0 | AB144: 0 | AC144: 0 | AD144: 0 | AE144: 0 | AF144: 0 | AG144: 0 | AH144: 0 | AI144: 0 | AJ144: 0 | AK144: 0 | AL144: 0 | AM144: 0 | AN144: 0 | AO144: 0 | AP144: 0 | AQ144: 0 | AR144: 0 | AS144: 0 | AT144: 0 | AU144: 0 | AV144: 0 | AW144: 0 | AX144: 0 | AY144: 0 | AZ144: 0 | BA144: 0 | BB144: 0 | BC144: 0 | BD144: 0 | BE144: 0 | BF144: 0 | BG144: 0 | BH144: 0 | BI144: 0
A145: =IF(LSCheck4th= "y","Prob 4th instars", "") ->  | B145: 0 | C145: =IF(SUM(C$29:C$36)=0,0,(C33/SUM(C$29:C$36))) -> 0 | D145: 0 | E145: 0 | F145: 0 | G145: 0 | H145: 0 | I145: 0 | J145: 0 | K145: 0 | L145: 0 | M145: 0 | N145: 0 | O145: 0 | P145: 0 | Q145: 0 | R145: 0 | S145: 0 | T145: 0 | U145: 0 | V145: 0 | W145: 0 | X145: 0 | Y145: 0 | Z145: 0 | AA145: 0 | AB145: 0 | AC145: 0 | AD145: 0 | AE145: 0 | AF145: 0 | AG145: 0 | AH145: 0 | AI145: 0 | AJ145: 0 | AK145: 0 | AL145: 0 | AM145: 0 | AN145: 0 | AO145: 0 | AP145: 0 | AQ145: 0 | AR145: 0 | AS145: 0 | AT145: 0 | AU145: 0 | AV145: 0 | AW145: 0 | AX145: 0 | AY145: 0 | AZ145: 0 | BA145: 0 | BB145: 0 | BC145: 0 | BD145: 0 | BE145: 0 | BF145: 0 | BG145: 0 | BH145: 0 | BI145: 0
A146: =IF(LSCheck5th= "y","Prob 5th instars", "") ->  | B146: 0 | C146: =IF(SUM(C$29:C$36)=0,0,(C34/SUM(C$29:C$36))) -> 0 | D146: 0 | E146: 0 | F146: 0 | G146: 0 | H146: 0 | I146: 0 | J146: 0 | K146: 0 | L146: 0 | M146: 0 | N146: 0 | O146: 0 | P146: 0 | Q146: 0 | R146: 0 | S146: 0 | T146: 0 | U146: 0 | V146: 0 | W146: 0 | X146: 0 | Y146: 0 | Z146: 0 | AA146: 0 | AB146: 0 | AC146: 0 | AD146: 0 | AE146: 0 | AF146: 0 | AG146: 0 | AH146: 0 | AI146: 0 | AJ146: 0 | AK146: 0 | AL146: 0 | AM146: 0 | AN146: 0 | AO146: 0 | AP146: 0 | AQ146: 0 | AR146: 0 | AS146: 0 | AT146: 0 | AU146: 0 | AV146: 0 | AW146: 0 | AX146: 0 | AY146: 0 | AZ146: 0 | BA146: 0 | BB146: 0 | BC146: 0 | BD146: 0 | BE146: 0 | BF146: 0 | BG146: 0 | BH146: 0 | BI146: 0
A147: =IF(LSCheckPupa= "y","Prob Pupae", "") -> Prob Pupae | B147: 0 | C147: =IF(SUM(C$29:C$36)=0,0,(C35/SUM(C$29:C$36))) -> 0 | D147: 0 | E147: 0 | F147: 0.02356902357 | G147: 0.1518624642 | H147: 0.5693581781 | I147: 0.806547619 | J147: 0.1402284264 | K147: 0 | L147: 0 | M147: 0 | N147: 0 | O147: 0 | P147: 0 | Q147: 0 | R147: 0 | S147: 0 | T147: 0 | U147: 0 | V147: 0 | W147: 0 | X147: 0 | Y147: 0 | Z147: 0 | AA147: 0 | AB147: 0 | AC147: 0 | AD147: 0 | AE147: 0 | AF147: 0 | AG147: 0 | AH147: 0 | AI147: 0 | AJ147: 0 | AK147: 0 | AL147: 0 | AM147: 0 | AN147: 0 | AO147: 0 | AP147: 0 | AQ147: 0 | AR147: 0 | AS147: 0 | AT147: 0 | AU147: 0 | AV147: 0 | AW147: 0 | AX147: 0 | AY147: 0 | AZ147: 0 | BA147: 0 | BB147: 0 | BC147: 0 | BD147: 0 | BE147: 0 | BF147: 0 | BG147: 0 | BH147: 0 | BI147: 0
A148: =IF(LSCheckAdult= "y","Prob Adults", "") -> Prob Adults | B148: 0 | C148: =IF(SUM(C$29:C$36)=0,0,(C36/SUM(C$29:C$36))) -> 0 | D148: 0 | E148: 0 | F148: 0 | G148: 0 | H148: 0.002070393375 | I148: 0.1755952381 | J148: 0.8597715736 | K148: 1 | L148: 1 | M148: 1 | N148: 1 | O148: 1 | P148: 1 | Q148: 1 | R148: 0 | S148: 0 | T148: 0 | U148: 0 | V148: 0 | W148: 0 | X148: 0 | Y148: 0 | Z148: 0 | AA148: 0 | AB148: 0 | AC148: 0 | AD148: 0 | AE148: 0 | AF148: 0 | AG148: 0 | AH148: 0 | AI148: 0 | AJ148: 0 | AK148: 0 | AL148: 0 | AM148: 0 | AN148: 0 | AO148: 0 | AP148: 0 | AQ148: 0 | AR148: 0 | AS148: 0 | AT148: 0 | AU148: 0 | AV148: 0 | AW148: 0 | AX148: 0 | AY148: 0 | AZ148: 0 | BA148: 0 | BB148: 0 | BC148: 0 | BD148: 0 | BE148: 0 | BF148: 0 | BG148: 0 | BH148: 0 | BI148: 0
A150: =IF(Comm2="","No data",Comm2) -> Blueberry
A151: Day | B151: 1 | C151: 2 | D151: 3 | E151: 4 | F151: 5 | G151: 6 | H151: 7 | I151: 8 | J151: 9 | K151: 10 | L151: 11 | M151: 12 | N151: 13 | O151: 14 | P151: 15 | Q151: 16 | R151: 17 | S151: 18 | T151: 19 | U151: 20 | V151: 21 | W151: 22 | X151: 23 | Y151: 24 | Z151: 25 | AA151: 26 | AB151: 27 | AC151: 28 | AD151: 29 | AE151: 30 | AF151: 31 | AG151: 32 | AH151: 33 | AI151: 34 | AJ151: 35 | AK151: 36 | AL151: 37 | AM151: 38 | AN151: 39 | AO151: 40 | AP151: 41 | AQ151: 42 | AR151: 43 | AS151: 44 | AT151: 45 | AU151: 46 | AV151: 47 | AW151: 48 | AX151: 49 | AY151: 50 | AZ151: 51 | BA151: 52 | BB151: 53 | BC151: 54 | BD151: 55 | BE151: 56 | BF151: 57 | BG151: 58 | BH151: 59 | BI151: 60
A152: =IF(LSCheckEggs= "y","Prob Eggs", "") -> Prob Eggs | B152: =IF(SUM(B$40:B$47)=0,0,(B40/SUM(B$40:B$47))) -> 0.9214285714 | C152: =IF(SUM(C$40:C$47)=0,0,(C40/SUM(C$40:C$47))) -> 0.05982905983 | D152: 0 | E152: 0 | F152: 0 | G152: 0 | H152: 0 | I152: 0 | J152: 0 | K152: 0 | L152: 0 | M152: 0 | N152: 0 | O152: 0 | P152: 0 | Q152: 0 | R152: 0 | S152: 0 | T152: 0 | U152: 0 | V152: 0 | W152: 0 | X152: 0 | Y152: 0 | Z152: 0 | AA152: 0 | AB152: 0 | AC152: 0 | AD152: 0 | AE152: 0 | AF152: 0 | AG152: 0 | AH152: 0 | AI152: 0 | AJ152: 0 | AK152: 0 | AL152: 0 | AM152: 0 | AN152: 0 | AO152: 0 | AP152: 0 | AQ152: 0 | AR152: 0 | AS152: 0 | AT152: 0 | AU152: 0 | AV152: 0 | AW152: 0 | AX152: 0 | AY152: 0 | AZ152: 0 | BA152: 0 | BB152: 0 | BC152: 0 | BD152: 0 | BE152: 0 | BF152: 0 | BG152: 0 | BH152: 0 | BI152: 0
A153: =IF(LSCheck1st= "y","Prob 1st instars", "") -> Prob 1st instars | B153: =IF(SUM(B$40:B$47)=0,0,(B41/SUM(B$40:B$47))) -> 0.07857142857 | C153: =IF(SUM(C$40:C$47)=0,0,(C41/SUM(C$40:C$47))) -> 0.8290598291 | D153: 0.1506849315 | E153: 0.04464285714 | F153: 0.15 | G153: 0.02247191011 | H153: 0 | I153: 0 | J153: 0 | K153: 0 | L153: 0 | M153: 0 | N153: 0 | O153: 0 | P153: 0 | Q153: 0 | R153: 0 | S153: 0 | T153: 0 | U153: 0 | V153: 0 | W153: 0 | X153: 0 | Y153: 0 | Z153: 0 | AA153: 0 | AB153: 0 | AC153: 0 | AD153: 0 | AE153: 0 | AF153: 0 | AG153: 0 | AH153: 0 | AI153: 0 | AJ153: 0 | AK153: 0 | AL153: 0 | AM153: 0 | AN153: 0 | AO153: 0 | AP153: 0 | AQ153: 0 | AR153: 0 | AS153: 0 | AT153: 0 | AU153: 0 | AV153: 0 | AW153: 0 | AX153: 0 | AY153: 0 | AZ153: 0 | BA153: 0 | BB153: 0 | BC153: 0 | BD153: 0 | BE153: 0 | BF153: 0 | BG153: 0 | BH153: 0 | BI153: 0
A154: =IF(LSCheck2nd= "y","Prob 2nd instars", "") -> Prob 2nd instars | B154: 0 | C154: =IF(SUM(C$40:C$47)=0,0,(C42/SUM(C$40:C$47))) -> 0.1111111111 | D154: 0.6301369863 | E154: 0.7767857143 | F154: 0.35 | G154: 0.3258426966 | H154: 0.06578947368 | I154: 0 | J154: 0 | K154: 0 | L154: 0 | M154: 0 | N154: 0 | O154: 0 | P154: 0 | Q154: 0 | R154: 0 | S154: 0 | T154: 0 | U154: 0 | V154: 0 | W154: 0 | X154: 0 | Y154: 0 | Z154: 0 | AA154: 0 | AB154: 0 | AC154: 0 | AD154: 0 | AE154: 0 | AF154: 0 | AG154: 0 | AH154: 0 | AI154: 0 | AJ154: 0 | AK154: 0 | AL154: 0 | AM154: 0 | AN154: 0 | AO154: 0 | AP154: 0 | AQ154: 0 | AR154: 0 | AS154: 0 | AT154: 0 | AU154: 0 | AV154: 0 | AW154: 0 | AX154: 0 | AY154: 0 | AZ154: 0 | BA154: 0 | BB154: 0 | BC154: 0 | BD154: 0 | BE154: 0 | BF154: 0 | BG154: 0 | BH154: 0 | BI154: 0
A155: =IF(LSCheck3rd= "y","Prob 3rd instars", "") -> Prob 3rd instars | B155: 0 | C155: =IF(SUM(C$40:C$47)=0,0,(C43/SUM(C$40:C$47))) -> 0 | D155: 0.2191780822 | E155: 0.1785714286 | F155: 0.5 | G155: 0.6516853933 | H155: 0.7368421053 | I155: 0.7692307692 | J155: 0.02808988764 | K155: 0 | L155: 0 | M155: 0 | N155: 0 | O155: 0 | P155: 0 | Q155: 0 | R155: 0 | S155: 0 | T155: 0 | U155: 0 | V155: 0 | W155: 0 | X155: 0 | Y155: 0 | Z155: 0 | AA155: 0 | AB155: 0 | AC155: 0 | AD155: 0 | AE155: 0 | AF155: 0 | AG155: 0 | AH155: 0 | AI155: 0 | AJ155: 0 | AK155: 0 | AL155: 0 | AM155: 0 | AN155: 0 | AO155: 0 | AP155: 0 | AQ155: 0 | AR155: 0 | AS155: 0 | AT155: 0 | AU155: 0 | AV155: 0 | AW155: 0 | AX155: 0 | AY155: 0 | AZ155: 0 | BA155: 0 | BB155: 0 | BC155: 0 | BD155: 0 | BE155: 0 | BF155: 0 | BG155: 0 | BH155: 0 | BI155: 0
A156: =IF(LSCheck4th= "y","Prob 4th instars", "") ->  | B156: 0 | C156: =IF(SUM(C$40:C$47)=0,0,(C44/SUM(C$40:C$47))) -> 0 | D156: 0 | E156: 0 | F156: 0 | G156: 0 | H156: 0 | I156: 0 | J156: 0 | K156: 0 | L156: 0 | M156: 0 | N156: 0 | O156: 0 | P156: 0 | Q156: 0 | R156: 0 | S156: 0 | T156: 0 | U156: 0 | V156: 0 | W156: 0 | X156: 0 | Y156: 0 | Z156: 0 | AA156: 0 | AB156: 0 | AC156: 0 | AD156: 0 | AE156: 0 | AF156: 0 | AG156: 0 | AH156: 0 | AI156: 0 | AJ156: 0 | AK156: 0 | AL156: 0 | AM156: 0 | AN156: 0 | AO156: 0 | AP156: 0 | AQ156: 0 | AR156: 0 | AS156: 0 | AT156: 0 | AU156: 0 | AV156: 0 | AW156: 0 | AX156: 0 | AY156: 0 | AZ156: 0 | BA156: 0 | BB156: 0 | BC156: 0 | BD156: 0 | BE156: 0 | BF156: 0 | BG156: 0 | BH156: 0 | BI156: 0
A157: =IF(LSCheck5th= "y","Prob 5th instars", "") ->  | B157: 0 | C157: =IF(SUM(C$40:C$47)=0,0,(C45/SUM(C$40:C$47))) -> 0 | D157: 0 | E157: 0 | F157: 0 | G157: 0 | H157: 0 | I157: 0 | J157: 0 | K157: 0 | L157: 0 | M157: 0 | N157: 0 | O157: 0 | P157: 0 | Q157: 0 | R157: 0 | S157: 0 | T157: 0 | U157: 0 | V157: 0 | W157: 0 | X157: 0 | Y157: 0 | Z157: 0 | AA157: 0 | AB157: 0 | AC157: 0 | AD157: 0 | AE157: 0 | AF157: 0 | AG157: 0 | AH157: 0 | AI157: 0 | AJ157: 0 | AK157: 0 | AL157: 0 | AM157: 0 | AN157: 0 | AO157: 0 | AP157: 0 | AQ157: 0 | AR157: 0 | AS157: 0 | AT157: 0 | AU157: 0 | AV157: 0 | AW157: 0 | AX157: 0 | AY157: 0 | AZ157: 0 | BA157: 0 | BB157: 0 | BC157: 0 | BD157: 0 | BE157: 0 | BF157: 0 | BG157: 0 | BH157: 0 | BI157: 0
A158: =IF(LSCheckPupa= "y","Prob Pupae", "") -> Prob Pupae | B158: 0 | C158: =IF(SUM(C$40:C$47)=0,0,(C46/SUM(C$40:C$47))) -> 0 | D158: 0 | E158: 0 | F158: 0 | G158: 0 | H158: 0.1973684211 | I158: 0.1384615385 | J158: 0.3988764045 | K158: 0.1649484536 | L158: 0 | M158: 0 | N158: 0 | O158: 0 | P158: 0 | Q158: 0 | R158: 0 | S158: 0 | T158: 0 | U158: 0 | V158: 0 | W158: 0 | X158: 0 | Y158: 0 | Z158: 0 | AA158: 0 | AB158: 0 | AC158: 0 | AD158: 0 | AE158: 0 | AF158: 0 | AG158: 0 | AH158: 0 | AI158: 0 | AJ158: 0 | AK158: 0 | AL158: 0 | AM158: 0 | AN158: 0 | AO158: 0 | AP158: 0 | AQ158: 0 | AR158: 0 | AS158: 0 | AT158: 0 | AU158: 0 | AV158: 0 | AW158: 0 | AX158: 0 | AY158: 0 | AZ158: 0 | BA158: 0 | BB158: 0 | BC158: 0 | BD158: 0 | BE158: 0 | BF158: 0 | BG158: 0 | BH158: 0 | BI158: 0
A159: =IF(LSCheckAdult= "y","Prob Adults", "") -> Prob Adults | B159: 0 | C159: =IF(SUM(C$40:C$47)=0,0,(C47/SUM(C$40:C$47))) -> 0 | D159: 0 | E159: 0 | F159: 0 | G159: 0 | H159: 0 | I159: 0.09230769231 | J159: 0.5730337079 | K159: 0.8350515464 | L159: 1 | M159: 1 | N159: 1 | O159: 1 | P159: 1 | Q159: 1 | R159: 0 | S159: 0 | T159: 0 | U159: 0 | V159: 0 | W159: 0 | X159: 0 | Y159: 0 | Z159: 0 | AA159: 0 | AB159: 0 | AC159: 0 | AD159: 0 | AE159: 0 | AF159: 0 | AG159: 0 | AH159: 0 | AI159: 0 | AJ159: 0 | AK159: 0 | AL159: 0 | AM159: 0 | AN159: 0 | AO159: 0 | AP159: 0 | AQ159: 0 | AR159: 0 | AS159: 0 | AT159: 0 | AU159: 0 | AV159: 0 | AW159: 0 | AX159: 0 | AY159: 0 | AZ159: 0 | BA159: 0 | BB159: 0 | BC159: 0 | BD159: 0 | BE159: 0 | BF159: 0 | BG159: 0 | BH159: 0 | BI159: 0
A161: =IF(Comm3="","No data",Comm3) -> Cherry
A162: Day | B162: 1 | C162: 2 | D162: 3 | E162: 4 | F162: 5 | G162: 6 | H162: 7 | I162: 8 | J162: 9 | K162: 10 | L162: 11 | M162: 12 | N162: 13 | O162: 14 | P162: 15 | Q162: 16 | R162: 17 | S162: 18 | T162: 19 | U162: 20 | V162: 21 | W162: 22 | X162: 23 | Y162: 24 | Z162: 25 | AA162: 26 | AB162: 27 | AC162: 28 | AD162: 29 | AE162: 30 | AF162: 31 | AG162: 32 | AH162: 33 | AI162: 34 | AJ162: 35 | AK162: 36 | AL162: 37 | AM162: 38 | AN162: 39 | AO162: 40 | AP162: 41 | AQ162: 42 | AR162: 43 | AS162: 44 | AT162: 45 | AU162: 46 | AV162: 47 | AW162: 48 | AX162: 49 | AY162: 50 | AZ162: 51 | BA162: 52 | BB162: 53 | BC162: 54 | BD162: 55 | BE162: 56 | BF162: 57 | BG162: 58 | BH162: 59 | BI162: 60
A163: =IF(LSCheckEggs= "y","Prob Eggs", "") -> Prob Eggs | B163: =IF(SUM(B$51:B$58)=0,0,(B51/SUM(B$51:B$58))) -> 0.918128655 | C163: =IF(SUM(C$51:C$58)=0,0,(C51/SUM(C$51:C$58))) -> 0.1754385965 | D163: 0 | E163: 0 | F163: 0 | G163: 0 | H163: 0 | I163: 0 | J163: 0 | K163: 0 | L163: 0 | M163: 0 | N163: 0 | O163: 0 | P163: 0 | Q163: 0 | R163: 0 | S163: 0 | T163: 0 | U163: 0 | V163: 0 | W163: 0 | X163: 0 | Y163: 0 | Z163: 0 | AA163: 0 | AB163: 0 | AC163: 0 | AD163: 0 | AE163: 0 | AF163: 0 | AG163: 0 | AH163: 0 | AI163: 0 | AJ163: 0 | AK163: 0 | AL163: 0 | AM163: 0 | AN163: 0 | AO163: 0 | AP163: 0 | AQ163: 0 | AR163: 0 | AS163: 0 | AT163: 0 | AU163: 0 | AV163: 0 | AW163: 0 | AX163: 0 | AY163: 0 | AZ163: 0 | BA163: 0 | BB163: 0 | BC163: 0 | BD163: 0 | BE163: 0 | BF163: 0 | BG163: 0 | BH163: 0 | BI163: 0
A164: =IF(LSCheck1st= "y","Prob 1st instars", "") -> Prob 1st instars | B164: =IF(SUM(B$51:B$58)=0,0,(B52/SUM(B$51:B$58))) -> 0.08187134503 | C164: =IF(SUM(C$51:C$58)=0,0,(C52/SUM(C$51:C$58))) -> 0.5964912281 | D164: 0.02941176471 | E164: 0 | F164: 0 | G164: 0 | H164: 0 | I164: 0 | J164: 0 | K164: 0 | L164: 0 | M164: 0 | N164: 0 | O164: 0 | P164: 0 | Q164: 0 | R164: 0 | S164: 0 | T164: 0 | U164: 0 | V164: 0 | W164: 0 | X164: 0 | Y164: 0 | Z164: 0 | AA164: 0 | AB164: 0 | AC164: 0 | AD164: 0 | AE164: 0 | AF164: 0 | AG164: 0 | AH164: 0 | AI164: 0 | AJ164: 0 | AK164: 0 | AL164: 0 | AM164: 0 | AN164: 0 | AO164: 0 | AP164: 0 | AQ164: 0 | AR164: 0 | AS164: 0 | AT164: 0 | AU164: 0 | AV164: 0 | AW164: 0 | AX164: 0 | AY164: 0 | AZ164: 0 | BA164: 0 | BB164: 0 | BC164: 0 | BD164: 0 | BE164: 0 | BF164: 0 | BG164: 0 | BH164: 0 | BI164: 0
A165: =IF(LSCheck2nd= "y","Prob 2nd instars", "") -> Prob 2nd instars | B165: 0 | C165: =IF(SUM(C$51:C$58)=0,0,(C53/SUM(C$51:C$58))) -> 0.2280701754 | D165: 0.6764705882 | E165: 0.2553191489 | F165: 0.09411764706 | G165: 0 | H165: 0 | I165: 0 | J165: 0 | K165: 0 | L165: 0 | M165: 0 | N165: 0 | O165: 0 | P165: 0 | Q165: 0 | R165: 0 | S165: 0 | T165: 0 | U165: 0 | V165: 0 | W165: 0 | X165: 0 | Y165: 0 | Z165: 0 | AA165: 0 | AB165: 0 | AC165: 0 | AD165: 0 | AE165: 0 | AF165: 0 | AG165: 0 | AH165: 0 | AI165: 0 | AJ165: 0 | AK165: 0 | AL165: 0 | AM165: 0 | AN165: 0 | AO165: 0 | AP165: 0 | AQ165: 0 | AR165: 0 | AS165: 0 | AT165: 0 | AU165: 0 | AV165: 0 | AW165: 0 | AX165: 0 | AY165: 0 | AZ165: 0 | BA165: 0 | BB165: 0 | BC165: 0 | BD165: 0 | BE165: 0 | BF165: 0 | BG165: 0 | BH165: 0 | BI165: 0
A166: =IF(LSCheck3rd= "y","Prob 3rd instars", "") -> Prob 3rd instars | B166: 0 | C166: =IF(SUM(C$51:C$58)=0,0,(C54/SUM(C$51:C$58))) -> 0 | D166: 0.2941176471 | E166: 0.7446808511 | F166: 0.8705882353 | G166: 0.9342105263 | H166: 0.572815534 | I166: 0.1739130435 | J166: 0 | K166: 0 | L166: 0 | M166: 0 | N166: 0 | O166: 0 | P166: 0 | Q166: 0 | R166: 0 | S166: 0 | T166: 0 | U166: 0 | V166: 0 | W166: 0 | X166: 0 | Y166: 0 | Z166: 0 | AA166: 0 | AB166: 0 | AC166: 0 | AD166: 0 | AE166: 0 | AF166: 0 | AG166: 0 | AH166: 0 | AI166: 0 | AJ166: 0 | AK166: 0 | AL166: 0 | AM166: 0 | AN166: 0 | AO166: 0 | AP166: 0 | AQ166: 0 | AR166: 0 | AS166: 0 | AT166: 0 | AU166: 0 | AV166: 0 | AW166: 0 | AX166: 0 | AY166: 0 | AZ166: 0 | BA166: 0 | BB166: 0 | BC166: 0 | BD166: 0 | BE166: 0 | BF166: 0 | BG166: 0 | BH166: 0 | BI166: 0
A167: =IF(LSCheck4th= "y","Prob 4th instars", "") ->  | B167: 0 | C167: =IF(SUM(C$51:C$58)=0,0,(C55/SUM(C$51:C$58))) -> 0 | D167: 0 | E167: 0 | F167: 0 | G167: 0 | H167: 0 | I167: 0 | J167: 0 | K167: 0 | L167: 0 | M167: 0 | N167: 0 | O167: 0 | P167: 0 | Q167: 0 | R167: 0 | S167: 0 | T167: 0 | U167: 0 | V167: 0 | W167: 0 | X167: 0 | Y167: 0 | Z167: 0 | AA167: 0 | AB167: 0 | AC167: 0 | AD167: 0 | AE167: 0 | AF167: 0 | AG167: 0 | AH167: 0 | AI167: 0 | AJ167: 0 | AK167: 0 | AL167: 0 | AM167: 0 | AN167: 0 | AO167: 0 | AP167: 0 | AQ167: 0 | AR167: 0 | AS167: 0 | AT167: 0 | AU167: 0 | AV167: 0 | AW167: 0 | AX167: 0 | AY167: 0 | AZ167: 0 | BA167: 0 | BB167: 0 | BC167: 0 | BD167: 0 | BE167: 0 | BF167: 0 | BG167: 0 | BH167: 0 | BI167: 0
A168: =IF(LSCheck5th= "y","Prob 5th instars", "") ->  | B168: 0 | C168: =IF(SUM(C$51:C$58)=0,0,(C56/SUM(C$51:C$58))) -> 0 | D168: 0 | E168: 0 | F168: 0 | G168: 0 | H168: 0 | I168: 0 | J168: 0 | K168: 0 | L168: 0 | M168: 0 | N168: 0 | O168: 0 | P168: 0 | Q168: 0 | R168: 0 | S168: 0 | T168: 0 | U168: 0 | V168: 0 | W168: 0 | X168: 0 | Y168: 0 | Z168: 0 | AA168: 0 | AB168: 0 | AC168: 0 | AD168: 0 | AE168: 0 | AF168: 0 | AG168: 0 | AH168: 0 | AI168: 0 | AJ168: 0 | AK168: 0 | AL168: 0 | AM168: 0 | AN168: 0 | AO168: 0 | AP168: 0 | AQ168: 0 | AR168: 0 | AS168: 0 | AT168: 0 | AU168: 0 | AV168: 0 | AW168: 0 | AX168: 0 | AY168: 0 | AZ168: 0 | BA168: 0 | BB168: 0 | BC168: 0 | BD168: 0 | BE168: 0 | BF168: 0 | BG168: 0 | BH168: 0 | BI168: 0
A169: =IF(LSCheckPupa= "y","Prob Pupae", "") -> Prob Pupae | B169: 0 | C169: =IF(SUM(C$51:C$58)=0,0,(C57/SUM(C$51:C$58))) -> 0 | D169: 0 | E169: 0 | F169: 0.03529411765 | G169: 0.06578947368 | H169: 0.427184466 | I169: 0.7608695652 | J169: 0 | K169: 0 | L169: 0 | M169: 0 | N169: 0 | O169: 0 | P169: 0 | Q169: 0 | R169: 0 | S169: 0 | T169: 0 | U169: 0 | V169: 0 | W169: 0 | X169: 0 | Y169: 0 | Z169: 0 | AA169: 0 | AB169: 0 | AC169: 0 | AD169: 0 | AE169: 0 | AF169: 0 | AG169: 0 | AH169: 0 | AI169: 0 | AJ169: 0 | AK169: 0 | AL169: 0 | AM169: 0 | AN169: 0 | AO169: 0 | AP169: 0 | AQ169: 0 | AR169: 0 | AS169: 0 | AT169: 0 | AU169: 0 | AV169: 0 | AW169: 0 | AX169: 0 | AY169: 0 | AZ169: 0 | BA169: 0 | BB169: 0 | BC169: 0 | BD169: 0 | BE169: 0 | BF169: 0 | BG169: 0 | BH169: 0 | BI169: 0
A170: =IF(LSCheckAdult= "y","Prob Adults", "") -> Prob Adults | B170: 0 | C170: =IF(SUM(C$51:C$58)=0,0,(C58/SUM(C$51:C$58))) -> 0 | D170: 0 | E170: 0 | F170: 0 | G170: 0 | H170: 0 | I170: 0.0652173913 | J170: 1 | K170: 1 | L170: 1 | M170: 1 | N170: 1 | O170: 0 | P170: 0 | Q170: 0 | R170: 0 | S170: 0 | T170: 0 | U170: 0 | V170: 0 | W170: 0 | X170: 0 | Y170: 0 | Z170: 0 | AA170: 0 | AB170: 0 | AC170: 0 | AD170: 0 | AE170: 0 | AF170: 0 | AG170: 0 | AH170: 0 | AI170: 0 | AJ170: 0 | AK170: 0 | AL170: 0 | AM170: 0 | AN170: 0 | AO170: 0 | AP170: 0 | AQ170: 0 | AR170: 0 | AS170: 0 | AT170: 0 | AU170: 0 | AV170: 0 | AW170: 0 | AX170: 0 | AY170: 0 | AZ170: 0 | BA170: 0 | BB170: 0 | BC170: 0 | BD170: 0 | BE170: 0 | BF170: 0 | BG170: 0 | BH170: 0 | BI170: 0
A172: =IF(Comm4="","No data",Comm4) -> Grape
A173: Day | B173: 1 | C173: 2 | D173: 3 | E173: 4 | F173: 5 | G173: 6 | H173: 7 | I173: 8 | J173: 9 | K173: 10 | L173: 11 | M173: 12 | N173: 13 | O173: 14 | P173: 15 | Q173: 16 | R173: 17 | S173: 18 | T173: 19 | U173: 20 | V173: 21 | W173: 22 | X173: 23 | Y173: 24 | Z173: 25 | AA173: 26 | AB173: 27 | AC173: 28 | AD173: 29 | AE173: 30 | AF173: 31 | AG173: 32 | AH173: 33 | AI173: 34 | AJ173: 35 | AK173: 36 | AL173: 37 | AM173: 38 | AN173: 39 | AO173: 40 | AP173: 41 | AQ173: 42 | AR173: 43 | AS173: 44 | AT173: 45 | AU173: 46 | AV173: 47 | AW173: 48 | AX173: 49 | AY173: 50 | AZ173: 51 | BA173: 52 | BB173: 53 | BC173: 54 | BD173: 55 | BE173: 56 | BF173: 57 | BG173: 58 | BH173: 59 | BI173: 60
A174: =IF(LSCheckEggs= "y","Prob Eggs", "") -> Prob Eggs | B174: =IF(SUM(B$62:B$69)=0,0,(B62/SUM(B$62:B$69))) -> 0.8289473684 | C174: =IF(SUM(C$62:C$69)=0,0,(C62/SUM(C$62:C$69))) -> 0.3059701493 | D174: 0 | E174: 0 | F174: 0 | G174: 0 | H174: 0 | I174: 0 | J174: 0 | K174: 0 | L174: 0 | M174: 0 | N174: 0 | O174: 0 | P174: 0 | Q174: 0 | R174: 0 | S174: 0 | T174: 0 | U174: 0 | V174: 0 | W174: 0 | X174: 0 | Y174: 0 | Z174: 0 | AA174: 0 | AB174: 0 | AC174: 0 | AD174: 0 | AE174: 0 | AF174: 0 | AG174: 0 | AH174: 0 | AI174: 0 | AJ174: 0 | AK174: 0 | AL174: 0 | AM174: 0 | AN174: 0 | AO174: 0 | AP174: 0 | AQ174: 0 | AR174: 0 | AS174: 0 | AT174: 0 | AU174: 0 | AV174: 0 | AW174: 0 | AX174: 0 | AY174: 0 | AZ174: 0 | BA174: 0 | BB174: 0 | BC174: 0 | BD174: 0 | BE174: 0 | BF174: 0 | BG174: 0 | BH174: 0 | BI174: 0
A175: =IF(LSCheck1st= "y","Prob 1st instars", "") -> Prob 1st instars | B175: =IF(SUM(B$62:B$69)=0,0,(B63/SUM(B$62:B$69))) -> 0.1710526316 | C175: 0.5373134328 | D175: 0.2407407407 | E175: 0.02040816327 | F175: 0 | G175: 0 | H175: 0 | I175: 0 | J175: 0 | K175: 0 | L175: 0 | M175: 0 | N175: 0 | O175: 0 | P175: 0 | Q175: 0 | R175: 0 | S175: 0 | T175: 0 | U175: 0 | V175: 0 | W175: 0 | X175: 0 | Y175: 0 | Z175: 0 | AA175: 0 | AB175: 0 | AC175: 0 | AD175: 0 | AE175: 0 | AF175: 0 | AG175: 0 | AH175: 0 | AI175: 0 | AJ175: 0 | AK175: 0 | AL175: 0 | AM175: 0 | AN175: 0 | AO175: 0 | AP175: 0 | AQ175: 0 | AR175: 0 | AS175: 0 | AT175: 0 | AU175: 0 | AV175: 0 | AW175: 0 | AX175: 0 | AY175: 0 | AZ175: 0 | BA175: 0 | BB175: 0 | BC175: 0 | BD175: 0 | BE175: 0 | BF175: 0 | BG175: 0 | BH175: 0 | BI175: 0
A176: =IF(LSCheck2nd= "y","Prob 2nd instars", "") -> Prob 2nd instars | B176: 0 | C176: 0.1567164179 | D176: 0.6203703704 | E176: 0.2551020408 | F176: 0.2068965517 | G176: 0.04 | H176: 0.2205882353 | I176: 0.1088435374 | J176: 0.01630434783 | K176: 0 | L176: 0 | M176: 0 | N176: 0 | O176: 0 | P176: 0 | Q176: 0 | R176: 0 | S176: 0 | T176: 0 | U176: 0 | V176: 0 | W176: 0 | X176: 0 | Y176: 0 | Z176: 0 | AA176: 0 | AB176: 0 | AC176: 0 | AD176: 0 | AE176: 0 | AF176: 0 | AG176: 0 | AH176: 0 | AI176: 0 | AJ176: 0 | AK176: 0 | AL176: 0 | AM176: 0 | AN176: 0 | AO176: 0 | AP176: 0 | AQ176: 0 | AR176: 0 | AS176: 0 | AT176: 0 | AU176: 0 | AV176: 0 | AW176: 0 | AX176: 0 | AY176: 0 | AZ176: 0 | BA176: 0 | BB176: 0 | BC176: 0 | BD176: 0 | BE176: 0 | BF176: 0 | BG176: 0 | BH176: 0 | BI176: 0
A177: =IF(LSCheck3rd= "y","Prob 3rd instars", "") -> Prob 3rd instars | B177: 0 | C177: 0 | D177: 0.1388888889 | E177: 0.7244897959 | F177: 0.7931034483 | G177: 0.88 | H177: 0.7279411765 | I177: 0.5306122449 | J177: 0.2173913043 | K177: 0.02192982456 | L177: 0 | M177: 0 | N177: 0 | O177: 0 | P177: 0 | Q177: 0 | R177: 0 | S177: 0 | T177: 0 | U177: 0 | V177: 0 | W177: 0 | X177: 0 | Y177: 0 | Z177: 0 | AA177: 0 | AB177: 0 | AC177: 0 | AD177: 0 | AE177: 0 | AF177: 0 | AG177: 0 | AH177: 0 | AI177: 0 | AJ177: 0 | AK177: 0 | AL177: 0 | AM177: 0 | AN177: 0 | AO177: 0 | AP177: 0 | AQ177: 0 | AR177: 0 | AS177: 0 | AT177: 0 | AU177: 0 | AV177: 0 | AW177: 0 | AX177: 0 | AY177: 0 | AZ177: 0 | BA177: 0 | BB177: 0 | BC177: 0 | BD177: 0 | BE177: 0 | BF177: 0 | BG177: 0 | BH177: 0 | BI177: 0
A178: =IF(LSCheck4th= "y","Prob 4th instars", "") ->  | B178: 0 | C178: 0 | D178: 0 | E178: 0 | F178: 0 | G178: 0 | H178: 0 | I178: 0 | J178: 0 | K178: 0 | L178: 0 | M178: 0 | N178: 0 | O178: 0 | P178: 0 | Q178: 0 | R178: 0 | S178: 0 | T178: 0 | U178: 0 | V178: 0 | W178: 0 | X178: 0 | Y178: 0 | Z178: 0 | AA178: 0 | AB178: 0 | AC178: 0 | AD178: 0 | AE178: 0 | AF178: 0 | AG178: 0 | AH178: 0 | AI178: 0 | AJ178: 0 | AK178: =IF(SUM(AK$62:AK$69)=0,0,(AK66/SUM(AK$62:AK$69))) -> 0 | AL178: 0 | AM178: 0 | AN178: 0 | AO178: 0 | AP178: 0 | AQ178: 0 | AR178: 0 | AS178: 0 | AT178: 0 | AU178: 0 | AV178: 0 | AW178: 0 | AX178: 0 | AY178: 0 | AZ178: 0 | BA178: 0 | BB178: 0 | BC178: 0 | BD178: 0 | BE178: 0 | BF178: 0 | BG178: 0 | BH178: 0 | BI178: 0
A179: =IF(LSCheck5th= "y","Prob 5th instars", "") ->  | B179: 0 | C179: 0 | D179: 0 | E179: 0 | F179: 0 | G179: 0 | H179: 0 | I179: 0 | J179: 0 | K179: 0 | L179: 0 | M179: 0 | N179: 0 | O179: 0 | P179: 0 | Q179: 0 | R179: 0 | S179: 0 | T179: 0 | U179: 0 | V179: 0 | W179: 0 | X179: 0 | Y179: 0 | Z179: 0 | AA179: 0 | AB179: 0 | AC179: 0 | AD179: 0 | AE179: 0 | AF179: 0 | AG179: 0 | AH179: 0 | AI179: 0 | AJ179: 0 | AK179: 0 | AL179: 0 | AM179: 0 | AN179: 0 | AO179: 0 | AP179: 0 | AQ179: 0 | AR179: 0 | AS179: 0 | AT179: 0 | AU179: 0 | AV179: 0 | AW179: 0 | AX179: 0 | AY179: 0 | AZ179: 0 | BA179: 0 | BB179: 0 | BC179: 0 | BD179: 0 | BE179: 0 | BF179: 0 | BG179: 0 | BH179: 0 | BI179: 0
A180: =IF(LSCheckPupa= "y","Prob Pupae", "") -> Prob Pupae | B180: 0 | C180: 0 | D180: 0 | E180: 0 | F180: 0 | G180: 0.08 | H180: 0.05147058824 | I180: 0.3401360544 | J180: 0.375 | K180: 0.1578947368 | L180: 0 | M180: 0 | N180: 0 | O180: 0 | P180: 0 | Q180: 0 | R180: 0 | S180: 0 | T180: 0 | U180: 0 | V180: 0 | W180: 0 | X180: 0 | Y180: 0 | Z180: 0 | AA180: 0 | AB180: 0 | AC180: 0 | AD180: 0 | AE180: 0 | AF180: 0 | AG180: 0 | AH180: 0 | AI180: 0 | AJ180: 0 | AK180: 0 | AL180: 0 | AM180: 0 | AN180: 0 | AO180: 0 | AP180: 0 | AQ180: 0 | AR180: 0 | AS180: 0 | AT180: 0 | AU180: 0 | AV180: 0 | AW180: 0 | AX180: 0 | AY180: 0 | AZ180: 0 | BA180: 0 | BB180: 0 | BC180: 0 | BD180: 0 | BE180: 0 | BF180: 0 | BG180: 0 | BH180: 0 | BI180: 0
A181: =IF(LSCheckAdult= "y","Prob Adults", "") -> Prob Adults | B181: 0 | C181: 0 | D181: 0 | E181: 0 | F181: 0 | G181: 0 | H181: 0 | I181: 0.02040816327 | J181: 0.3913043478 | K181: 0.8201754386 | L181: 1 | M181: 1 | N181: 1 | O181: 1 | P181: 1 | Q181: 1 | R181: 1 | S181: 0 | T181: 0 | U181: 0 | V181: 0 | W181: 0 | X181: 0 | Y181: 0 | Z181: 0 | AA181: 0 | AB181: 0 | AC181: 0 | AD181: 0 | AE181: 0 | AF181: 0 | AG181: 0 | AH181: 0 | AI181: 0 | AJ181: 0 | AK181: 0 | AL181: 0 | AM181: 0 | AN181: 0 | AO181: 0 | AP181: 0 | AQ181: 0 | AR181: 0 | AS181: 0 | AT181: 0 | AU181: 0 | AV181: 0 | AW181: 0 | AX181: 0 | AY181: 0 | AZ181: 0 | BA181: 0 | BB181: 0 | BC181: 0 | BD181: 0 | BE181: 0 | BF181: 0 | BG181: 0 | BH181: 0 | BI181: 0
A183: =IF(Comm5="","No data",Comm5) -> Raspberry
A184: Day | B184: 1 | C184: 2 | D184: 3 | E184: 4 | F184: 5 | G184: 6 | H184: 7 | I184: 8 | J184: 9 | K184: 10 | L184: 11 | M184: 12 | N184: 13 | O184: 14 | P184: 15 | Q184: 16 | R184: 17 | S184: 18 | T184: 19 | U184: 20 | V184: 21 | W184: 22 | X184: 23 | Y184: 24 | Z184: 25 | AA184: 26 | AB184: 27 | AC184: 28 | AD184: 29 | AE184: 30 | AF184: 31 | AG184: 32 | AH184: 33 | AI184: 34 | AJ184: 35 | AK184: 36 | AL184: 37 | AM184: 38 | AN184: 39 | AO184: 40 | AP184: 41 | AQ184: 42 | AR184: 43 | AS184: 44 | AT184: 45 | AU184: 46 | AV184: 47 | AW184: 48 | AX184: 49 | AY184: 50 | AZ184: 51 | BA184: 52 | BB184: 53 | BC184: 54 | BD184: 55 | BE184: 56 | BF184: 57 | BG184: 58 | BH184: 59 | BI184: 60
A185: =IF(LSCheckEggs= "y","Prob Eggs", "") -> Prob Eggs | B185: =IF(SUM(B$73:B$80)=0,0,(B73/SUM(B$73:B$80))) -> 0.9090909091 | C185: =IF(SUM(C$73:C$80)=0,0,(C73/SUM(C$73:C$80))) -> 0.01162790698 | D185: 0.01639344262 | E185: 0 | F185: 0 | G185: 0 | H185: 0 | I185: 0 | J185: 0 | K185: 0 | L185: 0 | M185: 0 | N185: 0 | O185: 0 | P185: 0 | Q185: 0 | R185: 0 | S185: 0 | T185: 0 | U185: 0 | V185: 0 | W185: 0 | X185: 0 | Y185: 0 | Z185: 0 | AA185: 0 | AB185: 0 | AC185: 0 | AD185: 0 | AE185: 0 | AF185: 0 | AG185: 0 | AH185: 0 | AI185: 0 | AJ185: 0 | AK185: 0 | AL185: 0 | AM185: 0 | AN185: 0 | AO185: 0 | AP185: 0 | AQ185: 0 | AR185: 0 | AS185: 0 | AT185: 0 | AU185: 0 | AV185: 0 | AW185: 0 | AX185: 0 | AY185: 0 | AZ185: 0 | BA185: 0 | BB185: 0 | BC185: 0 | BD185: 0 | BE185: 0 | BF185: 0 | BG185: 0 | BH185: 0 | BI185: 0
A186: =IF(LSCheck1st= "y","Prob 1st instars", "") -> Prob 1st instars | B186: =IF(SUM(B$73:B$80)=0,0,(B74/SUM(B$73:B$80))) -> 0.0202020202 | C186: 0.5465116279 | D186: 0.131147541 | E186: 0 | F186: 0 | G186: 0 | H186: 0 | I186: 0 | J186: 0 | K186: 0 | L186: 0 | M186: 0 | N186: 0 | O186: 0 | P186: 0 | Q186: 0 | R186: 0 | S186: 0 | T186: 0 | U186: 0 | V186: 0 | W186: 0 | X186: 0 | Y186: 0 | Z186: 0 | AA186: 0 | AB186: 0 | AC186: 0 | AD186: 0 | AE186: 0 | AF186: 0 | AG186: 0 | AH186: 0 | AI186: 0 | AJ186: 0 | AK186: 0 | AL186: 0 | AM186: 0 | AN186: 0 | AO186: 0 | AP186: 0 | AQ186: 0 | AR186: 0 | AS186: 0 | AT186: 0 | AU186: 0 | AV186: 0 | AW186: 0 | AX186: 0 | AY186: 0 | AZ186: 0 | BA186: 0 | BB186: 0 | BC186: 0 | BD186: 0 | BE186: 0 | BF186: 0 | BG186: 0 | BH186: 0 | BI186: 0
A187: =IF(LSCheck2nd= "y","Prob 2nd instars", "") -> Prob 2nd instars | B187: 0.07070707071 | C187: 0.4418604651 | D187: 0.6967213115 | E187: 0.07070707071 | F187: 0.01075268817 | G187: 0 | H187: 0 | I187: 0 | J187: 0 | K187: 0 | L187: 0 | M187: 0 | N187: 0 | O187: 0 | P187: 0 | Q187: 0 | R187: 0 | S187: 0 | T187: 0 | U187: 0 | V187: 0 | W187: 0 | X187: 0 | Y187: 0 | Z187: 0 | AA187: 0 | AB187: 0 | AC187: 0 | AD187: 0 | AE187: 0 | AF187: 0 | AG187: 0 | AH187: 0 | AI187: 0 | AJ187: 0 | AK187: 0 | AL187: 0 | AM187: 0 | AN187: 0 | AO187: 0 | AP187: 0 | AQ187: 0 | AR187: 0 | AS187: 0 | AT187: 0 | AU187: 0 | AV187: 0 | AW187: 0 | AX187: 0 | AY187: 0 | AZ187: 0 | BA187: 0 | BB187: 0 | BC187: 0 | BD187: 0 | BE187: 0 | BF187: 0 | BG187: 0 | BH187: 0 | BI187: 0
A188: =IF(LSCheck3rd= "y","Prob 3rd instars", "") -> Prob 3rd instars | B188: 0 | C188: 0 | D188: 0.1557377049 | E188: 0.9090909091 | F188: 0.9784946237 | G188: 0.5379310345 | H188: 0 | I188: 0 | J188: 0 | K188: 0 | L188: 0 | M188: 0 | N188: 0 | O188: 0 | P188: 0 | Q188: 0 | R188: 0 | S188: 0 | T188: 0 | U188: 0 | V188: 0 | W188: 0 | X188: 0 | Y188: 0 | Z188: 0 | AA188: 0 | AB188: 0 | AC188: 0 | AD188: 0 | AE188: 0 | AF188: 0 | AG188: 0 | AH188: 0 | AI188: 0 | AJ188: 0 | AK188: 0 | AL188: 0 | AM188: 0 | AN188: 0 | AO188: 0 | AP188: 0 | AQ188: 0 | AR188: 0 | AS188: 0 | AT188: 0 | AU188: 0 | AV188: 0 | AW188: 0 | AX188: 0 | AY188: 0 | AZ188: 0 | BA188: 0 | BB188: 0 | BC188: 0 | BD188: 0 | BE188: 0 | BF188: 0 | BG188: 0 | BH188: 0 | BI188: 0
A189: =IF(LSCheck4th= "y","Prob 4th instars", "") ->  | B189: 0 | C189: 0 | D189: 0 | E189: 0 | F189: 0 | G189: 0 | H189: 0 | I189: 0 | J189: 0 | K189: 0 | L189: 0 | M189: 0 | N189: 0 | O189: 0 | P189: 0 | Q189: 0 | R189: 0 | S189: 0 | T189: 0 | U189: 0 | V189: 0 | W189: 0 | X189: 0 | Y189: 0 | Z189: 0 | AA189: 0 | AB189: 0 | AC189: 0 | AD189: 0 | AE189: 0 | AF189: 0 | AG189: 0 | AH189: 0 | AI189: 0 | AJ189: 0 | AK189: =IF(SUM(AK$73:AK$80)=0,0,(AK77/SUM(AK$73:AK$80))) -> 0 | AL189: 0 | AM189: 0 | AN189: 0 | AO189: 0 | AP189: 0 | AQ189: 0 | AR189: 0 | AS189: 0 | AT189: 0 | AU189: 0 | AV189: 0 | AW189: 0 | AX189: 0 | AY189: 0 | AZ189: 0 | BA189: 0 | BB189: 0 | BC189: 0 | BD189: 0 | BE189: 0 | BF189: 0 | BG189: 0 | BH189: 0 | BI189: 0
A190: =IF(LSCheck5th= "y","Prob 5th instars", "") ->  | B190: 0 | C190: 0 | D190: 0 | E190: 0 | F190: 0 | G190: 0 | H190: 0 | I190: 0 | J190: 0 | K190: 0 | L190: 0 | M190: 0 | N190: 0 | O190: 0 | P190: 0 | Q190: 0 | R190: 0 | S190: 0 | T190: 0 | U190: 0 | V190: 0 | W190: 0 | X190: 0 | Y190: 0 | Z190: 0 | AA190: 0 | AB190: 0 | AC190: 0 | AD190: 0 | AE190: 0 | AF190: 0 | AG190: 0 | AH190: 0 | AI190: 0 | AJ190: 0 | AK190: 0 | AL190: 0 | AM190: 0 | AN190: 0 | AO190: 0 | AP190: 0 | AQ190: 0 | AR190: 0 | AS190: 0 | AT190: 0 | AU190: 0 | AV190: 0 | AW190: 0 | AX190: 0 | AY190: 0 | AZ190: 0 | BA190: 0 | BB190: 0 | BC190: 0 | BD190: 0 | BE190: 0 | BF190: 0 | BG190: 0 | BH190: 0 | BI190: 0
A191: =IF(LSCheckPupa= "y","Prob Pupae", "") -> Prob Pupae | B191: 0 | C191: 0 | D191: 0 | E191: 0.0202020202 | F191: 0.01075268817 | G191: 0.4620689655 | H191: 1 | I191: 0 | J191: 0 | K191: 0 | L191: 0 | M191: 0 | N191: 0 | O191: 0 | P191: 0 | Q191: 0 | R191: 0 | S191: 0 | T191: 0 | U191: 0 | V191: 0 | W191: 0 | X191: 0 | Y191: 0 | Z191: 0 | AA191: 0 | AB191: 0 | AC191: 0 | AD191: 0 | AE191: 0 | AF191: 0 | AG191: 0 | AH191: 0 | AI191: 0 | AJ191: 0 | AK191: 0 | AL191: 0 | AM191: 0 | AN191: 0 | AO191: 0 | AP191: 0 | AQ191: 0 | AR191: 0 | AS191: 0 | AT191: 0 | AU191: 0 | AV191: 0 | AW191: 0 | AX191: 0 | AY191: 0 | AZ191: 0 | BA191: 0 | BB191: 0 | BC191: 0 | BD191: 0 | BE191: 0 | BF191: 0 | BG191: 0 | BH191: 0 | BI191: 0
A192: =IF(LSCheckAdult= "y","Prob Adults", "") -> Prob Adults | B192: 0 | C192: 0 | D192: 0 | E192: 0 | F192: 0 | G192: 0 | H192: 0 | I192: 1 | J192: 1 | K192: 1 | L192: 1 | M192: 1 | N192: 1 | O192: 1 | P192: 1 | Q192: 1 | R192: 1 | S192: 0 | T192: 0 | U192: 0 | V192: 0 | W192: 0 | X192: 0 | Y192: 0 | Z192: 0 | AA192: 0 | AB192: 0 | AC192: 0 | AD192: 0 | AE192: 0 | AF192: 0 | AG192: 0 | AH192: 0 | AI192: 0 | AJ192: 0 | AK192: 0 | AL192: 0 | AM192: 0 | AN192: 0 | AO192: 0 | AP192: 0 | AQ192: 0 | AR192: 0 | AS192: 0 | AT192: 0 | AU192: 0 | AV192: 0 | AW192: 0 | AX192: 0 | AY192: 0 | AZ192: 0 | BA192: 0 | BB192: 0 | BC192: 0 | BD192: 0 | BE192: 0 | BF192: 0 | BG192: 0 | BH192: 0 | BI192: 0
A194: =IF(Comm6="","No data",Comm6) -> Strawberry
A195: Day | B195: 1 | C195: 2 | D195: 3 | E195: 4 | F195: 5 | G195: 6 | H195: 7 | I195: 8 | J195: 9 | K195: 10 | L195: 11 | M195: 12 | N195: 13 | O195: 14 | P195: 15 | Q195: 16 | R195: 17 | S195: 18 | T195: 19 | U195: 20 | V195: 21 | W195: 22 | X195: 23 | Y195: 24 | Z195: 25 | AA195: 26 | AB195: 27 | AC195: 28 | AD195: 29 | AE195: 30 | AF195: 31 | AG195: 32 | AH195: 33 | AI195: 34 | AJ195: 35 | AK195: 36 | AL195: 37 | AM195: 38 | AN195: 39 | AO195: 40 | AP195: 41 | AQ195: 42 | AR195: 43 | AS195: 44 | AT195: 45 | AU195: 46 | AV195: 47 | AW195: 48 | AX195: 49 | AY195: 50 | AZ195: 51 | BA195: 52 | BB195: 53 | BC195: 54 | BD195: 55 | BE195: 56 | BF195: 57 | BG195: 58 | BH195: 59 | BI195: 60
A196: =IF(LSCheckEggs= "y","Prob Eggs", "") -> Prob Eggs | B196: =IF(SUM(B$84:B$91)=0,0,(B84/SUM(B$84:B$91))) -> 1 | C196: =IF(SUM(C$84:C$91)=0,0,(C84/SUM(C$84:C$91))) -> 0.09881422925 | D196: 0 | E196: 0 | F196: 0 | G196: 0 | H196: 0 | I196: 0 | J196: 0 | K196: 0 | L196: 0 | M196: 0 | N196: 0 | O196: 0 | P196: 0 | Q196: 0 | R196: 0 | S196: 0 | T196: 0 | U196: 0 | V196: 0 | W196: 0 | X196: 0 | Y196: 0 | Z196: 0 | AA196: 0 | AB196: 0 | AC196: 0 | AD196: 0 | AE196: 0 | AF196: 0 | AG196: 0 | AH196: 0 | AI196: 0 | AJ196: 0 | AK196: 0 | AL196: 0 | AM196: 0 | AN196: 0 | AO196: 0 | AP196: 0 | AQ196: 0 | AR196: 0 | AS196: 0 | AT196: 0 | AU196: 0 | AV196: 0 | AW196: 0 | AX196: 0 | AY196: 0 | AZ196: 0 | BA196: 0 | BB196: 0 | BC196: 0 | BD196: 0 | BE196: 0 | BF196: 0 | BG196: 0 | BH196: 0 | BI196: 0
A197: =IF(LSCheck1st= "y","Prob 1st instars", "") -> Prob 1st instars | B197: =IF(SUM(B$84:B$91)=0,0,(B85/SUM(B$84:B$91))) -> 0 | C197: 0.8735177866 | D197: 0.1856677524 | E197: 0.07894736842 | F197: 0.0325203252 | G197: 0 | H197: 0 | I197: 0 | J197: 0 | K197: 0 | L197: 0 | M197: 0 | N197: 0 | O197: 0 | P197: 0 | Q197: 0 | R197: 0 | S197: 0 | T197: 0 | U197: 0 | V197: 0 | W197: 0 | X197: 0 | Y197: 0 | Z197: 0 | AA197: 0 | AB197: 0 | AC197: 0 | AD197: 0 | AE197: 0 | AF197: 0 | AG197: 0 | AH197: 0 | AI197: 0 | AJ197: 0 | AK197: 0 | AL197: 0 | AM197: 0 | AN197: 0 | AO197: 0 | AP197: 0 | AQ197: 0 | AR197: 0 | AS197: 0 | AT197: 0 | AU197: 0 | AV197: 0 | AW197: 0 | AX197: 0 | AY197: 0 | AZ197: 0 | BA197: 0 | BB197: 0 | BC197: 0 | BD197: 0 | BE197: 0 | BF197: 0 | BG197: 0 | BH197: 0 | BI197: 0
A198: =IF(LSCheck2nd= "y","Prob 2nd instars", "") -> Prob 2nd instars | B198: 0 | C198: 0.02766798419 | D198: 0.7915309446 | E198: 0.2171052632 | F198: 0.06910569106 | G198: 0.004366812227 | H198: 0 | I198: 0 | J198: 0 | K198: 0 | L198: 0 | M198: 0 | N198: 0 | O198: 0 | P198: 0 | Q198: 0 | R198: 0 | S198: 0 | T198: 0 | U198: 0 | V198: 0 | W198: 0 | X198: 0 | Y198: 0 | Z198: 0 | AA198: 0 | AB198: 0 | AC198: 0 | AD198: 0 | AE198: 0 | AF198: 0 | AG198: 0 | AH198: 0 | AI198: 0 | AJ198: 0 | AK198: 0 | AL198: 0 | AM198: 0 | AN198: 0 | AO198: 0 | AP198: 0 | AQ198: 0 | AR198: 0 | AS198: 0 | AT198: 0 | AU198: 0 | AV198: 0 | AW198: 0 | AX198: 0 | AY198: 0 | AZ198: 0 | BA198: 0 | BB198: 0 | BC198: 0 | BD198: 0 | BE198: 0 | BF198: 0 | BG198: 0 | BH198: 0 | BI198: 0
A199: =IF(LSCheck3rd= "y","Prob 3rd instars", "") -> Prob 3rd instars | B199: 0 | C199: 0 | D199: 0.02280130293 | E199: 0.7039473684 | F199: 0.8983739837 | G199: 0.8253275109 | H199: 0.08764940239 | I199: 0 | J199: 0 | K199: 0 | L199: 0 | M199: 0 | N199: 0 | O199: 0 | P199: 0 | Q199: 0 | R199: 0 | S199: 0 | T199: 0 | U199: 0 | V199: 0 | W199: 0 | X199: 0 | Y199: 0 | Z199: 0 | AA199: 0 | AB199: 0 | AC199: 0 | AD199: 0 | AE199: 0 | AF199: 0 | AG199: 0 | AH199: 0 | AI199: 0 | AJ199: 0 | AK199: 0 | AL199: 0 | AM199: 0 | AN199: 0 | AO199: 0 | AP199: 0 | AQ199: 0 | AR199: 0 | AS199: 0 | AT199: 0 | AU199: 0 | AV199: 0 | AW199: 0 | AX199: 0 | AY199: 0 | AZ199: 0 | BA199: 0 | BB199: 0 | BC199: 0 | BD199: 0 | BE199: 0 | BF199: 0 | BG199: 0 | BH199: 0 | BI199: 0
A200: =IF(LSCheck4th= "y","Prob 4th instars", "") ->  | B200: 0 | C200: 0 | D200: 0 | E200: 0 | F200: 0 | G200: 0 | H200: 0 | I200: 0 | J200: 0 | K200: 0 | L200: 0 | M200: 0 | N200: 0 | O200: 0 | P200: 0 | Q200: 0 | R200: 0 | S200: 0 | T200: 0 | U200: 0 | V200: 0 | W200: 0 | X200: 0 | Y200: 0 | Z200: 0 | AA200: 0 | AB200: 0 | AC200: 0 | AD200: 0 | AE200: 0 | AF200: 0 | AG200: 0 | AH200: 0 | AI200: 0 | AJ200: 0 | AK200: =IF(SUM(AK$84:AK$91)=0,0,(AK88/SUM(AK$84:AK$91))) -> 0 | AL200: 0 | AM200: 0 | AN200: 0 | AO200: 0 | AP200: 0 | AQ200: 0 | AR200: 0 | AS200: 0 | AT200: 0 | AU200: 0 | AV200: 0 | AW200: 0 | AX200: 0 | AY200: 0 | AZ200: 0 | BA200: 0 | BB200: 0 | BC200: 0 | BD200: 0 | BE200: 0 | BF200: 0 | BG200: 0 | BH200: 0 | BI200: 0
A201: =IF(LSCheck5th= "y","Prob 5th instars", "") ->  | B201: 0 | C201: 0 | D201: 0 | E201: 0 | F201: 0 | G201: 0 | H201: 0 | I201: 0 | J201: 0 | K201: 0 | L201: 0 | M201: 0 | N201: 0 | O201: 0 | P201: 0 | Q201: 0 | R201: 0 | S201: 0 | T201: 0 | U201: 0 | V201: 0 | W201: 0 | X201: 0 | Y201: 0 | Z201: 0 | AA201: 0 | AB201: 0 | AC201: 0 | AD201: 0 | AE201: 0 | AF201: 0 | AG201: 0 | AH201: 0 | AI201: 0 | AJ201: 0 | AK201: 0 | AL201: 0 | AM201: 0 | AN201: 0 | AO201: 0 | AP201: 0 | AQ201: 0 | AR201: 0 | AS201: 0 | AT201: 0 | AU201: 0 | AV201: 0 | AW201: 0 | AX201: 0 | AY201: 0 | AZ201: 0 | BA201: 0 | BB201: 0 | BC201: 0 | BD201: 0 | BE201: 0 | BF201: 0 | BG201: 0 | BH201: 0 | BI201: 0
A202: =IF(LSCheckPupa= "y","Prob Pupae", "") -> Prob Pupae | B202: 0 | C202: 0 | D202: 0 | E202: 0 | F202: 0 | G202: 0.1703056769 | H202: 0.9123505976 | I202: 0.9806763285 | J202: 0 | K202: 0 | L202: 0 | M202: 0 | N202: 0 | O202: 0 | P202: 0 | Q202: 0 | R202: 0 | S202: 0 | T202: 0 | U202: 0 | V202: 0 | W202: 0 | X202: 0 | Y202: 0 | Z202: 0 | AA202: 0 | AB202: 0 | AC202: 0 | AD202: 0 | AE202: 0 | AF202: 0 | AG202: 0 | AH202: 0 | AI202: 0 | AJ202: 0 | AK202: 0 | AL202: 0 | AM202: 0 | AN202: 0 | AO202: 0 | AP202: 0 | AQ202: 0 | AR202: 0 | AS202: 0 | AT202: 0 | AU202: 0 | AV202: 0 | AW202: 0 | AX202: 0 | AY202: 0 | AZ202: 0 | BA202: 0 | BB202: 0 | BC202: 0 | BD202: 0 | BE202: 0 | BF202: 0 | BG202: 0 | BH202: 0 | BI202: 0
A203: =IF(LSCheckAdult= "y","Prob Adults", "") -> Prob Adults | B203: 0 | C203: 0 | D203: 0 | E203: 0 | F203: 0 | G203: 0 | H203: 0 | I203: 0.0193236715 | J203: 1 | K203: 1 | L203: 1 | M203: 1 | N203: 1 | O203: 1 | P203: 1 | Q203: 0 | R203: 0 | S203: 0 | T203: 0 | U203: 0 | V203: 0 | W203: 0 | X203: 0 | Y203: 0 | Z203: 0 | AA203: 0 | AB203: 0 | AC203: 0 | AD203: 0 | AE203: 0 | AF203: 0 | AG203: 0 | AH203: 0 | AI203: 0 | AJ203: 0 | AK203: 0 | AL203: 0 | AM203: 0 | AN203: 0 | AO203: 0 | AP203: 0 | AQ203: 0 | AR203: 0 | AS203: 0 | AT203: 0 | AU203: 0 | AV203: 0 | AW203: 0 | AX203: 0 | AY203: 0 | AZ203: 0 | BA203: 0 | BB203: 0 | BC203: 0 | BD203: 0 | BE203: 0 | BF203: 0 | BG203: 0 | BH203: 0 | BI203: 0
A205: =IF(Comm7="","No data",Comm7) -> No data
A206: Day | B206: 1 | C206: 2 | D206: 3 | E206: 4 | F206: 5 | G206: 6 | H206: 7 | I206: 8 | J206: 9 | K206: 10 | L206: 11 | M206: 12 | N206: 13 | O206: 14 | P206: 15 | Q206: 16 | R206: 17 | S206: 18 | T206: 19 | U206: 20 | V206: 21 | W206: 22 | X206: 23 | Y206: 24 | Z206: 25 | AA206: 26 | AB206: 27 | AC206: 28 | AD206: 29 | AE206: 30 | AF206: 31 | AG206: 32 | AH206: 33 | AI206: 34 | AJ206: 35 | AK206: 36 | AL206: 37 | AM206: 38 | AN206: 39 | AO206: 40 | AP206: 41 | AQ206: 42 | AR206: 43 | AS206: 44 | AT206: 45 | AU206: 46 | AV206: 47 | AW206: 48 | AX206: 49 | AY206: 50 | AZ206: 51 | BA206: 52 | BB206: 53 | BC206: 54 | BD206: 55 | BE206: 56 | BF206: 57 | BG206: 58 | BH206: 59 | BI206: 60
A207: =IF(LSCheckEggs= "y","Prob Eggs", "") -> Prob Eggs | B207: =IF(SUM(B$95:B$102)=0,0,(B95/SUM(B$95:B$102))) -> 0 | C207: =IF(SUM(C$95:C$102)=0,0,(C95/SUM(C$95:C$102))) -> 0 | D207: 0 | E207: 0 | F207: 0 | G207: 0 | H207: 0 | I207: 0 | J207: 0 | K207: 0 | L207: 0 | M207: 0 | N207: 0 | O207: 0 | P207: 0 | Q207: 0 | R207: 0 | S207: 0 | T207: 0 | U207: 0 | V207: 0 | W207: 0 | X207: 0 | Y207: 0 | Z207: 0 | AA207: 0 | AB207: 0 | AC207: 0 | AD207: 0 | AE207: 0 | AF207: 0 | AG207: 0 | AH207: 0 | AI207: 0 | AJ207: 0 | AK207: 0 | AL207: 0 | AM207: 0 | AN207: 0 | AO207: 0 | AP207: 0 | AQ207: 0 | AR207: 0 | AS207: 0 | AT207: 0 | AU207: 0 | AV207: 0 | AW207: 0 | AX207: 0 | AY207: 0 | AZ207: 0 | BA207: 0 | BB207: 0 | BC207: 0 | BD207: 0 | BE207: 0 | BF207: 0 | BG207: 0 | BH207: 0 | BI207: 0
A208: =IF(LSCheck1st= "y","Prob 1st instars", "") -> Prob 1st instars | B208: =IF(SUM(B$95:B$102)=0,0,(B96/SUM(B$95:B$102))) -> 0 | C208: 0 | D208: 0 | E208: 0 | F208: 0 | G208: 0 | H208: 0 | I208: 0 | J208: 0 | K208: 0 | L208: 0 | M208: 0 | N208: 0 | O208: 0 | P208: 0 | Q208: 0 | R208: 0 | S208: 0 | T208: 0 | U208: 0 | V208: 0 | W208: 0 | X208: 0 | Y208: 0 | Z208: 0 | AA208: 0 | AB208: 0 | AC208: 0 | AD208: 0 | AE208: 0 | AF208: 0 | AG208: 0 | AH208: 0 | AI208: 0 | AJ208: 0 | AK208: 0 | AL208: 0 | AM208: 0 | AN208: 0 | AO208: 0 | AP208: 0 | AQ208: 0 | AR208: 0 | AS208: 0 | AT208: 0 | AU208: 0 | AV208: 0 | AW208: 0 | AX208: 0 | AY208: 0 | AZ208: 0 | BA208: 0 | BB208: 0 | BC208: 0 | BD208: 0 | BE208: 0 | BF208: 0 | BG208: 0 | BH208: 0 | BI208: 0
A209: =IF(LSCheck2nd= "y","Prob 2nd instars", "") -> Prob 2nd instars | B209: 0 | C209: 0 | D209: 0 | E209: 0 | F209: 0 | G209: 0 | H209: 0 | I209: 0 | J209: 0 | K209: 0 | L209: 0 | M209: 0 | N209: 0 | O209: 0 | P209: 0 | Q209: 0 | R209: 0 | S209: 0 | T209: 0 | U209: 0 | V209: 0 | W209: 0 | X209: 0 | Y209: 0 | Z209: 0 | AA209: 0 | AB209: 0 | AC209: 0 | AD209: 0 | AE209: 0 | AF209: 0 | AG209: 0 | AH209: 0 | AI209: 0 | AJ209: 0 | AK209: 0 | AL209: 0 | AM209: 0 | AN209: 0 | AO209: 0 | AP209: 0 | AQ209: 0 | AR209: 0 | AS209: 0 | AT209: 0 | AU209: 0 | AV209: 0 | AW209: 0 | AX209: 0 | AY209: 0 | AZ209: 0 | BA209: 0 | BB209: 0 | BC209: 0 | BD209: 0 | BE209: 0 | BF209: 0 | BG209: 0 | BH209: 0 | BI209: 0
A210: =IF(LSCheck3rd= "y","Prob 3rd instars", "") -> Prob 3rd instars | B210: 0 | C210: 0 | D210: 0 | E210: 0 | F210: 0 | G210: 0 | H210: 0 | I210: 0 | J210: 0 | K210: 0 | L210: 0 | M210: 0 | N210: 0 | O210: 0 | P210: 0 | Q210: 0 | R210: 0 | S210: 0 | T210: 0 | U210: 0 | V210: 0 | W210: 0 | X210: 0 | Y210: 0 | Z210: 0 | AA210: 0 | AB210: 0 | AC210: 0 | AD210: 0 | AE210: 0 | AF210: 0 | AG210: 0 | AH210: 0 | AI210: 0 | AJ210: 0 | AK210: 0 | AL210: 0 | AM210: 0 | AN210: 0 | AO210: 0 | AP210: 0 | AQ210: 0 | AR210: 0 | AS210: 0 | AT210: 0 | AU210: 0 | AV210: 0 | AW210: 0 | AX210: 0 | AY210: 0 | AZ210: 0 | BA210: 0 | BB210: 0 | BC210: 0 | BD210: 0 | BE210: 0 | BF210: 0 | BG210: 0 | BH210: 0 | BI210: 0
A211: =IF(LSCheck4th= "y","Prob 4th instars", "") ->  | B211: 0 | C211: 0 | D211: 0 | E211: 0 | F211: 0 | G211: 0 | H211: 0 | I211: 0 | J211: 0 | K211: 0 | L211: 0 | M211: 0 | N211: 0 | O211: 0 | P211: 0 | Q211: 0 | R211: 0 | S211: 0 | T211: 0 | U211: 0 | V211: 0 | W211: 0 | X211: 0 | Y211: 0 | Z211: 0 | AA211: 0 | AB211: 0 | AC211: 0 | AD211: 0 | AE211: 0 | AF211: 0 | AG211: 0 | AH211: 0 | AI211: 0 | AJ211: 0 | AK211: =IF(SUM(AK$95:AK$102)=0,0,(AK99/SUM(AK$95:AK$102))) -> 0 | AL211: 0 | AM211: 0 | AN211: 0 | AO211: 0 | AP211: 0 | AQ211: 0 | AR211: 0 | AS211: 0 | AT211: 0 | AU211: 0 | AV211: 0 | AW211: 0 | AX211: 0 | AY211: 0 | AZ211: 0 | BA211: 0 | BB211: 0 | BC211: 0 | BD211: 0 | BE211: 0 | BF211: 0 | BG211: 0 | BH211: 0 | BI211: 0
A212: =IF(LSCheck5th= "y","Prob 5th instars", "") ->  | B212: 0 | C212: 0 | D212: 0 | E212: 0 | F212: 0 | G212: 0 | H212: 0 | I212: 0 | J212: 0 | K212: 0 | L212: 0 | M212: 0 | N212: 0 | O212: 0 | P212: 0 | Q212: 0 | R212: 0 | S212: 0 | T212: 0 | U212: 0 | V212: 0 | W212: 0 | X212: 0 | Y212: 0 | Z212: 0 | AA212: 0 | AB212: 0 | AC212: 0 | AD212: 0 | AE212: 0 | AF212: 0 | AG212: 0 | AH212: 0 | AI212: 0 | AJ212: 0 | AK212: 0 | AL212: 0 | AM212: 0 | AN212: 0 | AO212: 0 | AP212: 0 | AQ212: 0 | AR212: 0 | AS212: 0 | AT212: 0 | AU212: 0 | AV212: 0 | AW212: 0 | AX212: 0 | AY212: 0 | AZ212: 0 | BA212: 0 | BB212: 0 | BC212: 0 | BD212: 0 | BE212: 0 | BF212: 0 | BG212: 0 | BH212: 0 | BI212: 0
... 32 more rows

Sheet Sheet2 (hidden)

Sheet Sheet3 (hidden)

Sheet Step 1 - DTS Calculator
A1: The Developmental Timespan (DTS) Model | W1: =IF(AND($E$4="", $E$5=""),1,0) -> 1
A2: Life Stage Probablity Distribution Calculator for Drosophila suzukii
A4: Step 1: Enter Infestation time (d) > | D4: 1 | E4: =IF(AND(ISNUMBER(LSIT), LSIT>0,LSIT<60),"",'Crunch sets II'!BJ3) ->  | G4: Directions
A5: Step 2: Enter holding time (d) > | D5: 3 | E5: =IF(AND(ISNUMBER(LSHT), LSHT>-1,LSHT+LSIT<61),"",'Crunch sets II'!BJ4) ->  | G5: 1. Enter the time of exposure to ovipositing insects in days (1 day < t < 60 days).
A6: Minimum Age | B6: =LSHT -> 3 | C6: day(s) | D6: =LSHT*24 -> 72 | E6: hours | G6: 2. Enter the time between removal of ovipositing insects and observation/treatment in days (0 days < t < 59 days).
A7: Maximum Age | B7: =LSTOT -> 4 | C7: day(s) | D7: =LSTOT*24 -> 96 | E7: hours | G7: 3. Click on the "Data Refresh" button. This updates the DTS Calculator with raw data information input during Step 1.
G8: 4. If an adult emerges following a treatment, enter the time of development (initial infestation to emergence) in days
G9: (Max age or min observed adult emergence < T < max observed adult emergence days).
A11: Life stage | B11: =Comm1 -> Blackberry | D11: =Comm2 -> Blueberry | F11: =Comm3 -> Cherry | H11: =Comm4 -> Grape | J11: =Comm5 -> Raspberry | L11: =Comm6 -> Strawberry | N11: =Comm7 -> 0 | P11: =Comm8 -> 0 | R11: =Comm9 -> 0 | T11: =Comm10 -> 0
B12: Pt(LS) | C12: ± 95% CI | D12: Pt(LS) | E12: ± 95% CI | F12: Pt(LS) | G12: ± 95% CI | H12: Pt(LS) | I12: ± 95% CI | J12: Pt(LS) | K12: ± 95% CI | L12: Pt(LS) | M12: ± 95% CI | N12: Pt(LS) | O12: ± 95% CI | P12: Pt(LS) | Q12: ± 95% CI | R12: Pt(LS) | S12: ± 95% CI | T12: Pt(LS) | U12: ± 95% CI
A13: Eggs | B13: =IF(Comm1="","",IF(LSCheckEggs="n","N/A",IF(Validity=1,LSComm1Eggs,"N/A"))) -> 0 | C13: =IF(Comm1="","",IF(LSCheckEggs="n","N/A",IF(B11=0,"N/A",CIEggsComm1))) -> 0 | D13: =IF(Comm2="","",IF(LSCheckEggs="n","N/A",IF(Validity=1,LSComm2Eggs,"N/A"))) -> 0 | E13: =IF(Comm2="","",IF(LSCheckEggs="n","N/A",IF(D11=0,"N/A",CIEggsComm2))) -> 0 | F13: =IF(Comm3="","",IF(LSCheckEggs="n","N/A",IF(Validity=1,LSComm3Eggs,"N/A"))) -> 0 | G13: =IF(Comm3="","",IF(LSCheckEggs="n","N/A",IF(F11=0,"N/A",CIEggsComm3))) -> 0 | H13: =IF(Comm4="","",IF(LSCheckEggs="n","N/A",IF(Validity=1,LSComm4Eggs,"N/A"))) -> 0 | I13: =IF(Comm4="","",IF(LSCheckEggs="n","N/A",IF(H11=0,"N/A",CIEggsComm4))) -> 0 | J13: =IF(Comm5="","",IF(LSCheckEggs="n","N/A",IF(Validity=1,LSComm5Eggs,"N/A"))) -> 0 | K13: =IF(Comm5="","",IF(LSCheckEggs="n","N/A",IF(J11=0,"N/A",CIEggsComm5))) -> 0 | L13: =IF(Comm6="","",IF(LSCheckEggs="n","N/A",IF(Validity=1,LSComm6Eggs,"N/A"))) -> 0 | M13: =IF(Comm6="","",IF(LSCheckEggs="n","N/A",IF(L11=0,"N/A",CIEggsComm6))) -> 0 | N13: =IF(Comm7="","",IF(LSCheckEggs="n","N/A",IF(Validity=1,LSComm7Eggs,"N/A"))) ->  | O13: =IF(Comm7="","",IF(LSCheckEggs="n","N/A",IF(N11=0,"N/A",CIEggsComm7))) ->  | P13: =IF(Comm8="","",IF(LSCheckEggs="n","N/A",IF(Validity=1,LSComm8Eggs,"N/A"))) ->  | Q13: =IF(Comm8="","",IF(LSCheckEggs="n","N/A",IF(P11=0,"N/A",CIEggsComm8))) ->  | R13: =IF(Comm9="","",IF(LSCheckEggs="n","N/A",IF(Validity=1,LSComm9Eggs,"N/A"))) ->  | S13: =IF(Comm9="","",IF(LSCheckEggs="n","N/A",IF(R11=0,"N/A",CIEggsComm9))) ->  | T13: =IF(Comm10="","",IF(LSCheckEggs="n","N/A",IF(Validity=1,LSComm10Eggs,"N/A"))) ->  | U13: =IF(Comm10="","",IF(LSCheckEggs="n","N/A",IF(T11=0,"N/A",CIEggsComm10))) -> 
A14: 1st Instar | B14: =IF(Comm1="","",IF(LSCheck1st="n","N/A",IF(Validity=1,LSComm11st,"N/A"))) -> 0 | C14: =IF(Comm1="","",IF(LSCheck1st="n","N/A",IF(B11=0,"N/A",CI1stComm1))) -> 0 | D14: =IF(Comm2="","",IF(LSCheck1st="n","N/A",IF(Validity=1,LSComm21st,"N/A"))) -> 0.04464285714 | E14: =IF(Comm2="","",IF(LSCheck1st="n","N/A",IF(D11=0,"N/A",CI1stComm2))) -> 0.03420983046 | F14: =IF(Comm3="","",IF(LSCheck1st="n","N/A",IF(Validity=1,LSComm31st,"N/A"))) -> 0 | G14: =IF(Comm3="","",IF(LSCheck1st="n","N/A",IF(F11=0,"N/A",CI1stComm3))) -> 0 | H14: =IF(Comm4="","",IF(LSCheck1st="n","N/A",IF(Validity=1,LSComm41st,"N/A"))) -> 0.02040816327 | I14: =IF(Comm4="","",IF(LSCheck1st="n","N/A",IF(H11=0,"N/A",CI1stComm4))) -> 0.01589438828 | J14: =IF(Comm5="","",IF(LSCheck1st="n","N/A",IF(Validity=1,LSComm51st,"N/A"))) -> 0 | K14: =IF(Comm5="","",IF(LSCheck1st="n","N/A",IF(J11=0,"N/A",CI1stComm5))) -> 0 | L14: =IF(Comm6="","",IF(LSCheck1st="n","N/A",IF(Validity=1,LSComm61st,"N/A"))) -> 0.07894736842 | M14: =IF(Comm6="","",IF(LSCheck1st="n","N/A",IF(L11=0,"N/A",CI1stComm6))) -> 0.034404173 | N14: =IF(Comm7="","",IF(LSCheck1st="n","N/A",IF(Validity=1,LSComm71st,"N/A"))) ->  | O14: =IF(Comm7="","",IF(LSCheck1st="n","N/A",IF(N11=0,"N/A",CI1stComm7))) ->  | P14: =IF(Comm8="","",IF(LSCheck1st="n","N/A",IF(Validity=1,LSComm81st,"N/A"))) ->  | Q14: =IF(Comm8="","",IF(LSCheck1st="n","N/A",IF(P11=0,"N/A",CI1stComm8))) ->  | R14: =IF(Comm9="","",IF(LSCheck1st="n","N/A",IF(Validity=1,LSComm91st,"N/A"))) ->  | S14: =IF(Comm9="","",IF(LSCheck1st="n","N/A",IF(R11=0,"N/A",CI1stComm9))) ->  | T14: =IF(Comm10="","",IF(LSCheck1st="n","N/A",IF(Validity=1,LSComm101st,"N/A"))) ->  | U14: =IF(Comm10="","",IF(LSCheck1st="n","N/A",IF(T11=0,"N/A",CI1stComm10))) -> 
A15: 2nd Instar | B15: =IF(Comm1="","",IF(LSCheck2nd="n","N/A",IF(Validity=1,LSComm12nd,"N/A"))) -> 0.08921933086 | C15: =IF(Comm1="","",IF(LSCheck2nd="n","N/A",IF(B11=0,"N/A",CI2ndComm1))) -> 0.0343866993 | D15: =IF(Comm2="","",IF(LSCheck2nd="n","N/A",IF(Validity=1,LSComm22nd,"N/A"))) -> 0.7767857143 | E15: =IF(Comm2="","",IF(LSCheck2nd="n","N/A",IF(D11=0,"N/A",CI2ndComm2))) -> 0.06897689831 | F15: =IF(Comm3="","",IF(LSCheck2nd="n","N/A",IF(Validity=1,LSComm32nd,"N/A"))) -> 0.2553191489 | G15: =IF(Comm3="","",IF(LSCheck2nd="n","N/A",IF(F11=0,"N/A",CI2ndComm3))) -> 0.06535590058 | H15: =IF(Comm4="","",IF(LSCheck2nd="n","N/A",IF(Validity=1,LSComm42nd,"N/A"))) -> 0.2551020408 | I15: =IF(Comm4="","",IF(LSCheck2nd="n","N/A",IF(H11=0,"N/A",CI2ndComm4))) -> 0.04900322224 | J15: =IF(Comm5="","",IF(LSCheck2nd="n","N/A",IF(Validity=1,LSComm52nd,"N/A"))) -> 0.07070707071 | K15: =IF(Comm5="","",IF(LSCheck2nd="n","N/A",IF(J11=0,"N/A",CI2ndComm5))) -> 0.05049474846 | L15: =IF(Comm6="","",IF(LSCheck2nd="n","N/A",IF(Validity=1,LSComm62nd,"N/A"))) -> 0.2171052632 | M15: =IF(Comm6="","",IF(LSCheck2nd="n","N/A",IF(L11=0,"N/A",CI2ndComm6))) -> 0.05260014394 | N15: =IF(Comm7="","",IF(LSCheck2nd="n","N/A",IF(Validity=1,LSComm72nd,"N/A"))) ->  | O15: =IF(Comm7="","",IF(LSCheck2nd="n","N/A",IF(N11=0,"N/A",CI2ndComm7))) ->  | P15: =IF(Comm8="","",IF(LSCheck2nd="n","N/A",IF(Validity=1,LSComm82nd,"N/A"))) ->  | Q15: =IF(Comm8="","",IF(LSCheck2nd="n","N/A",IF(P11=0,"N/A",CI2ndComm8))) ->  | R15: =IF(Comm9="","",IF(LSCheck2nd="n","N/A",IF(Validity=1,LSComm92nd,"N/A"))) ->  | S15: =IF(Comm9="","",IF(LSCheck2nd="n","N/A",IF(R11=0,"N/A",CI2ndComm9))) ->  | T15: =IF(Comm10="","",IF(LSCheck2nd="n","N/A",IF(Validity=1,LSComm102nd,"N/A"))) ->  | U15: =IF(Comm10="","",IF(LSCheck2nd="n","N/A",IF(T11=0,"N/A",CI2ndComm10))) -> 
A16: 3rd Instar | B16: =IF(Comm1="","",IF(LSCheck3rd="n","N/A",IF(Validity=1,LSComm13rd,"N/A"))) -> 0.9107806691 | C16: =IF(Comm1="","",IF(LSCheck3rd="n","N/A",IF(B11=0,"N/A",CI3rdComm1))) -> 0.0343866993 | D16: =IF(Comm2="","",IF(LSCheck3rd="n","N/A",IF(Validity=1,LSComm23rd,"N/A"))) -> 0.1785714286 | E16: =IF(Comm2="","",IF(LSCheck3rd="n","N/A",IF(D11=0,"N/A",CI3rdComm2))) -> 0.0634428877 | F16: =IF(Comm3="","",IF(LSCheck3rd="n","N/A",IF(Validity=1,LSComm33rd,"N/A"))) -> 0.7446808511 | G16: =IF(Comm3="","",IF(LSCheck3rd="n","N/A",IF(F11=0,"N/A",CI3rdComm3))) -> 0.06535590058 | H16: =IF(Comm4="","",IF(LSCheck3rd="n","N/A",IF(Validity=1,LSComm43rd,"N/A"))) -> 0.7244897959 | I16: =IF(Comm4="","",IF(LSCheck3rd="n","N/A",IF(H11=0,"N/A",CI3rdComm4))) -> 0.05022318609 | J16: =IF(Comm5="","",IF(LSCheck3rd="n","N/A",IF(Validity=1,LSComm53rd,"N/A"))) -> 0.9090909091 | K16: =IF(Comm5="","",IF(LSCheck3rd="n","N/A",IF(J11=0,"N/A",CI3rdComm5))) -> 0.05662989924 | L16: =IF(Comm6="","",IF(LSCheck3rd="n","N/A",IF(Validity=1,LSComm63rd,"N/A"))) -> 0.7039473684 | M16: =IF(Comm6="","",IF(LSCheck3rd="n","N/A",IF(L11=0,"N/A",CI3rdComm6))) -> 0.0582444606 | N16: =IF(Comm7="","",IF(LSCheck3rd="n","N/A",IF(Validity=1,LSComm73rd,"N/A"))) ->  | O16: =IF(Comm7="","",IF(LSCheck3rd="n","N/A",IF(N11=0,"N/A",CI3rdComm7))) ->  | P16: =IF(Comm8="","",IF(LSCheck3rd="n","N/A",IF(Validity=1,LSComm83rd,"N/A"))) ->  | Q16: =IF(Comm8="","",IF(LSCheck3rd="n","N/A",IF(P11=0,"N/A",CI3rdComm8))) ->  | R16: =IF(Comm9="","",IF(LSCheck3rd="n","N/A",IF(Validity=1,LSComm93rd,"N/A"))) ->  | S16: =IF(Comm9="","",IF(LSCheck3rd="n","N/A",IF(R11=0,"N/A",CI3rdComm9))) ->  | T16: =IF(Comm10="","",IF(LSCheck3rd="n","N/A",IF(Validity=1,LSComm103rd,"N/A"))) ->  | U16: =IF(Comm10="","",IF(LSCheck3rd="n","N/A",IF(T11=0,"N/A",CI3rdComm10))) -> 
A17: 4th Instar | B17: =IF(Comm1="","",IF(LSCheck4th="n","N/A",IF(Validity=1,LSComm14th,"N/A"))) -> N/A | C17: =IF(Comm1="","",IF(LSCheck4th="n","N/A",IF(B11=0,"N/A",CI4thComm1))) -> N/A | D17: =IF(Comm2="","",IF(LSCheck4th="n","N/A",IF(Validity=1,LSComm24th,"N/A"))) -> N/A | E17: =IF(Comm2="","",IF(LSCheck4th="n","N/A",IF(D11=0,"N/A",CI4thComm2))) -> N/A | F17: =IF(Comm3="","",IF(LSCheck4th="n","N/A",IF(Validity=1,LSComm34th,"N/A"))) -> N/A | G17: =IF(Comm3="","",IF(LSCheck4th="n","N/A",IF(F11=0,"N/A",CI4thComm3))) -> N/A | H17: =IF(Comm4="","",IF(LSCheck4th="n","N/A",IF(Validity=1,LSComm44th,"N/A"))) -> N/A | I17: =IF(Comm4="","",IF(LSCheck4th="n","N/A",IF(H11=0,"N/A",CI4thComm4))) -> N/A | J17: =IF(Comm5="","",IF(LSCheck4th="n","N/A",IF(Validity=1,LSComm54th,"N/A"))) -> N/A | K17: =IF(Comm5="","",IF(LSCheck4th="n","N/A",IF(J11=0,"N/A",CI4thComm5))) -> N/A | L17: =IF(Comm6="","",IF(LSCheck4th="n","N/A",IF(Validity=1,LSComm64th,"N/A"))) -> N/A | M17: =IF(Comm6="","",IF(LSCheck4th="n","N/A",IF(L11=0,"N/A",CI4thComm6))) -> N/A | N17: =IF(Comm7="","",IF(LSCheck4th="n","N/A",IF(Validity=1,LSComm74th,"N/A"))) ->  | O17: =IF(Comm7="","",IF(LSCheck4th="n","N/A",IF(N11=0,"N/A",CI4thComm7))) ->  | P17: =IF(Comm8="","",IF(LSCheck4th="n","N/A",IF(Validity=1,LSComm84th,"N/A"))) ->  | Q17: =IF(Comm8="","",IF(LSCheck4th="n","N/A",IF(P11=0,"N/A",CI4thComm8))) ->  | R17: =IF(Comm9="","",IF(LSCheck4th="n","N/A",IF(Validity=1,LSComm94th,"N/A"))) ->  | S17: =IF(Comm9="","",IF(LSCheck4th="n","N/A",IF(R11=0,"N/A",CI4thComm9))) ->  | T17: =IF(Comm10="","",IF(LSCheck4th="n","N/A",IF(Validity=1,LSComm104th,"N/A"))) ->  | U17: =IF(Comm10="","",IF(LSCheck4th="n","N/A",IF(T11=0,"N/A",CI4thComm10))) -> 
A18: 5th Instar | B18: =IF(Comm1="","",IF(LSCheck5th="n","N/A",IF(Validity=1,LSComm15th,"N/A"))) -> N/A | C18: =IF(Comm1="","",IF(LSCheck5th="n","N/A",IF(B11=0,"N/A",CI5thComm1))) -> N/A | D18: =IF(Comm2="","",IF(LSCheck5th="n","N/A",IF(Validity=1,LSComm25th,"N/A"))) -> N/A | E18: =IF(Comm2="","",IF(LSCheck5th="n","N/A",IF(D11=0,"N/A",CI5thComm2))) -> N/A | F18: =IF(Comm3="","",IF(LSCheck5th="n","N/A",IF(Validity=1,LSComm35th,"N/A"))) -> N/A | G18: =IF(Comm3="","",IF(LSCheck5th="n","N/A",IF(F11=0,"N/A",CI5thComm3))) -> N/A | H18: =IF(Comm4="","",IF(LSCheck5th="n","N/A",IF(Validity=1,LSComm45th,"N/A"))) -> N/A | I18: =IF(Comm4="","",IF(LSCheck5th="n","N/A",IF(H11=0,"N/A",CI5thComm4))) -> N/A | J18: =IF(Comm5="","",IF(LSCheck5th="n","N/A",IF(Validity=1,LSComm55th,"N/A"))) -> N/A | K18: =IF(Comm5="","",IF(LSCheck5th="n","N/A",IF(J11=0,"N/A",CI5thComm5))) -> N/A | L18: =IF(Comm6="","",IF(LSCheck5th="n","N/A",IF(Validity=1,LSComm65th,"N/A"))) -> N/A | M18: =IF(Comm6="","",IF(LSCheck5th="n","N/A",IF(L11=0,"N/A",CI5thComm6))) -> N/A | N18: =IF(Comm7="","",IF(LSCheck5th="n","N/A",IF(Validity=1,LSComm75th,"N/A"))) ->  | O18: =IF(Comm7="","",IF(LSCheck5th="n","N/A",IF(N11=0,"N/A",CI5thComm7))) ->  | P18: =IF(Comm8="","",IF(LSCheck5th="n","N/A",IF(Validity=1,LSComm85th,"N/A"))) ->  | Q18: =IF(Comm8="","",IF(LSCheck5th="n","N/A",IF(P11=0,"N/A",CI5thComm8))) ->  | R18: =IF(Comm9="","",IF(LSCheck5th="n","N/A",IF(Validity=1,LSComm95th,"N/A"))) ->  | S18: =IF(Comm9="","",IF(LSCheck5th="n","N/A",IF(R11=0,"N/A",CI5thComm9))) ->  | T18: =IF(Comm10="","",IF(LSCheck5th="n","N/A",IF(Validity=1,LSComm105th,"N/A"))) ->  | U18: =IF(Comm10="","",IF(LSCheck5th="n","N/A",IF(T11=0,"N/A",CI5thComm10))) -> 
A19: Pupae | B19: =IF(Comm1="","",IF(LSCheckPupa="n","N/A",IF(Validity=1,LSComm1Pupae,"N/A"))) -> 0 | C19: =IF(Comm1="","",IF(LSCheckPupa="n","N/A",IF(B11=0,"N/A",CIPupaeComm1))) -> 0 | D19: =IF(Comm2="","",IF(LSCheckPupa="n","N/A",IF(Validity=1,LSComm2Pupae,"N/A"))) -> 0 | E19: =IF(Comm2="","",IF(LSCheckPupa="n","N/A",IF(D11=0,"N/A",CIPupaeComm2))) -> 0 | F19: =IF(Comm3="","",IF(LSCheckPupa="n","N/A",IF(Validity=1,LSComm3Pupae,"N/A"))) -> 0 | G19: =IF(Comm3="","",IF(LSCheckPupa="n","N/A",IF(F11=0,"N/A",CIPupaeComm3))) -> 0 | H19: =IF(Comm4="","",IF(LSCheckPupa="n","N/A",IF(Validity=1,LSComm4Pupae,"N/A"))) -> 0 | I19: =IF(Comm4="","",IF(LSCheckPupa="n","N/A",IF(H11=0,"N/A",CIPupaeComm4))) -> 0 | J19: =IF(Comm5="","",IF(LSCheckPupa="n","N/A",IF(Validity=1,LSComm5Pupae,"N/A"))) -> 0.0202020202 | K19: =IF(Comm5="","",IF(LSCheckPupa="n","N/A",IF(J11=0,"N/A",CIPupaeComm5))) -> 0.02771431472 | L19: =IF(Comm6="","",IF(LSCheckPupa="n","N/A",IF(Validity=1,LSComm6Pupae,"N/A"))) -> 0 | M19: =IF(Comm6="","",IF(LSCheckPupa="n","N/A",IF(L11=0,"N/A",CIPupaeComm6))) -> 0 | N19: =IF(Comm7="","",IF(LSCheckPupa="n","N/A",IF(Validity=1,LSComm7Pupae,"N/A"))) ->  | O19: =IF(Comm7="","",IF(LSCheckPupa="n","N/A",IF(N11=0,"N/A",CIPupaeComm7))) ->  | P19: =IF(Comm8="","",IF(LSCheckPupa="n","N/A",IF(Validity=1,LSComm8Pupae,"N/A"))) ->  | Q19: =IF(Comm8="","",IF(LSCheckPupa="n","N/A",IF(P11=0,"N/A",CIPupaeComm8))) ->  | R19: =IF(Comm9="","",IF(LSCheckPupa="n","N/A",IF(Validity=1,LSComm9Pupae,"N/A"))) ->  | S19: =IF(Comm9="","",IF(LSCheckPupa="n","N/A",IF(R11=0,"N/A",CIPupaeComm9))) ->  | T19: =IF(Comm10="","",IF(LSCheckPupa="n","N/A",IF(Validity=1,LSComm10Pupae,"N/A"))) ->  | U19: =IF(Comm10="","",IF(LSCheckPupa="n","N/A",IF(T11=0,"N/A",CIPupaeComm10))) -> 
A20: Adults | B20: =IF(Comm1="","",IF(LSCheckAdult="n","N/A",IF(Validity=1,LSComm1Adults,"N/A"))) -> 0 | C20: =IF(Comm1="","",IF(LSCheckAdult="n","N/A",IF(B11=0,"N/A",CIAdultsComm1))) -> 0 | D20: =IF(Comm2="","",IF(LSCheckAdult="n","N/A",IF(Validity=1,LSComm2Adults,"N/A"))) -> 0 | E20: =IF(Comm2="","",IF(LSCheckAdult="n","N/A",IF(D11=0,"N/A",CIAdultsComm2))) -> 0 | F20: =IF(Comm3="","",IF(LSCheckAdult="n","N/A",IF(Validity=1,LSComm3Adults,"N/A"))) -> 0 | G20: =IF(Comm3="","",IF(LSCheckAdult="n","N/A",IF(F11=0,"N/A",CIAdultsComm3))) -> 0 | H20: =IF(Comm4="","",IF(LSCheckAdult="n","N/A",IF(Validity=1,LSComm4Adults,"N/A"))) -> 0 | I20: =IF(Comm4="","",IF(LSCheckAdult="n","N/A",IF(H11=0,"N/A",CIAdultsComm4))) -> 0 | J20: =IF(Comm5="","",IF(LSCheckAdult="n","N/A",IF(Validity=1,LSComm5Adults,"N/A"))) -> 0 | K20: =IF(Comm5="","",IF(LSCheckAdult="n","N/A",IF(J11=0,"N/A",CIAdultsComm5))) -> 0 | L20: =IF(Comm6="","",IF(LSCheckAdult="n","N/A",IF(Validity=1,LSComm6Adults,"N/A"))) -> 0 | M20: =IF(Comm6="","",IF(LSCheckAdult="n","N/A",IF(L11=0,"N/A",CIAdultsComm6))) -> 0 | N20: =IF(Comm7="","",IF(LSCheckAdult="n","N/A",IF(Validity=1,LSComm7Adults,"N/A"))) ->  | O20: =IF(Comm7="","",IF(LSCheckAdult="n","N/A",IF(N11=0,"N/A",CIAdultsComm7))) ->  | P20: =IF(Comm8="","",IF(LSCheckAdult="n","N/A",IF(Validity=1,LSComm8Adults,"N/A"))) ->  | Q20: =IF(Comm8="","",IF(LSCheckAdult="n","N/A",IF(P11=0,"N/A",CIAdultsComm8))) ->  | R20: =IF(Comm9="","",IF(LSCheckAdult="n","N/A",IF(Validity=1,LSComm9Adults,"N/A"))) ->  | S20: =IF(Comm9="","",IF(LSCheckAdult="n","N/A",IF(R11=0,"N/A",CIAdultsComm9))) ->  | T20: =IF(Comm10="","",IF(LSCheckAdult="n","N/A",IF(Validity=1,LSComm10Adults,"N/A"))) ->  | U20: =IF(Comm10="","",IF(LSCheckAdult="n","N/A",IF(T11=0,"N/A",CIAdultsComm10))) -> 
B21: =SUM(B13:B20) -> 1 | D21: =SUM(D13:D20) -> 1 | F21: 1 | H21: 1 | J21: 1 | L21: 1 | N21: =SUM(N13:N20) -> 0 | P21: =SUM(P13:P20) -> 0 | R21: =SUM(R13:R20) -> 0 | T21: =SUM(T13:T20) -> 0
A22: Above table provides the likelihood of an specific life stage being present in each fruit at a specified time along with the associated 95% confidence intervals.
A24: Retrospective Life Stage Probability Distribution Calculator for Drosophila suzukii
A25: FOR OBSERVED ADULT EMERGENCE ONLY
A26: Infestation time (d) | D26: =LSIT -> 1 | K26: Min (d) | L26: Max (d)
A27: Time of treatment (= holding time) (d) | D27: =LSHT -> 3 | F27: Maxiumum 95% confidence interval for ALL treatment adults = | K27: =MinAdultAge -> 3.853860624 | L27: =MaxAdultAge -> 20.14613938
A28: Enter time of adult emergence (T) (d) >> | D28: 9 | E28: =IF(AND(ISNUMBER(RLSAdultAge), RLSAdultAge>MinAdultAge,RLSAdultAge<MaxAdultAge),"",'Crunch sets II'!BJ5) -> 
A31: Life stage | B31: =Comm1 -> Blackberry | C31: =Comm2 -> Blueberry | D31: =Comm3 -> Cherry | E31: =Comm4 -> Grape | F31: =Comm5 -> Raspberry | G31: =Comm6 -> Strawberry | H31: =Comm7 -> 0 | I31: =Comm8 -> 0 | J31: =Comm9 -> 0 | K31: =Comm10 -> 0
B32: PLS(AT) | C32: PLS(AT) | D32: PLS(AT) | E32: PLS(AT) | F32: PLS(AT) | G32: PLS(AT) | H32: PLS(AT) | I32: PLS(AT) | J32: PLS(AT) | K32: PLS(AT)
A33: Eggs | B33: =IF(Comm1="","",IF(LSCheckEggs="N","",(IF(RSProbCheckComm1=1,RSProbEggsComm1,(IF(RLSAdultAge>MaxAdultComm1,"Too late",(IF(RLSAdultAge<MinAdultComm1,"Too early",RSProbEggsComm1)))))))) -> 0 | C33: =IF(Comm2="","",IF(LSCheckEggs="N","",(IF(RSProbCheckComm2=1,RSProbEggsComm2,(IF(RLSAdultAge>MaxAdultComm2,"Too late",(IF(RLSAdultAge<MinAdultComm2,"Too early",RSProbEggsComm2)))))))) -> 0 | D33: =IF(Comm3="","",IF(LSCheckEggs="N","",(IF(RSProbCheckComm3=1,RSProbEggsComm3,(IF(RLSAdultAge>MaxAdultComm3,"Too late",(IF(RLSAdultAge<MinAdultComm3,"Too early",RSProbEggsComm3)))))))) -> 0 | E33: =IF(Comm4="","",IF(LSCheckEggs="N","",(IF(RSProbCheckComm4=1,RSProbEggsComm4,(IF(RLSAdultAge>MaxAdultComm4,"Too late",(IF(RLSAdultAge<MinAdultComm4,"Too early",RSProbEggsComm4)))))))) -> 0 | F33: =IF(Comm5="","",IF(LSCheckEggs="N","",(IF(RSProbCheckComm5=1,RSProbEggsComm5,(IF(RLSAdultAge>MaxAdultComm5,"Too late",(IF(RLSAdultAge<MinAdultComm5,"Too early",RSProbEggsComm5)))))))) -> 0 | G33: =IF(Comm6="","",IF(LSCheckEggs="N","",(IF(RSProbCheckComm6=1,RSProbEggsComm6,(IF(RLSAdultAge>MaxAdultComm6,"Too late",(IF(RLSAdultAge<MinAdultComm6,"Too early",RSProbEggsComm6)))))))) -> 0 | H33: =IF(Comm7="","",IF(LSCheckEggs="N","",(IF(RSProbCheckComm7=1,RSProbEggsComm7,(IF(RLSAdultAge>MaxAdultComm7,"Too late",(IF(RLSAdultAge<MinAdultComm7,"Too early",RSProbEggsComm7)))))))) ->  | I33: =IF(Comm8="","",IF(LSCheckEggs="N","",(IF(RSProbCheckComm8=1,RSProbEggsComm8,(IF(RLSAdultAge>MaxAdultComm8,"Too late",(IF(RLSAdultAge<MinAdultComm8,"Too early",RSProbEggsComm8)))))))) ->  | J33: =IF(Comm9="","",IF(LSCheckEggs="N","",(IF(RSProbCheckComm9=1,RSProbEggsComm9,(IF(RLSAdultAge>MaxAdultComm9,"Too late",(IF(RLSAdultAge<MinAdultComm9,"Too early",RSProbEggsComm9)))))))) ->  | K33: =IF(Comm10="","",IF(LSCheckEggs="N","",(IF(RSProbCheckComm10=1,RSProbEggsComm10,(IF(RLSAdultAge>MaxAdultComm10,"Too late",(IF(RLSAdultAge<MinAdultComm10,"Too early",RSProbEggsComm10)))))))) -> 
A34: 1st Instar | B34: =IF(Comm1="","",IF(LSCheck1st="N","",(IF(RSProbCheckComm1=1,RSProb1stComm1,(IF(RLSAdultAge>MaxAdultComm1,"Too late",(IF(RLSAdultAge<MinAdultComm1,"Too early",RSProb1stComm1)))))))) -> 0 | C34: =IF(Comm2="","",IF(LSCheck1st="N","",(IF(RSProbCheckComm2=1,RSProb1stComm2,(IF(RLSAdultAge>MaxAdultComm2,"Too late",(IF(RLSAdultAge<MinAdultComm2,"Too early",RSProb1stComm2)))))))) -> 0 | D34: =IF(Comm3="","",IF(LSCheck1st="N","",(IF(RSProbCheckComm3=1,RSProb1stComm3,(IF(RLSAdultAge>MaxAdultComm3,"Too late",(IF(RLSAdultAge<MinAdultComm3,"Too early",RSProb1stComm3)))))))) -> 0 | E34: =IF(Comm4="","",IF(LSCheck1st="N","",(IF(RSProbCheckComm4=1,RSProb1stComm4,(IF(RLSAdultAge>MaxAdultComm4,"Too late",(IF(RLSAdultAge<MinAdultComm4,"Too early",RSProb1stComm4)))))))) -> 0 | F34: =IF(Comm5="","",IF(LSCheck1st="N","",(IF(RSProbCheckComm5=1,RSProb1stComm5,(IF(RLSAdultAge>MaxAdultComm5,"Too late",(IF(RLSAdultAge<MinAdultComm5,"Too early",RSProb1stComm5)))))))) -> 0 | G34: =IF(Comm6="","",IF(LSCheck1st="N","",(IF(RSProbCheckComm6=1,RSProb1stComm6,(IF(RLSAdultAge>MaxAdultComm6,"Too late",(IF(RLSAdultAge<MinAdultComm6,"Too early",RSProb1stComm6)))))))) -> 0 | H34: =IF(Comm7="","",IF(LSCheck1st="N","",(IF(RSProbCheckComm7=1,RSProb1stComm7,(IF(RLSAdultAge>MaxAdultComm7,"Too late",(IF(RLSAdultAge<MinAdultComm7,"Too early",RSProb1stComm7)))))))) ->  | I34: =IF(Comm8="","",IF(LSCheck1st="N","",(IF(RSProbCheckComm8=1,RSProb1stComm8,(IF(RLSAdultAge>MaxAdultComm8,"Too late",(IF(RLSAdultAge<MinAdultComm8,"Too early",RSProb1stComm8)))))))) ->  | J34: =IF(Comm9="","",IF(LSCheck1st="N","",(IF(RSProbCheckComm9=1,RSProb1stComm9,(IF(RLSAdultAge>MaxAdultComm9,"Too late",(IF(RLSAdultAge<MinAdultComm9,"Too early",RSProb1stComm9)))))))) ->  | K34: =IF(Comm10="","",IF(LSCheck1st="N","",(IF(RSProbCheckComm10=1,RSProb1stComm10,(IF(RLSAdultAge>MaxAdultComm10,"Too late",(IF(RLSAdultAge<MinAdultComm10,"Too early",RSProb1stComm10)))))))) -> 
A35: 2nd Instar | B35: =IF(Comm1="","",IF(LSCheck2nd="N","",(IF(RSProbCheckComm1=1,RSProb2ndComm1,(IF(RLSAdultAge>MaxAdultComm1,"Too late",(IF(RLSAdultAge<MinAdultComm1,"Too early",RSProb2ndComm1)))))))) -> 0 | C35: =IF(Comm2="","",IF(LSCheck2nd="N","",(IF(RSProbCheckComm2=1,RSProb2ndComm2,(IF(RLSAdultAge>MaxAdultComm2,"Too late",(IF(RLSAdultAge<MinAdultComm2,"Too early",RSProb2ndComm2)))))))) -> 0.5592286501 | D35: =IF(Comm3="","",IF(LSCheck2nd="N","",(IF(RSProbCheckComm3=1,RSProb2ndComm3,(IF(RLSAdultAge>MaxAdultComm3,"Too late",(IF(RLSAdultAge<MinAdultComm3,"Too early",RSProb2ndComm3)))))))) -> 0 | E35: =IF(Comm4="","",IF(LSCheck2nd="N","",(IF(RSProbCheckComm4=1,RSProb2ndComm4,(IF(RLSAdultAge>MaxAdultComm4,"Too late",(IF(RLSAdultAge<MinAdultComm4,"Too early",RSProb2ndComm4)))))))) -> 0.2604166667 | F35: =IF(Comm5="","",IF(LSCheck2nd="N","",(IF(RSProbCheckComm5=1,RSProb2ndComm5,(IF(RLSAdultAge>MaxAdultComm5,"Too late",(IF(RLSAdultAge<MinAdultComm5,"Too early",RSProb2ndComm5)))))))) -> 0 | G35: =IF(Comm6="","",IF(LSCheck2nd="N","",(IF(RSProbCheckComm6=1,RSProb2ndComm6,(IF(RLSAdultAge>MaxAdultComm6,"Too late",(IF(RLSAdultAge<MinAdultComm6,"Too early",RSProb2ndComm6)))))))) -> 0 | H35: =IF(Comm7="","",IF(LSCheck2nd="N","",(IF(RSProbCheckComm7=1,RSProb2ndComm7,(IF(RLSAdultAge>MaxAdultComm7,"Too late",(IF(RLSAdultAge<MinAdultComm7,"Too early",RSProb2ndComm7)))))))) ->  | I35: =IF(Comm8="","",IF(LSCheck2nd="N","",(IF(RSProbCheckComm8=1,RSProb2ndComm8,(IF(RLSAdultAge>MaxAdultComm8,"Too late",(IF(RLSAdultAge<MinAdultComm8,"Too early",RSProb2ndComm8)))))))) ->  | J35: =IF(Comm9="","",IF(LSCheck2nd="N","",(IF(RSProbCheckComm9=1,RSProb2ndComm9,(IF(RLSAdultAge>MaxAdultComm9,"Too late",(IF(RLSAdultAge<MinAdultComm9,"Too early",RSProb2ndComm9)))))))) ->  | K35: =IF(Comm10="","",IF(LSCheck2nd="N","",(IF(RSProbCheckComm10=1,RSProb2ndComm10,(IF(RLSAdultAge>MaxAdultComm10,"Too late",(IF(RLSAdultAge<MinAdultComm10,"Too early",RSProb2ndComm10)))))))) -> 
A36: 3rd Instar | B36: =IF(Comm1="","",IF(LSCheck3rd="N","",(IF(RSProbCheckComm1=1,RSProb3rdComm1,(IF(RLSAdultAge>MaxAdultComm1,"Too late",(IF(RLSAdultAge<MinAdultComm1,"Too early",RSProb3rdComm1)))))))) -> 1 | C36: =IF(Comm2="","",IF(LSCheck3rd="N","",(IF(RSProbCheckComm2=1,RSProb3rdComm2,(IF(RLSAdultAge>MaxAdultComm2,"Too late",(IF(RLSAdultAge<MinAdultComm2,"Too early",RSProb3rdComm2)))))))) -> 0.4407713499 | D36: =IF(Comm3="","",IF(LSCheck3rd="N","",(IF(RSProbCheckComm3=1,RSProb3rdComm3,(IF(RLSAdultAge>MaxAdultComm3,"Too late",(IF(RLSAdultAge<MinAdultComm3,"Too early",RSProb3rdComm3)))))))) -> 1 | E36: =IF(Comm4="","",IF(LSCheck3rd="N","",(IF(RSProbCheckComm4=1,RSProb3rdComm4,(IF(RLSAdultAge>MaxAdultComm4,"Too late",(IF(RLSAdultAge<MinAdultComm4,"Too early",RSProb3rdComm4)))))))) -> 0.7395833333 | F36: =IF(Comm5="","",IF(LSCheck3rd="N","",(IF(RSProbCheckComm5=1,RSProb3rdComm5,(IF(RLSAdultAge>MaxAdultComm5,"Too late",(IF(RLSAdultAge<MinAdultComm5,"Too early",RSProb3rdComm5)))))))) -> 0.9953917051 | G36: =IF(Comm6="","",IF(LSCheck3rd="N","",(IF(RSProbCheckComm6=1,RSProb3rdComm6,(IF(RLSAdultAge>MaxAdultComm6,"Too late",(IF(RLSAdultAge<MinAdultComm6,"Too early",RSProb3rdComm6)))))))) -> 1 | H36: =IF(Comm7="","",IF(LSCheck3rd="N","",(IF(RSProbCheckComm7=1,RSProb3rdComm7,(IF(RLSAdultAge>MaxAdultComm7,"Too late",(IF(RLSAdultAge<MinAdultComm7,"Too early",RSProb3rdComm7)))))))) ->  | I36: =IF(Comm8="","",IF(LSCheck3rd="N","",(IF(RSProbCheckComm8=1,RSProb3rdComm8,(IF(RLSAdultAge>MaxAdultComm8,"Too late",(IF(RLSAdultAge<MinAdultComm8,"Too early",RSProb3rdComm8)))))))) ->  | J36: =IF(Comm9="","",IF(LSCheck3rd="N","",(IF(RSProbCheckComm9=1,RSProb3rdComm9,(IF(RLSAdultAge>MaxAdultComm9,"Too late",(IF(RLSAdultAge<MinAdultComm9,"Too early",RSProb3rdComm9)))))))) ->  | K36: =IF(Comm10="","",IF(LSCheck3rd="N","",(IF(RSProbCheckComm10=1,RSProb3rdComm10,(IF(RLSAdultAge>MaxAdultComm10,"Too late",(IF(RLSAdultAge<MinAdultComm10,"Too early",RSProb3rdComm10)))))))) -> 
A37: 4th Instar | B37: =IF(Comm1="","",IF(LSCheck4th="N","",(IF(RSProbCheckComm1=1,RSProb4thComm1,(IF(RLSAdultAge>MaxAdultComm1,"Too late",(IF(RLSAdultAge<MinAdultComm1,"Too early",RSProb4thComm1)))))))) ->  | C37: =IF(Comm2="","",IF(LSCheck4th="N","",(IF(RSProbCheckComm2=1,RSProb4thComm2,(IF(RLSAdultAge>MaxAdultComm2,"Too late",(IF(RLSAdultAge<MinAdultComm2,"Too early",RSProb4thComm2)))))))) ->  | D37: =IF(Comm3="","",IF(LSCheck4th="N","",(IF(RSProbCheckComm3=1,RSProb4thComm3,(IF(RLSAdultAge>MaxAdultComm3,"Too late",(IF(RLSAdultAge<MinAdultComm3,"Too early",RSProb4thComm3)))))))) ->  | E37: =IF(Comm4="","",IF(LSCheck4th="N","",(IF(RSProbCheckComm4=1,RSProb4thComm4,(IF(RLSAdultAge>MaxAdultComm4,"Too late",(IF(RLSAdultAge<MinAdultComm4,"Too early",RSProb4thComm4)))))))) ->  | F37: =IF(Comm5="","",IF(LSCheck4th="N","",(IF(RSProbCheckComm5=1,RSProb4thComm5,(IF(RLSAdultAge>MaxAdultComm5,"Too late",(IF(RLSAdultAge<MinAdultComm5,"Too early",RSProb4thComm5)))))))) ->  | G37: =IF(Comm6="","",IF(LSCheck4th="N","",(IF(RSProbCheckComm6=1,RSProb4thComm6,(IF(RLSAdultAge>MaxAdultComm6,"Too late",(IF(RLSAdultAge<MinAdultComm6,"Too early",RSProb4thComm6)))))))) ->  | H37: =IF(Comm7="","",IF(LSCheck4th="N","",(IF(RSProbCheckComm7=1,RSProb4thComm7,(IF(RLSAdultAge>MaxAdultComm7,"Too late",(IF(RLSAdultAge<MinAdultComm7,"Too early",RSProb4thComm7)))))))) ->  | I37: =IF(Comm8="","",IF(LSCheck4th="N","",(IF(RSProbCheckComm8=1,RSProb4thComm8,(IF(RLSAdultAge>MaxAdultComm8,"Too late",(IF(RLSAdultAge<MinAdultComm8,"Too early",RSProb4thComm8)))))))) ->  | J37: =IF(Comm9="","",IF(LSCheck4th="N","",(IF(RSProbCheckComm9=1,RSProb4thComm9,(IF(RLSAdultAge>MaxAdultComm9,"Too late",(IF(RLSAdultAge<MinAdultComm9,"Too early",RSProb4thComm9)))))))) ->  | K37: =IF(Comm10="","",IF(LSCheck4th="N","",(IF(RSProbCheckComm10=1,RSProb4thComm10,(IF(RLSAdultAge>MaxAdultComm10,"Too late",(IF(RLSAdultAge<MinAdultComm10,"Too early",RSProb4thComm10)))))))) -> 
A38: 5th Instar | B38: =IF(Comm1="","",IF(LSCheck5th="N","",(IF(RSProbCheckComm1=1,RSProb5thComm1,(IF(RLSAdultAge>MaxAdultComm1,"Too late",(IF(RLSAdultAge<MinAdultComm1,"Too early",RSProb5thComm1)))))))) ->  | C38: =IF(Comm2="","",IF(LSCheck5th="N","",(IF(RSProbCheckComm2=1,RSProb5thComm2,(IF(RLSAdultAge>MaxAdultComm2,"Too late",(IF(RLSAdultAge<MinAdultComm2,"Too early",RSProb5thComm2)))))))) ->  | D38: =IF(Comm3="","",IF(LSCheck5th="N","",(IF(RSProbCheckComm3=1,RSProb5thComm3,(IF(RLSAdultAge>MaxAdultComm3,"Too late",(IF(RLSAdultAge<MinAdultComm3,"Too early",RSProb5thComm3)))))))) ->  | E38: =IF(Comm4="","",IF(LSCheck5th="N","",(IF(RSProbCheckComm4=1,RSProb5thComm4,(IF(RLSAdultAge>MaxAdultComm4,"Too late",(IF(RLSAdultAge<MinAdultComm4,"Too early",RSProb5thComm4)))))))) ->  | F38: =IF(Comm5="","",IF(LSCheck5th="N","",(IF(RSProbCheckComm5=1,RSProb5thComm5,(IF(RLSAdultAge>MaxAdultComm5,"Too late",(IF(RLSAdultAge<MinAdultComm5,"Too early",RSProb5thComm5)))))))) ->  | G38: =IF(Comm6="","",IF(LSCheck5th="N","",(IF(RSProbCheckComm6=1,RSProb5thComm6,(IF(RLSAdultAge>MaxAdultComm6,"Too late",(IF(RLSAdultAge<MinAdultComm6,"Too early",RSProb5thComm6)))))))) ->  | H38: =IF(Comm7="","",IF(LSCheck5th="N","",(IF(RSProbCheckComm7=1,RSProb5thComm7,(IF(RLSAdultAge>MaxAdultComm7,"Too late",(IF(RLSAdultAge<MinAdultComm7,"Too early",RSProb5thComm7)))))))) ->  | I38: =IF(Comm8="","",IF(LSCheck5th="N","",(IF(RSProbCheckComm8=1,RSProb5thComm8,(IF(RLSAdultAge>MaxAdultComm8,"Too late",(IF(RLSAdultAge<MinAdultComm8,"Too early",RSProb5thComm8)))))))) ->  | J38: =IF(Comm9="","",IF(LSCheck5th="N","",(IF(RSProbCheckComm9=1,RSProb5thComm9,(IF(RLSAdultAge>MaxAdultComm9,"Too late",(IF(RLSAdultAge<MinAdultComm9,"Too early",RSProb5thComm9)))))))) ->  | K38: =IF(Comm10="","",IF(LSCheck5th="N","",(IF(RSProbCheckComm10=1,RSProb5thComm10,(IF(RLSAdultAge>MaxAdultComm10,"Too late",(IF(RLSAdultAge<MinAdultComm10,"Too early",RSProb5thComm10)))))))) -> 
A39: Pupae | B39: =IF(Comm1="","",IF(LSCheckPupa="N","",(IF(RSProbCheckComm1=1,RSProbPupaeComm1,(IF(RLSAdultAge>MaxAdultComm1,"Too late",(IF(RLSAdultAge<MinAdultComm1,"Too early",RSProbPupaeComm1)))))))) -> 0 | C39: =IF(Comm2="","",IF(LSCheckPupa="N","",(IF(RSProbCheckComm2=1,RSProbPupaeComm2,(IF(RLSAdultAge>MaxAdultComm2,"Too late",(IF(RLSAdultAge<MinAdultComm2,"Too early",RSProbPupaeComm2)))))))) -> 0 | D39: =IF(Comm3="","",IF(LSCheckPupa="N","",(IF(RSProbCheckComm3=1,RSProbPupaeComm3,(IF(RLSAdultAge>MaxAdultComm3,"Too late",(IF(RLSAdultAge<MinAdultComm3,"Too early",RSProbPupaeComm3)))))))) -> 0 | E39: =IF(Comm4="","",IF(LSCheckPupa="N","",(IF(RSProbCheckComm4=1,RSProbPupaeComm4,(IF(RLSAdultAge>MaxAdultComm4,"Too late",(IF(RLSAdultAge<MinAdultComm4,"Too early",RSProbPupaeComm4)))))))) -> 0 | F39: =IF(Comm5="","",IF(LSCheckPupa="N","",(IF(RSProbCheckComm5=1,RSProbPupaeComm5,(IF(RLSAdultAge>MaxAdultComm5,"Too late",(IF(RLSAdultAge<MinAdultComm5,"Too early",RSProbPupaeComm5)))))))) -> 0.004608294931 | G39: =IF(Comm6="","",IF(LSCheckPupa="N","",(IF(RSProbCheckComm6=1,RSProbPupaeComm6,(IF(RLSAdultAge>MaxAdultComm6,"Too late",(IF(RLSAdultAge<MinAdultComm6,"Too early",RSProbPupaeComm6)))))))) -> 0 | H39: =IF(Comm7="","",IF(LSCheckPupa="N","",(IF(RSProbCheckComm7=1,RSProbPupaeComm7,(IF(RLSAdultAge>MaxAdultComm7,"Too late",(IF(RLSAdultAge<MinAdultComm7,"Too early",RSProbPupaeComm7)))))))) ->  | I39: =IF(Comm8="","",IF(LSCheckPupa="N","",(IF(RSProbCheckComm8=1,RSProbPupaeComm8,(IF(RLSAdultAge>MaxAdultComm8,"Too late",(IF(RLSAdultAge<MinAdultComm8,"Too early",RSProbPupaeComm8)))))))) ->  | J39: =IF(Comm9="","",IF(LSCheckPupa="N","",(IF(RSProbCheckComm9=1,RSProbPupaeComm9,(IF(RLSAdultAge>MaxAdultComm9,"Too late",(IF(RLSAdultAge<MinAdultComm9,"Too early",RSProbPupaeComm9)))))))) ->  | K39: =IF(Comm10="","",IF(LSCheckPupa="N","",(IF(RSProbCheckComm10=1,RSProbPupaeComm10,(IF(RLSAdultAge>MaxAdultComm10,"Too late",(IF(RLSAdultAge<MinAdultComm10,"Too early",RSProbPupaeComm10)))))))) -> 
A40: Above table provides the retrospective probabilities that an emerging adult was in a particular life stage at a specified time of treatment.

Sheet Step 2 - Treatment Statistics
A1: Treatment | B1: Life Stage (LS) | C1: nLS | D1: mean time (d) of life stage distribution (LS) | E1: 1.96 s (d) | F1: Kurtosis (g2) | G1: First observation (d) | H1: Last observation (d) | I1: Life stage duration (d) | J1: *Relative time spent in life stage (% of total) | K1: Mean time (d) to adult emergence (LS) | L1: 1.96 s (d) | M1: Linear Regression of developmental time (LS) vs life stage (1=eggs, 2 = 1st instars, …, 7 = pupae, and 8 = Adults). Linear equation provided y = mx+b where m = rate of development. Steeper slopes indicate slower devlopment. R2 provided. | AA1: DCommXLS (h)
A2: =IF(Comm1="","No treatment",Comm1) -> Blackberry | B2: Eggs | C2: =IF(LSCheckEggs="n","N/A",SUM('Step 1 - Enter Raw Data'!B29:BI29)) -> 235 | D2: =IF(Comm1="","",IF(LSCheckEggs="n",NA(),T1EXLS)) -> 1 | E2: =IF(Comm1="","",IF(LSCheckEggs="n","",'Step 1 - Enter Raw Data'!BK29)) -> 0 | F2: =IF(Comm1="","",IF(LSCheckEggs="n","",KURT('Step 1 - Enter Raw Data'!B29:BI29))) -> 60 | G2: =IF(Comm1="","",IF(LSCheckEggs="n","",'Step 1 - Enter Raw Data'!BQ29)) -> 1 | H2: =IF(Comm1="","",IF(LSCheckEggs="n","",'Step 1 - Enter Raw Data'!BR29)) -> 1 | I2: =IF(Comm1="","",IF(LSCheckEggs="n","",(H2-G2)+1)) -> 1 | J2: =IF(Comm1="","",IF(LSCheckEggs="n","",I2/I$10)) -> 0.0625 | K2: =IF(Comm1="","",IF(LSCheckEggs="n","",T1AXLS-T1EXLS)) -> 8.756626506 | L2: =IF(Comm1="","",IF(LSCheckEggs="n","",DSTDEggsComm1/24)) -> 0.9365778831 | Y2: =Comm1 -> Blackberry | Z2: E | AA2: =IF(Comm1="","",IF(LSCheckEggs="n","",K2*24)) -> 210.1590361
B3: 1st instar | C3: =IF(LSCheck1st="n","N/A",SUM('Step 1 - Enter Raw Data'!B30:BI30)) -> 221 | D3: =IF(Comm1="","",IF(LSCheck1st="n",NA(),T11XLS)) -> 1.909502262 | E3: =IF(Comm1="","",IF(LSCheck1st="n","",'Step 1 - Enter Raw Data'!BK30)) -> 0.4055862494 | F3: =IF(Comm1="","",IF(LSCheck1st="n","",KURT('Step 1 - Enter Raw Data'!B30:BI30))) -> 56.69470039 | G3: =IF(Comm1="","",IF(LSCheck1st="n","",'Step 1 - Enter Raw Data'!BQ30)) -> 1 | H3: =IF(Comm1="","",IF(LSCheck1st="n","",'Step 1 - Enter Raw Data'!BR30)) -> 3 | I3: =IF(Comm1="","",IF(LSCheck1st="n","",(H3-G3)+1)) -> 3 | J3: =IF(Comm1="","",IF(LSCheck1st="n","",I3/I$10)) -> 0.1875 | K3: =IF(Comm1="","",IF(LSCheck1st="n","",T1AXLS-T11XLS)) -> 7.847124244 | L3: =IF(Comm1="","",IF(LSCheck1st="n","",DSTD1stComm1/24)) -> 1.020626443 | Z3: 1 | AA3: =IF(Comm1="","",IF(LSCheck1st="n","",K3*24)) -> 188.3309818
B4: 2nd instar | C4: =IF(LSCheck2nd="n","N/A",SUM('Step 1 - Enter Raw Data'!B31:BI31)) -> 267 | D4: =IF(Comm1="","",IF(LSCheck2nd="n",NA(),T12XLS)) -> 3.093632959 | E4: =IF(Comm1="","",IF(LSCheck2nd="n","",'Step 1 - Enter Raw Data'!BK31)) -> 0.4615240201 | F4: =IF(Comm1="","",IF(LSCheck2nd="n","",KURT('Step 1 - Enter Raw Data'!B31:BI31))) -> 58.37757182 | G4: =IF(Comm1="","",IF(LSCheck2nd="n","",'Step 1 - Enter Raw Data'!BQ31)) -> 2 | H4: =IF(Comm1="","",IF(LSCheck2nd="n","",'Step 1 - Enter Raw Data'!BR31)) -> 6 | I4: =IF(Comm1="","",IF(LSCheck2nd="n","",(H4-G4)+1)) -> 5 | J4: =IF(Comm1="","",IF(LSCheck2nd="n","",I4/I$10)) -> 0.3125 | K4: =IF(Comm1="","",IF(LSCheck2nd="n","",T1AXLS-T12XLS)) -> 6.662993547 | L4: =IF(Comm1="","",IF(LSCheck2nd="n","",DSTD2ndComm1/24)) -> 1.044118074 | Z4: 2 | AA4: =IF(Comm1="","",IF(LSCheck2nd="n","",K4*24)) -> 159.9118451
B5: 3rd instar | C5: =IF(LSCheck3rd="n","N/A",SUM('Step 1 - Enter Raw Data'!B32:BI32)) -> 1068 | D5: =IF(Comm1="","",IF(LSCheck3rd="n",NA(),T13XLS)) -> 5.397003745 | E5: =IF(Comm1="","",IF(LSCheck3rd="n","",'Step 1 - Enter Raw Data'!BK32)) -> 1.132989349 | F5: =IF(Comm1="","",IF(LSCheck3rd="n","",KURT('Step 1 - Enter Raw Data'!B32:BI32))) -> 12.11053451 | G5: =IF(Comm1="","",IF(LSCheck3rd="n","",'Step 1 - Enter Raw Data'!BQ32)) -> 3 | H5: =IF(Comm1="","",IF(LSCheck3rd="n","",'Step 1 - Enter Raw Data'!BR32)) -> 8 | I5: =IF(Comm1="","",IF(LSCheck3rd="n","",(H5-G5)+1)) -> 6 | J5: =IF(Comm1="","",IF(LSCheck3rd="n","",I5/I$10)) -> 0.375 | K5: =IF(Comm1="","",IF(LSCheck3rd="n","",T1AXLS-T13XLS)) -> 4.359622761 | L5: =IF(Comm1="","",IF(LSCheck3rd="n","",DSTD3rdComm1/24)) -> 1.469980611 | Z5: 3 | AA5: =IF(Comm1="","",IF(LSCheck3rd="n","",K5*24)) -> 104.6309463
B6: 4th instar | C6: =IF(LSCheck4th="n","N/A",SUM('Step 1 - Enter Raw Data'!B33:BI33)) -> N/A | D6: =IF(Comm1="","",IF(LSCheck4th="n",NA(),T14XLS)) ->  | E6: =IF(Comm1="","",IF(LSCheck4th="n","",'Step 1 - Enter Raw Data'!BK33)) ->  | F6: =IF(Comm1="","",IF(LSCheck4th="n","",KURT('Step 1 - Enter Raw Data'!B33:BI33))) ->  | G6: =IF(Comm1="","",IF(LSCheck4th="n","",'Step 1 - Enter Raw Data'!BQ33)) ->  | H6: =IF(Comm1="","",IF(LSCheck4th="n","",'Step 1 - Enter Raw Data'!BR33)) ->  | I6: =IF(Comm1="","",IF(LSCheck4th="n","",(H6-G6)+1)) ->  | J6: =IF(Comm1="","",IF(LSCheck4th="n","",I6/I$10)) ->  | K6: =IF(Comm1="","",IF(LSCheck4th="n","",T1AXLS-T14XLS)) ->  | L6: =IF(Comm1="","",IF(LSCheck4th="n","",DSTD4thComm1/24)) ->  | Z6: 4 | AA6: =IF(Comm1="","",IF(LSCheck4th="n","",K6*24)) -> 
B7: 5th instar | C7: =IF(LSCheck5th="n","N/A",SUM('Step 1 - Enter Raw Data'!B34:BI34)) -> N/A | D7: =IF(Comm1="","",IF(LSCheck5th="n",NA(),T15XLS)) ->  | E7: =IF(Comm1="","",IF(LSCheck5th="n","",'Step 1 - Enter Raw Data'!BK34)) ->  | F7: =IF(Comm1="","",IF(LSCheck5th="n","",KURT('Step 1 - Enter Raw Data'!B34:BI34))) ->  | G7: =IF(Comm1="","",IF(LSCheck5th="n","",'Step 1 - Enter Raw Data'!BQ34)) ->  | H7: =IF(Comm1="","",IF(LSCheck5th="n","",'Step 1 - Enter Raw Data'!BR34)) ->  | I7: =IF(Comm1="","",IF(LSCheck5th="n","",(H7-G7)+1)) ->  | J7: =IF(Comm1="","",IF(LSCheck5th="n","",I7/I$10)) ->  | K7: =IF(Comm1="","",IF(LSCheck5th="n","",T1AXLS-T15XLS)) ->  | L7: =IF(Comm1="","",IF(LSCheck5th="n","",DSTD5thComm1/24)) ->  | Z7: 5 | AA7: =IF(Comm1="","",IF(LSCheck5th="n","",K7*24)) -> 
B8: Pupae | C8: =IF(LSCheckPupa="n","N/A",SUM('Step 1 - Enter Raw Data'!B35:BI35)) -> 827 | D8: =IF(Comm1="","",IF(LSCheckPupa="n",NA(),T1PXLS)) -> 7.781136638 | E8: =IF(Comm1="","",IF(LSCheckPupa="n","",'Step 1 - Enter Raw Data'!BK35)) -> 0.9409861215 | F8: =IF(Comm1="","",IF(LSCheckPupa="n","",KURT('Step 1 - Enter Raw Data'!B35:BI35))) -> 16.66110855 | G8: =IF(Comm1="","",IF(LSCheckPupa="n","",'Step 1 - Enter Raw Data'!BQ35)) -> 5 | H8: =IF(Comm1="","",IF(LSCheckPupa="n","",'Step 1 - Enter Raw Data'!BR35)) -> 9 | I8: =IF(Comm1="","",IF(LSCheckPupa="n","",(H8-G8)+1)) -> 5 | J8: =IF(Comm1="","",IF(LSCheckPupa="n","",I8/I$10)) -> 0.3125 | K8: =IF(Comm1="","",IF(LSCheckPupa="n","",T1AXLS-T1PXLS)) -> 1.975489868 | L8: =IF(Comm1="","",IF(LSCheckPupa="n","",DSTDPupaeComm1/24)) -> 1.327641899 | Z8: P | AA8: =IF(Comm1="","",IF(LSCheckPupa="n","",K8*24)) -> 47.41175682
B9: Adults | C9: =IF(LSCheckAdult="n","N/A",SUM('Step 1 - Enter Raw Data'!B36:BI36)) -> 3320 | D9: =IF(Comm1="","",IF(LSCheckAdult="n",NA(),T1AXLS)) -> 9.756626506 | E9: =IF(Comm1="","",IF(LSCheckAdult="n","",'Step 1 - Enter Raw Data'!BK36)) -> 0.9365778831 | F9: =IF(Comm1="","",IF(LSCheckAdult="n","",KURT('Step 1 - Enter Raw Data'!B36:BI36))) -> 26.95789726 | G9: =IF(Comm1="","",IF(LSCheckAdult="n","",'Step 1 - Enter Raw Data'!BQ36)) -> 7 | H9: =IF(Comm1="","",IF(LSCheckAdult="n","",'Step 1 - Enter Raw Data'!BR36)) -> 16 | I9: =IF(Comm1="","",IF(LSCheckAdult="n","",(H9-G9)+1)) -> 10 | J9: =IF(Comm1="","",IF(LSCheckAdult="n","",I9/I$10)) -> 0.625
B10: Treatment | C10: =IF(Comm1="","",SUM(C2:C9)) -> 5938 | F10: =IF(Comm1="","",KURT('Step 1 - Enter Raw Data'!B37:BI37)) -> 19.40958061 | G10: =IF(Comm1="","",'Step 1 - Enter Raw Data'!BQ37) -> 1 | H10: =IF(Comm1="","",'Step 1 - Enter Raw Data'!BR37) -> 16 | I10: =IF(Comm1="","",(H10-G10)+1) -> 16 | J10: =IF(Comm1="","",I10/I$10) -> 1
A11: =IF(Comm2="","No treatment",Comm2) -> Blueberry | B11: Eggs | C11: =IF(LSCheckEggs="n","N/A",SUM('Step 1 - Enter Raw Data'!B40:BI40)) -> 136 | D11: =IF(Comm2="","",IF(LSCheckEggs="n",NA(),T2EXLS)) -> 1.051470588 | E11: =IF(Comm2="","",IF(LSCheckEggs="n","",'Step 1 - Enter Raw Data'!BK40)) -> 0.2217724206 | F11: =IF(Comm2="","",IF(LSCheckEggs="n","",KURT('Step 1 - Enter Raw Data'!B40:BI40))) -> 59.62930594 | G11: =IF(Comm2="","",IF(LSCheckEggs="n","",'Step 1 - Enter Raw Data'!BQ40)) -> 1 | H11: =IF(Comm2="","",IF(LSCheckEggs="n","",'Step 1 - Enter Raw Data'!BR40)) -> 2 | I11: =IF(Comm2="","",IF(LSCheckEggs="n","",(H11-G11)+1)) -> 2 | J11: =IF(Comm2="","",IF(LSCheckEggs="n","",I11/I$19)) -> 0.125 | K11: =IF(Comm2="","",IF(LSCheckEggs="n","",T2AXLS-T2EXLS)) -> 9.427470447 | L11: =IF(Comm2="","",IF(LSCheckEggs="n","",DSTDEggsComm2/24)) -> 1.091149148 | Y11: =Comm2 -> Blueberry | Z11: E | AA11: =IF(Comm2="","",IF(LSCheckEggs="n","",K11*24)) -> 226.2592907
B12: 1st instar | C12: =IF(LSCheck1st="n","N/A",SUM('Step 1 - Enter Raw Data'!B41:BI41)) -> 141 | D12: =IF(Comm2="","",IF(LSCheck1st="n",NA(),T21XLS)) -> 2.446808511 | E12: =IF(Comm2="","",IF(LSCheck1st="n","",'Step 1 - Enter Raw Data'!BK41)) -> 1.136570857 | F12: =IF(Comm2="","",IF(LSCheck1st="n","",KURT('Step 1 - Enter Raw Data'!B41:BI41))) -> 54.06357756 | G12: =IF(Comm2="","",IF(LSCheck1st="n","",'Step 1 - Enter Raw Data'!BQ41)) -> 1 | H12: =IF(Comm2="","",IF(LSCheck1st="n","",'Step 1 - Enter Raw Data'!BR41)) -> 6 | I12: =IF(Comm2="","",IF(LSCheck1st="n","",(H12-G12)+1)) -> 6 | J12: =IF(Comm2="","",IF(LSCheck1st="n","",I12/I$19)) -> 0.375 | K12: =IF(Comm2="","",IF(LSCheck1st="n","",T2AXLS-T21XLS)) -> 8.032132524 | L12: =IF(Comm2="","",IF(LSCheck1st="n","",DSTD1stComm2/24)) -> 1.559877165 | Z12: 1 | AA12: =IF(Comm2="","",IF(LSCheck1st="n","",K12*24)) -> 192.7711806
B13: 2nd instar | C13: =IF(LSCheck2nd="n","N/A",SUM('Step 1 - Enter Raw Data'!B42:BI42)) -> 215 | D13: =IF(Comm2="","",IF(LSCheck2nd="n",NA(),T22XLS)) -> 4.16744186 | E13: =IF(Comm2="","",IF(LSCheck2nd="n","",'Step 1 - Enter Raw Data'!BK42)) -> 1.16002758 | F13: =IF(Comm2="","",IF(LSCheck2nd="n","",KURT('Step 1 - Enter Raw Data'!B42:BI42))) -> 24.59777708 | G13: =IF(Comm2="","",IF(LSCheck2nd="n","",'Step 1 - Enter Raw Data'!BQ42)) -> 2 | H13: =IF(Comm2="","",IF(LSCheck2nd="n","",'Step 1 - Enter Raw Data'!BR42)) -> 7 | I13: =IF(Comm2="","",IF(LSCheck2nd="n","",(H13-G13)+1)) -> 6 | J13: =IF(Comm2="","",IF(LSCheck2nd="n","",I13/I$19)) -> 0.375 | K13: =IF(Comm2="","",IF(LSCheck2nd="n","",T2AXLS-T22XLS)) -> 6.311499174 | L13: =IF(Comm2="","",IF(LSCheck2nd="n","",DSTD2ndComm2/24)) -> 1.577050234 | Z13: 2 | AA13: =IF(Comm2="","",IF(LSCheck2nd="n","",K13*24)) -> 151.4759802
B14: 3rd instar | C14: =IF(LSCheck3rd="n","N/A",SUM('Step 1 - Enter Raw Data'!B43:BI43)) -> 255 | D14: =IF(Comm2="","",IF(LSCheck3rd="n",NA(),T23XLS)) -> 6.129411765 | E14: =IF(Comm2="","",IF(LSCheck3rd="n","",'Step 1 - Enter Raw Data'!BK43)) -> 1.498988388 | F14: =IF(Comm2="","",IF(LSCheck3rd="n","",KURT('Step 1 - Enter Raw Data'!B43:BI43))) -> 9.771387261 | G14: =IF(Comm2="","",IF(LSCheck3rd="n","",'Step 1 - Enter Raw Data'!BQ43)) -> 3 | H14: =IF(Comm2="","",IF(LSCheck3rd="n","",'Step 1 - Enter Raw Data'!BR43)) -> 9 | I14: =IF(Comm2="","",IF(LSCheck3rd="n","",(H14-G14)+1)) -> 7 | J14: =IF(Comm2="","",IF(LSCheck3rd="n","",I14/I$19)) -> 0.4375 | K14: =IF(Comm2="","",IF(LSCheck3rd="n","",T2AXLS-T23XLS)) -> 4.34952927 | L14: =IF(Comm2="","",IF(LSCheck3rd="n","",DSTD3rdComm2/24)) -> 1.840757899 | Z14: 3 | AA14: =IF(Comm2="","",IF(LSCheck3rd="n","",K14*24)) -> 104.3887025
B15: 4th instar | C15: =IF(LSCheck4th="n","N/A",SUM('Step 1 - Enter Raw Data'!B44:BI44)) -> N/A | D15: =IF(Comm2="","",IF(LSCheck4th="n",NA(),T24XLS)) ->  | E15: =IF(Comm2="","",IF(LSCheck4th="n","",'Step 1 - Enter Raw Data'!BK44)) ->  | F15: =IF(Comm2="","",IF(LSCheck4th="n","",KURT('Step 1 - Enter Raw Data'!B44:BI44))) ->  | G15: =IF(Comm2="","",IF(LSCheck4th="n","",'Step 1 - Enter Raw Data'!BQ44)) ->  | H15: =IF(Comm2="","",IF(LSCheck4th="n","",'Step 1 - Enter Raw Data'!BR44)) ->  | I15: =IF(Comm2="","",IF(LSCheck4th="n","",(H15-G15)+1)) ->  | J15: =IF(Comm2="","",IF(LSCheck4th="n","",I15/I$19)) ->  | K15: =IF(Comm2="","",IF(LSCheck4th="n","",T2AXLS-T24XLS)) ->  | L15: =IF(Comm2="","",IF(LSCheck4th="n","",DSTD4thComm2/24)) ->  | Z15: 4 | AA15: =IF(Comm2="","",IF(LSCheck4th="n","",K15*24)) -> 
B16: 5th instar | C16: =IF(LSCheck5th="n","N/A",SUM('Step 1 - Enter Raw Data'!B45:BI45)) -> N/A | D16: =IF(Comm2="","",IF(LSCheck5th="n",NA(),T25XLS)) ->  | E16: =IF(Comm2="","",IF(LSCheck5th="n","",'Step 1 - Enter Raw Data'!BK45)) ->  | F16: =IF(Comm2="","",IF(LSCheck5th="n","",KURT('Step 1 - Enter Raw Data'!B45:BI45))) ->  | G16: =IF(Comm2="","",IF(LSCheck5th="n","",'Step 1 - Enter Raw Data'!BQ45)) ->  | H16: =IF(Comm2="","",IF(LSCheck5th="n","",'Step 1 - Enter Raw Data'!BR45)) ->  | I16: =IF(Comm2="","",IF(LSCheck5th="n","",(H16-G16)+1)) ->  | J16: =IF(Comm2="","",IF(LSCheck5th="n","",I16/I$19)) ->  | K16: =IF(Comm2="","",IF(LSCheck5th="n","",T2AXLS-T25XLS)) ->  | L16: =IF(Comm2="","",IF(LSCheck5th="n","",DSTD5thComm2/24)) ->  | Z16: 5 | AA16: =IF(Comm2="","",IF(LSCheck5th="n","",K16*24)) -> 
B17: Pupae | C17: =IF(LSCheckPupa="n","N/A",SUM('Step 1 - Enter Raw Data'!B46:BI46)) -> 175 | D17: =IF(Comm2="","",IF(LSCheckPupa="n",NA(),T2PXLS)) -> 9.234285714 | E17: =IF(Comm2="","",IF(LSCheckPupa="n","",'Step 1 - Enter Raw Data'!BK46)) -> 0.8950511631 | F17: =IF(Comm2="","",IF(LSCheckPupa="n","",KURT('Step 1 - Enter Raw Data'!B46:BI46))) -> 26.23475261 | G17: =IF(Comm2="","",IF(LSCheckPupa="n","",'Step 1 - Enter Raw Data'!BQ46)) -> 7 | H17: =IF(Comm2="","",IF(LSCheckPupa="n","",'Step 1 - Enter Raw Data'!BR46)) -> 10 | I17: =IF(Comm2="","",IF(LSCheckPupa="n","",(H17-G17)+1)) -> 4 | J17: =IF(Comm2="","",IF(LSCheckPupa="n","",I17/I$19)) -> 0.25 | K17: =IF(Comm2="","",IF(LSCheckPupa="n","",T2AXLS-T2PXLS)) -> 1.244655321 | L17: =IF(Comm2="","",IF(LSCheckPupa="n","",DSTDPupaeComm2/24)) -> 1.393750351 | Z17: P | AA17: =IF(Comm2="","",IF(LSCheckPupa="n","",K17*24)) -> 29.87172769
B18: Adults | C18: =IF(LSCheckAdult="n","N/A",SUM('Step 1 - Enter Raw Data'!B47:BI47)) -> 831 | D18: =IF(Comm2="","",IF(LSCheckAdult="n",NA(),T2AXLS)) -> 10.47894103 | E18: =IF(Comm2="","",IF(LSCheckAdult="n","",'Step 1 - Enter Raw Data'!BK47)) -> 1.068374211 | F18: =IF(Comm2="","",IF(LSCheckAdult="n","",KURT('Step 1 - Enter Raw Data'!B47:BI47))) -> 33.88272059 | G18: =IF(Comm2="","",IF(LSCheckAdult="n","",'Step 1 - Enter Raw Data'!BQ47)) -> 8 | H18: =IF(Comm2="","",IF(LSCheckAdult="n","",'Step 1 - Enter Raw Data'!BR47)) -> 16 | I18: =IF(Comm2="","",IF(LSCheckAdult="n","",(H18-G18)+1)) -> 9 | J18: =IF(Comm2="","",IF(LSCheckAdult="n","",I18/I$19)) -> 0.5625
B19: Treatment | C19: =IF(Comm2="","",SUM(C11:C18)) -> 1753 | F19: =IF(Comm2="","",KURT('Step 1 - Enter Raw Data'!B48:BI48)) -> 22.20796472 | G19: =IF(Comm2="","",'Step 1 - Enter Raw Data'!BQ48) -> 1 | H19: =IF(Comm2="","",'Step 1 - Enter Raw Data'!BR48) -> 16 | I19: =IF(Comm2="","",(H19-G19)+1) -> 16 | J19: =IF(Comm2="","",I19/I$19) -> 1
A20: =IF(Comm3="","No treatment",Comm3) -> Cherry | B20: Eggs | C20: =IF(LSCheckEggs="n","N/A",SUM('Step 1 - Enter Raw Data'!B51:BI51)) -> 167 | D20: =IF(Comm3="","",IF(LSCheckEggs="n",NA(),T3EXLS)) -> 1.05988024 | E20: =IF(Comm3="","",IF(LSCheckEggs="n","",'Step 1 - Enter Raw Data'!BK51)) -> 0.2379784035 | F20: =IF(Comm3="","",IF(LSCheckEggs="n","",KURT('Step 1 - Enter Raw Data'!B51:BI51))) -> 59.49006816 | G20: =IF(Comm3="","",IF(LSCheckEggs="n","",'Step 1 - Enter Raw Data'!BQ51)) -> 1 | H20: =IF(Comm3="","",IF(LSCheckEggs="n","",'Step 1 - Enter Raw Data'!BR51)) -> 2 | I20: =IF(Comm3="","",IF(LSCheckEggs="n","",(H20-G20)+1)) -> 2 | J20: =IF(Comm3="","",IF(LSCheckEggs="n","",I20/I$28)) -> 0.1538461538 | K20: =IF(Comm3="","",IF(LSCheckEggs="n","",T3AXLS-T3EXLS)) -> 9.672723832 | L20: =IF(Comm3="","",IF(LSCheckEggs="n","",DSTDEggsComm3/24)) -> 0.8592455381 | Y20: =Comm3 -> Cherry | Z20: E | AA20: =IF(Comm3="","",IF(LSCheckEggs="n","",K20*24)) -> 232.145372
B21: 1st instar | C21: =IF(LSCheck1st="n","N/A",SUM('Step 1 - Enter Raw Data'!B52:BI52)) -> 50 | D21: =IF(Comm3="","",IF(LSCheck1st="n",NA(),T31XLS)) -> 1.76 | E21: =IF(Comm3="","",IF(LSCheck1st="n","",'Step 1 - Enter Raw Data'!BK52)) -> 0.5174505793 | F21: =IF(Comm3="","",IF(LSCheck1st="n","",KURT('Step 1 - Enter Raw Data'!B52:BI52))) -> 43.73241481 | G21: =IF(Comm3="","",IF(LSCheck1st="n","",'Step 1 - Enter Raw Data'!BQ52)) -> 1 | H21: =IF(Comm3="","",IF(LSCheck1st="n","",'Step 1 - Enter Raw Data'!BR52)) -> 3 | I21: =IF(Comm3="","",IF(LSCheck1st="n","",(H21-G21)+1)) -> 3 | J21: =IF(Comm3="","",IF(LSCheck1st="n","",I21/I$28)) -> 0.2307692308 | K21: =IF(Comm3="","",IF(LSCheck1st="n","",T3AXLS-T31XLS)) -> 8.972604072 | L21: =IF(Comm3="","",IF(LSCheck1st="n","",DSTD1stComm3/24)) -> 0.9743840497 | Z21: 1 | AA21: =IF(Comm3="","",IF(LSCheck1st="n","",K21*24)) -> 215.3424977
B22: 2nd instar | C22: =IF(LSCheck2nd="n","N/A",SUM('Step 1 - Enter Raw Data'!B53:BI53)) -> 91 | D22: =IF(Comm3="","",IF(LSCheck2nd="n",NA(),T32XLS)) -> 3.296703297 | E22: =IF(Comm3="","",IF(LSCheck2nd="n","",'Step 1 - Enter Raw Data'!BK53)) -> 0.8231984437 | F22: =IF(Comm3="","",IF(LSCheck2nd="n","",KURT('Step 1 - Enter Raw Data'!B53:BI53))) -> 32.08051396 | G22: =IF(Comm3="","",IF(LSCheck2nd="n","",'Step 1 - Enter Raw Data'!BQ53)) -> 2 | H22: =IF(Comm3="","",IF(LSCheck2nd="n","",'Step 1 - Enter Raw Data'!BR53)) -> 5 | I22: =IF(Comm3="","",IF(LSCheck2nd="n","",(H22-G22)+1)) -> 4 | J22: =IF(Comm3="","",IF(LSCheck2nd="n","",I22/I$28)) -> 0.3076923077 | K22: =IF(Comm3="","",IF(LSCheck2nd="n","",T3AXLS-T32XLS)) -> 7.435900775 | L22: =IF(Comm3="","",IF(LSCheck2nd="n","",DSTD2ndComm3/24)) -> 1.165900876 | Z22: 2 | AA22: =IF(Comm3="","",IF(LSCheck2nd="n","",K22*24)) -> 178.4616186
B23: 3rd instar | C23: =IF(LSCheck3rd="n","N/A",SUM('Step 1 - Enter Raw Data'!B54:BI54)) -> 381 | D23: =IF(Comm3="","",IF(LSCheck3rd="n",NA(),T33XLS)) -> 5.519685039 | E23: =IF(Comm3="","",IF(LSCheck3rd="n","",'Step 1 - Enter Raw Data'!BK54)) -> 1.223780125 | F23: =IF(Comm3="","",IF(LSCheck3rd="n","",KURT('Step 1 - Enter Raw Data'!B54:BI54))) -> 20.93095613 | G23: =IF(Comm3="","",IF(LSCheck3rd="n","",'Step 1 - Enter Raw Data'!BQ54)) -> 3 | H23: =IF(Comm3="","",IF(LSCheck3rd="n","",'Step 1 - Enter Raw Data'!BR54)) -> 8 | I23: =IF(Comm3="","",IF(LSCheck3rd="n","",(H23-G23)+1)) -> 6 | J23: =IF(Comm3="","",IF(LSCheck3rd="n","",I23/I$28)) -> 0.4615384615 | K23: =IF(Comm3="","",IF(LSCheck3rd="n","",T3AXLS-T33XLS)) -> 5.212919032 | L23: =IF(Comm3="","",IF(LSCheck3rd="n","",DSTD3rdComm3/24)) -> 1.476247598 | Z23: 3 | AA23: =IF(Comm3="","",IF(LSCheck3rd="n","",K23*24)) -> 125.1100568
B24: 4th instar | C24: =IF(LSCheck4th="n","N/A",SUM('Step 1 - Enter Raw Data'!B55:BI55)) -> N/A | D24: =IF(Comm3="","",IF(LSCheck4th="n",NA(),T34XLS)) ->  | E24: =IF(Comm3="","",IF(LSCheck4th="n","",'Step 1 - Enter Raw Data'!BK55)) ->  | F24: =IF(Comm3="","",IF(LSCheck4th="n","",KURT('Step 1 - Enter Raw Data'!B55:BI55))) ->  | G24: =IF(Comm3="","",IF(LSCheck4th="n","",'Step 1 - Enter Raw Data'!BQ55)) ->  | H24: =IF(Comm3="","",IF(LSCheck4th="n","",'Step 1 - Enter Raw Data'!BR55)) ->  | I24: =IF(Comm3="","",IF(LSCheck4th="n","",(H24-G24)+1)) ->  | J24: =IF(Comm3="","",IF(LSCheck4th="n","",I24/I$28)) ->  | K24: =IF(Comm3="","",IF(LSCheck4th="n","",T3AXLS-T34XLS)) ->  | L24: =IF(Comm3="","",IF(LSCheck4th="n","",DSTD4thComm3/24)) ->  | Z24: 4 | AA24: =IF(Comm3="","",IF(LSCheck4th="n","",K24*24)) -> 
B25: 5th instar | C25: =IF(LSCheck5th="n","N/A",SUM('Step 1 - Enter Raw Data'!B56:BI56)) -> N/A | D25: =IF(Comm3="","",IF(LSCheck5th="n",NA(),T35XLS)) ->  | E25: =IF(Comm3="","",IF(LSCheck5th="n","",'Step 1 - Enter Raw Data'!BK56)) ->  | F25: =IF(Comm3="","",IF(LSCheck5th="n","",KURT('Step 1 - Enter Raw Data'!B56:BI56))) ->  | G25: =IF(Comm3="","",IF(LSCheck5th="n","",'Step 1 - Enter Raw Data'!BQ56)) ->  | H25: =IF(Comm3="","",IF(LSCheck5th="n","",'Step 1 - Enter Raw Data'!BR56)) ->  | I25: =IF(Comm3="","",IF(LSCheck5th="n","",(H25-G25)+1)) ->  | J25: =IF(Comm3="","",IF(LSCheck5th="n","",I25/I$28)) ->  | K25: =IF(Comm3="","",IF(LSCheck5th="n","",T3AXLS-T35XLS)) ->  | L25: =IF(Comm3="","",IF(LSCheck5th="n","",DSTD5thComm3/24)) ->  | Z25: 5 | AA25: =IF(Comm3="","",IF(LSCheck5th="n","",K25*24)) -> 
B26: Pupae | C26: =IF(LSCheckPupa="n","N/A",SUM('Step 1 - Enter Raw Data'!B57:BI57)) -> 127 | D26: =IF(Comm3="","",IF(LSCheckPupa="n",NA(),T3PXLS)) -> 7.42519685 | E26: =IF(Comm3="","",IF(LSCheckPupa="n","",'Step 1 - Enter Raw Data'!BK57)) -> 0.7402239584 | F26: =IF(Comm3="","",IF(LSCheckPupa="n","",KURT('Step 1 - Enter Raw Data'!B57:BI57))) -> 32.47716635 | G26: =IF(Comm3="","",IF(LSCheckPupa="n","",'Step 1 - Enter Raw Data'!BQ57)) -> 5 | H26: =IF(Comm3="","",IF(LSCheckPupa="n","",'Step 1 - Enter Raw Data'!BR57)) -> 8 | I26: =IF(Comm3="","",IF(LSCheckPupa="n","",(H26-G26)+1)) -> 4 | J26: =IF(Comm3="","",IF(LSCheckPupa="n","",I26/I$28)) -> 0.3076923077 | K26: =IF(Comm3="","",IF(LSCheckPupa="n","",T3AXLS-T3PXLS)) -> 3.307407221 | L26: =IF(Comm3="","",IF(LSCheckPupa="n","",DSTDPupaeComm3/24)) -> 1.10887361 | Z26: P | AA26: =IF(Comm3="","",IF(LSCheckPupa="n","",K26*24)) -> 79.37777331
B27: Adults | C27: =IF(LSCheckAdult="n","N/A",SUM('Step 1 - Enter Raw Data'!B58:BI58)) -> 3291 | D27: =IF(Comm3="","",IF(LSCheckAdult="n",NA(),T3AXLS)) -> 10.73260407 | E27: =IF(Comm3="","",IF(LSCheckAdult="n","",'Step 1 - Enter Raw Data'!BK58)) -> 0.8256325903 | F27: =IF(Comm3="","",IF(LSCheckAdult="n","",KURT('Step 1 - Enter Raw Data'!B58:BI58))) -> 28.42093275 | G27: =IF(Comm3="","",IF(LSCheckAdult="n","",'Step 1 - Enter Raw Data'!BQ58)) -> 8 | H27: =IF(Comm3="","",IF(LSCheckAdult="n","",'Step 1 - Enter Raw Data'!BR58)) -> 13 | I27: =IF(Comm3="","",IF(LSCheckAdult="n","",(H27-G27)+1)) -> 6 | J27: =IF(Comm3="","",IF(LSCheckAdult="n","",I27/I$28)) -> 0.4615384615
B28: Treatment | C28: =IF(Comm3="","",SUM(C20:C27)) -> 4107 | F28: =IF(Comm3="","",KURT('Step 1 - Enter Raw Data'!B59:BI59)) -> 27.29698272 | G28: =IF(Comm3="","",'Step 1 - Enter Raw Data'!BQ59) -> 1 | H28: =IF(Comm3="","",'Step 1 - Enter Raw Data'!BR59) -> 13 | I28: =IF(Comm3="","",(H28-G28)+1) -> 13 | J28: =IF(Comm3="","",I28/I$28) -> 1
A29: =IF(Comm4="","No treatment",Comm4) -> Grape | B29: Eggs | C29: =IF(LSCheckEggs="n","N/A",SUM('Step 1 - Enter Raw Data'!B62:BI62)) -> 293 | D29: =IF(Comm4="","",IF(LSCheckEggs="n",NA(),T4EXLS)) -> 1.139931741 | E29: =IF(Comm4="","",IF(LSCheckEggs="n","",'Step 1 - Enter Raw Data'!BK62)) -> 0.3475097251 | F29: =IF(Comm4="","",IF(LSCheckEggs="n","",KURT('Step 1 - Enter Raw Data'!B62:BI62))) -> 56.79586171 | G29: =IF(Comm4="","",IF(LSCheckEggs="n","",'Step 1 - Enter Raw Data'!BQ62)) -> 1 | H29: =IF(Comm4="","",IF(LSCheckEggs="n","",'Step 1 - Enter Raw Data'!BR62)) -> 2 | I29: =IF(Comm4="","",IF(LSCheckEggs="n","",(H29-G29)+1)) -> 2 | J29: =IF(Comm4="","",IF(LSCheckEggs="n","",I29/I$37)) -> 0.1176470588 | K29: =IF(Comm4="","",IF(LSCheckEggs="n","",T4AXLS-T4EXLS)) -> 9.88058108 | L29: =IF(Comm4="","",IF(LSCheckEggs="n","",DSTDEggsComm4/24)) -> 1.642359234 | Y29: =Comm4 -> Grape | Z29: E | AA29: =IF(Comm4="","",IF(LSCheckEggs="n","",K29*24)) -> 237.1339459
B30: 1st instar | C30: =IF(LSCheck1st="n","N/A",SUM('Step 1 - Enter Raw Data'!B63:BI63)) -> 152 | D30: =IF(Comm4="","",IF(LSCheck1st="n",NA(),T41XLS)) -> 1.855263158 | E30: =IF(Comm4="","",IF(LSCheck1st="n","",'Step 1 - Enter Raw Data'!BK63)) -> 0.7405733839 | F30: =IF(Comm4="","",IF(LSCheck1st="n","",KURT('Step 1 - Enter Raw Data'!B63:BI63))) -> 25.69521135 | G30: =IF(Comm4="","",IF(LSCheck1st="n","",'Step 1 - Enter Raw Data'!BQ63)) -> 1 | H30: =IF(Comm4="","",IF(LSCheck1st="n","",'Step 1 - Enter Raw Data'!BR63)) -> 4 | I30: =IF(Comm4="","",IF(LSCheck1st="n","",(H30-G30)+1)) -> 4 | J30: =IF(Comm4="","",IF(LSCheck1st="n","",I30/I$37)) -> 0.2352941176 | K30: =IF(Comm4="","",IF(LSCheck1st="n","",T4AXLS-T41XLS)) -> 9.165249663 | L30: =IF(Comm4="","",IF(LSCheck1st="n","",DSTD1stComm4/24)) -> 1.767775377 | Z30: 1 | AA30: =IF(Comm4="","",IF(LSCheck1st="n","",K30*24)) -> 219.9659919
B31: 2nd instar | C31: =IF(LSCheck2nd="n","N/A",SUM('Step 1 - Enter Raw Data'!B64:BI64)) -> 177 | D31: =IF(Comm4="","",IF(LSCheck2nd="n",NA(),T42XLS)) -> 4.440677966 | E31: =IF(Comm4="","",IF(LSCheck2nd="n","",'Step 1 - Enter Raw Data'!BK64)) -> 2.05275192 | F31: =IF(Comm4="","",IF(LSCheck2nd="n","",KURT('Step 1 - Enter Raw Data'!B64:BI64))) -> 25.58197038 | G31: =IF(Comm4="","",IF(LSCheck2nd="n","",'Step 1 - Enter Raw Data'!BQ64)) -> 2 | H31: =IF(Comm4="","",IF(LSCheck2nd="n","",'Step 1 - Enter Raw Data'!BR64)) -> 9 | I31: =IF(Comm4="","",IF(LSCheck2nd="n","",(H31-G31)+1)) -> 8 | J31: =IF(Comm4="","",IF(LSCheck2nd="n","",I31/I$37)) -> 0.4705882353 | K31: =IF(Comm4="","",IF(LSCheck2nd="n","",T4AXLS-T42XLS)) -> 6.579834854 | L31: =IF(Comm4="","",IF(LSCheck2nd="n","",DSTD2ndComm4/24)) -> 2.605834088 | Z31: 2 | AA31: =IF(Comm4="","",IF(LSCheck2nd="n","",K31*24)) -> 157.9160365
B32: 3rd instar | C32: =IF(LSCheck3rd="n","N/A",SUM('Step 1 - Enter Raw Data'!B65:BI65)) -> 425 | D32: =IF(Comm4="","",IF(LSCheck3rd="n",NA(),T43XLS)) -> 6.428235294 | E32: =IF(Comm4="","",IF(LSCheck3rd="n","",'Step 1 - Enter Raw Data'!BK65)) -> 1.763132114 | F32: =IF(Comm4="","",IF(LSCheck3rd="n","",KURT('Step 1 - Enter Raw Data'!B65:BI65))) -> 9.012618735 | G32: =IF(Comm4="","",IF(LSCheck3rd="n","",'Step 1 - Enter Raw Data'!BQ65)) -> 3 | H32: =IF(Comm4="","",IF(LSCheck3rd="n","",'Step 1 - Enter Raw Data'!BR65)) -> 10 | I32: =IF(Comm4="","",IF(LSCheck3rd="n","",(H32-G32)+1)) -> 8 | J32: =IF(Comm4="","",IF(LSCheck3rd="n","",I32/I$37)) -> 0.4705882353 | K32: =IF(Comm4="","",IF(LSCheck3rd="n","",T4AXLS-T43XLS)) -> 4.592277526 | L32: =IF(Comm4="","",IF(LSCheck3rd="n","",DSTD3rdComm4/24)) -> 2.384369035 | Z32: 3 | AA32: =IF(Comm4="","",IF(LSCheck3rd="n","",K32*24)) -> 110.2146606
B33: 4th instar | C33: =IF(LSCheck4th="n","N/A",SUM('Step 1 - Enter Raw Data'!B66:BI66)) -> N/A | D33: =IF(Comm4="","",IF(LSCheck4th="n",NA(),T44XLS)) ->  | E33: =IF(Comm4="","",IF(LSCheck4th="n","",'Step 1 - Enter Raw Data'!BK66)) ->  | F33: =IF(Comm4="","",IF(LSCheck4th="n","",KURT('Step 1 - Enter Raw Data'!B66:BI66))) ->  | G33: =IF(Comm4="","",IF(LSCheck4th="n","",'Step 1 - Enter Raw Data'!BQ66)) ->  | H33: =IF(Comm4="","",IF(LSCheck4th="n","",'Step 1 - Enter Raw Data'!BR66)) ->  | I33: =IF(Comm4="","",IF(LSCheck4th="n","",(H33-G33)+1)) ->  | J33: =IF(Comm4="","",IF(LSCheck4th="n","",I33/I$37)) ->  | K33: =IF(Comm4="","",IF(LSCheck4th="n","",T4AXLS-T44XLS)) ->  | L33: =IF(Comm4="","",IF(LSCheck4th="n","",DSTD4thComm4/24)) ->  | Z33: 4 | AA33: =IF(Comm4="","",IF(LSCheck4th="n","",K33*24)) -> 
B34: 5th instar | C34: =IF(LSCheck5th="n","N/A",SUM('Step 1 - Enter Raw Data'!B67:BI67)) -> N/A | D34: =IF(Comm4="","",IF(LSCheck5th="n",NA(),T45XLS)) ->  | E34: =IF(Comm4="","",IF(LSCheck5th="n","",'Step 1 - Enter Raw Data'!BK67)) ->  | F34: =IF(Comm4="","",IF(LSCheck5th="n","",KURT('Step 1 - Enter Raw Data'!B67:BI67))) ->  | G34: =IF(Comm4="","",IF(LSCheck5th="n","",'Step 1 - Enter Raw Data'!BQ67)) ->  | H34: =IF(Comm4="","",IF(LSCheck5th="n","",'Step 1 - Enter Raw Data'!BR67)) ->  | I34: =IF(Comm4="","",IF(LSCheck5th="n","",(H34-G34)+1)) ->  | J34: =IF(Comm4="","",IF(LSCheck5th="n","",I34/I$37)) ->  | K34: =IF(Comm4="","",IF(LSCheck5th="n","",T4AXLS-T45XLS)) ->  | L34: =IF(Comm4="","",IF(LSCheck5th="n","",DSTD5thComm4/24)) ->  | Z34: 5 | AA34: =IF(Comm4="","",IF(LSCheck5th="n","",K34*24)) -> 
B35: Pupae | C35: =IF(LSCheckPupa="n","N/A",SUM('Step 1 - Enter Raw Data'!B68:BI68)) -> 204 | D35: =IF(Comm4="","",IF(LSCheckPupa="n",NA(),T4PXLS)) -> 8.950980392 | E35: =IF(Comm4="","",IF(LSCheckPupa="n","",'Step 1 - Enter Raw Data'!BK68)) -> 1.001254887 | F35: =IF(Comm4="","",IF(LSCheckPupa="n","",KURT('Step 1 - Enter Raw Data'!B68:BI68))) -> 18.00208985 | G35: =IF(Comm4="","",IF(LSCheckPupa="n","",'Step 1 - Enter Raw Data'!BQ68)) -> 6 | H35: =IF(Comm4="","",IF(LSCheckPupa="n","",'Step 1 - Enter Raw Data'!BR68)) -> 10 | I35: =IF(Comm4="","",IF(LSCheckPupa="n","",(H35-G35)+1)) -> 5 | J35: =IF(Comm4="","",IF(LSCheckPupa="n","",I35/I$37)) -> 0.2941176471 | K35: =IF(Comm4="","",IF(LSCheckPupa="n","",T4AXLS-T4PXLS)) -> 2.069532428 | L35: =IF(Comm4="","",IF(LSCheckPupa="n","",DSTDPupaeComm4/24)) -> 1.891848883 | Z35: P | AA35: =IF(Comm4="","",IF(LSCheckPupa="n","",K35*24)) -> 49.66877828
B36: Adults | C36: =IF(LSCheckAdult="n","N/A",SUM('Step 1 - Enter Raw Data'!B69:BI69)) -> 975 | D36: =IF(Comm4="","",IF(LSCheckAdult="n",NA(),T4AXLS)) -> 11.02051282 | E36: =IF(Comm4="","",IF(LSCheckAdult="n","",'Step 1 - Enter Raw Data'!BK69)) -> 1.605173151 | F36: =IF(Comm4="","",IF(LSCheckAdult="n","",KURT('Step 1 - Enter Raw Data'!B69:BI69))) -> 24.28361144 | G36: =IF(Comm4="","",IF(LSCheckAdult="n","",'Step 1 - Enter Raw Data'!BQ69)) -> 8 | H36: =IF(Comm4="","",IF(LSCheckAdult="n","",'Step 1 - Enter Raw Data'!BR69)) -> 17 | I36: =IF(Comm4="","",IF(LSCheckAdult="n","",(H36-G36)+1)) -> 10 | J36: =IF(Comm4="","",IF(LSCheckAdult="n","",I36/I$37)) -> 0.5882352941
B37: Treatment | C37: =IF(Comm4="","",SUM(C29:C36)) -> 2226 | F37: =IF(Comm4="","",KURT('Step 1 - Enter Raw Data'!B70:BI70)) -> 10.64233054 | G37: =IF(Comm4="","",'Step 1 - Enter Raw Data'!BQ70) -> 1 | H37: =IF(Comm4="","",'Step 1 - Enter Raw Data'!BR70) -> 17 | I37: =IF(Comm4="","",(H37-G37)+1) -> 17 | J37: =IF(Comm4="","",I37/I$37) -> 1
A38: =IF(Comm5="","No treatment",Comm5) -> Raspberry | B38: Eggs | C38: =IF(LSCheckEggs="n","N/A",SUM('Step 1 - Enter Raw Data'!B73:BI73)) -> 93 | D38: =IF(Comm5="","",IF(LSCheckEggs="n",NA(),T5EXLS)) -> 1.053763441 | E38: =IF(Comm5="","",IF(LSCheckEggs="n","",'Step 1 - Enter Raw Data'!BK73)) -> 0.3080651892 | F38: =IF(Comm5="","",IF(LSCheckEggs="n","",KURT('Step 1 - Enter Raw Data'!B73:BI73))) -> 59.92313918 | G38: =IF(Comm5="","",IF(LSCheckEggs="n","",'Step 1 - Enter Raw Data'!BQ73)) -> 1 | H38: =IF(Comm5="","",IF(LSCheckEggs="n","",'Step 1 - Enter Raw Data'!BR73)) -> 3 | I38: =IF(Comm5="","",IF(LSCheckEggs="n","",(H38-G38)+1)) -> 3 | J38: =IF(Comm5="","",IF(LSCheckEggs="n","",I38/I$46)) -> 0.1764705882 | K38: =IF(Comm5="","",IF(LSCheckEggs="n","",T5AXLS-T5EXLS)) -> 8.406225367 | L38: =IF(Comm5="","",IF(LSCheckEggs="n","",DSTDEggsComm5/24)) -> 0.9504487156 | Y38: =Comm5 -> Raspberry | Z38: E | AA38: =IF(Comm5="","",IF(LSCheckEggs="n","",K38*24)) -> 201.7494088
B39: 1st instar | C39: =IF(LSCheck1st="n","N/A",SUM('Step 1 - Enter Raw Data'!B74:BI74)) -> 65 | D39: =IF(Comm5="","",IF(LSCheck1st="n",NA(),T51XLS)) -> 2.215384615 | E39: =IF(Comm5="","",IF(LSCheck1st="n","",'Step 1 - Enter Raw Data'!BK74)) -> 0.4838745864 | F39: =IF(Comm5="","",IF(LSCheck1st="n","",KURT('Step 1 - Enter Raw Data'!B74:BI74))) -> 47.87055596 | G39: =IF(Comm5="","",IF(LSCheck1st="n","",'Step 1 - Enter Raw Data'!BQ74)) -> 1 | H39: =IF(Comm5="","",IF(LSCheck1st="n","",'Step 1 - Enter Raw Data'!BR74)) -> 3 | I39: =IF(Comm5="","",IF(LSCheck1st="n","",(H39-G39)+1)) -> 3 | J39: =IF(Comm5="","",IF(LSCheck1st="n","",I39/I$46)) -> 0.1764705882 | K39: =IF(Comm5="","",IF(LSCheck1st="n","",T5AXLS-T51XLS)) -> 7.244604193 | L39: =IF(Comm5="","",IF(LSCheck1st="n","",DSTD1stComm5/24)) -> 1.021069643 | Z39: 1 | AA39: =IF(Comm5="","",IF(LSCheck1st="n","",K39*24)) -> 173.8705006
B40: 2nd instar | C40: =IF(LSCheck2nd="n","N/A",SUM('Step 1 - Enter Raw Data'!B75:BI75)) -> 138 | D40: =IF(Comm5="","",IF(LSCheck2nd="n",NA(),T52XLS)) -> 2.688405797 | E40: =IF(Comm5="","",IF(LSCheck2nd="n","",'Step 1 - Enter Raw Data'!BK75)) -> 0.6813546472 | F40: =IF(Comm5="","",IF(LSCheck2nd="n","",KURT('Step 1 - Enter Raw Data'!B75:BI75))) -> 41.11277743 | G40: =IF(Comm5="","",IF(LSCheck2nd="n","",'Step 1 - Enter Raw Data'!BQ75)) -> 1 | H40: =IF(Comm5="","",IF(LSCheck2nd="n","",'Step 1 - Enter Raw Data'!BR75)) -> 5 | I40: =IF(Comm5="","",IF(LSCheck2nd="n","",(H40-G40)+1)) -> 5 | J40: =IF(Comm5="","",IF(LSCheck2nd="n","",I40/I$46)) -> 0.2941176471 | K40: =IF(Comm5="","",IF(LSCheck2nd="n","",T5AXLS-T52XLS)) -> 6.771583011 | L40: =IF(Comm5="","",IF(LSCheck2nd="n","",DSTD2ndComm5/24)) -> 1.128136851 | Z40: 2 | AA40: =IF(Comm5="","",IF(LSCheck2nd="n","",K40*24)) -> 162.5179923
B41: 3rd instar | C41: =IF(LSCheck3rd="n","N/A",SUM('Step 1 - Enter Raw Data'!B76:BI76)) -> 278 | D41: =IF(Comm5="","",IF(LSCheck3rd="n",NA(),T53XLS)) -> 4.820143885 | E41: =IF(Comm5="","",IF(LSCheck3rd="n","",'Step 1 - Enter Raw Data'!BK76)) -> 0.9210870878 | F41: =IF(Comm5="","",IF(LSCheck3rd="n","",KURT('Step 1 - Enter Raw Data'!B76:BI76))) -> 16.24267589 | G41: =IF(Comm5="","",IF(LSCheck3rd="n","",'Step 1 - Enter Raw Data'!BQ76)) -> 3 | H41: =IF(Comm5="","",IF(LSCheck3rd="n","",'Step 1 - Enter Raw Data'!BR76)) -> 6 | I41: =IF(Comm5="","",IF(LSCheck3rd="n","",(H41-G41)+1)) -> 4 | J41: =IF(Comm5="","",IF(LSCheck3rd="n","",I41/I$46)) -> 0.2352941176 | K41: =IF(Comm5="","",IF(LSCheck3rd="n","",T5AXLS-T53XLS)) -> 4.639844923 | L41: =IF(Comm5="","",IF(LSCheck3rd="n","",DSTD3rdComm5/24)) -> 1.287186864 | Z41: 3 | AA41: =IF(Comm5="","",IF(LSCheck3rd="n","",K41*24)) -> 111.3562782
B42: 4th instar | C42: =IF(LSCheck4th="n","N/A",SUM('Step 1 - Enter Raw Data'!B77:BI77)) -> N/A | D42: =IF(Comm5="","",IF(LSCheck4th="n",NA(),T54XLS)) ->  | E42: =IF(Comm5="","",IF(LSCheck4th="n","",'Step 1 - Enter Raw Data'!BK77)) ->  | F42: =IF(Comm5="","",IF(LSCheck4th="n","",KURT('Step 1 - Enter Raw Data'!B77:BI77))) ->  | G42: =IF(Comm5="","",IF(LSCheck4th="n","",'Step 1 - Enter Raw Data'!BQ77)) ->  | H42: =IF(Comm5="","",IF(LSCheck4th="n","",'Step 1 - Enter Raw Data'!BR77)) ->  | I42: =IF(Comm5="","",IF(LSCheck4th="n","",(H42-G42)+1)) ->  | J42: =IF(Comm5="","",IF(LSCheck4th="n","",I42/I$46)) ->  | K42: =IF(Comm5="","",IF(LSCheck4th="n","",T5AXLS-T54XLS)) ->  | L42: =IF(Comm5="","",IF(LSCheck4th="n","",DSTD4thComm5/24)) ->  | Z42: 4 | AA42: =IF(Comm5="","",IF(LSCheck4th="n","",K42*24)) -> 
B43: 5th instar | C43: =IF(LSCheck5th="n","N/A",SUM('Step 1 - Enter Raw Data'!B78:BI78)) -> N/A | D43: =IF(Comm5="","",IF(LSCheck5th="n",NA(),T55XLS)) ->  | E43: =IF(Comm5="","",IF(LSCheck5th="n","",'Step 1 - Enter Raw Data'!BK78)) ->  | F43: =IF(Comm5="","",IF(LSCheck5th="n","",KURT('Step 1 - Enter Raw Data'!B78:BI78))) ->  | G43: =IF(Comm5="","",IF(LSCheck5th="n","",'Step 1 - Enter Raw Data'!BQ78)) ->  | H43: =IF(Comm5="","",IF(LSCheck5th="n","",'Step 1 - Enter Raw Data'!BR78)) ->  | I43: =IF(Comm5="","",IF(LSCheck5th="n","",(H43-G43)+1)) ->  | J43: =IF(Comm5="","",IF(LSCheck5th="n","",I43/I$46)) ->  | K43: =IF(Comm5="","",IF(LSCheck5th="n","",T5AXLS-T55XLS)) ->  | L43: =IF(Comm5="","",IF(LSCheck5th="n","",DSTD5thComm5/24)) ->  | Z43: 5 | AA43: =IF(Comm5="","",IF(LSCheck5th="n","",K43*24)) -> 
B44: Pupae | C44: =IF(LSCheckPupa="n","N/A",SUM('Step 1 - Enter Raw Data'!B79:BI79)) -> 109 | D44: =IF(Comm5="","",IF(LSCheckPupa="n",NA(),T5PXLS)) -> 6.311926606 | E44: =IF(Comm5="","",IF(LSCheckPupa="n","",'Step 1 - Enter Raw Data'!BK79)) -> 0.5884261448 | F44: =IF(Comm5="","",IF(LSCheckPupa="n","",KURT('Step 1 - Enter Raw Data'!B79:BI79))) -> 35.38063079 | G44: =IF(Comm5="","",IF(LSCheckPupa="n","",'Step 1 - Enter Raw Data'!BQ79)) -> 4 | H44: =IF(Comm5="","",IF(LSCheckPupa="n","",'Step 1 - Enter Raw Data'!BR79)) -> 7 | I44: =IF(Comm5="","",IF(LSCheckPupa="n","",(H44-G44)+1)) -> 4 | J44: =IF(Comm5="","",IF(LSCheckPupa="n","",I44/I$46)) -> 0.2352941176 | K44: =IF(Comm5="","",IF(LSCheckPupa="n","",T5AXLS-T5PXLS)) -> 3.148062203 | L44: =IF(Comm5="","",IF(LSCheckPupa="n","",DSTDPupaeComm5/24)) -> 1.074566856 | Z44: P | AA44: =IF(Comm5="","",IF(LSCheckPupa="n","",K44*24)) -> 75.55349286
B45: Adults | C45: =IF(LSCheckAdult="n","N/A",SUM('Step 1 - Enter Raw Data'!B80:BI80)) -> 1787 | D45: =IF(Comm5="","",IF(LSCheckAdult="n",NA(),T5AXLS)) -> 9.459988808 | E45: =IF(Comm5="","",IF(LSCheckAdult="n","",'Step 1 - Enter Raw Data'!BK80)) -> 0.8991376981 | F45: =IF(Comm5="","",IF(LSCheckAdult="n","",KURT('Step 1 - Enter Raw Data'!B80:BI80))) -> 34.95295688 | G45: =IF(Comm5="","",IF(LSCheckAdult="n","",'Step 1 - Enter Raw Data'!BQ80)) -> 8 | H45: =IF(Comm5="","",IF(LSCheckAdult="n","",'Step 1 - Enter Raw Data'!BR80)) -> 17 | I45: =IF(Comm5="","",IF(LSCheckAdult="n","",(H45-G45)+1)) -> 10 | J45: =IF(Comm5="","",IF(LSCheckAdult="n","",I45/I$46)) -> 0.5882352941
B46: Treatment | C46: =IF(Comm5="","",SUM(C38:C45)) -> 2470 | F46: =IF(Comm5="","",KURT('Step 1 - Enter Raw Data'!B81:BI81)) -> 31.66953179 | G46: =IF(Comm5="","",'Step 1 - Enter Raw Data'!BQ81) -> 1 | H46: =IF(Comm5="","",'Step 1 - Enter Raw Data'!BR81) -> 17 | I46: =IF(Comm5="","",(H46-G46)+1) -> 17 | J46: =IF(Comm5="","",I46/I$46) -> 1
A47: =IF(Comm6="","No treatment",Comm6) -> Strawberry | B47: Eggs | C47: =IF(LSCheckEggs="n","N/A",SUM('Step 1 - Enter Raw Data'!B84:BI84)) -> 261 | D47: =IF(Comm6="","",IF(LSCheckEggs="n",NA(),T6EXLS)) -> 1.095785441 | E47: =IF(Comm6="","",IF(LSCheckEggs="n","",'Step 1 - Enter Raw Data'!BK84)) -> 0.2948621841 | F47: =IF(Comm6="","",IF(LSCheckEggs="n","",KURT('Step 1 - Enter Raw Data'!B84:BI84))) -> 58.60552244 | G47: =IF(Comm6="","",IF(LSCheckEggs="n","",'Step 1 - Enter Raw Data'!BQ84)) -> 1 | H47: =IF(Comm6="","",IF(LSCheckEggs="n","",'Step 1 - Enter Raw Data'!BR84)) -> 2 | I47: =IF(Comm6="","",IF(LSCheckEggs="n","",(H47-G47)+1)) -> 2 | J47: =IF(Comm6="","",IF(LSCheckEggs="n","",I47/I$55)) -> 0.1333333333 | K47: =IF(Comm6="","",IF(LSCheckEggs="n","",T6AXLS-T6EXLS)) -> 9.364493808 | L47: =IF(Comm6="","",IF(LSCheckEggs="n","",DSTDEggsComm6/24)) -> 1.058607297 | Y47: =Comm6 -> Strawberry | Z47: E | AA47: =IF(Comm6="","",IF(LSCheckEggs="n","",K47*24)) -> 224.7478514
B48: 1st instar | C48: =IF(LSCheck1st="n","N/A",SUM('Step 1 - Enter Raw Data'!B85:BI85)) -> 310 | D48: =IF(Comm6="","",IF(LSCheck1st="n",NA(),T61XLS)) -> 2.416129032 | E48: =IF(Comm6="","",IF(LSCheck1st="n","",'Step 1 - Enter Raw Data'!BK85)) -> 0.7446016177 | F48: =IF(Comm6="","",IF(LSCheck1st="n","",KURT('Step 1 - Enter Raw Data'!B85:BI85))) -> 51.24839002 | G48: =IF(Comm6="","",IF(LSCheck1st="n","",'Step 1 - Enter Raw Data'!BQ85)) -> 2 | H48: =IF(Comm6="","",IF(LSCheck1st="n","",'Step 1 - Enter Raw Data'!BR85)) -> 5 | I48: =IF(Comm6="","",IF(LSCheck1st="n","",(H48-G48)+1)) -> 4 | J48: =IF(Comm6="","",IF(LSCheck1st="n","",I48/I$55)) -> 0.2666666667 | K48: =IF(Comm6="","",IF(LSCheck1st="n","",T6AXLS-T61XLS)) -> 8.044150217 | L48: =IF(Comm6="","",IF(LSCheck1st="n","",DSTD1stComm6/24)) -> 1.260213185 | Z48: 1 | AA48: =IF(Comm6="","",IF(LSCheck1st="n","",K48*24)) -> 193.0596052
B49: 2nd instar | C49: =IF(LSCheck2nd="n","N/A",SUM('Step 1 - Enter Raw Data'!B86:BI86)) -> 334 | D49: =IF(Comm6="","",IF(LSCheck2nd="n",NA(),T62XLS)) -> 3.28742515 | E49: =IF(Comm6="","",IF(LSCheck2nd="n","",'Step 1 - Enter Raw Data'!BK86)) -> 0.6062913046 | F49: =IF(Comm6="","",IF(LSCheck2nd="n","",KURT('Step 1 - Enter Raw Data'!B86:BI86))) -> 51.27371923 | G49: =IF(Comm6="","",IF(LSCheck2nd="n","",'Step 1 - Enter Raw Data'!BQ86)) -> 2 | H49: =IF(Comm6="","",IF(LSCheck2nd="n","",'Step 1 - Enter Raw Data'!BR86)) -> 6 | I49: =IF(Comm6="","",IF(LSCheck2nd="n","",(H49-G49)+1)) -> 5 | J49: =IF(Comm6="","",IF(LSCheck2nd="n","",I49/I$55)) -> 0.3333333333 | K49: =IF(Comm6="","",IF(LSCheck2nd="n","",T6AXLS-T62XLS)) -> 7.172854099 | L49: =IF(Comm6="","",IF(LSCheck2nd="n","",DSTD2ndComm6/24)) -> 1.183763003 | Z49: 2 | AA49: =IF(Comm6="","",IF(LSCheck2nd="n","",K49*24)) -> 172.1484984
B50: 3rd instar | C50: =IF(LSCheck3rd="n","N/A",SUM('Step 1 - Enter Raw Data'!B87:BI87)) -> 653 | D50: =IF(Comm6="","",IF(LSCheck3rd="n",NA(),T63XLS)) -> 5.007656968 | E50: =IF(Comm6="","",IF(LSCheck3rd="n","",'Step 1 - Enter Raw Data'!BK87)) -> 0.8921622895 | F50: =IF(Comm6="","",IF(LSCheck3rd="n","",KURT('Step 1 - Enter Raw Data'!B87:BI87))) -> 16.69977213 | G50: =IF(Comm6="","",IF(LSCheck3rd="n","",'Step 1 - Enter Raw Data'!BQ87)) -> 3 | H50: =IF(Comm6="","",IF(LSCheck3rd="n","",'Step 1 - Enter Raw Data'!BR87)) -> 7 | I50: =IF(Comm6="","",IF(LSCheck3rd="n","",(H50-G50)+1)) -> 5 | J50: =IF(Comm6="","",IF(LSCheck3rd="n","",I50/I$55)) -> 0.3333333333 | K50: =IF(Comm6="","",IF(LSCheck3rd="n","",T6AXLS-T63XLS)) -> 5.452622281 | L50: =IF(Comm6="","",IF(LSCheck3rd="n","",DSTD3rdComm6/24)) -> 1.352648976 | Z50: 3 | AA50: =IF(Comm6="","",IF(LSCheck3rd="n","",K50*24)) -> 130.8629347
B51: 4th instar | C51: =IF(LSCheck4th="n","N/A",SUM('Step 1 - Enter Raw Data'!B88:BI88)) -> N/A | D51: =IF(Comm6="","",IF(LSCheck4th="n",NA(),T64XLS)) ->  | E51: =IF(Comm6="","",IF(LSCheck4th="n","",'Step 1 - Enter Raw Data'!BK88)) ->  | F51: =IF(Comm6="","",IF(LSCheck4th="n","",KURT('Step 1 - Enter Raw Data'!B88:BI88))) ->  | G51: =IF(Comm6="","",IF(LSCheck4th="n","",'Step 1 - Enter Raw Data'!BQ88)) ->  | H51: =IF(Comm6="","",IF(LSCheck4th="n","",'Step 1 - Enter Raw Data'!BR88)) ->  | I51: =IF(Comm6="","",IF(LSCheck4th="n","",(H51-G51)+1)) ->  | J51: =IF(Comm6="","",IF(LSCheck4th="n","",I51/I$55)) ->  | K51: =IF(Comm6="","",IF(LSCheck4th="n","",T6AXLS-T64XLS)) ->  | L51: =IF(Comm6="","",IF(LSCheck4th="n","",DSTD4thComm6/24)) ->  | Z51: 4 | AA51: =IF(Comm6="","",IF(LSCheck4th="n","",K51*24)) -> 
B52: 5th instar | C52: =IF(LSCheck5th="n","N/A",SUM('Step 1 - Enter Raw Data'!B89:BI89)) -> N/A | D52: =IF(Comm6="","",IF(LSCheck5th="n",NA(),T65XLS)) ->  | E52: =IF(Comm6="","",IF(LSCheck5th="n","",'Step 1 - Enter Raw Data'!BK89)) ->  | F52: =IF(Comm6="","",IF(LSCheck5th="n","",KURT('Step 1 - Enter Raw Data'!B89:BI89))) ->  | G52: =IF(Comm6="","",IF(LSCheck5th="n","",'Step 1 - Enter Raw Data'!BQ89)) ->  | H52: =IF(Comm6="","",IF(LSCheck5th="n","",'Step 1 - Enter Raw Data'!BR89)) ->  | I52: =IF(Comm6="","",IF(LSCheck5th="n","",(H52-G52)+1)) ->  | J52: =IF(Comm6="","",IF(LSCheck5th="n","",I52/I$55)) ->  | K52: =IF(Comm6="","",IF(LSCheck5th="n","",T6AXLS-T65XLS)) ->  | L52: =IF(Comm6="","",IF(LSCheck5th="n","",DSTD5thComm6/24)) ->  | Z52: 5 | AA52: =IF(Comm6="","",IF(LSCheck5th="n","",K52*24)) -> 
B53: Pupae | C53: =IF(LSCheckPupa="n","N/A",SUM('Step 1 - Enter Raw Data'!B90:BI90)) -> 471 | D53: =IF(Comm6="","",IF(LSCheckPupa="n",NA(),T6PXLS)) -> 7.348195329 | E53: =IF(Comm6="","",IF(LSCheckPupa="n","",'Step 1 - Enter Raw Data'!BK90)) -> 0.6272126214 | F53: =IF(Comm6="","",IF(LSCheckPupa="n","",KURT('Step 1 - Enter Raw Data'!B90:BI90))) -> 26.84375047 | G53: =IF(Comm6="","",IF(LSCheckPupa="n","",'Step 1 - Enter Raw Data'!BQ90)) -> 6 | H53: =IF(Comm6="","",IF(LSCheckPupa="n","",'Step 1 - Enter Raw Data'!BR90)) -> 8 | I53: =IF(Comm6="","",IF(LSCheckPupa="n","",(H53-G53)+1)) -> 3 | J53: =IF(Comm6="","",IF(LSCheckPupa="n","",I53/I$55)) -> 0.2 | K53: =IF(Comm6="","",IF(LSCheckPupa="n","",T6AXLS-T6PXLS)) -> 3.11208392 | L53: =IF(Comm6="","",IF(LSCheckPupa="n","",DSTDPupaeComm6/24)) -> 1.194613483 | Z53: P | AA53: =IF(Comm6="","",IF(LSCheckPupa="n","",K53*24)) -> 74.69001408
B54: Adults | C54: =IF(LSCheckAdult="n","N/A",SUM('Step 1 - Enter Raw Data'!B91:BI91)) -> 2077 | D54: =IF(Comm6="","",IF(LSCheckAdult="n",NA(),T6AXLS)) -> 10.46027925 | E54: =IF(Comm6="","",IF(LSCheckAdult="n","",'Step 1 - Enter Raw Data'!BK91)) -> 1.016713186 | F54: =IF(Comm6="","",IF(LSCheckAdult="n","",KURT('Step 1 - Enter Raw Data'!B91:BI91))) -> 35.32317815 | G54: =IF(Comm6="","",IF(LSCheckAdult="n","",'Step 1 - Enter Raw Data'!BQ91)) -> 8 | H54: =IF(Comm6="","",IF(LSCheckAdult="n","",'Step 1 - Enter Raw Data'!BR91)) -> 15 | I54: =IF(Comm6="","",IF(LSCheckAdult="n","",(H54-G54)+1)) -> 8 | J54: =IF(Comm6="","",IF(LSCheckAdult="n","",I54/I$55)) -> 0.5333333333
B55: Treatment | C55: =IF(Comm6="","",SUM(C47:C54)) -> 4106 | F55: =IF(Comm6="","",KURT('Step 1 - Enter Raw Data'!B92:BI92)) -> 19.09126324 | G55: =IF(Comm6="","",'Step 1 - Enter Raw Data'!BQ92) -> 1 | H55: =IF(Comm6="","",'Step 1 - Enter Raw Data'!BR92) -> 15 | I55: =IF(Comm6="","",(H55-G55)+1) -> 15 | J55: =IF(Comm6="","",I55/I$55) -> 1
A56: =IF(Comm7="","No treatment",Comm7) -> No treatment | B56: Eggs | C56: =IF(LSCheckEggs="n","N/A",SUM('Step 1 - Enter Raw Data'!B95:BI95)) -> 0 | D56: =IF(Comm7="","",IF(LSCheckEggs="n",NA(),T7EXLS)) ->  | E56: =IF(Comm7="","",IF(LSCheckEggs="n","",'Step 1 - Enter Raw Data'!BK95)) ->  | F56: =IF(Comm7="","",IF(LSCheckEggs="n","",KURT('Step 1 - Enter Raw Data'!B95:BI95))) ->  | G56: =IF(Comm7="","",IF(LSCheckEggs="n","",'Step 1 - Enter Raw Data'!BQ95)) ->  | H56: =IF(Comm7="","",IF(LSCheckEggs="n","",'Step 1 - Enter Raw Data'!BR95)) ->  | I56: =IF(Comm7="","",IF(LSCheckEggs="n","",(H56-G56)+1)) ->  | J56: =IF(Comm7="","",IF(LSCheckEggs="n","",I56/I$64)) ->  | K56: =IF(Comm7="","",IF(LSCheckEggs="n","",T7AXLS-T7EXLS)) ->  | L56: =IF(Comm7="","",IF(LSCheckEggs="n","",DSTDEggsComm7/24)) ->  | Y56: =Comm7 -> 0 | Z56: E | AA56: =IF(Comm7="","",IF(LSCheckEggs="n","",K56*24)) -> 
B57: 1st instar | C57: =IF(LSCheck1st="n","N/A",SUM('Step 1 - Enter Raw Data'!B96:BI96)) -> 0 | D57: =IF(Comm7="","",IF(LSCheck1st="n",NA(),T71XLS)) ->  | E57: =IF(Comm7="","",IF(LSCheck1st="n","",'Step 1 - Enter Raw Data'!BK96)) ->  | F57: =IF(Comm7="","",IF(LSCheck1st="n","",KURT('Step 1 - Enter Raw Data'!B96:BI96))) ->  | G57: =IF(Comm7="","",IF(LSCheck1st="n","",'Step 1 - Enter Raw Data'!BQ96)) ->  | H57: =IF(Comm7="","",IF(LSCheck1st="n","",'Step 1 - Enter Raw Data'!BR96)) ->  | I57: =IF(Comm7="","",IF(LSCheck1st="n","",(H57-G57)+1)) ->  | J57: =IF(Comm7="","",IF(LSCheck1st="n","",I57/I$64)) ->  | K57: =IF(Comm7="","",IF(LSCheck1st="n","",T7AXLS-T71XLS)) ->  | L57: =IF(Comm7="","",IF(LSCheck1st="n","",DSTD1stComm7/24)) ->  | Z57: 1 | AA57: =IF(Comm7="","",IF(LSCheck1st="n","",K57*24)) -> 
B58: 2nd instar | C58: =IF(LSCheck2nd="n","N/A",SUM('Step 1 - Enter Raw Data'!B97:BI97)) -> 0 | D58: =IF(Comm7="","",IF(LSCheck2nd="n",NA(),T72XLS)) ->  | E58: =IF(Comm7="","",IF(LSCheck2nd="n","",'Step 1 - Enter Raw Data'!BK97)) ->  | F58: =IF(Comm7="","",IF(LSCheck2nd="n","",KURT('Step 1 - Enter Raw Data'!B97:BI97))) ->  | G58: =IF(Comm7="","",IF(LSCheck2nd="n","",'Step 1 - Enter Raw Data'!BQ97)) ->  | H58: =IF(Comm7="","",IF(LSCheck2nd="n","",'Step 1 - Enter Raw Data'!BR97)) ->  | I58: =IF(Comm7="","",IF(LSCheck2nd="n","",(H58-G58)+1)) ->  | J58: =IF(Comm7="","",IF(LSCheck2nd="n","",I58/I$64)) ->  | K58: =IF(Comm7="","",IF(LSCheck2nd="n","",T7AXLS-T72XLS)) ->  | L58: =IF(Comm7="","",IF(LSCheck2nd="n","",DSTD2ndComm7/24)) ->  | Z58: 2 | AA58: =IF(Comm7="","",IF(LSCheck2nd="n","",K58*24)) -> 
B59: 3rd instar | C59: =IF(LSCheck3rd="n","N/A",SUM('Step 1 - Enter Raw Data'!B98:BI98)) -> 0 | D59: =IF(Comm7="","",IF(LSCheck3rd="n",NA(),T73XLS)) ->  | E59: =IF(Comm7="","",IF(LSCheck3rd="n","",'Step 1 - Enter Raw Data'!BK98)) ->  | F59: =IF(Comm7="","",IF(LSCheck3rd="n","",KURT('Step 1 - Enter Raw Data'!B98:BI98))) ->  | G59: =IF(Comm7="","",IF(LSCheck3rd="n","",'Step 1 - Enter Raw Data'!BQ98)) ->  | H59: =IF(Comm7="","",IF(LSCheck3rd="n","",'Step 1 - Enter Raw Data'!BR98)) ->  | I59: =IF(Comm7="","",IF(LSCheck3rd="n","",(H59-G59)+1)) ->  | J59: =IF(Comm7="","",IF(LSCheck3rd="n","",I59/I$64)) ->  | K59: =IF(Comm7="","",IF(LSCheck3rd="n","",T7AXLS-T73XLS)) ->  | L59: =IF(Comm7="","",IF(LSCheck3rd="n","",DSTD3rdComm7/24)) ->  | Z59: 3 | AA59: =IF(Comm7="","",IF(LSCheck3rd="n","",K59*24)) -> 
B60: 4th instar | C60: =IF(LSCheck4th="n","N/A",SUM('Step 1 - Enter Raw Data'!B99:BI99)) -> N/A | D60: =IF(Comm7="","",IF(LSCheck4th="n",NA(),T74XLS)) ->  | E60: =IF(Comm7="","",IF(LSCheck4th="n","",'Step 1 - Enter Raw Data'!BK99)) ->  | F60: =IF(Comm7="","",IF(LSCheck4th="n","",KURT('Step 1 - Enter Raw Data'!B99:BI99))) ->  | G60: =IF(Comm7="","",IF(LSCheck4th="n","",'Step 1 - Enter Raw Data'!BQ99)) ->  | H60: =IF(Comm7="","",IF(LSCheck4th="n","",'Step 1 - Enter Raw Data'!BR99)) ->  | I60: =IF(Comm7="","",IF(LSCheck4th="n","",(H60-G60)+1)) ->  | J60: =IF(Comm7="","",IF(LSCheck4th="n","",I60/I$64)) ->  | K60: =IF(Comm7="","",IF(LSCheck4th="n","",T7AXLS-T74XLS)) ->  | L60: =IF(Comm7="","",IF(LSCheck4th="n","",DSTD4thComm7/24)) ->  | Z60: 4 | AA60: =IF(Comm7="","",IF(LSCheck4th="n","",K60*24)) -> 
B61: 5th instar | C61: =IF(LSCheck5th="n","N/A",SUM('Step 1 - Enter Raw Data'!B100:BI100)) -> N/A | D61: =IF(Comm7="","",IF(LSCheck5th="n",NA(),T75XLS)) ->  | E61: =IF(Comm7="","",IF(LSCheck5th="n","",'Step 1 - Enter Raw Data'!BK100)) ->  | F61: =IF(Comm7="","",IF(LSCheck5th="n","",KURT('Step 1 - Enter Raw Data'!B100:BI100))) ->  | G61: =IF(Comm7="","",IF(LSCheck5th="n","",'Step 1 - Enter Raw Data'!BQ100)) ->  | H61: =IF(Comm7="","",IF(LSCheck5th="n","",'Step 1 - Enter Raw Data'!BR100)) ->  | I61: =IF(Comm7="","",IF(LSCheck5th="n","",(H61-G61)+1)) ->  | J61: =IF(Comm7="","",IF(LSCheck5th="n","",I61/I$64)) ->  | K61: =IF(Comm7="","",IF(LSCheck5th="n","",T7AXLS-T75XLS)) ->  | L61: =IF(Comm7="","",IF(LSCheck5th="n","",DSTD5thComm7/24)) ->  | Z61: 5 | AA61: =IF(Comm7="","",IF(LSCheck5th="n","",K61*24)) -> 
B62: Pupae | C62: =IF(LSCheckPupa="n","N/A",SUM('Step 1 - Enter Raw Data'!B101:BI101)) -> 0 | D62: =IF(Comm7="","",IF(LSCheckPupa="n",NA(),T7PXLS)) ->  | E62: =IF(Comm7="","",IF(LSCheckPupa="n","",'Step 1 - Enter Raw Data'!BK101)) ->  | F62: =IF(Comm7="","",IF(LSCheckPupa="n","",KURT('Step 1 - Enter Raw Data'!B101:BI101))) ->  | G62: =IF(Comm7="","",IF(LSCheckPupa="n","",'Step 1 - Enter Raw Data'!BQ101)) ->  | H62: =IF(Comm7="","",IF(LSCheckPupa="n","",'Step 1 - Enter Raw Data'!BR101)) ->  | I62: =IF(Comm7="","",IF(LSCheckPupa="n","",(H62-G62)+1)) ->  | J62: =IF(Comm7="","",IF(LSCheckPupa="n","",I62/I$64)) ->  | K62: =IF(Comm7="","",IF(LSCheckPupa="n","",T7AXLS-T7PXLS)) ->  | L62: =IF(Comm7="","",IF(LSCheckPupa="n","",DSTDPupaeComm7/24)) ->  | Z62: P | AA62: =IF(Comm7="","",IF(LSCheckPupa="n","",K62*24)) -> 
B63: Adults | C63: =IF(LSCheckAdult="n","N/A",SUM('Step 1 - Enter Raw Data'!B102:BI102)) -> 0 | D63: =IF(Comm7="","",IF(LSCheckAdult="n",NA(),T7AXLS)) ->  | E63: =IF(Comm7="","",IF(LSCheckAdult="n","",'Step 1 - Enter Raw Data'!BK102)) ->  | F63: =IF(Comm7="","",IF(LSCheckAdult="n","",KURT('Step 1 - Enter Raw Data'!B102:BI102))) ->  | G63: =IF(Comm7="","",IF(LSCheckAdult="n","",'Step 1 - Enter Raw Data'!BQ102)) ->  | H63: =IF(Comm7="","",IF(LSCheckAdult="n","",'Step 1 - Enter Raw Data'!BR102)) ->  | I63: =IF(Comm7="","",IF(LSCheckAdult="n","",(H63-G63)+1)) ->  | J63: =IF(Comm7="","",IF(LSCheckAdult="n","",I63/I$64)) -> 
B64: Treatment | C64: =IF(Comm7="","",SUM(C56:C63)) ->  | F64: =IF(Comm7="","",KURT('Step 1 - Enter Raw Data'!B103:BI103)) ->  | G64: =IF(Comm7="","",'Step 1 - Enter Raw Data'!BQ103) ->  | H64: =IF(Comm7="","",'Step 1 - Enter Raw Data'!BR103) ->  | I64: =IF(Comm7="","",(H64-G64)+1) ->  | J64: =IF(Comm7="","",I64/I$64) -> 
A65: =IF(Comm8="","No treatment",Comm8) -> No treatment | B65: Eggs | C65: =IF(LSCheckEggs="n","N/A",SUM('Step 1 - Enter Raw Data'!B106:BI106)) -> 0 | D65: =IF(Comm8="","",IF(LSCheckEggs="n",NA(),T8EXLS)) ->  | E65: =IF(Comm8="","",IF(LSCheckEggs="n","",'Step 1 - Enter Raw Data'!BK106)) ->  | F65: =IF(Comm8="","",IF(LSCheckEggs="n","",KURT('Step 1 - Enter Raw Data'!B106:BI106))) ->  | G65: =IF(Comm8="","",IF(LSCheckEggs="n","",'Step 1 - Enter Raw Data'!BQ106)) ->  | H65: =IF(Comm8="","",IF(LSCheckEggs="n","",'Step 1 - Enter Raw Data'!BR106)) ->  | I65: =IF(Comm8="","",IF(LSCheckEggs="n","",(H65-G65)+1)) ->  | J65: =IF(Comm8="","",IF(LSCheckEggs="n","",I65/I73)) ->  | K65: =IF(Comm8="","",IF(LSCheckEggs="n","",T8AXLS-T8EXLS)) ->  | L65: =IF(Comm8="","",IF(LSCheckEggs="n","",DSTDEggsComm8/24)) ->  | Y65: =Comm8 -> 0 | Z65: E | AA65: =IF(Comm8="","",IF(LSCheckEggs="n","",K65*24)) -> 
B66: 1st instar | C66: =IF(LSCheck1st="n","N/A",SUM('Step 1 - Enter Raw Data'!B107:BI107)) -> 0 | D66: =IF(Comm8="","",IF(LSCheck1st="n",NA(),T81XLS)) ->  | E66: =IF(Comm8="","",IF(LSCheck1st="n","",'Step 1 - Enter Raw Data'!BK107)) ->  | F66: =IF(Comm8="","",IF(LSCheck1st="n","",KURT('Step 1 - Enter Raw Data'!B107:BI107))) ->  | G66: =IF(Comm8="","",IF(LSCheck1st="n","",'Step 1 - Enter Raw Data'!BQ107)) ->  | H66: =IF(Comm8="","",IF(LSCheck1st="n","",'Step 1 - Enter Raw Data'!BR107)) ->  | I66: =IF(Comm8="","",IF(LSCheck1st="n","",(H66-G66)+1)) ->  | J66: =IF(Comm8="","",IF(LSCheck1st="n","",I66/I74)) ->  | K66: =IF(Comm8="","",IF(LSCheck1st="n","",T8AXLS-T81XLS)) ->  | L66: =IF(Comm8="","",IF(LSCheck1st="n","",DSTD1stComm8/24)) ->  | Z66: 1 | AA66: =IF(Comm8="","",IF(LSCheck1st="n","",K66*24)) -> 
B67: 2nd instar | C67: =IF(LSCheck2nd="n","N/A",SUM('Step 1 - Enter Raw Data'!B108:BI108)) -> 0 | D67: =IF(Comm8="","",IF(LSCheck2nd="n",NA(),T82XLS)) ->  | E67: =IF(Comm8="","",IF(LSCheck2nd="n","",'Step 1 - Enter Raw Data'!BK108)) ->  | F67: =IF(Comm8="","",IF(LSCheck2nd="n","",KURT('Step 1 - Enter Raw Data'!B108:BI108))) ->  | G67: =IF(Comm8="","",IF(LSCheck2nd="n","",'Step 1 - Enter Raw Data'!BQ108)) ->  | H67: =IF(Comm8="","",IF(LSCheck2nd="n","",'Step 1 - Enter Raw Data'!BR108)) ->  | I67: =IF(Comm8="","",IF(LSCheck2nd="n","",(H67-G67)+1)) ->  | J67: =IF(Comm8="","",IF(LSCheck2nd="n","",I67/I75)) ->  | K67: =IF(Comm8="","",IF(LSCheck2nd="n","",T8AXLS-T82XLS)) ->  | L67: =IF(Comm8="","",IF(LSCheck2nd="n","",DSTD2ndComm8/24)) ->  | Z67: 2 | AA67: =IF(Comm8="","",IF(LSCheck2nd="n","",K67*24)) -> 
B68: 3rd instar | C68: =IF(LSCheck3rd="n","N/A",SUM('Step 1 - Enter Raw Data'!B109:BI109)) -> 0 | D68: =IF(Comm8="","",IF(LSCheck3rd="n",NA(),T83XLS)) ->  | E68: =IF(Comm8="","",IF(LSCheck3rd="n","",'Step 1 - Enter Raw Data'!BK109)) ->  | F68: =IF(Comm8="","",IF(LSCheck3rd="n","",KURT('Step 1 - Enter Raw Data'!B109:BI109))) ->  | G68: =IF(Comm8="","",IF(LSCheck3rd="n","",'Step 1 - Enter Raw Data'!BQ109)) ->  | H68: =IF(Comm8="","",IF(LSCheck3rd="n","",'Step 1 - Enter Raw Data'!BR109)) ->  | I68: =IF(Comm8="","",IF(LSCheck3rd="n","",(H68-G68)+1)) ->  | J68: =IF(Comm8="","",IF(LSCheck3rd="n","",I68/I76)) ->  | K68: =IF(Comm8="","",IF(LSCheck3rd="n","",T8AXLS-T83XLS)) ->  | L68: =IF(Comm8="","",IF(LSCheck3rd="n","",DSTD3rdComm8/24)) ->  | Z68: 3 | AA68: =IF(Comm8="","",IF(LSCheck3rd="n","",K68*24)) -> 
B69: 4th instar | C69: =IF(LSCheck4th="n","N/A",SUM('Step 1 - Enter Raw Data'!B110:BI110)) -> N/A | D69: =IF(Comm8="","",IF(LSCheck4th="n",NA(),T84XLS)) ->  | E69: =IF(Comm8="","",IF(LSCheck4th="n","",'Step 1 - Enter Raw Data'!BK110)) ->  | F69: =IF(Comm8="","",IF(LSCheck4th="n","",KURT('Step 1 - Enter Raw Data'!B110:BI110))) ->  | G69: =IF(Comm8="","",IF(LSCheck4th="n","",'Step 1 - Enter Raw Data'!BQ110)) ->  | H69: =IF(Comm8="","",IF(LSCheck4th="n","",'Step 1 - Enter Raw Data'!BR110)) ->  | I69: =IF(Comm8="","",IF(LSCheck4th="n","",(H69-G69)+1)) ->  | J69: =IF(Comm8="","",IF(LSCheck4th="n","",I69/I77)) ->  | K69: =IF(Comm8="","",IF(LSCheck4th="n","",T8AXLS-T84XLS)) ->  | L69: =IF(Comm8="","",IF(LSCheck4th="n","",DSTD4thComm8/24)) ->  | Z69: 4 | AA69: =IF(Comm8="","",IF(LSCheck4th="n","",K69*24)) -> 
B70: 5th instar | C70: =IF(LSCheck5th="n","N/A",SUM('Step 1 - Enter Raw Data'!B111:BI111)) -> N/A | D70: =IF(Comm8="","",IF(LSCheck5th="n",NA(),T85XLS)) ->  | E70: =IF(Comm8="","",IF(LSCheck5th="n","",'Step 1 - Enter Raw Data'!BK111)) ->  | F70: =IF(Comm8="","",IF(LSCheck5th="n","",KURT('Step 1 - Enter Raw Data'!B111:BI111))) ->  | G70: =IF(Comm8="","",IF(LSCheck5th="n","",'Step 1 - Enter Raw Data'!BQ111)) ->  | H70: =IF(Comm8="","",IF(LSCheck5th="n","",'Step 1 - Enter Raw Data'!BR111)) ->  | I70: =IF(Comm8="","",IF(LSCheck5th="n","",(H70-G70)+1)) ->  | J70: =IF(Comm8="","",IF(LSCheck5th="n","",I70/I78)) ->  | K70: =IF(Comm8="","",IF(LSCheck5th="n","",T8AXLS-T85XLS)) ->  | L70: =IF(Comm8="","",IF(LSCheck5th="n","",DSTD5thComm8/24)) ->  | Z70: 5 | AA70: =IF(Comm8="","",IF(LSCheck5th="n","",K70*24)) -> 
B71: Pupae | C71: =IF(LSCheckPupa="n","N/A",SUM('Step 1 - Enter Raw Data'!B112:BI112)) -> 0 | D71: =IF(Comm8="","",IF(LSCheckPupa="n",NA(),T8PXLS)) ->  | E71: =IF(Comm8="","",IF(LSCheckPupa="n","",'Step 1 - Enter Raw Data'!BK112)) ->  | F71: =IF(Comm8="","",IF(LSCheckPupa="n","",KURT('Step 1 - Enter Raw Data'!B112:BI112))) ->  | G71: =IF(Comm8="","",IF(LSCheckPupa="n","",'Step 1 - Enter Raw Data'!BQ112)) ->  | H71: =IF(Comm8="","",IF(LSCheckPupa="n","",'Step 1 - Enter Raw Data'!BR112)) ->  | I71: =IF(Comm8="","",IF(LSCheckPupa="n","",(H71-G71)+1)) ->  | J71: =IF(Comm8="","",IF(LSCheckPupa="n","",I71/I79)) ->  | K71: =IF(Comm8="","",IF(LSCheckPupa="n","",T8AXLS-T8PXLS)) ->  | L71: =IF(Comm8="","",IF(LSCheckPupa="n","",DSTDPupaeComm8/24)) ->  | Z71: P | AA71: =IF(Comm8="","",IF(LSCheckPupa="n","",K71*24)) -> 
B72: Adults | C72: =IF(LSCheckAdult="n","N/A",SUM('Step 1 - Enter Raw Data'!B113:BI113)) -> 0 | D72: =IF(Comm8="","",IF(LSCheckAdult="n",NA(),T8AXLS)) ->  | E72: =IF(Comm8="","",IF(LSCheckAdult="n","",'Step 1 - Enter Raw Data'!BK113)) ->  | F72: =IF(Comm8="","",IF(LSCheckAdult="n","",KURT('Step 1 - Enter Raw Data'!B113:BI113))) ->  | G72: =IF(Comm8="","",IF(LSCheckAdult="n","",'Step 1 - Enter Raw Data'!BQ113)) ->  | H72: =IF(Comm8="","",IF(LSCheckAdult="n","",'Step 1 - Enter Raw Data'!BR113)) ->  | I72: =IF(Comm8="","",IF(LSCheckAdult="n","",(H72-G72)+1)) ->  | J72: =IF(Comm8="","",IF(LSCheckAdult="n","",I72/I80)) -> 
B73: Treatment | C73: =IF(Comm8="","",SUM(C65:C72)) ->  | F73: =IF(Comm8="","",KURT('Step 1 - Enter Raw Data'!B114:BI114)) ->  | G73: =IF(Comm8="","",'Step 1 - Enter Raw Data'!BQ114) ->  | H73: =IF(Comm8="","",'Step 1 - Enter Raw Data'!BR114) ->  | I73: =IF(Comm8="","",(H73-G73)+1) ->  | J73: =IF(Comm8="","",I73/I$73) -> 
A74: =IF(Comm9="","No treatment",Comm9) -> No treatment | B74: Eggs | C74: =IF(LSCheckEggs="n","N/A",SUM('Step 1 - Enter Raw Data'!B117:BI117)) -> 0 | D74: =IF(Comm9="","",IF(LSCheckEggs="n",NA(),T9EXLS)) ->  | E74: =IF(Comm8="","",IF(LSCheckEggs="n","",'Step 1 - Enter Raw Data'!BK117)) ->  | F74: =IF(Comm8="","",IF(LSCheckEggs="n","",KURT('Step 1 - Enter Raw Data'!B117:BI117))) ->  | G74: =IF(Comm9="","",IF(LSCheckEggs="n","",'Step 1 - Enter Raw Data'!BQ117)) ->  | H74: =IF(Comm9="","",IF(LSCheckEggs="n","",'Step 1 - Enter Raw Data'!BR117)) ->  | I74: =IF(Comm9="","",IF(LSCheckEggs="n","",(H74-G74)+1)) ->  | J74: =IF(Comm9="","",IF(LSCheckEggs="n","",I74/I$82)) ->  | K74: =IF(Comm9="","",IF(LSCheckEggs="n","",T9AXLS-T9EXLS)) ->  | L74: =IF(Comm9="","",IF(LSCheckEggs="n","",DSTDEggsComm9/24)) ->  | Y74: =Comm9 -> 0 | Z74: E | AA74: =IF(Comm9="","",IF(LSCheckEggs="n","",K74*24)) -> 
B75: 1st instar | C75: =IF(LSCheck1st="n","N/A",SUM('Step 1 - Enter Raw Data'!B118:BI118)) -> 0 | D75: =IF(Comm9="","",IF(LSCheck1st="n",NA(),T91XLS)) ->  | E75: =IF(Comm8="","",IF(LSCheck1st="n","",'Step 1 - Enter Raw Data'!BK118)) ->  | F75: =IF(Comm8="","",IF(LSCheck1st="n","",KURT('Step 1 - Enter Raw Data'!B118:BI118))) ->  | G75: =IF(Comm9="","",IF(LSCheck1st="n","",'Step 1 - Enter Raw Data'!BQ118)) ->  | H75: =IF(Comm9="","",IF(LSCheck1st="n","",'Step 1 - Enter Raw Data'!BR118)) ->  | I75: =IF(Comm9="","",IF(LSCheck1st="n","",(H75-G75)+1)) ->  | J75: =IF(Comm9="","",IF(LSCheck1st="n","",I75/I$82)) ->  | K75: =IF(Comm9="","",IF(LSCheck1st="n","",T9AXLS-T91XLS)) ->  | L75: =IF(Comm9="","",IF(LSCheck1st="n","",DSTD1stComm9/24)) ->  | Z75: 1 | AA75: =IF(Comm9="","",IF(LSCheck1st="n","",K75*24)) -> 
B76: 2nd instar | C76: =IF(LSCheck2nd="n","N/A",SUM('Step 1 - Enter Raw Data'!B119:BI119)) -> 0 | D76: =IF(Comm9="","",IF(LSCheck2nd="n",NA(),T92XLS)) ->  | E76: =IF(Comm8="","",IF(LSCheck2nd="n","",'Step 1 - Enter Raw Data'!BK119)) ->  | F76: =IF(Comm8="","",IF(LSCheck2nd="n","",KURT('Step 1 - Enter Raw Data'!B119:BI119))) ->  | G76: =IF(Comm9="","",IF(LSCheck2nd="n","",'Step 1 - Enter Raw Data'!BQ119)) ->  | H76: =IF(Comm9="","",IF(LSCheck2nd="n","",'Step 1 - Enter Raw Data'!BR119)) ->  | I76: =IF(Comm9="","",IF(LSCheck2nd="n","",(H76-G76)+1)) ->  | J76: =IF(Comm9="","",IF(LSCheck2nd="n","",I76/I$82)) ->  | K76: =IF(Comm9="","",IF(LSCheck2nd="n","",T9AXLS-T92XLS)) ->  | L76: =IF(Comm9="","",IF(LSCheck2nd="n","",DSTD2ndComm9/24)) ->  | Z76: 2 | AA76: =IF(Comm9="","",IF(LSCheck2nd="n","",K76*24)) -> 
B77: 3rd instar | C77: =IF(LSCheck3rd="n","N/A",SUM('Step 1 - Enter Raw Data'!B120:BI120)) -> 0 | D77: =IF(Comm9="","",IF(LSCheck3rd="n",NA(),T93XLS)) ->  | E77: =IF(Comm8="","",IF(LSCheck3rd="n","",'Step 1 - Enter Raw Data'!BK120)) ->  | F77: =IF(Comm8="","",IF(LSCheck3rd="n","",KURT('Step 1 - Enter Raw Data'!B120:BI120))) ->  | G77: =IF(Comm9="","",IF(LSCheck3rd="n","",'Step 1 - Enter Raw Data'!BQ120)) ->  | H77: =IF(Comm9="","",IF(LSCheck3rd="n","",'Step 1 - Enter Raw Data'!BR120)) ->  | I77: =IF(Comm9="","",IF(LSCheck3rd="n","",(H77-G77)+1)) ->  | J77: =IF(Comm9="","",IF(LSCheck3rd="n","",I77/I$82)) ->  | K77: =IF(Comm9="","",IF(LSCheck3rd="n","",T9AXLS-T93XLS)) ->  | L77: =IF(Comm9="","",IF(LSCheck3rd="n","",DSTD3rdComm9/24)) ->  | Z77: 3 | AA77: =IF(Comm9="","",IF(LSCheck3rd="n","",K77*24)) -> 
B78: 4th instar | C78: =IF(LSCheck4th="n","N/A",SUM('Step 1 - Enter Raw Data'!B121:BI121)) -> N/A | D78: =IF(Comm9="","",IF(LSCheck4th="n",NA(),T94XLS)) ->  | E78: =IF(Comm8="","",IF(LSCheck4th="n","",'Step 1 - Enter Raw Data'!BK121)) ->  | F78: =IF(Comm8="","",IF(LSCheck4th="n","",KURT('Step 1 - Enter Raw Data'!B121:BI121))) ->  | G78: =IF(Comm9="","",IF(LSCheck4th="n","",'Step 1 - Enter Raw Data'!BQ121)) ->  | H78: =IF(Comm9="","",IF(LSCheck4th="n","",'Step 1 - Enter Raw Data'!BR121)) ->  | I78: =IF(Comm9="","",IF(LSCheck4th="n","",(H78-G78)+1)) ->  | J78: =IF(Comm9="","",IF(LSCheck4th="n","",I78/I$82)) ->  | K78: =IF(Comm9="","",IF(LSCheck4th="n","",T9AXLS-T94XLS)) ->  | L78: =IF(Comm9="","",IF(LSCheck4th="n","",DSTD4thComm9/24)) ->  | Z78: 4 | AA78: =IF(Comm9="","",IF(LSCheck4th="n","",K78*24)) -> 
B79: 5th instar | C79: =IF(LSCheck5th="n","N/A",SUM('Step 1 - Enter Raw Data'!B122:BI122)) -> N/A | D79: =IF(Comm9="","",IF(LSCheck5th="n",NA(),T95XLS)) ->  | E79: =IF(Comm8="","",IF(LSCheck5th="n","",'Step 1 - Enter Raw Data'!BK122)) ->  | F79: =IF(Comm8="","",IF(LSCheck5th="n","",KURT('Step 1 - Enter Raw Data'!B122:BI122))) ->  | G79: =IF(Comm9="","",IF(LSCheck5th="n","",'Step 1 - Enter Raw Data'!BQ122)) ->  | H79: =IF(Comm9="","",IF(LSCheck5th="n","",'Step 1 - Enter Raw Data'!BR122)) ->  | I79: =IF(Comm9="","",IF(LSCheck5th="n","",(H79-G79)+1)) ->  | J79: =IF(Comm9="","",IF(LSCheck5th="n","",I79/I$82)) ->  | K79: =IF(Comm9="","",IF(LSCheck5th="n","",T9AXLS-T95XLS)) ->  | L79: =IF(Comm9="","",IF(LSCheck5th="n","",DSTD5thComm9/24)) ->  | Z79: 5 | AA79: =IF(Comm9="","",IF(LSCheck5th="n","",K79*24)) -> 
B80: Pupae | C80: =IF(LSCheckPupa="n","N/A",SUM('Step 1 - Enter Raw Data'!B123:BI123)) -> 0 | D80: =IF(Comm9="","",IF(LSCheckPupa="n",NA(),T9PXLS)) ->  | E80: =IF(Comm8="","",IF(LSCheckPupa="n","",'Step 1 - Enter Raw Data'!BK123)) ->  | F80: =IF(Comm8="","",IF(LSCheckPupa="n","",KURT('Step 1 - Enter Raw Data'!B123:BI123))) ->  | G80: =IF(Comm9="","",IF(LSCheckPupa="n","",'Step 1 - Enter Raw Data'!BQ123)) ->  | H80: =IF(Comm9="","",IF(LSCheckPupa="n","",'Step 1 - Enter Raw Data'!BR123)) ->  | I80: =IF(Comm9="","",IF(LSCheckPupa="n","",(H80-G80)+1)) ->  | J80: =IF(Comm9="","",IF(LSCheckPupa="n","",I80/I$82)) ->  | K80: =IF(Comm9="","",IF(LSCheckPupa="n","",T9AXLS-T9PXLS)) ->  | L80: =IF(Comm9="","",IF(LSCheckPupa="n","",DSTDPupaeComm9/24)) ->  | Z80: P | AA80: =IF(Comm9="","",IF(LSCheckPupa="n","",K80*24)) -> 
B81: Adults | C81: =IF(LSCheckAdult="n","N/A",SUM('Step 1 - Enter Raw Data'!B124:BI124)) -> 0 | D81: =IF(Comm9="","",IF(LSCheckAdult="n",NA(),T9AXLS)) ->  | E81: =IF(Comm8="","",IF(LSCheckAdult="n","",'Step 1 - Enter Raw Data'!BK124)) ->  | F81: =IF(Comm8="","",IF(LSCheckAdult="n","",KURT('Step 1 - Enter Raw Data'!B124:BI124))) ->  | G81: =IF(Comm9="","",IF(LSCheckAdult="n","",'Step 1 - Enter Raw Data'!BQ124)) ->  | H81: =IF(Comm9="","",IF(LSCheckAdult="n","",'Step 1 - Enter Raw Data'!BR124)) ->  | I81: =IF(Comm9="","",IF(LSCheckAdult="n","",(H81-G81)+1)) ->  | J81: =IF(Comm9="","",IF(LSCheckAdult="n","",I81/I$82)) -> 
B82: Treatment | C82: =IF(Comm9="","",SUM(C74:C81)) ->  | F82: =IF(Comm9="","",KURT('Step 1 - Enter Raw Data'!B125:BI125)) ->  | G82: =IF(Comm9="","",'Step 1 - Enter Raw Data'!BQ125) ->  | H82: =IF(Comm9="","",'Step 1 - Enter Raw Data'!BR125) ->  | I82: =IF(Comm9="","",(H82-G82)+1) ->  | J82: =IF(Comm9="","",I82/I$82) -> 
A83: =IF(Comm10="","No treatment",Comm10) -> No treatment | B83: Eggs | C83: =IF(LSCheckEggs="n","N/A",SUM('Step 1 - Enter Raw Data'!B128:BI128)) -> 0 | D83: =IF(Comm10="","",IF(LSCheckEggs="n",NA(),T10EXLS)) ->  | E83: =IF(Comm10="","",IF(LSCheckEggs="n","",'Step 1 - Enter Raw Data'!BK128)) ->  | F83: =IF(Comm10="","",IF(LSCheckEggs="n","",KURT('Step 1 - Enter Raw Data'!B128:BI128))) ->  | G83: =IF(Comm10="","",IF(LSCheckEggs="n","",'Step 1 - Enter Raw Data'!BQ128)) ->  | H83: =IF(Comm10="","",IF(LSCheckEggs="n","",'Step 1 - Enter Raw Data'!BR128)) ->  | I83: =IF(Comm10="","",IF(LSCheckEggs="n","",(H83-G83)+1)) ->  | J83: =IF(Comm10="","",IF(LSCheckEggs="n","",I83/I$91)) ->  | K83: =IF(Comm10="","",IF(LSCheckEggs="n","",T10AXLS-T10EXLS)) ->  | L83: =IF(Comm10="","",IF(LSCheckEggs="n","",DSTDEggsComm10/24)) ->  | Y83: =Comm10 -> 0 | Z83: E | AA83: =IF(Comm10="","",IF(LSCheckEggs="n","",K83*24)) -> 
B84: 1st instar | C84: =IF(LSCheck1st="n","N/A",SUM('Step 1 - Enter Raw Data'!B129:BI129)) -> 0 | D84: =IF(Comm10="","",IF(LSCheck1st="n",NA(),T101XLS)) ->  | E84: =IF(Comm10="","",IF(LSCheck1st="n","",'Step 1 - Enter Raw Data'!BK129)) ->  | F84: =IF(Comm10="","",IF(LSCheck1st="n","",KURT('Step 1 - Enter Raw Data'!B129:BI129))) ->  | G84: =IF(Comm10="","",IF(LSCheck1st="n","",'Step 1 - Enter Raw Data'!BQ129)) ->  | H84: =IF(Comm10="","",IF(LSCheck1st="n","",'Step 1 - Enter Raw Data'!BR129)) ->  | I84: =IF(Comm10="","",IF(LSCheck1st="n","",(H84-G84)+1)) ->  | J84: =IF(Comm10="","",IF(LSCheck1st="n","",I84/I$91)) ->  | K84: =IF(Comm10="","",IF(LSCheck1st="n","",T10AXLS-T101XLS)) ->  | L84: =IF(Comm10="","",IF(LSCheck1st="n","",DSTD1stComm10/24)) ->  | Z84: 1 | AA84: =IF(Comm10="","",IF(LSCheck1st="n","",K84*24)) -> 
B85: 2nd instar | C85: =IF(LSCheck2nd="n","N/A",SUM('Step 1 - Enter Raw Data'!B130:BI130)) -> 0 | D85: =IF(Comm10="","",IF(LSCheck2nd="n",NA(),T102XLS)) ->  | E85: =IF(Comm10="","",IF(LSCheck2nd="n","",'Step 1 - Enter Raw Data'!BK130)) ->  | F85: =IF(Comm10="","",IF(LSCheck2nd="n","",KURT('Step 1 - Enter Raw Data'!B130:BI130))) ->  | G85: =IF(Comm10="","",IF(LSCheck2nd="n","",'Step 1 - Enter Raw Data'!BQ130)) ->  | H85: =IF(Comm10="","",IF(LSCheck2nd="n","",'Step 1 - Enter Raw Data'!BR130)) ->  | I85: =IF(Comm10="","",IF(LSCheck2nd="n","",(H85-G85)+1)) ->  | J85: =IF(Comm10="","",IF(LSCheck2nd="n","",I85/I$91)) ->  | K85: =IF(Comm10="","",IF(LSCheck2nd="n","",T10AXLS-T102XLS)) ->  | L85: =IF(Comm10="","",IF(LSCheck2nd="n","",DSTD2ndComm10/24)) ->  | Z85: 2 | AA85: =IF(Comm10="","",IF(LSCheck2nd="n","",K85*24)) -> 
B86: 3rd instar | C86: =IF(LSCheck3rd="n","N/A",SUM('Step 1 - Enter Raw Data'!B131:BI131)) -> 0 | D86: =IF(Comm10="","",IF(LSCheck3rd="n",NA(),T103XLS)) ->  | E86: =IF(Comm10="","",IF(LSCheck3rd="n","",'Step 1 - Enter Raw Data'!BK131)) ->  | F86: =IF(Comm10="","",IF(LSCheck3rd="n","",KURT('Step 1 - Enter Raw Data'!B131:BI131))) ->  | G86: =IF(Comm10="","",IF(LSCheck3rd="n","",'Step 1 - Enter Raw Data'!BQ131)) ->  | H86: =IF(Comm10="","",IF(LSCheck3rd="n","",'Step 1 - Enter Raw Data'!BR131)) ->  | I86: =IF(Comm10="","",IF(LSCheck3rd="n","",(H86-G86)+1)) ->  | J86: =IF(Comm10="","",IF(LSCheck3rd="n","",I86/I$91)) ->  | K86: =IF(Comm10="","",IF(LSCheck3rd="n","",T10AXLS-T103XLS)) ->  | L86: =IF(Comm10="","",IF(LSCheck3rd="n","",DSTD3rdComm10/24)) ->  | Z86: 3 | AA86: =IF(Comm10="","",IF(LSCheck3rd="n","",K86*24)) -> 
B87: 4th instar | C87: =IF(LSCheck4th="n","N/A",SUM('Step 1 - Enter Raw Data'!B132:BI132)) -> N/A | D87: =IF(Comm10="","",IF(LSCheck4th="n",NA(),T104XLS)) ->  | E87: =IF(Comm10="","",IF(LSCheck4th="n","",'Step 1 - Enter Raw Data'!BK132)) ->  | F87: =IF(Comm10="","",IF(LSCheck4th="n","",KURT('Step 1 - Enter Raw Data'!B132:BI132))) ->  | G87: =IF(Comm10="","",IF(LSCheck4th="n","",'Step 1 - Enter Raw Data'!BQ132)) ->  | H87: =IF(Comm10="","",IF(LSCheck4th="n","",'Step 1 - Enter Raw Data'!BR132)) ->  | I87: =IF(Comm10="","",IF(LSCheck4th="n","",(H87-G87)+1)) ->  | J87: =IF(Comm10="","",IF(LSCheck4th="n","",I87/I$91)) ->  | K87: =IF(Comm10="","",IF(LSCheck4th="n","",T10AXLS-T104XLS)) ->  | L87: =IF(Comm10="","",IF(LSCheck4th="n","",DSTD4thComm10/24)) ->  | Z87: 4 | AA87: =IF(Comm10="","",IF(LSCheck4th="n","",K87*24)) -> 
B88: 5th instar | C88: =IF(LSCheck5th="n","N/A",SUM('Step 1 - Enter Raw Data'!B133:BI133)) -> N/A | D88: =IF(Comm10="","",IF(LSCheck5th="n",NA(),T105XLS)) ->  | E88: =IF(Comm10="","",IF(LSCheck5th="n","",'Step 1 - Enter Raw Data'!BK133)) ->  | F88: =IF(Comm10="","",IF(LSCheck5th="n","",KURT('Step 1 - Enter Raw Data'!B133:BI133))) ->  | G88: =IF(Comm10="","",IF(LSCheck5th="n","",'Step 1 - Enter Raw Data'!BQ133)) ->  | H88: =IF(Comm10="","",IF(LSCheck5th="n","",'Step 1 - Enter Raw Data'!BR133)) ->  | I88: =IF(Comm10="","",IF(LSCheck5th="n","",(H88-G88)+1)) ->  | J88: =IF(Comm10="","",IF(LSCheck5th="n","",I88/I$91)) ->  | K88: =IF(Comm10="","",IF(LSCheck5th="n","",T10AXLS-T105XLS)) ->  | L88: =IF(Comm10="","",IF(LSCheck5th="n","",DSTD5thComm10/24)) ->  | Z88: 5 | AA88: =IF(Comm10="","",IF(LSCheck5th="n","",K88*24)) -> 
B89: Pupae | C89: =IF(LSCheckPupa="n","N/A",SUM('Step 1 - Enter Raw Data'!B134:BI134)) -> 0 | D89: =IF(Comm10="","",IF(LSCheckPupa="n",NA(),T10PXLS)) ->  | E89: =IF(Comm10="","",IF(LSCheckPupa="n","",'Step 1 - Enter Raw Data'!BK134)) ->  | F89: =IF(Comm10="","",IF(LSCheckPupa="n","",KURT('Step 1 - Enter Raw Data'!B134:BI134))) ->  | G89: =IF(Comm10="","",IF(LSCheckPupa="n","",'Step 1 - Enter Raw Data'!BQ134)) ->  | H89: =IF(Comm10="","",IF(LSCheckPupa="n","",'Step 1 - Enter Raw Data'!BR134)) ->  | I89: =IF(Comm10="","",IF(LSCheckPupa="n","",(H89-G89)+1)) ->  | J89: =IF(Comm10="","",IF(LSCheckPupa="n","",I89/I$91)) ->  | K89: =IF(Comm10="","",IF(LSCheckPupa="n","",T10AXLS-T10PXLS)) ->  | L89: =IF(Comm10="","",IF(LSCheckPupa="n","",DSTDPupaeComm10/24)) ->  | Z89: P | AA89: =IF(Comm10="","",IF(LSCheckPupa="n","",K89*24)) -> 
B90: Adults | C90: =IF(LSCheckAdult="n","N/A",SUM('Step 1 - Enter Raw Data'!B135:BI135)) -> 0 | D90: =IF(Comm10="","",IF(LSCheckAdult="n",NA(),T10AXLS)) ->  | E90: =IF(Comm10="","",IF(LSCheckAdult="n","",'Step 1 - Enter Raw Data'!BK135)) ->  | F90: =IF(Comm10="","",IF(LSCheckAdult="n","",KURT('Step 1 - Enter Raw Data'!B135:BI135))) ->  | G90: =IF(Comm10="","",IF(LSCheckadults="n","",'Step 1 - Enter Raw Data'!BQ135)) ->  | H90: =IF(Comm10="","",IF(LSCheckadults="n","",'Step 1 - Enter Raw Data'!BR135)) ->  | I90: =IF(Comm10="","",IF(LSCheckAdult="n","",(H90-G90)+1)) ->  | J90: =IF(Comm10="","",IF(LSCheckAdult="n","",I90/I$91)) -> 
B91: Treatment | C91: =IF(Comm10="","",SUM(C83:C90)) ->  | F91: =IF(Comm10="","",KURT('Step 1 - Enter Raw Data'!B136:BI136)) ->  | G91: =IF(Comm10="","",'Step 1 - Enter Raw Data'!BQ136) ->  | H91: =IF(Comm10="","",'Step 1 - Enter Raw Data'!BR136) ->  | I91: =IF(Comm10="","",(H91-G91)+1) ->  | J91: =IF(Comm10="","",I91/I$91) -> 

Sheet Crunch sets II (hidden)
B1: Reports daily sum (Col C) | D1: Calculates cummulative prob sum (Col E)
B2: Row Labels | D2: =Comm1 -> Blackberry | H2: Row Labels | J2: =Comm2 -> Blueberry | N2: Row Labels | P2: =Comm3 -> Cherry | T2: Row Labels | V2: =Comm4 -> Grape | Z2: Row Labels | AB2: =Comm5 -> Raspberry | AF2: Row Labels | AH2: =Comm6 -> Strawberry | AL2: Row Labels | AN2: =Comm7 -> 0 | AR2: Row Labels | AT2: =Comm8 -> 0 | AX2: Row Labels | AZ2: =Comm9 -> 0 | BD2: Row Labels | BF2: =Comm10 -> 0
B3: Prob Eggs | D3: LSTOT/LSHT | E3: Cum Total | F3: LSComm1Eggs | H3: Prob Eggs | J3: LSTOT/LSHT | K3: Cum Total | L3: LSComm2Eggs | N3: Prob Eggs | P3: LSTOT/LSHT | Q3: Cum Total | R3: LSComm3Eggs | T3: Prob Eggs | V3: LSTOT/LSHT | W3: Cum Total | X3: LSComm4Eggs | Z3: Prob Eggs | AB3: LSTOT/LSHT | AC3: Cum Total | AD3: LSComm5Eggs | AF3: Prob Eggs | AH3: LSTOT/LSHT | AI3: Cum Total | AJ3: LSComm6Eggs | AL3: Prob Eggs | AN3: LSTOT/LSHT | AO3: Cum Total | AP3: LSComm7Eggs | AR3: Prob Eggs | AT3: LSTOT/LSHT | AU3: Cum Total | AV3: LSComm8Eggs | AX3: Prob Eggs | AZ3: LSTOT/LSHT | BA3: Cum Total | BB3: LSComm9Eggs | BD3: Prob Eggs | BF3: LSTOT/LSHT | BG3: Cum Total | BH3: LSComm10Eggs | BJ3: ="RE-ENTER. See #1." -> RE-ENTER. See #1.
B4: Sum of 1 | C4: 0.8901515152 | D4: 1 | E4: =GETPIVOTDATA("Sum of 1",$B$2,"Day ","Prob Eggs") -> 0.8901515152 | F4: =IF(LSCheckEggs="n",0,(((VLOOKUP(LSTOT,D4:E63,2))-(IF(LSHT=0,0,(VLOOKUP(LSHT,D4:E63,2)))))/LSIT)) -> 0 | H4: Sum of 1 | I4: 0.9214285714 | J4: 1 | K4: =GETPIVOTDATA("Sum of 1",H$2,"Day ","Prob Eggs") -> 0.9214285714 | L4: =IF(LSCheckEggs="n",0,(((VLOOKUP(LSTOT,J4:K63,2))-(IF(LSHT=0,0,(VLOOKUP(LSHT,J4:K63,2)))))/LSIT)) -> 0 | N4: Sum of 1 | O4: 0.918128655 | P4: 1 | Q4: =GETPIVOTDATA("Sum of 1",N$2,"Day ","Prob Eggs") -> 0.918128655 | R4: =IF(LSCheckEggs="n",0,(((VLOOKUP(LSTOT,P4:Q63,2))-(IF(LSHT=0,0,(VLOOKUP(LSHT,P4:Q63,2)))))/LSIT)) -> 0 | T4: Sum of 1 | U4: 0.8289473684 | V4: 1 | W4: =GETPIVOTDATA("Sum of 1",T$2,"Day ","Prob Eggs") -> 0.8289473684 | X4: =IF(LSCheckEggs="n",0,(((VLOOKUP(LSTOT,V4:W63,2))-(IF(LSHT=0,0,(VLOOKUP(LSHT,V4:W63,2)))))/LSIT)) -> 0 | Z4: Sum of 1 | AA4: 0.9090909091 | AB4: 1 | AC4: =GETPIVOTDATA("Sum of 1",Z$2,"Day ","Prob Eggs") -> 0.9090909091 | AD4: =IF(LSCheckEggs="n",0,(((VLOOKUP(LSTOT,AB4:AC63,2))-(IF(LSHT=0,0,(VLOOKUP(LSHT,AB4:AC63,2)))))/LSIT)) -> 0 | AF4: Sum of 1 | AG4: 1 | AH4: 1 | AI4: =GETPIVOTDATA("Sum of 1",AF$2,"Day ","Prob Eggs") -> 1 | AJ4: =IF(LSCheckEggs="n",0,(((VLOOKUP(LSTOT,AH4:AI63,2))-(IF(LSHT=0,0,(VLOOKUP(LSHT,AH4:AI63,2)))))/LSIT)) -> 0 | AL4: Sum of 1 | AM4: 0 | AN4: 1 | AO4: =GETPIVOTDATA("Sum of 1",AL$2,"Day ","Prob Eggs") -> 0 | AP4: =IF(LSCheckEggs="n",0,(((VLOOKUP(LSTOT,AN4:AO63,2))-(IF(LSHT=0,0,(VLOOKUP(LSHT,AN4:AO63,2)))))/LSIT)) -> 0 | AR4: Sum of 1 | AS4: 0 | AT4: 1 | AU4: =GETPIVOTDATA("Sum of 1",AR$2,"Day ","Prob Eggs") -> 0 | AV4: =IF(LSCheckEggs="n",0,(((VLOOKUP(LSTOT,AT4:AU63,2))-(IF(LSHT=0,0,(VLOOKUP(LSHT,AT4:AU63,2)))))/LSIT)) -> 0 | AX4: Sum of 1 | AY4: 0 | AZ4: 1 | BA4: =GETPIVOTDATA("Sum of 1",AX$2,"Day ","Prob Eggs") -> 0 | BB4: =IF(LSCheckEggs="n",0,(((VLOOKUP(LSTOT,AZ4:BA63,2))-(IF(LSHT=0,0,(VLOOKUP(LSHT,AZ4:BA63,2)))))/LSIT)) -> 0 | BD4: Sum of 1 | BE4: 0 | BF4: 1 | BG4: =GETPIVOTDATA("Sum of 1",BD$2,"Day ","Prob Eggs") -> 0 | BH4: =IF(LSCheckEggs="n",0,(((VLOOKUP(LSTOT,BF4:BG63,2))-(IF(LSHT=0,0,(VLOOKUP(LSHT,BF4:BG63,2)))))/LSIT)) -> 0 | BJ4: ="RE-ENTER. See #2." -> RE-ENTER. See #2.
B5: Sum of 2 | C5: 0 | D5: 2 | E5: =E4+GETPIVOTDATA("Sum of 2",$B$2,"Day ","Prob Eggs") -> 0.8901515152 | F5: Calculates probability of the life stage occurring LSTOT days after infestation. Includes LSHT (life stage holding time) and LSIT (Life stage infestation time) | H5: Sum of 2 | I5: 0.05982905983 | J5: 2 | K5: =K4+GETPIVOTDATA("Sum of 2",H$2,"Day ","Prob Eggs") -> 0.9812576313 | N5: Sum of 2 | O5: 0.1754385965 | P5: 2 | Q5: =Q4+GETPIVOTDATA("Sum of 2",N$2,"Day ","Prob Eggs") -> 1.093567251 | T5: Sum of 2 | U5: 0.3059701493 | V5: 2 | W5: =W4+GETPIVOTDATA("Sum of 2",T$2,"Day ","Prob Eggs") -> 1.134917518 | Z5: Sum of 2 | AA5: 0.01162790698 | AB5: 2 | AC5: =AC4+GETPIVOTDATA("Sum of 2",Z$2,"Day ","Prob Eggs") -> 0.9207188161 | AF5: Sum of 2 | AG5: 0.09881422925 | AH5: 2 | AI5: =AI4+GETPIVOTDATA("Sum of 2",AF$2,"Day ","Prob Eggs") -> 1.098814229 | AL5: Sum of 2 | AM5: 0 | AN5: 2 | AO5: =AO4+GETPIVOTDATA("Sum of 2",AL$2,"Day ","Prob Eggs") -> 0 | AR5: Sum of 2 | AS5: 0 | AT5: 2 | AU5: =AU4+GETPIVOTDATA("Sum of 2",AR$2,"Day ","Prob Eggs") -> 0 | AX5: Sum of 2 | AY5: 0 | AZ5: 2 | BA5: =BA4+GETPIVOTDATA("Sum of 2",AX$2,"Day ","Prob Eggs") -> 0 | BD5: Sum of 2 | BE5: 0 | BF5: 2 | BG5: =BG4+GETPIVOTDATA("Sum of 2",BD$2,"Day ","Prob Eggs") -> 0 | BJ5: ="RE-ENTER. See #3." -> RE-ENTER. See #3.
B6: Sum of 3 | C6: 0 | D6: 3 | E6: =E5+GETPIVOTDATA("Sum of 3",$B$2,"Day ","Prob Eggs") -> 0.8901515152 | H6: Sum of 3 | I6: 0 | J6: 3 | K6: =K5+GETPIVOTDATA("Sum of 3",H$2,"Day ","Prob Eggs") -> 0.9812576313 | N6: Sum of 3 | O6: 0 | P6: 3 | Q6: =Q5+GETPIVOTDATA("Sum of 3",N$2,"Day ","Prob Eggs") -> 1.093567251 | T6: Sum of 3 | U6: 0 | V6: 3 | W6: =W5+GETPIVOTDATA("Sum of 3",T$2,"Day ","Prob Eggs") -> 1.134917518 | Z6: Sum of 3 | AA6: 0.01639344262 | AB6: 3 | AC6: =AC5+GETPIVOTDATA("Sum of 3",Z$2,"Day ","Prob Eggs") -> 0.9371122587 | AF6: Sum of 3 | AG6: 0 | AH6: 3 | AI6: =AI5+GETPIVOTDATA("Sum of 3",AF$2,"Day ","Prob Eggs") -> 1.098814229 | AL6: Sum of 3 | AM6: 0 | AN6: 3 | AO6: =AO5+GETPIVOTDATA("Sum of 3",AL$2,"Day ","Prob Eggs") -> 0 | AR6: Sum of 3 | AS6: 0 | AT6: 3 | AU6: =AU5+GETPIVOTDATA("Sum of 3",AR$2,"Day ","Prob Eggs") -> 0 | AX6: Sum of 3 | AY6: 0 | AZ6: 3 | BA6: =BA5+GETPIVOTDATA("Sum of 3",AX$2,"Day ","Prob Eggs") -> 0 | BD6: Sum of 3 | BE6: 0 | BF6: 3 | BG6: =BG5+GETPIVOTDATA("Sum of 3",BD$2,"Day ","Prob Eggs") -> 0
B7: Sum of 4 | C7: 0 | D7: 4 | E7: =E6+GETPIVOTDATA("Sum of 4",$B$2,"Day ","Prob Eggs") -> 0.8901515152 | H7: Sum of 4 | I7: 0 | J7: 4 | K7: =K6+GETPIVOTDATA("Sum of 4",H$2,"Day ","Prob Eggs") -> 0.9812576313 | N7: Sum of 4 | O7: 0 | P7: 4 | Q7: =Q6+GETPIVOTDATA("Sum of 4",N$2,"Day ","Prob Eggs") -> 1.093567251 | T7: Sum of 4 | U7: 0 | V7: 4 | W7: =W6+GETPIVOTDATA("Sum of 4",T$2,"Day ","Prob Eggs") -> 1.134917518 | Z7: Sum of 4 | AA7: 0 | AB7: 4 | AC7: =AC6+GETPIVOTDATA("Sum of 4",Z$2,"Day ","Prob Eggs") -> 0.9371122587 | AF7: Sum of 4 | AG7: 0 | AH7: 4 | AI7: =AI6+GETPIVOTDATA("Sum of 4",AF$2,"Day ","Prob Eggs") -> 1.098814229 | AL7: Sum of 4 | AM7: 0 | AN7: 4 | AO7: =AO6+GETPIVOTDATA("Sum of 4",AL$2,"Day ","Prob Eggs") -> 0 | AR7: Sum of 4 | AS7: 0 | AT7: 4 | AU7: =AU6+GETPIVOTDATA("Sum of 4",AR$2,"Day ","Prob Eggs") -> 0 | AX7: Sum of 4 | AY7: 0 | AZ7: 4 | BA7: =BA6+GETPIVOTDATA("Sum of 4",AX$2,"Day ","Prob Eggs") -> 0 | BD7: Sum of 4 | BE7: 0 | BF7: 4 | BG7: =BG6+GETPIVOTDATA("Sum of 4",BD$2,"Day ","Prob Eggs") -> 0
B8: Sum of 5 | C8: 0 | D8: 5 | E8: =E7+GETPIVOTDATA("Sum of 5",$B$2,"Day ","Prob Eggs") -> 0.8901515152 | H8: Sum of 5 | I8: 0 | J8: 5 | K8: =K7+GETPIVOTDATA("Sum of 5",H$2,"Day ","Prob Eggs") -> 0.9812576313 | N8: Sum of 5 | O8: 0 | P8: 5 | Q8: =Q7+GETPIVOTDATA("Sum of 5",N$2,"Day ","Prob Eggs") -> 1.093567251 | T8: Sum of 5 | U8: 0 | V8: 5 | W8: =W7+GETPIVOTDATA("Sum of 5",T$2,"Day ","Prob Eggs") -> 1.134917518 | Z8: Sum of 5 | AA8: 0 | AB8: 5 | AC8: =AC7+GETPIVOTDATA("Sum of 5",Z$2,"Day ","Prob Eggs") -> 0.9371122587 | AF8: Sum of 5 | AG8: 0 | AH8: 5 | AI8: =AI7+GETPIVOTDATA("Sum of 5",AF$2,"Day ","Prob Eggs") -> 1.098814229 | AL8: Sum of 5 | AM8: 0 | AN8: 5 | AO8: =AO7+GETPIVOTDATA("Sum of 5",AL$2,"Day ","Prob Eggs") -> 0 | AR8: Sum of 5 | AS8: 0 | AT8: 5 | AU8: =AU7+GETPIVOTDATA("Sum of 5",AR$2,"Day ","Prob Eggs") -> 0 | AX8: Sum of 5 | AY8: 0 | AZ8: 5 | BA8: =BA7+GETPIVOTDATA("Sum of 5",AX$2,"Day ","Prob Eggs") -> 0 | BD8: Sum of 5 | BE8: 0 | BF8: 5 | BG8: =BG7+GETPIVOTDATA("Sum of 5",BD$2,"Day ","Prob Eggs") -> 0
B9: Sum of 6 | C9: 0 | D9: 6 | E9: =E8+GETPIVOTDATA("Sum of 6",$B$2,"Day ","Prob Eggs") -> 0.8901515152 | H9: Sum of 6 | I9: 0 | J9: 6 | K9: =K8+GETPIVOTDATA("Sum of 6",H$2,"Day ","Prob Eggs") -> 0.9812576313 | N9: Sum of 6 | O9: 0 | P9: 6 | Q9: =Q8+GETPIVOTDATA("Sum of 6",N$2,"Day ","Prob Eggs") -> 1.093567251 | T9: Sum of 6 | U9: 0 | V9: 6 | W9: =W8+GETPIVOTDATA("Sum of 6",T$2,"Day ","Prob Eggs") -> 1.134917518 | Z9: Sum of 6 | AA9: 0 | AB9: 6 | AC9: =AC8+GETPIVOTDATA("Sum of 6",Z$2,"Day ","Prob Eggs") -> 0.9371122587 | AF9: Sum of 6 | AG9: 0 | AH9: 6 | AI9: =AI8+GETPIVOTDATA("Sum of 6",AF$2,"Day ","Prob Eggs") -> 1.098814229 | AL9: Sum of 6 | AM9: 0 | AN9: 6 | AO9: =AO8+GETPIVOTDATA("Sum of 6",AL$2,"Day ","Prob Eggs") -> 0 | AR9: Sum of 6 | AS9: 0 | AT9: 6 | AU9: =AU8+GETPIVOTDATA("Sum of 6",AR$2,"Day ","Prob Eggs") -> 0 | AX9: Sum of 6 | AY9: 0 | AZ9: 6 | BA9: =BA8+GETPIVOTDATA("Sum of 6",AX$2,"Day ","Prob Eggs") -> 0 | BD9: Sum of 6 | BE9: 0 | BF9: 6 | BG9: =BG8+GETPIVOTDATA("Sum of 6",BD$2,"Day ","Prob Eggs") -> 0
B10: Sum of 7 | C10: 0 | D10: 7 | E10: =E9+GETPIVOTDATA("Sum of 7",$B$2,"Day ","Prob Eggs") -> 0.8901515152 | H10: Sum of 7 | I10: 0 | J10: 7 | K10: =K9+GETPIVOTDATA("Sum of 7",H$2,"Day ","Prob Eggs") -> 0.9812576313 | N10: Sum of 7 | O10: 0 | P10: 7 | Q10: =Q9+GETPIVOTDATA("Sum of 7",N$2,"Day ","Prob Eggs") -> 1.093567251 | T10: Sum of 7 | U10: 0 | V10: 7 | W10: =W9+GETPIVOTDATA("Sum of 7",T$2,"Day ","Prob Eggs") -> 1.134917518 | Z10: Sum of 7 | AA10: 0 | AB10: 7 | AC10: =AC9+GETPIVOTDATA("Sum of 7",Z$2,"Day ","Prob Eggs") -> 0.9371122587 | AF10: Sum of 7 | AG10: 0 | AH10: 7 | AI10: =AI9+GETPIVOTDATA("Sum of 7",AF$2,"Day ","Prob Eggs") -> 1.098814229 | AL10: Sum of 7 | AM10: 0 | AN10: 7 | AO10: =AO9+GETPIVOTDATA("Sum of 7",AL$2,"Day ","Prob Eggs") -> 0 | AR10: Sum of 7 | AS10: 0 | AT10: 7 | AU10: =AU9+GETPIVOTDATA("Sum of 7",AR$2,"Day ","Prob Eggs") -> 0 | AX10: Sum of 7 | AY10: 0 | AZ10: 7 | BA10: =BA9+GETPIVOTDATA("Sum of 7",AX$2,"Day ","Prob Eggs") -> 0 | BD10: Sum of 7 | BE10: 0 | BF10: 7 | BG10: =BG9+GETPIVOTDATA("Sum of 7",BD$2,"Day ","Prob Eggs") -> 0
B11: Sum of 8 | C11: 0 | D11: 8 | E11: =E10+GETPIVOTDATA("Sum of 8",$B$2,"Day ","Prob Eggs") -> 0.8901515152 | H11: Sum of 8 | I11: 0 | J11: 8 | K11: =K10+GETPIVOTDATA("Sum of 8",H$2,"Day ","Prob Eggs") -> 0.9812576313 | N11: Sum of 8 | O11: 0 | P11: 8 | Q11: =Q10+GETPIVOTDATA("Sum of 8",N$2,"Day ","Prob Eggs") -> 1.093567251 | T11: Sum of 8 | U11: 0 | V11: 8 | W11: =W10+GETPIVOTDATA("Sum of 8",T$2,"Day ","Prob Eggs") -> 1.134917518 | Z11: Sum of 8 | AA11: 0 | AB11: 8 | AC11: =AC10+GETPIVOTDATA("Sum of 8",Z$2,"Day ","Prob Eggs") -> 0.9371122587 | AF11: Sum of 8 | AG11: 0 | AH11: 8 | AI11: =AI10+GETPIVOTDATA("Sum of 8",AF$2,"Day ","Prob Eggs") -> 1.098814229 | AL11: Sum of 8 | AM11: 0 | AN11: 8 | AO11: =AO10+GETPIVOTDATA("Sum of 8",AL$2,"Day ","Prob Eggs") -> 0 | AR11: Sum of 8 | AS11: 0 | AT11: 8 | AU11: =AU10+GETPIVOTDATA("Sum of 8",AR$2,"Day ","Prob Eggs") -> 0 | AX11: Sum of 8 | AY11: 0 | AZ11: 8 | BA11: =BA10+GETPIVOTDATA("Sum of 8",AX$2,"Day ","Prob Eggs") -> 0 | BD11: Sum of 8 | BE11: 0 | BF11: 8 | BG11: =BG10+GETPIVOTDATA("Sum of 8",BD$2,"Day ","Prob Eggs") -> 0
B12: Sum of 9 | C12: 0 | D12: 9 | E12: =E11+GETPIVOTDATA("Sum of 9",$B$2,"Day ","Prob Eggs") -> 0.8901515152 | H12: Sum of 9 | I12: 0 | J12: 9 | K12: =K11+GETPIVOTDATA("Sum of 9",H$2,"Day ","Prob Eggs") -> 0.9812576313 | N12: Sum of 9 | O12: 0 | P12: 9 | Q12: =Q11+GETPIVOTDATA("Sum of 9",N$2,"Day ","Prob Eggs") -> 1.093567251 | T12: Sum of 9 | U12: 0 | V12: 9 | W12: =W11+GETPIVOTDATA("Sum of 9",T$2,"Day ","Prob Eggs") -> 1.134917518 | Z12: Sum of 9 | AA12: 0 | AB12: 9 | AC12: =AC11+GETPIVOTDATA("Sum of 9",Z$2,"Day ","Prob Eggs") -> 0.9371122587 | AF12: Sum of 9 | AG12: 0 | AH12: 9 | AI12: =AI11+GETPIVOTDATA("Sum of 9",AF$2,"Day ","Prob Eggs") -> 1.098814229 | AL12: Sum of 9 | AM12: 0 | AN12: 9 | AO12: =AO11+GETPIVOTDATA("Sum of 9",AL$2,"Day ","Prob Eggs") -> 0 | AR12: Sum of 9 | AS12: 0 | AT12: 9 | AU12: =AU11+GETPIVOTDATA("Sum of 9",AR$2,"Day ","Prob Eggs") -> 0 | AX12: Sum of 9 | AY12: 0 | AZ12: 9 | BA12: =BA11+GETPIVOTDATA("Sum of 9",AX$2,"Day ","Prob Eggs") -> 0 | BD12: Sum of 9 | BE12: 0 | BF12: 9 | BG12: =BG11+GETPIVOTDATA("Sum of 9",BD$2,"Day ","Prob Eggs") -> 0
B13: Sum of 10 | C13: 0 | D13: 10 | E13: =E12+GETPIVOTDATA("Sum of 10",$B$2,"Day ","Prob Eggs") -> 0.8901515152 | H13: Sum of 10 | I13: 0 | J13: 10 | K13: =K12+GETPIVOTDATA("Sum of 10",H$2,"Day ","Prob Eggs") -> 0.9812576313 | N13: Sum of 10 | O13: 0 | P13: 10 | Q13: =Q12+GETPIVOTDATA("Sum of 10",N$2,"Day ","Prob Eggs") -> 1.093567251 | T13: Sum of 10 | U13: 0 | V13: 10 | W13: =W12+GETPIVOTDATA("Sum of 10",T$2,"Day ","Prob Eggs") -> 1.134917518 | Z13: Sum of 10 | AA13: 0 | AB13: 10 | AC13: =AC12+GETPIVOTDATA("Sum of 10",Z$2,"Day ","Prob Eggs") -> 0.9371122587 | AF13: Sum of 10 | AG13: 0 | AH13: 10 | AI13: =AI12+GETPIVOTDATA("Sum of 10",AF$2,"Day ","Prob Eggs") -> 1.098814229 | AL13: Sum of 10 | AM13: 0 | AN13: 10 | AO13: =AO12+GETPIVOTDATA("Sum of 10",AL$2,"Day ","Prob Eggs") -> 0 | AR13: Sum of 10 | AS13: 0 | AT13: 10 | AU13: =AU12+GETPIVOTDATA("Sum of 10",AR$2,"Day ","Prob Eggs") -> 0 | AX13: Sum of 10 | AY13: 0 | AZ13: 10 | BA13: =BA12+GETPIVOTDATA("Sum of 10",AX$2,"Day ","Prob Eggs") -> 0 | BD13: Sum of 10 | BE13: 0 | BF13: 10 | BG13: =BG12+GETPIVOTDATA("Sum of 10",BD$2,"Day ","Prob Eggs") -> 0
B14: Sum of 11 | C14: 0 | D14: 11 | E14: =E13+GETPIVOTDATA("Sum of 11",$B$2,"Day ","Prob Eggs") -> 0.8901515152 | H14: Sum of 11 | I14: 0 | J14: 11 | K14: =K13+GETPIVOTDATA("Sum of 11",H$2,"Day ","Prob Eggs") -> 0.9812576313 | N14: Sum of 11 | O14: 0 | P14: 11 | Q14: =Q13+GETPIVOTDATA("Sum of 11",N$2,"Day ","Prob Eggs") -> 1.093567251 | T14: Sum of 11 | U14: 0 | V14: 11 | W14: =W13+GETPIVOTDATA("Sum of 11",T$2,"Day ","Prob Eggs") -> 1.134917518 | Z14: Sum of 11 | AA14: 0 | AB14: 11 | AC14: =AC13+GETPIVOTDATA("Sum of 11",Z$2,"Day ","Prob Eggs") -> 0.9371122587 | AF14: Sum of 11 | AG14: 0 | AH14: 11 | AI14: =AI13+GETPIVOTDATA("Sum of 11",AF$2,"Day ","Prob Eggs") -> 1.098814229 | AL14: Sum of 11 | AM14: 0 | AN14: 11 | AO14: =AO13+GETPIVOTDATA("Sum of 11",AL$2,"Day ","Prob Eggs") -> 0 | AR14: Sum of 11 | AS14: 0 | AT14: 11 | AU14: =AU13+GETPIVOTDATA("Sum of 11",AR$2,"Day ","Prob Eggs") -> 0 | AX14: Sum of 11 | AY14: 0 | AZ14: 11 | BA14: =BA13+GETPIVOTDATA("Sum of 11",AX$2,"Day ","Prob Eggs") -> 0 | BD14: Sum of 11 | BE14: 0 | BF14: 11 | BG14: =BG13+GETPIVOTDATA("Sum of 11",BD$2,"Day ","Prob Eggs") -> 0
B15: Sum of 12 | C15: 0 | D15: 12 | E15: =E14+GETPIVOTDATA("Sum of 12",$B$2,"Day ","Prob Eggs") -> 0.8901515152 | H15: Sum of 12 | I15: 0 | J15: 12 | K15: =K14+GETPIVOTDATA("Sum of 12",H$2,"Day ","Prob Eggs") -> 0.9812576313 | N15: Sum of 12 | O15: 0 | P15: 12 | Q15: =Q14+GETPIVOTDATA("Sum of 12",N$2,"Day ","Prob Eggs") -> 1.093567251 | T15: Sum of 12 | U15: 0 | V15: 12 | W15: =W14+GETPIVOTDATA("Sum of 12",T$2,"Day ","Prob Eggs") -> 1.134917518 | Z15: Sum of 12 | AA15: 0 | AB15: 12 | AC15: =AC14+GETPIVOTDATA("Sum of 12",Z$2,"Day ","Prob Eggs") -> 0.9371122587 | AF15: Sum of 12 | AG15: 0 | AH15: 12 | AI15: =AI14+GETPIVOTDATA("Sum of 12",AF$2,"Day ","Prob Eggs") -> 1.098814229 | AL15: Sum of 12 | AM15: 0 | AN15: 12 | AO15: =AO14+GETPIVOTDATA("Sum of 12",AL$2,"Day ","Prob Eggs") -> 0 | AR15: Sum of 12 | AS15: 0 | AT15: 12 | AU15: =AU14+GETPIVOTDATA("Sum of 12",AR$2,"Day ","Prob Eggs") -> 0 | AX15: Sum of 12 | AY15: 0 | AZ15: 12 | BA15: =BA14+GETPIVOTDATA("Sum of 12",AX$2,"Day ","Prob Eggs") -> 0 | BD15: Sum of 12 | BE15: 0 | BF15: 12 | BG15: =BG14+GETPIVOTDATA("Sum of 12",BD$2,"Day ","Prob Eggs") -> 0
B16: Sum of 13 | C16: 0 | D16: 13 | E16: =E15+GETPIVOTDATA("Sum of 13",$B$2,"Day ","Prob Eggs") -> 0.8901515152 | H16: Sum of 13 | I16: 0 | J16: 13 | K16: =K15+GETPIVOTDATA("Sum of 13",H$2,"Day ","Prob Eggs") -> 0.9812576313 | N16: Sum of 13 | O16: 0 | P16: 13 | Q16: =Q15+GETPIVOTDATA("Sum of 13",N$2,"Day ","Prob Eggs") -> 1.093567251 | T16: Sum of 13 | U16: 0 | V16: 13 | W16: =W15+GETPIVOTDATA("Sum of 13",T$2,"Day ","Prob Eggs") -> 1.134917518 | Z16: Sum of 13 | AA16: 0 | AB16: 13 | AC16: =AC15+GETPIVOTDATA("Sum of 13",Z$2,"Day ","Prob Eggs") -> 0.9371122587 | AF16: Sum of 13 | AG16: 0 | AH16: 13 | AI16: =AI15+GETPIVOTDATA("Sum of 13",AF$2,"Day ","Prob Eggs") -> 1.098814229 | AL16: Sum of 13 | AM16: 0 | AN16: 13 | AO16: =AO15+GETPIVOTDATA("Sum of 13",AL$2,"Day ","Prob Eggs") -> 0 | AR16: Sum of 13 | AS16: 0 | AT16: 13 | AU16: =AU15+GETPIVOTDATA("Sum of 13",AR$2,"Day ","Prob Eggs") -> 0 | AX16: Sum of 13 | AY16: 0 | AZ16: 13 | BA16: =BA15+GETPIVOTDATA("Sum of 13",AX$2,"Day ","Prob Eggs") -> 0 | BD16: Sum of 13 | BE16: 0 | BF16: 13 | BG16: =BG15+GETPIVOTDATA("Sum of 13",BD$2,"Day ","Prob Eggs") -> 0
B17: Sum of 14 | C17: 0 | D17: 14 | E17: =E16+GETPIVOTDATA("Sum of 14",$B$2,"Day ","Prob Eggs") -> 0.8901515152 | H17: Sum of 14 | I17: 0 | J17: 14 | K17: =K16+GETPIVOTDATA("Sum of 14",H$2,"Day ","Prob Eggs") -> 0.9812576313 | N17: Sum of 14 | O17: 0 | P17: 14 | Q17: =Q16+GETPIVOTDATA("Sum of 14",N$2,"Day ","Prob Eggs") -> 1.093567251 | T17: Sum of 14 | U17: 0 | V17: 14 | W17: =W16+GETPIVOTDATA("Sum of 14",T$2,"Day ","Prob Eggs") -> 1.134917518 | Z17: Sum of 14 | AA17: 0 | AB17: 14 | AC17: =AC16+GETPIVOTDATA("Sum of 14",Z$2,"Day ","Prob Eggs") -> 0.9371122587 | AF17: Sum of 14 | AG17: 0 | AH17: 14 | AI17: =AI16+GETPIVOTDATA("Sum of 14",AF$2,"Day ","Prob Eggs") -> 1.098814229 | AL17: Sum of 14 | AM17: 0 | AN17: 14 | AO17: =AO16+GETPIVOTDATA("Sum of 14",AL$2,"Day ","Prob Eggs") -> 0 | AR17: Sum of 14 | AS17: 0 | AT17: 14 | AU17: =AU16+GETPIVOTDATA("Sum of 14",AR$2,"Day ","Prob Eggs") -> 0 | AX17: Sum of 14 | AY17: 0 | AZ17: 14 | BA17: =BA16+GETPIVOTDATA("Sum of 14",AX$2,"Day ","Prob Eggs") -> 0 | BD17: Sum of 14 | BE17: 0 | BF17: 14 | BG17: =BG16+GETPIVOTDATA("Sum of 14",BD$2,"Day ","Prob Eggs") -> 0
B18: Sum of 15 | C18: 0 | D18: 15 | E18: =E17+GETPIVOTDATA("Sum of 15",$B$2,"Day ","Prob Eggs") -> 0.8901515152 | H18: Sum of 15 | I18: 0 | J18: 15 | K18: =K17+GETPIVOTDATA("Sum of 15",H$2,"Day ","Prob Eggs") -> 0.9812576313 | N18: Sum of 15 | O18: 0 | P18: 15 | Q18: =Q17+GETPIVOTDATA("Sum of 15",N$2,"Day ","Prob Eggs") -> 1.093567251 | T18: Sum of 15 | U18: 0 | V18: 15 | W18: =W17+GETPIVOTDATA("Sum of 15",T$2,"Day ","Prob Eggs") -> 1.134917518 | Z18: Sum of 15 | AA18: 0 | AB18: 15 | AC18: =AC17+GETPIVOTDATA("Sum of 15",Z$2,"Day ","Prob Eggs") -> 0.9371122587 | AF18: Sum of 15 | AG18: 0 | AH18: 15 | AI18: =AI17+GETPIVOTDATA("Sum of 15",AF$2,"Day ","Prob Eggs") -> 1.098814229 | AL18: Sum of 15 | AM18: 0 | AN18: 15 | AO18: =AO17+GETPIVOTDATA("Sum of 15",AL$2,"Day ","Prob Eggs") -> 0 | AR18: Sum of 15 | AS18: 0 | AT18: 15 | AU18: =AU17+GETPIVOTDATA("Sum of 15",AR$2,"Day ","Prob Eggs") -> 0 | AX18: Sum of 15 | AY18: 0 | AZ18: 15 | BA18: =BA17+GETPIVOTDATA("Sum of 15",AX$2,"Day ","Prob Eggs") -> 0 | BD18: Sum of 15 | BE18: 0 | BF18: 15 | BG18: =BG17+GETPIVOTDATA("Sum of 15",BD$2,"Day ","Prob Eggs") -> 0
B19: Sum of 16 | C19: 0 | D19: 16 | E19: =E18+GETPIVOTDATA("Sum of 16",$B$2,"Day ","Prob Eggs") -> 0.8901515152 | H19: Sum of 16 | I19: 0 | J19: 16 | K19: =K18+GETPIVOTDATA("Sum of 16",H$2,"Day ","Prob Eggs") -> 0.9812576313 | N19: Sum of 16 | O19: 0 | P19: 16 | Q19: =Q18+GETPIVOTDATA("Sum of 16",N$2,"Day ","Prob Eggs") -> 1.093567251 | T19: Sum of 16 | U19: 0 | V19: 16 | W19: =W18+GETPIVOTDATA("Sum of 16",T$2,"Day ","Prob Eggs") -> 1.134917518 | Z19: Sum of 16 | AA19: 0 | AB19: 16 | AC19: =AC18+GETPIVOTDATA("Sum of 16",Z$2,"Day ","Prob Eggs") -> 0.9371122587 | AF19: Sum of 16 | AG19: 0 | AH19: 16 | AI19: =AI18+GETPIVOTDATA("Sum of 16",AF$2,"Day ","Prob Eggs") -> 1.098814229 | AL19: Sum of 16 | AM19: 0 | AN19: 16 | AO19: =AO18+GETPIVOTDATA("Sum of 16",AL$2,"Day ","Prob Eggs") -> 0 | AR19: Sum of 16 | AS19: 0 | AT19: 16 | AU19: =AU18+GETPIVOTDATA("Sum of 16",AR$2,"Day ","Prob Eggs") -> 0 | AX19: Sum of 16 | AY19: 0 | AZ19: 16 | BA19: =BA18+GETPIVOTDATA("Sum of 16",AX$2,"Day ","Prob Eggs") -> 0 | BD19: Sum of 16 | BE19: 0 | BF19: 16 | BG19: =BG18+GETPIVOTDATA("Sum of 16",BD$2,"Day ","Prob Eggs") -> 0
B20: Sum of 17 | C20: 0 | D20: 17 | E20: =E19+GETPIVOTDATA("Sum of 17",$B$2,"Day ","Prob Eggs") -> 0.8901515152 | H20: Sum of 17 | I20: 0 | J20: 17 | K20: =K19+GETPIVOTDATA("Sum of 17",H$2,"Day ","Prob Eggs") -> 0.9812576313 | N20: Sum of 17 | O20: 0 | P20: 17 | Q20: =Q19+GETPIVOTDATA("Sum of 17",N$2,"Day ","Prob Eggs") -> 1.093567251 | T20: Sum of 17 | U20: 0 | V20: 17 | W20: =W19+GETPIVOTDATA("Sum of 17",T$2,"Day ","Prob Eggs") -> 1.134917518 | Z20: Sum of 17 | AA20: 0 | AB20: 17 | AC20: =AC19+GETPIVOTDATA("Sum of 17",Z$2,"Day ","Prob Eggs") -> 0.9371122587 | AF20: Sum of 17 | AG20: 0 | AH20: 17 | AI20: =AI19+GETPIVOTDATA("Sum of 17",AF$2,"Day ","Prob Eggs") -> 1.098814229 | AL20: Sum of 17 | AM20: 0 | AN20: 17 | AO20: =AO19+GETPIVOTDATA("Sum of 17",AL$2,"Day ","Prob Eggs") -> 0 | AR20: Sum of 17 | AS20: 0 | AT20: 17 | AU20: =AU19+GETPIVOTDATA("Sum of 17",AR$2,"Day ","Prob Eggs") -> 0 | AX20: Sum of 17 | AY20: 0 | AZ20: 17 | BA20: =BA19+GETPIVOTDATA("Sum of 17",AX$2,"Day ","Prob Eggs") -> 0 | BD20: Sum of 17 | BE20: 0 | BF20: 17 | BG20: =BG19+GETPIVOTDATA("Sum of 17",BD$2,"Day ","Prob Eggs") -> 0
B21: Sum of 18 | C21: 0 | D21: 18 | E21: =E20+GETPIVOTDATA("Sum of 18",$B$2,"Day ","Prob Eggs") -> 0.8901515152 | H21: Sum of 18 | I21: 0 | J21: 18 | K21: =K20+GETPIVOTDATA("Sum of 18",H$2,"Day ","Prob Eggs") -> 0.9812576313 | N21: Sum of 18 | O21: 0 | P21: 18 | Q21: =Q20+GETPIVOTDATA("Sum of 18",N$2,"Day ","Prob Eggs") -> 1.093567251 | T21: Sum of 18 | U21: 0 | V21: 18 | W21: =W20+GETPIVOTDATA("Sum of 18",T$2,"Day ","Prob Eggs") -> 1.134917518 | Z21: Sum of 18 | AA21: 0 | AB21: 18 | AC21: =AC20+GETPIVOTDATA("Sum of 18",Z$2,"Day ","Prob Eggs") -> 0.9371122587 | AF21: Sum of 18 | AG21: 0 | AH21: 18 | AI21: =AI20+GETPIVOTDATA("Sum of 18",AF$2,"Day ","Prob Eggs") -> 1.098814229 | AL21: Sum of 18 | AM21: 0 | AN21: 18 | AO21: =AO20+GETPIVOTDATA("Sum of 18",AL$2,"Day ","Prob Eggs") -> 0 | AR21: Sum of 18 | AS21: 0 | AT21: 18 | AU21: =AU20+GETPIVOTDATA("Sum of 18",AR$2,"Day ","Prob Eggs") -> 0 | AX21: Sum of 18 | AY21: 0 | AZ21: 18 | BA21: =BA20+GETPIVOTDATA("Sum of 18",AX$2,"Day ","Prob Eggs") -> 0 | BD21: Sum of 18 | BE21: 0 | BF21: 18 | BG21: =BG20+GETPIVOTDATA("Sum of 18",BD$2,"Day ","Prob Eggs") -> 0
B22: Sum of 19 | C22: 0 | D22: 19 | E22: =E21+GETPIVOTDATA("Sum of 19",$B$2,"Day ","Prob Eggs") -> 0.8901515152 | H22: Sum of 19 | I22: 0 | J22: 19 | K22: =K21+GETPIVOTDATA("Sum of 19",H$2,"Day ","Prob Eggs") -> 0.9812576313 | N22: Sum of 19 | O22: 0 | P22: 19 | Q22: =Q21+GETPIVOTDATA("Sum of 19",N$2,"Day ","Prob Eggs") -> 1.093567251 | T22: Sum of 19 | U22: 0 | V22: 19 | W22: =W21+GETPIVOTDATA("Sum of 19",T$2,"Day ","Prob Eggs") -> 1.134917518 | Z22: Sum of 19 | AA22: 0 | AB22: 19 | AC22: =AC21+GETPIVOTDATA("Sum of 19",Z$2,"Day ","Prob Eggs") -> 0.9371122587 | AF22: Sum of 19 | AG22: 0 | AH22: 19 | AI22: =AI21+GETPIVOTDATA("Sum of 19",AF$2,"Day ","Prob Eggs") -> 1.098814229 | AL22: Sum of 19 | AM22: 0 | AN22: 19 | AO22: =AO21+GETPIVOTDATA("Sum of 19",AL$2,"Day ","Prob Eggs") -> 0 | AR22: Sum of 19 | AS22: 0 | AT22: 19 | AU22: =AU21+GETPIVOTDATA("Sum of 19",AR$2,"Day ","Prob Eggs") -> 0 | AX22: Sum of 19 | AY22: 0 | AZ22: 19 | BA22: =BA21+GETPIVOTDATA("Sum of 19",AX$2,"Day ","Prob Eggs") -> 0 | BD22: Sum of 19 | BE22: 0 | BF22: 19 | BG22: =BG21+GETPIVOTDATA("Sum of 19",BD$2,"Day ","Prob Eggs") -> 0
B23: Sum of 20 | C23: 0 | D23: 20 | E23: =E22+GETPIVOTDATA("Sum of 20",$B$2,"Day ","Prob Eggs") -> 0.8901515152 | H23: Sum of 20 | I23: 0 | J23: 20 | K23: =K22+GETPIVOTDATA("Sum of 20",H$2,"Day ","Prob Eggs") -> 0.9812576313 | N23: Sum of 20 | O23: 0 | P23: 20 | Q23: =Q22+GETPIVOTDATA("Sum of 20",N$2,"Day ","Prob Eggs") -> 1.093567251 | T23: Sum of 20 | U23: 0 | V23: 20 | W23: =W22+GETPIVOTDATA("Sum of 20",T$2,"Day ","Prob Eggs") -> 1.134917518 | Z23: Sum of 20 | AA23: 0 | AB23: 20 | AC23: =AC22+GETPIVOTDATA("Sum of 20",Z$2,"Day ","Prob Eggs") -> 0.9371122587 | AF23: Sum of 20 | AG23: 0 | AH23: 20 | AI23: =AI22+GETPIVOTDATA("Sum of 20",AF$2,"Day ","Prob Eggs") -> 1.098814229 | AL23: Sum of 20 | AM23: 0 | AN23: 20 | AO23: =AO22+GETPIVOTDATA("Sum of 20",AL$2,"Day ","Prob Eggs") -> 0 | AR23: Sum of 20 | AS23: 0 | AT23: 20 | AU23: =AU22+GETPIVOTDATA("Sum of 20",AR$2,"Day ","Prob Eggs") -> 0 | AX23: Sum of 20 | AY23: 0 | AZ23: 20 | BA23: =BA22+GETPIVOTDATA("Sum of 20",AX$2,"Day ","Prob Eggs") -> 0 | BD23: Sum of 20 | BE23: 0 | BF23: 20 | BG23: =BG22+GETPIVOTDATA("Sum of 20",BD$2,"Day ","Prob Eggs") -> 0
B24: Sum of 21 | C24: 0 | D24: 21 | E24: =E23+GETPIVOTDATA("Sum of 21",$B$2,"Day ","Prob Eggs") -> 0.8901515152 | H24: Sum of 21 | I24: 0 | J24: 21 | K24: =K23+GETPIVOTDATA("Sum of 21",H$2,"Day ","Prob Eggs") -> 0.9812576313 | N24: Sum of 21 | O24: 0 | P24: 21 | Q24: =Q23+GETPIVOTDATA("Sum of 21",N$2,"Day ","Prob Eggs") -> 1.093567251 | T24: Sum of 21 | U24: 0 | V24: 21 | W24: =W23+GETPIVOTDATA("Sum of 21",T$2,"Day ","Prob Eggs") -> 1.134917518 | Z24: Sum of 21 | AA24: 0 | AB24: 21 | AC24: =AC23+GETPIVOTDATA("Sum of 21",Z$2,"Day ","Prob Eggs") -> 0.9371122587 | AF24: Sum of 21 | AG24: 0 | AH24: 21 | AI24: =AI23+GETPIVOTDATA("Sum of 21",AF$2,"Day ","Prob Eggs") -> 1.098814229 | AL24: Sum of 21 | AM24: 0 | AN24: 21 | AO24: =AO23+GETPIVOTDATA("Sum of 21",AL$2,"Day ","Prob Eggs") -> 0 | AR24: Sum of 21 | AS24: 0 | AT24: 21 | AU24: =AU23+GETPIVOTDATA("Sum of 21",AR$2,"Day ","Prob Eggs") -> 0 | AX24: Sum of 21 | AY24: 0 | AZ24: 21 | BA24: =BA23+GETPIVOTDATA("Sum of 21",AX$2,"Day ","Prob Eggs") -> 0 | BD24: Sum of 21 | BE24: 0 | BF24: 21 | BG24: =BG23+GETPIVOTDATA("Sum of 21",BD$2,"Day ","Prob Eggs") -> 0
B25: Sum of 22 | C25: 0 | D25: 22 | E25: =E24+GETPIVOTDATA("Sum of 22",$B$2,"Day ","Prob Eggs") -> 0.8901515152 | H25: Sum of 22 | I25: 0 | J25: 22 | K25: =K24+GETPIVOTDATA("Sum of 22",H$2,"Day ","Prob Eggs") -> 0.9812576313 | N25: Sum of 22 | O25: 0 | P25: 22 | Q25: =Q24+GETPIVOTDATA("Sum of 22",N$2,"Day ","Prob Eggs") -> 1.093567251 | T25: Sum of 22 | U25: 0 | V25: 22 | W25: =W24+GETPIVOTDATA("Sum of 22",T$2,"Day ","Prob Eggs") -> 1.134917518 | Z25: Sum of 22 | AA25: 0 | AB25: 22 | AC25: =AC24+GETPIVOTDATA("Sum of 22",Z$2,"Day ","Prob Eggs") -> 0.9371122587 | AF25: Sum of 22 | AG25: 0 | AH25: 22 | AI25: =AI24+GETPIVOTDATA("Sum of 22",AF$2,"Day ","Prob Eggs") -> 1.098814229 | AL25: Sum of 22 | AM25: 0 | AN25: 22 | AO25: =AO24+GETPIVOTDATA("Sum of 22",AL$2,"Day ","Prob Eggs") -> 0 | AR25: Sum of 22 | AS25: 0 | AT25: 22 | AU25: =AU24+GETPIVOTDATA("Sum of 22",AR$2,"Day ","Prob Eggs") -> 0 | AX25: Sum of 22 | AY25: 0 | AZ25: 22 | BA25: =BA24+GETPIVOTDATA("Sum of 22",AX$2,"Day ","Prob Eggs") -> 0 | BD25: Sum of 22 | BE25: 0 | BF25: 22 | BG25: =BG24+GETPIVOTDATA("Sum of 22",BD$2,"Day ","Prob Eggs") -> 0
B26: Sum of 23 | C26: 0 | D26: 23 | E26: =E25+GETPIVOTDATA("Sum of 23",$B$2,"Day ","Prob Eggs") -> 0.8901515152 | H26: Sum of 23 | I26: 0 | J26: 23 | K26: =K25+GETPIVOTDATA("Sum of 23",H$2,"Day ","Prob Eggs") -> 0.9812576313 | N26: Sum of 23 | O26: 0 | P26: 23 | Q26: =Q25+GETPIVOTDATA("Sum of 23",N$2,"Day ","Prob Eggs") -> 1.093567251 | T26: Sum of 23 | U26: 0 | V26: 23 | W26: =W25+GETPIVOTDATA("Sum of 23",T$2,"Day ","Prob Eggs") -> 1.134917518 | Z26: Sum of 23 | AA26: 0 | AB26: 23 | AC26: =AC25+GETPIVOTDATA("Sum of 23",Z$2,"Day ","Prob Eggs") -> 0.9371122587 | AF26: Sum of 23 | AG26: 0 | AH26: 23 | AI26: =AI25+GETPIVOTDATA("Sum of 23",AF$2,"Day ","Prob Eggs") -> 1.098814229 | AL26: Sum of 23 | AM26: 0 | AN26: 23 | AO26: =AO25+GETPIVOTDATA("Sum of 23",AL$2,"Day ","Prob Eggs") -> 0 | AR26: Sum of 23 | AS26: 0 | AT26: 23 | AU26: =AU25+GETPIVOTDATA("Sum of 23",AR$2,"Day ","Prob Eggs") -> 0 | AX26: Sum of 23 | AY26: 0 | AZ26: 23 | BA26: =BA25+GETPIVOTDATA("Sum of 23",AX$2,"Day ","Prob Eggs") -> 0 | BD26: Sum of 23 | BE26: 0 | BF26: 23 | BG26: =BG25+GETPIVOTDATA("Sum of 23",BD$2,"Day ","Prob Eggs") -> 0
B27: Sum of 24 | C27: 0 | D27: 24 | E27: =E26+GETPIVOTDATA("Sum of 24",$B$2,"Day ","Prob Eggs") -> 0.8901515152 | H27: Sum of 24 | I27: 0 | J27: 24 | K27: =K26+GETPIVOTDATA("Sum of 24",H$2,"Day ","Prob Eggs") -> 0.9812576313 | N27: Sum of 24 | O27: 0 | P27: 24 | Q27: =Q26+GETPIVOTDATA("Sum of 24",N$2,"Day ","Prob Eggs") -> 1.093567251 | T27: Sum of 24 | U27: 0 | V27: 24 | W27: =W26+GETPIVOTDATA("Sum of 24",T$2,"Day ","Prob Eggs") -> 1.134917518 | Z27: Sum of 24 | AA27: 0 | AB27: 24 | AC27: =AC26+GETPIVOTDATA("Sum of 24",Z$2,"Day ","Prob Eggs") -> 0.9371122587 | AF27: Sum of 24 | AG27: 0 | AH27: 24 | AI27: =AI26+GETPIVOTDATA("Sum of 24",AF$2,"Day ","Prob Eggs") -> 1.098814229 | AL27: Sum of 24 | AM27: 0 | AN27: 24 | AO27: =AO26+GETPIVOTDATA("Sum of 24",AL$2,"Day ","Prob Eggs") -> 0 | AR27: Sum of 24 | AS27: 0 | AT27: 24 | AU27: =AU26+GETPIVOTDATA("Sum of 24",AR$2,"Day ","Prob Eggs") -> 0 | AX27: Sum of 24 | AY27: 0 | AZ27: 24 | BA27: =BA26+GETPIVOTDATA("Sum of 24",AX$2,"Day ","Prob Eggs") -> 0 | BD27: Sum of 24 | BE27: 0 | BF27: 24 | BG27: =BG26+GETPIVOTDATA("Sum of 24",BD$2,"Day ","Prob Eggs") -> 0
B28: Sum of 25 | C28: 0 | D28: 25 | E28: =E27+GETPIVOTDATA("Sum of 25",$B$2,"Day ","Prob Eggs") -> 0.8901515152 | H28: Sum of 25 | I28: 0 | J28: 25 | K28: =K27+GETPIVOTDATA("Sum of 25",H$2,"Day ","Prob Eggs") -> 0.9812576313 | N28: Sum of 25 | O28: 0 | P28: 25 | Q28: =Q27+GETPIVOTDATA("Sum of 25",N$2,"Day ","Prob Eggs") -> 1.093567251 | T28: Sum of 25 | U28: 0 | V28: 25 | W28: =W27+GETPIVOTDATA("Sum of 25",T$2,"Day ","Prob Eggs") -> 1.134917518 | Z28: Sum of 25 | AA28: 0 | AB28: 25 | AC28: =AC27+GETPIVOTDATA("Sum of 25",Z$2,"Day ","Prob Eggs") -> 0.9371122587 | AF28: Sum of 25 | AG28: 0 | AH28: 25 | AI28: =AI27+GETPIVOTDATA("Sum of 25",AF$2,"Day ","Prob Eggs") -> 1.098814229 | AL28: Sum of 25 | AM28: 0 | AN28: 25 | AO28: =AO27+GETPIVOTDATA("Sum of 25",AL$2,"Day ","Prob Eggs") -> 0 | AR28: Sum of 25 | AS28: 0 | AT28: 25 | AU28: =AU27+GETPIVOTDATA("Sum of 25",AR$2,"Day ","Prob Eggs") -> 0 | AX28: Sum of 25 | AY28: 0 | AZ28: 25 | BA28: =BA27+GETPIVOTDATA("Sum of 25",AX$2,"Day ","Prob Eggs") -> 0 | BD28: Sum of 25 | BE28: 0 | BF28: 25 | BG28: =BG27+GETPIVOTDATA("Sum of 25",BD$2,"Day ","Prob Eggs") -> 0
B29: Sum of 26 | C29: 0 | D29: 26 | E29: =E28+GETPIVOTDATA("Sum of 26",$B$2,"Day ","Prob Eggs") -> 0.8901515152 | H29: Sum of 26 | I29: 0 | J29: 26 | K29: =K28+GETPIVOTDATA("Sum of 26",H$2,"Day ","Prob Eggs") -> 0.9812576313 | N29: Sum of 26 | O29: 0 | P29: 26 | Q29: =Q28+GETPIVOTDATA("Sum of 26",N$2,"Day ","Prob Eggs") -> 1.093567251 | T29: Sum of 26 | U29: 0 | V29: 26 | W29: =W28+GETPIVOTDATA("Sum of 26",T$2,"Day ","Prob Eggs") -> 1.134917518 | Z29: Sum of 26 | AA29: 0 | AB29: 26 | AC29: =AC28+GETPIVOTDATA("Sum of 26",Z$2,"Day ","Prob Eggs") -> 0.9371122587 | AF29: Sum of 26 | AG29: 0 | AH29: 26 | AI29: =AI28+GETPIVOTDATA("Sum of 26",AF$2,"Day ","Prob Eggs") -> 1.098814229 | AL29: Sum of 26 | AM29: 0 | AN29: 26 | AO29: =AO28+GETPIVOTDATA("Sum of 26",AL$2,"Day ","Prob Eggs") -> 0 | AR29: Sum of 26 | AS29: 0 | AT29: 26 | AU29: =AU28+GETPIVOTDATA("Sum of 26",AR$2,"Day ","Prob Eggs") -> 0 | AX29: Sum of 26 | AY29: 0 | AZ29: 26 | BA29: =BA28+GETPIVOTDATA("Sum of 26",AX$2,"Day ","Prob Eggs") -> 0 | BD29: Sum of 26 | BE29: 0 | BF29: 26 | BG29: =BG28+GETPIVOTDATA("Sum of 26",BD$2,"Day ","Prob Eggs") -> 0
B30: Sum of 27 | C30: 0 | D30: 27 | E30: =E29+GETPIVOTDATA("Sum of 27",$B$2,"Day ","Prob Eggs") -> 0.8901515152 | H30: Sum of 27 | I30: 0 | J30: 27 | K30: =K29+GETPIVOTDATA("Sum of 27",H$2,"Day ","Prob Eggs") -> 0.9812576313 | N30: Sum of 27 | O30: 0 | P30: 27 | Q30: =Q29+GETPIVOTDATA("Sum of 27",N$2,"Day ","Prob Eggs") -> 1.093567251 | T30: Sum of 27 | U30: 0 | V30: 27 | W30: =W29+GETPIVOTDATA("Sum of 27",T$2,"Day ","Prob Eggs") -> 1.134917518 | Z30: Sum of 27 | AA30: 0 | AB30: 27 | AC30: =AC29+GETPIVOTDATA("Sum of 27",Z$2,"Day ","Prob Eggs") -> 0.9371122587 | AF30: Sum of 27 | AG30: 0 | AH30: 27 | AI30: =AI29+GETPIVOTDATA("Sum of 27",AF$2,"Day ","Prob Eggs") -> 1.098814229 | AL30: Sum of 27 | AM30: 0 | AN30: 27 | AO30: =AO29+GETPIVOTDATA("Sum of 27",AL$2,"Day ","Prob Eggs") -> 0 | AR30: Sum of 27 | AS30: 0 | AT30: 27 | AU30: =AU29+GETPIVOTDATA("Sum of 27",AR$2,"Day ","Prob Eggs") -> 0 | AX30: Sum of 27 | AY30: 0 | AZ30: 27 | BA30: =BA29+GETPIVOTDATA("Sum of 27",AX$2,"Day ","Prob Eggs") -> 0 | BD30: Sum of 27 | BE30: 0 | BF30: 27 | BG30: =BG29+GETPIVOTDATA("Sum of 27",BD$2,"Day ","Prob Eggs") -> 0
B31: Sum of 28 | C31: 0 | D31: 28 | E31: =E30+GETPIVOTDATA("Sum of 28",$B$2,"Day ","Prob Eggs") -> 0.8901515152 | H31: Sum of 28 | I31: 0 | J31: 28 | K31: =K30+GETPIVOTDATA("Sum of 28",H$2,"Day ","Prob Eggs") -> 0.9812576313 | N31: Sum of 28 | O31: 0 | P31: 28 | Q31: =Q30+GETPIVOTDATA("Sum of 28",N$2,"Day ","Prob Eggs") -> 1.093567251 | T31: Sum of 28 | U31: 0 | V31: 28 | W31: =W30+GETPIVOTDATA("Sum of 28",T$2,"Day ","Prob Eggs") -> 1.134917518 | Z31: Sum of 28 | AA31: 0 | AB31: 28 | AC31: =AC30+GETPIVOTDATA("Sum of 28",Z$2,"Day ","Prob Eggs") -> 0.9371122587 | AF31: Sum of 28 | AG31: 0 | AH31: 28 | AI31: =AI30+GETPIVOTDATA("Sum of 28",AF$2,"Day ","Prob Eggs") -> 1.098814229 | AL31: Sum of 28 | AM31: 0 | AN31: 28 | AO31: =AO30+GETPIVOTDATA("Sum of 28",AL$2,"Day ","Prob Eggs") -> 0 | AR31: Sum of 28 | AS31: 0 | AT31: 28 | AU31: =AU30+GETPIVOTDATA("Sum of 28",AR$2,"Day ","Prob Eggs") -> 0 | AX31: Sum of 28 | AY31: 0 | AZ31: 28 | BA31: =BA30+GETPIVOTDATA("Sum of 28",AX$2,"Day ","Prob Eggs") -> 0 | BD31: Sum of 28 | BE31: 0 | BF31: 28 | BG31: =BG30+GETPIVOTDATA("Sum of 28",BD$2,"Day ","Prob Eggs") -> 0
B32: Sum of 29 | C32: 0 | D32: 29 | E32: =E31+GETPIVOTDATA("Sum of 29",$B$2,"Day ","Prob Eggs") -> 0.8901515152 | H32: Sum of 29 | I32: 0 | J32: 29 | K32: =K31+GETPIVOTDATA("Sum of 29",H$2,"Day ","Prob Eggs") -> 0.9812576313 | N32: Sum of 29 | O32: 0 | P32: 29 | Q32: =Q31+GETPIVOTDATA("Sum of 29",N$2,"Day ","Prob Eggs") -> 1.093567251 | T32: Sum of 29 | U32: 0 | V32: 29 | W32: =W31+GETPIVOTDATA("Sum of 29",T$2,"Day ","Prob Eggs") -> 1.134917518 | Z32: Sum of 29 | AA32: 0 | AB32: 29 | AC32: =AC31+GETPIVOTDATA("Sum of 29",Z$2,"Day ","Prob Eggs") -> 0.9371122587 | AF32: Sum of 29 | AG32: 0 | AH32: 29 | AI32: =AI31+GETPIVOTDATA("Sum of 29",AF$2,"Day ","Prob Eggs") -> 1.098814229 | AL32: Sum of 29 | AM32: 0 | AN32: 29 | AO32: =AO31+GETPIVOTDATA("Sum of 29",AL$2,"Day ","Prob Eggs") -> 0 | AR32: Sum of 29 | AS32: 0 | AT32: 29 | AU32: =AU31+GETPIVOTDATA("Sum of 29",AR$2,"Day ","Prob Eggs") -> 0 | AX32: Sum of 29 | AY32: 0 | AZ32: 29 | BA32: =BA31+GETPIVOTDATA("Sum of 29",AX$2,"Day ","Prob Eggs") -> 0 | BD32: Sum of 29 | BE32: 0 | BF32: 29 | BG32: =BG31+GETPIVOTDATA("Sum of 29",BD$2,"Day ","Prob Eggs") -> 0
B33: Sum of 30 | C33: 0 | D33: 30 | E33: =E32+GETPIVOTDATA("Sum of 30",$B$2,"Day ","Prob Eggs") -> 0.8901515152 | H33: Sum of 30 | I33: 0 | J33: 30 | K33: =K32+GETPIVOTDATA("Sum of 30",H$2,"Day ","Prob Eggs") -> 0.9812576313 | N33: Sum of 30 | O33: 0 | P33: 30 | Q33: =Q32+GETPIVOTDATA("Sum of 30",N$2,"Day ","Prob Eggs") -> 1.093567251 | T33: Sum of 30 | U33: 0 | V33: 30 | W33: =W32+GETPIVOTDATA("Sum of 30",T$2,"Day ","Prob Eggs") -> 1.134917518 | Z33: Sum of 30 | AA33: 0 | AB33: 30 | AC33: =AC32+GETPIVOTDATA("Sum of 30",Z$2,"Day ","Prob Eggs") -> 0.9371122587 | AF33: Sum of 30 | AG33: 0 | AH33: 30 | AI33: =AI32+GETPIVOTDATA("Sum of 30",AF$2,"Day ","Prob Eggs") -> 1.098814229 | AL33: Sum of 30 | AM33: 0 | AN33: 30 | AO33: =AO32+GETPIVOTDATA("Sum of 30",AL$2,"Day ","Prob Eggs") -> 0 | AR33: Sum of 30 | AS33: 0 | AT33: 30 | AU33: =AU32+GETPIVOTDATA("Sum of 30",AR$2,"Day ","Prob Eggs") -> 0 | AX33: Sum of 30 | AY33: 0 | AZ33: 30 | BA33: =BA32+GETPIVOTDATA("Sum of 30",AX$2,"Day ","Prob Eggs") -> 0 | BD33: Sum of 30 | BE33: 0 | BF33: 30 | BG33: =BG32+GETPIVOTDATA("Sum of 30",BD$2,"Day ","Prob Eggs") -> 0
B34: Sum of 31 | C34: 0 | D34: 31 | E34: =E33+GETPIVOTDATA("Sum of 31",$B$2,"Day ","Prob Eggs") -> 0.8901515152 | H34: Sum of 31 | I34: 0 | J34: 31 | K34: =K33+GETPIVOTDATA("Sum of 31",H$2,"Day ","Prob Eggs") -> 0.9812576313 | N34: Sum of 31 | O34: 0 | P34: 31 | Q34: =Q33+GETPIVOTDATA("Sum of 31",N$2,"Day ","Prob Eggs") -> 1.093567251 | T34: Sum of 31 | U34: 0 | V34: 31 | W34: =W33+GETPIVOTDATA("Sum of 31",T$2,"Day ","Prob Eggs") -> 1.134917518 | Z34: Sum of 31 | AA34: 0 | AB34: 31 | AC34: =AC33+GETPIVOTDATA("Sum of 31",Z$2,"Day ","Prob Eggs") -> 0.9371122587 | AF34: Sum of 31 | AG34: 0 | AH34: 31 | AI34: =AI33+GETPIVOTDATA("Sum of 31",AF$2,"Day ","Prob Eggs") -> 1.098814229 | AL34: Sum of 31 | AM34: 0 | AN34: 31 | AO34: =AO33+GETPIVOTDATA("Sum of 31",AL$2,"Day ","Prob Eggs") -> 0 | AR34: Sum of 31 | AS34: 0 | AT34: 31 | AU34: =AU33+GETPIVOTDATA("Sum of 31",AR$2,"Day ","Prob Eggs") -> 0 | AX34: Sum of 31 | AY34: 0 | AZ34: 31 | BA34: =BA33+GETPIVOTDATA("Sum of 31",AX$2,"Day ","Prob Eggs") -> 0 | BD34: Sum of 31 | BE34: 0 | BF34: 31 | BG34: =BG33+GETPIVOTDATA("Sum of 31",BD$2,"Day ","Prob Eggs") -> 0
B35: Sum of 32 | C35: 0 | D35: 32 | E35: =E34+GETPIVOTDATA("Sum of 32",$B$2,"Day ","Prob Eggs") -> 0.8901515152 | H35: Sum of 32 | I35: 0 | J35: 32 | K35: =K34+GETPIVOTDATA("Sum of 32",H$2,"Day ","Prob Eggs") -> 0.9812576313 | N35: Sum of 32 | O35: 0 | P35: 32 | Q35: =Q34+GETPIVOTDATA("Sum of 32",N$2,"Day ","Prob Eggs") -> 1.093567251 | T35: Sum of 32 | U35: 0 | V35: 32 | W35: =W34+GETPIVOTDATA("Sum of 32",T$2,"Day ","Prob Eggs") -> 1.134917518 | Z35: Sum of 32 | AA35: 0 | AB35: 32 | AC35: =AC34+GETPIVOTDATA("Sum of 32",Z$2,"Day ","Prob Eggs") -> 0.9371122587 | AF35: Sum of 32 | AG35: 0 | AH35: 32 | AI35: =AI34+GETPIVOTDATA("Sum of 32",AF$2,"Day ","Prob Eggs") -> 1.098814229 | AL35: Sum of 32 | AM35: 0 | AN35: 32 | AO35: =AO34+GETPIVOTDATA("Sum of 32",AL$2,"Day ","Prob Eggs") -> 0 | AR35: Sum of 32 | AS35: 0 | AT35: 32 | AU35: =AU34+GETPIVOTDATA("Sum of 32",AR$2,"Day ","Prob Eggs") -> 0 | AX35: Sum of 32 | AY35: 0 | AZ35: 32 | BA35: =BA34+GETPIVOTDATA("Sum of 32",AX$2,"Day ","Prob Eggs") -> 0 | BD35: Sum of 32 | BE35: 0 | BF35: 32 | BG35: =BG34+GETPIVOTDATA("Sum of 32",BD$2,"Day ","Prob Eggs") -> 0
B36: Sum of 33 | C36: 0 | D36: 33 | E36: =E35+GETPIVOTDATA("Sum of 33",$B$2,"Day ","Prob Eggs") -> 0.8901515152 | H36: Sum of 33 | I36: 0 | J36: 33 | K36: =K35+GETPIVOTDATA("Sum of 33",H$2,"Day ","Prob Eggs") -> 0.9812576313 | N36: Sum of 33 | O36: 0 | P36: 33 | Q36: =Q35+GETPIVOTDATA("Sum of 33",N$2,"Day ","Prob Eggs") -> 1.093567251 | T36: Sum of 33 | U36: 0 | V36: 33 | W36: =W35+GETPIVOTDATA("Sum of 33",T$2,"Day ","Prob Eggs") -> 1.134917518 | Z36: Sum of 33 | AA36: 0 | AB36: 33 | AC36: =AC35+GETPIVOTDATA("Sum of 33",Z$2,"Day ","Prob Eggs") -> 0.9371122587 | AF36: Sum of 33 | AG36: 0 | AH36: 33 | AI36: =AI35+GETPIVOTDATA("Sum of 33",AF$2,"Day ","Prob Eggs") -> 1.098814229 | AL36: Sum of 33 | AM36: 0 | AN36: 33 | AO36: =AO35+GETPIVOTDATA("Sum of 33",AL$2,"Day ","Prob Eggs") -> 0 | AR36: Sum of 33 | AS36: 0 | AT36: 33 | AU36: =AU35+GETPIVOTDATA("Sum of 33",AR$2,"Day ","Prob Eggs") -> 0 | AX36: Sum of 33 | AY36: 0 | AZ36: 33 | BA36: =BA35+GETPIVOTDATA("Sum of 33",AX$2,"Day ","Prob Eggs") -> 0 | BD36: Sum of 33 | BE36: 0 | BF36: 33 | BG36: =BG35+GETPIVOTDATA("Sum of 33",BD$2,"Day ","Prob Eggs") -> 0
B37: Sum of 34 | C37: 0 | D37: 34 | E37: =E36+GETPIVOTDATA("Sum of 34",$B$2,"Day ","Prob Eggs") -> 0.8901515152 | H37: Sum of 34 | I37: 0 | J37: 34 | K37: =K36+GETPIVOTDATA("Sum of 34",H$2,"Day ","Prob Eggs") -> 0.9812576313 | N37: Sum of 34 | O37: 0 | P37: 34 | Q37: =Q36+GETPIVOTDATA("Sum of 34",N$2,"Day ","Prob Eggs") -> 1.093567251 | T37: Sum of 34 | U37: 0 | V37: 34 | W37: =W36+GETPIVOTDATA("Sum of 34",T$2,"Day ","Prob Eggs") -> 1.134917518 | Z37: Sum of 34 | AA37: 0 | AB37: 34 | AC37: =AC36+GETPIVOTDATA("Sum of 34",Z$2,"Day ","Prob Eggs") -> 0.9371122587 | AF37: Sum of 34 | AG37: 0 | AH37: 34 | AI37: =AI36+GETPIVOTDATA("Sum of 34",AF$2,"Day ","Prob Eggs") -> 1.098814229 | AL37: Sum of 34 | AM37: 0 | AN37: 34 | AO37: =AO36+GETPIVOTDATA("Sum of 34",AL$2,"Day ","Prob Eggs") -> 0 | AR37: Sum of 34 | AS37: 0 | AT37: 34 | AU37: =AU36+GETPIVOTDATA("Sum of 34",AR$2,"Day ","Prob Eggs") -> 0 | AX37: Sum of 34 | AY37: 0 | AZ37: 34 | BA37: =BA36+GETPIVOTDATA("Sum of 34",AX$2,"Day ","Prob Eggs") -> 0 | BD37: Sum of 34 | BE37: 0 | BF37: 34 | BG37: =BG36+GETPIVOTDATA("Sum of 34",BD$2,"Day ","Prob Eggs") -> 0
B38: Sum of 35 | C38: 0 | D38: 35 | E38: =E37+GETPIVOTDATA("Sum of 35",$B$2,"Day ","Prob Eggs") -> 0.8901515152 | H38: Sum of 35 | I38: 0 | J38: 35 | K38: =K37+GETPIVOTDATA("Sum of 35",H$2,"Day ","Prob Eggs") -> 0.9812576313 | N38: Sum of 35 | O38: 0 | P38: 35 | Q38: =Q37+GETPIVOTDATA("Sum of 35",N$2,"Day ","Prob Eggs") -> 1.093567251 | T38: Sum of 35 | U38: 0 | V38: 35 | W38: =W37+GETPIVOTDATA("Sum of 35",T$2,"Day ","Prob Eggs") -> 1.134917518 | Z38: Sum of 35 | AA38: 0 | AB38: 35 | AC38: =AC37+GETPIVOTDATA("Sum of 35",Z$2,"Day ","Prob Eggs") -> 0.9371122587 | AF38: Sum of 35 | AG38: 0 | AH38: 35 | AI38: =AI37+GETPIVOTDATA("Sum of 35",AF$2,"Day ","Prob Eggs") -> 1.098814229 | AL38: Sum of 35 | AM38: 0 | AN38: 35 | AO38: =AO37+GETPIVOTDATA("Sum of 35",AL$2,"Day ","Prob Eggs") -> 0 | AR38: Sum of 35 | AS38: 0 | AT38: 35 | AU38: =AU37+GETPIVOTDATA("Sum of 35",AR$2,"Day ","Prob Eggs") -> 0 | AX38: Sum of 35 | AY38: 0 | AZ38: 35 | BA38: =BA37+GETPIVOTDATA("Sum of 35",AX$2,"Day ","Prob Eggs") -> 0 | BD38: Sum of 35 | BE38: 0 | BF38: 35 | BG38: =BG37+GETPIVOTDATA("Sum of 35",BD$2,"Day ","Prob Eggs") -> 0
B39: Sum of 36 | C39: 0 | D39: 36 | E39: =E38+GETPIVOTDATA("Sum of 36",$B$2,"Day ","Prob Eggs") -> 0.8901515152 | H39: Sum of 36 | I39: 0 | J39: 36 | K39: =K38+GETPIVOTDATA("Sum of 36",H$2,"Day ","Prob Eggs") -> 0.9812576313 | N39: Sum of 36 | O39: 0 | P39: 36 | Q39: =Q38+GETPIVOTDATA("Sum of 36",N$2,"Day ","Prob Eggs") -> 1.093567251 | T39: Sum of 36 | U39: 0 | V39: 36 | W39: =W38+GETPIVOTDATA("Sum of 36",T$2,"Day ","Prob Eggs") -> 1.134917518 | Z39: Sum of 36 | AA39: 0 | AB39: 36 | AC39: =AC38+GETPIVOTDATA("Sum of 36",Z$2,"Day ","Prob Eggs") -> 0.9371122587 | AF39: Sum of 36 | AG39: 0 | AH39: 36 | AI39: =AI38+GETPIVOTDATA("Sum of 36",AF$2,"Day ","Prob Eggs") -> 1.098814229 | AL39: Sum of 36 | AM39: 0 | AN39: 36 | AO39: =AO38+GETPIVOTDATA("Sum of 36",AL$2,"Day ","Prob Eggs") -> 0 | AR39: Sum of 36 | AS39: 0 | AT39: 36 | AU39: =AU38+GETPIVOTDATA("Sum of 36",AR$2,"Day ","Prob Eggs") -> 0 | AX39: Sum of 36 | AY39: 0 | AZ39: 36 | BA39: =BA38+GETPIVOTDATA("Sum of 36",AX$2,"Day ","Prob Eggs") -> 0 | BD39: Sum of 36 | BE39: 0 | BF39: 36 | BG39: =BG38+GETPIVOTDATA("Sum of 36",BD$2,"Day ","Prob Eggs") -> 0
B40: Sum of 37 | C40: 0 | D40: 37 | E40: =E39+GETPIVOTDATA("Sum of 37",$B$2,"Day ","Prob Eggs") -> 0.8901515152 | H40: Sum of 37 | I40: 0 | J40: 37 | K40: =K39+GETPIVOTDATA("Sum of 37",H$2,"Day ","Prob Eggs") -> 0.9812576313 | N40: Sum of 37 | O40: 0 | P40: 37 | Q40: =Q39+GETPIVOTDATA("Sum of 37",N$2,"Day ","Prob Eggs") -> 1.093567251 | T40: Sum of 37 | U40: 0 | V40: 37 | W40: =W39+GETPIVOTDATA("Sum of 37",T$2,"Day ","Prob Eggs") -> 1.134917518 | Z40: Sum of 37 | AA40: 0 | AB40: 37 | AC40: =AC39+GETPIVOTDATA("Sum of 37",Z$2,"Day ","Prob Eggs") -> 0.9371122587 | AF40: Sum of 37 | AG40: 0 | AH40: 37 | AI40: =AI39+GETPIVOTDATA("Sum of 37",AF$2,"Day ","Prob Eggs") -> 1.098814229 | AL40: Sum of 37 | AM40: 0 | AN40: 37 | AO40: =AO39+GETPIVOTDATA("Sum of 37",AL$2,"Day ","Prob Eggs") -> 0 | AR40: Sum of 37 | AS40: 0 | AT40: 37 | AU40: =AU39+GETPIVOTDATA("Sum of 37",AR$2,"Day ","Prob Eggs") -> 0 | AX40: Sum of 37 | AY40: 0 | AZ40: 37 | BA40: =BA39+GETPIVOTDATA("Sum of 37",AX$2,"Day ","Prob Eggs") -> 0 | BD40: Sum of 37 | BE40: 0 | BF40: 37 | BG40: =BG39+GETPIVOTDATA("Sum of 37",BD$2,"Day ","Prob Eggs") -> 0
B41: Sum of 38 | C41: 0 | D41: 38 | E41: =E40+GETPIVOTDATA("Sum of 38",$B$2,"Day ","Prob Eggs") -> 0.8901515152 | H41: Sum of 38 | I41: 0 | J41: 38 | K41: =K40+GETPIVOTDATA("Sum of 38",H$2,"Day ","Prob Eggs") -> 0.9812576313 | N41: Sum of 38 | O41: 0 | P41: 38 | Q41: =Q40+GETPIVOTDATA("Sum of 38",N$2,"Day ","Prob Eggs") -> 1.093567251 | T41: Sum of 38 | U41: 0 | V41: 38 | W41: =W40+GETPIVOTDATA("Sum of 38",T$2,"Day ","Prob Eggs") -> 1.134917518 | Z41: Sum of 38 | AA41: 0 | AB41: 38 | AC41: =AC40+GETPIVOTDATA("Sum of 38",Z$2,"Day ","Prob Eggs") -> 0.9371122587 | AF41: Sum of 38 | AG41: 0 | AH41: 38 | AI41: =AI40+GETPIVOTDATA("Sum of 38",AF$2,"Day ","Prob Eggs") -> 1.098814229 | AL41: Sum of 38 | AM41: 0 | AN41: 38 | AO41: =AO40+GETPIVOTDATA("Sum of 38",AL$2,"Day ","Prob Eggs") -> 0 | AR41: Sum of 38 | AS41: 0 | AT41: 38 | AU41: =AU40+GETPIVOTDATA("Sum of 38",AR$2,"Day ","Prob Eggs") -> 0 | AX41: Sum of 38 | AY41: 0 | AZ41: 38 | BA41: =BA40+GETPIVOTDATA("Sum of 38",AX$2,"Day ","Prob Eggs") -> 0 | BD41: Sum of 38 | BE41: 0 | BF41: 38 | BG41: =BG40+GETPIVOTDATA("Sum of 38",BD$2,"Day ","Prob Eggs") -> 0
B42: Sum of 39 | C42: 0 | D42: 39 | E42: =E41+GETPIVOTDATA("Sum of 39",$B$2,"Day ","Prob Eggs") -> 0.8901515152 | H42: Sum of 39 | I42: 0 | J42: 39 | K42: =K41+GETPIVOTDATA("Sum of 39",H$2,"Day ","Prob Eggs") -> 0.9812576313 | N42: Sum of 39 | O42: 0 | P42: 39 | Q42: =Q41+GETPIVOTDATA("Sum of 39",N$2,"Day ","Prob Eggs") -> 1.093567251 | T42: Sum of 39 | U42: 0 | V42: 39 | W42: =W41+GETPIVOTDATA("Sum of 39",T$2,"Day ","Prob Eggs") -> 1.134917518 | Z42: Sum of 39 | AA42: 0 | AB42: 39 | AC42: =AC41+GETPIVOTDATA("Sum of 39",Z$2,"Day ","Prob Eggs") -> 0.9371122587 | AF42: Sum of 39 | AG42: 0 | AH42: 39 | AI42: =AI41+GETPIVOTDATA("Sum of 39",AF$2,"Day ","Prob Eggs") -> 1.098814229 | AL42: Sum of 39 | AM42: 0 | AN42: 39 | AO42: =AO41+GETPIVOTDATA("Sum of 39",AL$2,"Day ","Prob Eggs") -> 0 | AR42: Sum of 39 | AS42: 0 | AT42: 39 | AU42: =AU41+GETPIVOTDATA("Sum of 39",AR$2,"Day ","Prob Eggs") -> 0 | AX42: Sum of 39 | AY42: 0 | AZ42: 39 | BA42: =BA41+GETPIVOTDATA("Sum of 39",AX$2,"Day ","Prob Eggs") -> 0 | BD42: Sum of 39 | BE42: 0 | BF42: 39 | BG42: =BG41+GETPIVOTDATA("Sum of 39",BD$2,"Day ","Prob Eggs") -> 0
B43: Sum of 40 | C43: 0 | D43: 40 | E43: =E42+GETPIVOTDATA("Sum of 40",$B$2,"Day ","Prob Eggs") -> 0.8901515152 | H43: Sum of 40 | I43: 0 | J43: 40 | K43: =K42+GETPIVOTDATA("Sum of 40",H$2,"Day ","Prob Eggs") -> 0.9812576313 | N43: Sum of 40 | O43: 0 | P43: 40 | Q43: =Q42+GETPIVOTDATA("Sum of 40",N$2,"Day ","Prob Eggs") -> 1.093567251 | T43: Sum of 40 | U43: 0 | V43: 40 | W43: =W42+GETPIVOTDATA("Sum of 40",T$2,"Day ","Prob Eggs") -> 1.134917518 | Z43: Sum of 40 | AA43: 0 | AB43: 40 | AC43: =AC42+GETPIVOTDATA("Sum of 40",Z$2,"Day ","Prob Eggs") -> 0.9371122587 | AF43: Sum of 40 | AG43: 0 | AH43: 40 | AI43: =AI42+GETPIVOTDATA("Sum of 40",AF$2,"Day ","Prob Eggs") -> 1.098814229 | AL43: Sum of 40 | AM43: 0 | AN43: 40 | AO43: =AO42+GETPIVOTDATA("Sum of 40",AL$2,"Day ","Prob Eggs") -> 0 | AR43: Sum of 40 | AS43: 0 | AT43: 40 | AU43: =AU42+GETPIVOTDATA("Sum of 40",AR$2,"Day ","Prob Eggs") -> 0 | AX43: Sum of 40 | AY43: 0 | AZ43: 40 | BA43: =BA42+GETPIVOTDATA("Sum of 40",AX$2,"Day ","Prob Eggs") -> 0 | BD43: Sum of 40 | BE43: 0 | BF43: 40 | BG43: =BG42+GETPIVOTDATA("Sum of 40",BD$2,"Day ","Prob Eggs") -> 0
B44: Sum of 41 | C44: 0 | D44: 41 | E44: =E43+GETPIVOTDATA("Sum of 41",$B$2,"Day ","Prob Eggs") -> 0.8901515152 | H44: Sum of 41 | I44: 0 | J44: 41 | K44: =K43+GETPIVOTDATA("Sum of 41",H$2,"Day ","Prob Eggs") -> 0.9812576313 | N44: Sum of 41 | O44: 0 | P44: 41 | Q44: =Q43+GETPIVOTDATA("Sum of 41",N$2,"Day ","Prob Eggs") -> 1.093567251 | T44: Sum of 41 | U44: 0 | V44: 41 | W44: =W43+GETPIVOTDATA("Sum of 41",T$2,"Day ","Prob Eggs") -> 1.134917518 | Z44: Sum of 41 | AA44: 0 | AB44: 41 | AC44: =AC43+GETPIVOTDATA("Sum of 41",Z$2,"Day ","Prob Eggs") -> 0.9371122587 | AF44: Sum of 41 | AG44: 0 | AH44: 41 | AI44: =AI43+GETPIVOTDATA("Sum of 41",AF$2,"Day ","Prob Eggs") -> 1.098814229 | AL44: Sum of 41 | AM44: 0 | AN44: 41 | AO44: =AO43+GETPIVOTDATA("Sum of 41",AL$2,"Day ","Prob Eggs") -> 0 | AR44: Sum of 41 | AS44: 0 | AT44: 41 | AU44: =AU43+GETPIVOTDATA("Sum of 41",AR$2,"Day ","Prob Eggs") -> 0 | AX44: Sum of 41 | AY44: 0 | AZ44: 41 | BA44: =BA43+GETPIVOTDATA("Sum of 41",AX$2,"Day ","Prob Eggs") -> 0 | BD44: Sum of 41 | BE44: 0 | BF44: 41 | BG44: =BG43+GETPIVOTDATA("Sum of 41",BD$2,"Day ","Prob Eggs") -> 0
